Workbook

Sheet Design the GaN Converter
A1: LMG708B0 80V, 20A GaN Buck Converter Design Tool
O2: http://www.ti.com/product/lm5175
A3: About | C3: xx | F3: = Input Box | O3: TERMS OF USE
A5: Step 1: Operating Specifications
D6: Input Voltage – Min, VIN(min) | E6: 36 | F6: V
D7: Input Voltage – Nom, VIN(nom) | E7: 48 | F7: V
D8: Input Voltage – Max, VIN(max) | E8: 65 | F8: V
D9: Output Voltage, VOUT | E9: 12 | F9: V
D10: Full-Load Output Current, IOUT | E10: 20 | F10: A
D11: Switching Frequency, FSW | E11: 400 | F11: kHz
D12: Frequency Set Resistor, RRT | E12: ='Variable Management'!C436 -> 54.9 | F12: kΩ
D13: Ambient Temperature, TA | E13: 25 | F13: °C
A15: Step 2: Current Sense
D16: Required IOCP Setpoint at VIN(nom) | E16: 25 | F16: A
D17: Recommended Sense Resistance | E17: =Rs_ideal*1000 -> 1.0942341 | F17: mΩ
D18: Effective Sense Resistance, RS | E18: 1 | F18: mΩ
D19: Max Power Loss in the Shunt (near OCP) | E19: ='Variable Management'!B114 -> 0.7776490413 | F19: W
D20: at VIN(min) | E20: =Iout_OCP_Vinmin -> 27.85894842 | F20: A
C21: IOUT(typ) at OCP Inception: | D21: at VIN(nom) | E21: =Iout_OCP_Vinnom -> 27.58356324 | F21: A
D22: at VIN(max) | E22: =Iout_OCP_Vinmax -> 27.36901848 | F22: A
A24: Step 3: Buck Inductor
D25: Inductance for 30% Ripple Current at VIN(nom) | E25: =Lopt*1000000 -> 3.75 | F25: µH
D26: Inductance for Ideal Slope Comp | E26: ='Variable Management'!B42*1000000 -> 2.666666667 | F26: µH
D27: Buck Inductance, LO | E27: 4.7 | F27: µH
D28: Inductor DCR at 25°C | E28: 3.76 | F28: mΩ
D29: Slope Comp Ratio Se/Sf | E29: ='Variable Management'!B252 -> 1.7625 | F29: ´
D30: Inductor Pk-Pk Ripple Current at VIN(nom) | E30: ='Variable Management'!B58 -> 4.83287353 | F30: APK-PK
D31: DIL as a % of Full Load at VIN(nom) | E31: ='Variable Management'!D58*100 -> 24.16436765 | F31: %
D32: Peak Inductor Current at VIN(max) and Full Load | E32: ='Variable Management'!B104 -> 22.63098152 | F32: APK
D33: Min. Inductor Sat. Current Rating, ILO(SAT) | E33: =Ipk_OCP_Vinnom -> 30 | F33: APK
D34: Estimated Inductor Core Loss at VIN(nom) | E34: 0.7 | F34: W
D35: Total Inductor Loss at Full Load and VIN(nom) | E35: ='Variable Management'!B68 -> 2.543691574 | F35: W
A37: Step 4: Thermal Performance
D38: IC Power Dissipation, PD | E38: ='Efficiency Calculations'!BF109 -> 4.172185378 | F38: W
D39: =CHOOSE(MODE, "High-side FET Power Loss","Low-side FET Power Loss") -> High-side FET Power Loss | E39: ='Efficiency Calculations'!BC109 -> 1.535382885 | F39: W
D40: =CHOOSE(MODE, "Total DC/DC Regulator Power Loss","Total Per-phase Power Loss ") -> Total DC/DC Regulator Power Loss | E40: ='Efficiency Calculations'!BF109 + 'Variable Management'!B68 -> 6.715876952 | F40: W
D41: IC Effective Thermal Resistance, RqCA | E41: 18 | F41: °C/W
D42: Estimated Case Temperature, TC | E42: ='Variable Management'!B379 -> 100.0993368 | F42: °C
D43: Estimated Junction Temperature Hotspot, TJ | E43: ='Variable Management'!B379 -> 100.0993368 | F43: °C
E44: =CHOOSE(Ext_BIAS, IF(OR(Vout>28, Vout<4.6), "* Tie BIAS to a 5V External Supply", "* Tie BIAS to VOUT"), "* Tie BIAS to GND") -> * Tie BIAS to VOUT
A46: Step 5: Output Capacitors
D47: Desired Output Voltage Ripple | E47: 60 | F47: mVPK-PK
D48: Effective COUT Value to Meet Ripple Spec | E48: ='Variable Management'!B137 -> 25.1712163 | F48: µF
D49: VOUT Deviation for 50% IOUT Load Step | E49: 200 | F49: mV
D50: Effective COUT Value for Load Transient Spec | E50: ='Variable Management'!B142 -> 97.91666667 | F50: µF
D51: Output Capacitance (derated), COUT | E51: 130 | F51: µF
D52: Output Capacitor ESR | E52: 5 | F52: mΩ
D53: Resulting Output Voltage Ripple (max) | E53: ='Variable Management'!B148*1000 -> 26.81198629 | F53: mVPK-PK
D54: Output Capacitor RMS Current (max) | E54: ='Variable Management'!B130 -> 1.518997887 | F54: ARMS
A56: Step 6: Input Capacitors
D57: Input Voltage Ripple Spec | E57: 500 | F57: mVPK-PK
D58: Minimum Input Capacitance | E58: ='Variable Management'!B196 -> 22.38881155 | F58: µF
D59: Input Capacitance (derated), CIN | E59: 25 | F59: µF
D60: Maximum Permitted ESR | E60: ='Variable Management'!B200 -> 2.358685126 | F60: mΩ
D61: Input Capacitor ESR | E61: 2 | F61: mΩ
D62: Resulting Input Voltage Ripple (max) | E62: ='Variable Management'!B209*1000 -> 492.0583341 | F62: mVPK-PK
D63: Input Capacitor RMS Current (max) | E63: ='Variable Management'!B166 -> 9.463363366 | F63: ARMS
A65: Step 7: Output Voltage Setting
D66: =CHOOSE(Fixed_Vout_Setting, "Upper Feedback Resistance", "* Tie FB to AGND for a Fixed 5V Output", "* Tie FB to VCC for a Fixed 12V Output", ) -> * Tie FB to VCC for a Fixed 12V Output | E66: 100 | F66: kΩ
D67: Lower Feedback Resistance (E96) | E67: ='Variable Management'!B216 -> 9.09 | F67: =IF(Vout=Vref,"","kΩ") -> kΩ
D68: Actual Output Voltage Setpoint | E68: ='Variable Management'!B217 -> 12.00110011 | F68: V
D69: Feedforward Capacitance, CFF | E69: 10 | F69: pF
A71: Step 8: Loop Compensation
D72: Desired Crossover Freqeuncy | E72: 50 | F72: =" kHz " -> kHz
A74: Compensation Components
B75: Calculated / | C75: Std Values | E75: =C75 -> Std Values
A76: RCOMP | B76: =Rcea1/1000 -> 9.801769068 | C76: ='Standard Value Calculator'!O30 -> 9.76 | E76: =C76 -> 9.76 | F76: kΩ
A77: CCOMP | B77: =Cc1ea*1000000000 -> 3.247473842 | C77: ='Standard Value Calculator'!O31 -> 3.3 | E77: =C77 -> 3.3 | F77: nF
A78: CHF | B78: =IF(Cc2ea<0, "N/A", Cc2ea*1000000000000) -> 61.16735633 | C78: ='Standard Value Calculator'!O32 -> 56 | E78: =C78 -> 56 | F78: pF
A80: Pole/Zero Frequencies
D81: Load Pole Frequency, FP-LOAD | E81: =Fp_dominant/1000 -> 2.486331215 | F81: kHz
D82: Output Cap ESR Zero Frequency, FZ-ESR | E82: =Fesr/1000 -> 244.8537589 | F82: kHz
D83: Error Amp Dominant Pole Frequency, FP-EA | E83: =Fp1_u -> 1.919276204 | F83: Hz
D84: Compensator Zero Frequency, FZ-COMP | E84: =Fz1_u/1000 -> 4.941472407 | F84: kHz
D85: Compensator Pole Frequency, FP-COMP | E85: =Fp2_u/1000 -> 214.508924 | F85: kHz
A87: Step 8: VIN UVLO, CNFG, FPWM/SYNC, DRSS
D88: Desired VIN UVLO Turn-on Threshold | E88: 35 | F88: V
D89: VIN UVLO Upper Resistance, REN1 | E89: 200 | F89: kΩ
D90: VIN UVLO Lower Resistance, REN2 | E90: =Renb_u/1000 -> 5.9 | F90: =IF(Vout=Vref,"","kΩ") -> kΩ
D91: Actual VIN UVLO Turn-On Threshold, VIN(on) | E91: =1/E90*(E89+E90) -> 34.89830508 | F91: V
D92: Actual VIN UVLO Turn-Off Threshold, VIN(off) | E92: =E91*0.9 -> 31.40847458 | F92: V
D93: Configuration Resistor (Primary IC), RCNFG | E93: =RCNFG -> 23.7 | F93: kΩ
D94: * Secondary IC – Tie CNFG to GND
E95: =CHOOSE(DEMB, "* Tie FPWM/SYNC to VCC", "* Tie FPWM/SYNC to AGND", "*Tie a SYNC signal to FPWM/SYNC") -> * Tie FPWM/SYNC to VCC
E96: =CHOOSE(DRSS, "* Tie the RT Resistor to VCC", "* Tie the RT Resistor to AGND") -> * Tie the RT Resistor to VCC
A98: Step 9: CC Loop
D99: Desired CC Loop Setpoint | E99: 30 | F99: A
D100: IMON Resistance, RIMON | E100: ='Variable Management'!B225 -> 6.98 | F100: kΩ
D101: IMON Capacitance, CIMON | E101: ='Variable Management'!B229 -> 12 | F101: nF

Sheet Schematic & BOM
A32: =IF(Fsw/1000<1000, "Vin = "&VIN_min&"V to "&VIN_max&"V, Vout = "&Vout&"V, Iout = "&Iout&"A, Fsw = "&Fsw/1000&"kHz", "VIN = "&VIN_min&"V to "&VIN_max&"V, VOUT = "&Vout&"V, IOUT = "&Iout&"A, Fsw = "&Fsw/1000000&"MHz") -> Vin = 36V to 65V, Vout = 12V, Iout = 20A, Fsw = 400kHz
A33: High-Efficiency GaN Synchronous Buck Converter BOM
A34: Count | B34: Ref Des | C34: Value | D34: Description | H34: Size | I34: Part Number | J34: MFR
A35: =ROUNDUP('Design the GaN Converter'!E59/10,0) -> 3 | B35: CIN | C35: 10 | D35: =C35 -> 10 | H35: 1210 | I35: -- | J35: Various
A36: 2 | B36: COUT | C36: 47 | D36: =C36 -> 47 | H36: 1210 | I36: -- | J36: Various
A37: 1 | B37: CVCC | C37: 2.2 | D37: =C37 -> 2.2 | H37: 0402 | I37: Std | J37: Std
A38: 1 | B38: CCOMP | C38: ='Design the GaN Converter'!E77 -> 3.3 | D38: =C38 -> 3.3 | H38: 0402 | I38: Std | J38: Std
A39: 1 | B39: CHF | C39: ='Design the GaN Converter'!E78 -> 56 | D39: =C39 -> 56 | H39: 0402 | I39: Std | J39: Std
A40: 1 | B40: CIMON | C40: ='Design the GaN Converter'!E101 -> 12 | D40: 12 | H40: 0402 | I40: Std | J40: Std
A41: 1 | B41: CFF | C41: ='Variable Management'!D391 -> 10 | D41: 10 | H41: 0402 | I41: Std | J41: Std
A42: 1 | B42: LO | C42: ='Design the GaN Converter'!E27 -> 4.7 | D42: ="Buck Inductor, "&Lo*1000000&"µH, "&Rdcr*1000&"mΩ, >"&ROUNDUP(Ipk_OCP_Vinmin*1.05,0)&"A" -> Buck Inductor, 4.7µH, 3.76mΩ, >32A | H42: -- | I42: -- | J42: Various
A43: 1 | B43: RS | C43: ='Design the GaN Converter'!E18 -> 1 | D43: =C43 -> 1 | H43: 0508 | I43: -- | J43: Various
A44: 1 | B44: RRT | C44: ='Design the GaN Converter'!E12 -> 54.9 | D44: =C44 -> 54.9 | H44: 0402 | I44: Std | J44: Std
A45: 1 | B45: RCOMP | C45: ='Design the GaN Converter'!E76 -> 9.76 | D45: =C45 -> 9.76 | H45: 0402 | I45: Std | J45: Std
A46: 1 | B46: RCNFG | C46: =RCNFG -> 23.7 | D46: =C46 -> 23.7 | H46: 0402 | I46: Std | J46: Std
A47: 1 | B47: RIMON | C47: ='Variable Management'!B225 -> 6.98 | D47: =C47 -> 6.98 | H47: 0402 | I47: Std | J47: Std
A48: 1 | B48: RFB1 | C48: ='Variable Management'!B215 -> 100 | D48: =C48 -> 100 | H48: 0402 | I48: Std | J48: Std
A49: 1 | B49: RFB2 | C49: ='Variable Management'!B216 -> 9.09 | D49: =C49 -> 9.09 | H49: 0402 | I49: Std | J49: Std
A50: 1 | B50: RUV1 | C50: ='Variable Management'!D393 -> 200 | D50: =C50 -> 200 | H50: 0402 | I50: Std | J50: Std
A51: 1 | B51: RUV2 | C51: ='Variable Management'!D394 -> 5.9 | D51: 5.9 | H51: 0402 | I51: Std | J51: Std
A52: 1 | B52: RPGOOD | C52: 100 | D52: 100 | H52: 0402 | I52: Std | J52: Std
A53: 1 | B53: U1 | C53: ='Variable Management'!N18 -> LMG708B0 | D53: =CHOOSE(GPN, "IC, LMG708B0 GaN Synchronous Buck Converter, 5V–80V Input, 20A Output", "IC, LM63440-Q1 Synchronous Buck DC/DC Converter, 3V–36V Input, 4A Output", "IC, LM64460-Q1 Synchronous Buck DC/DC Converter, 3V–36V Input, 6A Output", "IC, LM64440-Q1 Synchronous Buck DC/DC Converter, 3V–36V Input, 4A Output") -> IC, LMG708B0 GaN Synchronous Buck Converter, 5V–80V Input, 20A Output | H53: eQFN-22 | I53: =CHOOSE(GPN, "LMG708B0VBTR", "LM63440AASQRYFTQ1", "LM64460APPQRYFRQ1", "LM64460BPPQRYFRQ1", "LM64460CPPQRYFRQ1", "LM64440APPQRYFRQ1", "LM64440BPPQRYFRQ1", "LM64440CPPQRYFRQ1") -> LMG708B0VBTR | J53: TI
A56: NOTES:
A57: ** Effective input and output capacitances should be appropriately derated for applied voltage and temperature, particularly with ceramics **

Sheet EVM
A1: LMG708B0 GaN Converter Design Tool
B3: LMG708B0-EVM12V (SR148) PCB Layout

Sheet Variable Management (hidden)
A1: EXCEL Variables Names/Calculations
B2: Input from user =
B3: Output =
B4: Constant
A5: Variable Name | B5: Value | C5: STD Units | E5: Notes | I5: Iteration
A6: Step 1: Operational Specs
A7: VIN_min | B7: ='Design the GaN Converter'!E6 -> 36 | C7: V | D7: Minimum input voltage | I7: 1
A8: VIN_nom | B8: ='Design the GaN Converter'!E7 -> 48 | C8: V | D8: Nominal input voltage | K8: Use CFF | L8: 1 | N8: 5Vout | O8: =IF(Vout = 5, 1, 0) -> 0 | T8: Single phase | U8: 1 | W8: FPWM mode | X8: 1 | Z8: =CHOOSE(SCH_MODE, "Bode Plot (Ch1)", "Bode Plot - 2 Ph", "Bode Plot - 3 Ph", "Bode Plot - 4 Ph") -> Bode Plot (Ch1) | AA8: 1
A9: VIN_max | B9: ='Design the GaN Converter'!E8 -> 65 | C9: V | D9: Maximum input voltage | K9: No CFF | L9: 2 | N9: 12Vout | O9: =IF(Vout = 12, 1, 0) -> 1 | T9: Two phases | U9: 2 | W9: PFM mode | X9: 2 | Z9: =IF(MODE=1, "Bode Plot (Ch2)", "N/A - Do Not Use") -> Bode Plot (Ch2) | AA9: 2
L10: 2 | N10: ADJ | O10: =IF(Vout=5, 0, IF(Vout=12, 0, 1)) -> 0 | T10: Three phases | U10: 3 | W10: External SYNC | X10: 3 | Z10: BODE_PLOT_TYPE | AA10: 1
A11: Vout | B11: ='Design the GaN Converter'!E9 -> 12 | C11: V | D11: Output voltage | K11: NO_FF_CAP | L11: =IF(L10=2, TRUE, FALSE) -> TRUE | N11: FIXED_VOUT_SETTING | O11: =IF(Vout=5, 2, IF(Vout=12, 3, 1)) -> 3 | P11: 1 = ADJ, 2 = 5V, 3 = 12V | T11: Four phases | U11: 4 | W11: FPWM/DEM | X11: 1
A12: Iout | B12: ='Design the GaN Converter'!E10 -> 20 | C12: A | D12: Output current | F12: Iout-max | G12: =Number_of_Phases*20 -> 20 | H12: A | I12: 1 | O12: =OR(O8,O9) -> TRUE | T12: Five phases | U12: 5
I13: 1 | T13: Six phases | U13: 6 | W13: BIAS connected | X13: 1 | Z13: Shunt current sensing | AA13: 1
A14: Rout | B14: =Vout/Iout -> 0.6 | C14: W | D14: Load resistance | N14: LM63460-Q1 - 6A Out | O14: 1 | T14: Seven phases | U14: 7 | W14: No BIAS | X14: 2 | Z14: Inductor DCR current sensing | AA14: 2
A15: Pout | B15: =Vout*Iout -> 240 | C15: W | D15: Output power | N15: LM63440-Q1 - 4A Out | O15: 2 | T15: Eight Phases | U15: 8 | W15: Ext_VCC | X15: 1 | Z15: SENSING_TYPE | AA15: 1
N16: LM64460-Q1 - 6A Out | O16: 3 | T16: SCH_MODE | U16: 1 | AA16: =SENSING_TYPE -> 1
A17: Efficiency | B17: 0.9 | D17: Estimate of efficiency | N17: LM64440-Q1 - 4A Out | O17: 4 | T17: MODE (Single / multiphase), SINGLE = 1, MULTI = 2 | U17: =IF(U16=1, 1, 2) -> 1
A18: Pin | B18: =Pout/Efficiency -> 266.6666667 | C18: W | D18: Calculate input power assuming finite efficiency | L18: GPN | N18: =CHOOSE(GPN, "LMG708B0", "LMG708B0-Q1", "LM64460-Q1", "LM64440-Q1") -> LMG708B0 | O18: 1 | T18: SINGLE PHASE | U18: =IF(U16=1, TRUE, FALSE) -> TRUE
T19: Number of Phases | U19: =SCH_MODE -> 1 | Z19: DRSS on | AA19: 1
A20: Iin_Vinmin | B20: =Pin/VIN_min -> 7.407407407 | C20: A | Z20: DRSS off | AA20: 2
A21: Iin_Vinnom | B21: =Pin/VIN_nom -> 5.555555556 | C21: A | D21: Input currents at min, nom, max Vin | H21: =AND(OSC=1, OR(Fsw/1000>2530, Fsw/1000<1800)) ->  | L21: VARIANT | N21: =CHOOSE(VARIANT, "LMG708B0 Adj Vout", "LMG708B0 5V out", "LMG708B0 12V out", "LMG708B0 Adj Vout, CC", "LMG708B0 5V out, CC", "LMG708B0 12V out, CC") -> LMG708B0 12V out, CC | O21: =IF(CC_LOOP, CHOOSE(Fixed_Vout_Setting, "4", "5", "6"), CHOOSE(Fixed_Vout_Setting, "1", "2", "3")) -> 6 | Z21: DRSS | AA21: 1
A22: Iin_Vinmax | B22: =Pin/VIN_max -> 4.102564103 | C22: A | H22: =AND(OSC=2, OR(Fsw/1000>500, Fsw/1000<300)) -> 
H23: =OR(H21,H22) ->  | T23: MODE | U23: =MODE -> 1
A24: Fsw | B24: ='Design the GaN Converter'!E11*1000 -> 400000 | C24: Hz | D24: Nominal switching frequency - determines RT resistor
A25: RT resistor to AGND | B25: =22/(Fsw/1000000)-0.5233 -> 54.4767 | C25: kΩ | I25: 1 | Z25: CC loop – not required | AA25: 1
A26: Tsw | B26: =1/Fsw -> 2.5e-06 | C26: sec | D26: Switching period | Z26: CC loop – required | AA26: 2
A27: Max crossover frequency = 20% Fsw | B27: =Fsw*0.2/1000 -> 80 | C27: kHz | F27: Min Crossover | G27: 10 | K27: Adjustable | L27: 1 | Z27: CC_LOOP | AA27: 2
A28: Vref | B28: 1 | C28: V | D28: Reference voltage | K28: 5V | L28: 2 | T28: Slope comp – 11.25mV | U28: 1 | AA28: =OR(AA27=2,0) -> TRUE
A29: Rt | B29: ='Standard Value Calculator'!O12/1000 -> 54.9 | C29: kΩ | D29: Frequency set resistor | F29: =IF(OR((Fsw=440000),(Fsw=2200000)),"N/A",Rfadj/1000) -> 0.0549 | K29: 3.3V | L29: 3 | T29: Slope comp – 22.5mV | U29: 2
K30: Adjustable_NoRT | L30: 4 | T30: Slope comp level | U30: 1
K31: 5V_NoRT | L31: 5
K32: 3.3V_NoRT | L32: 6
A33: Step 2: Buck Inductor | B33: Channel 1 | K33: Schematic setting | L33: =IF(No_RT, IF(Vout=3.3, 6, IF(Vout=5, 5, 4)),IF(Vout=3.3, 3, IF(Vout=5, 2, 1))) -> 
A34: Don1 | B34: =Vout/VIN_nom -> 0.25 | F34: Ideal Duty Cycle at VIN(nom)
A35: Doff1 | B35: =1-34:34 -> 0.75 | F35: Ideal 1- Duty Cycle at VIN(nom)
A37: D_Vinmin | B37: =Vout/VIN_min -> 0.3333333333 | D37: =Vout -> 12
A38: D_Vinnom | B38: =Vout/VIN_nom -> 0.25
A39: D_Vinmax | B39: =Vout/VIN_max -> 0.1846153846
A41: L_Vinnom | B41: =(VIN_nom-Vout)*D1_Vinnom/(Fsw*Iout/Number_of_Phases*30%) -> 3.75e-06 | C41: H | D41: =D1_Vinnom -> 0.25 | F41: Calculated inductance for 35% ripple at VIN(nom)
A42: L_slopecomp | B42: =Vout/Se_ext -> 2.666666667e-06 | C42: H | D42: =1000*Vout*Rs/Fsw/11.25 -> 2.666666667e-06 | F42: Calculated inductance based on ideal slope comp of one times inductor downslope
A44: Lopt | B44: =B41 -> 3.75e-06 | C44: H | F44: Min of calculated inductances at VIN(min) and VIN(nom)
A46: Lo | B46: ='Design the GaN Converter'!E27*0.000001 -> 4.7e-06 | C46: H | F46: Chosen inductance
A47: Rdcr | B47: ='Design the GaN Converter'!E28/1000 -> 0.00376 | C47: W | F47: Chosen inductor DCR
A49: Don2 | B49: =(Vout+Iout*(Rdcr+Rs+Rdson2))/(Vin+Iout*(Rdson2-Rdson1)) -> 0.2537304221
A50: Doff2 | B50: =1-_Don2 -> 0.7462695779
A52: D_Vinmin_2 | B52: =(Vout+Iout/Number_of_Phases*(Rdcr+Rs+Rdson2))/(VIN_min+Iout/Number_of_Phases*(Rdson2-Rdson1)) -> 0.3384082783 | D52: =Vout/VIN_min -> 0.3333333333 | F52: Duty cycles adjusted for DCR/Rdson voltage drops
A53: D_Vinnom_2 | B53: =(Vout+Iout*(Rdcr+Rs+Rdson2))/(VIN_nom+Iout*(Rdson2-Rdson1)) -> 0.2537304221 | D53: =Vout/VIN_nom -> 0.25
A54: D_Vinmax_2 | B54: =(Vout+Iout*(Rdcr+Rs+Rdson2))/(VIN_max+Iout*(Rdson2-Rdson1)) -> 0.1873262698 | D54: =Vout/VIN_max -> 0.1846153846 | F54: =(Ts-0.000000085)/Ts -> 0.966 | G54: Dmax = [Ts-toff(min)]/Ts
A57: Iripple_Vinmin | B57: =(VIN_min-Vout-Iout/Number_of_Phases*(Rdcr+Rs+Rdson1))*D1_Vinmin_2/(Fsw*Lo) -> 4.282103151 | C57: A | D57: =B57/Iout*Number_of_Phases -> 0.2141051576 | F57: Ripple calculations include DCR and Rdson
A58: Iripple_Vinnom | B58: =(VIN_nom-Vout-Iout/Number_of_Phases*(Rdcr+Rdson1))*D1_Vinnom_2/(Fsw*Lo) -> 4.83287353 | C58: A | D58: =B58/Iout*Number_of_Phases -> 0.2416436765 | F58: % ripple current at Vin-nom
A59: Iripple_Vinmax | B59: =(VIN_max-Vout-Iout/Number_of_Phases*(Rdcr+Rdson1))*D1_Vinmax_2/(Fsw*Lo) -> 5.261963033 | C59: A | D59: =B59/Iout*Number_of_Phases -> 0.2630981517 | F59: Max inductor ripple current - it's at Vin-max
A61: Iinductor_rms_Vinmin | B61: =SQRT((Iout/Number_of_Phases)^2+(Iripple_Vinmin^2)/12) -> 20.03816444 | C61: A
A62: Iinductor_rms_Vinnom | B62: =SQRT((Iout/Number_of_Phases)^2+(Iripple_Vinnom^2)/12) -> 20.04860067 | C62: A
A63: Iinudctor_rms_Vinmax | B63: =SQRT((Iout/Number_of_Phases)^2+(Iripple_Vinmax^2)/12) -> 20.05760092 | C63: A
A66: Core loss estimate - Vin(nom) | B66: ='Design the GaN Converter'!E34 -> 0.7 | C66: W
A67: Copper loss at full load | B67: ='Efficiency Calculations'!S109 -> 1.511312322 | C67: W | D67: =Core_Loss+B67 -> 2.211312322 | E67: W | F67: Copper + core loss at 25°C
A68: Total inductor loss at full load | B68: ='Efficiency Calculations'!U109 -> 2.543691574 | C68: W | D68: =B68 -> 2.543691574 | E68: W | F68: Total loss including effect of the DCR tempco
D69: =D68-D67 -> 0.3323792517 | E69: W | F69: Impact of DCR tempco
A70: Inductor copper temperature | B70: 125 | C70: °C
A71: Inductor DCR at hot | B71: =Rdcr*(1+Ltc*(B70-25))*1000 -> 5.23768 | C71: mW
A74: Step 2b: Sense Resistors, Slope Comp, Current Limit
A76: Iout per phase | B76: =Iout/Number_of_Phases -> 20 | C76: A
A77: Ilimit_DC | B77: ='Design the GaN Converter'!E16 -> 25 | C77: A
A79: Current limit setpoint - peak - Vin(min) | B79: =Ilimit_DC/Number_of_Phases+Iripple_Vinmin/2 -> 27.14105158 | C79: A
A80: Current limit setpoint - peak - Vin(nom) | B80: =Ilimit_DC/Number_of_Phases+Iripple_Vinnom/2 -> 27.41643676 | C80: A
A81: Current limit setpoint - peak - Vin(max) | B81: =Ilimit_DC/Number_of_Phases+Iripple_Vinmax/2 -> 27.63098152 | C81: A | F81: Peak inductor current at desired current limit inception
A83: Ilimit_inductor_Vinmin | B83: =Ipk_OCP_Vinmin -> 30 | C83: A
A84: Ilimit_inductor_Vinnom | B84: =Ipk_OCP_Vinnom -> 30 | C84: A
A85: Ilimit_inductor_Vinmax | B85: =Ipk_OCP_Vinmax -> 30 | C85: A
A87: CS threshold_min | B87: 0.027 | C87: V
A88: CS threshold_nom | B88: 0.03 | C88: V
A89: CS threshold_max | B89: 0.033 | C89: V
A91: Shunt required to get OCP at VIN(min) | B91: =CS_threshold_nom/B79 -> 0.001105336686 | C91: W | D91: =B91*1000 -> 1.105336686 | E91: mΩ
A92: Shunt required to get OCP at VIN(nom) | B92: =CS_threshold_nom/B80 -> 0.0010942341 | C92: W | D92: =B92*1000 -> 1.0942341 | E92: mΩ
A93: Shunt required to get OCP at VIN(max) | B93: =CS_threshold_nom/B81 -> 0.001085737761 | C93: W | D93: 1.085737761 | E93: mΩ
A95: Rs_ideal | B95: =B92 -> 0.0010942341 | C95: W | D95: =SENSING_TYPE -> 1 | E95: ='Design the GaN Converter'!E18 -> 1
A96: Rs | B96: ='Design the GaN Converter'!E18/1000 -> 0.001 | C96: W
A98: Iout_OCP_Vinmin | B98: =Number_of_Phases*(CS_threshold_nom/Rs-Iripple_Vinmin/2) -> 27.85894842 | C98: A
A99: Iout_OCP_Vinnom | B99: =Number_of_Phases*(CS_threshold_nom/Rs-Iripple_Vinnom/2) -> 27.58356324 | C99: A
A100: Iout_OCP_Vinmax | B100: =Number_of_Phases*(CS_threshold_nom/Rs-Iripple_Vinmax/2) -> 27.36901848 | C100: A
A102: Ipk_full-load_Vinmin | B102: =Iout/Number_of_Phases+Iripple_Vinmin/2 -> 22.14105158 | C102: A | E102: Current limit setpoints (i.e. IOUT) assuming no CS delay
A103: Ipk_full-load_Vinnom | B103: =Iout/Number_of_Phases+Iripple_Vinnom/2 -> 22.41643676 | C103: A
A104: Ipk_full-load_Vinmax | B104: =Iout/Number_of_Phases+Iripple_Vinmax/2 -> 22.63098152 | C104: A
A106: Ipk_OCP_Vinmin | B106: =CS_threshold_nom/Rs -> 30 | C106: A | E106: Current limit setpoints (i.e. IPK) assuming no CS delay
A107: Ipk_OCP_Vinnom | B107: =CS_threshold_nom/Rs -> 30 | C107: A
A108: Ipk_OCP_Vinmax | B108: =CS_threshold_nom/Rs -> 30 | C108: A
A110: Irms_OCP_Vinmin | B110: =SQRT((Iout_OCP_Vinmin/Number_of_Phases)^2+(Iripple_Vinmin^2)/12) -> 27.88635941 | C110: A
A111: Irms_OCP_Vinnom | B111: =SQRT((Iout_OCP_Vinnom/Number_of_Phases)^2+(Iripple_Vinnom^2)/12) -> 27.61882238 | C111: A
A112: Irms_OCP_Vinmax | B112: =SQRT((Iout_OCP_Vinmax/Number_of_Phases)^2+(Iripple_Vinmax^2)/12) -> 27.41113875 | C112: A
A114: Pshunt_Vinmin | B114: =B110^2*Rs -> 0.7776490413 | C114: W
A115: Pshunt_Vinnom | B115: =B111^2*Rs -> 0.7627993496 | C115: W
A116: Pshunt_Vinmax | B116: =B112^2*Rs -> 0.7513705273 | C116: W
A120: Step 3: Output Capacitor
A122: Number of phases | B122: =Number_of_Phases -> 1
A123: Ripple current normalization factor at Vin-min | B123: =Number_of_Phases*((D1_Vinmin_2-m_Vin_min/Number_of_Phases)*(((m_Vin_min+1)/Number_of_Phases)-D1_Vinmin_2))/((1-D1_Vinmin_2)*D1_Vinmin_2) -> 1
A124: Ripple current normalization factor at Vin-nom | B124: =Number_of_Phases*((D1_Vinnom_2-m_Vin_nom/Number_of_Phases)*(((m_Vin_nom+1)/Number_of_Phases)-D1_Vinnom_2))/((1-D1_Vinnom_2)*D1_Vinnom_2) -> 1
A125: Ripple current normalization factor at Vin-max | B125: =Number_of_Phases*((D1_Vinmax_2-m_Vin_max/Number_of_Phases)*(((m_Vin_max+1)/Number_of_Phases)-D1_Vinmax_2))/((1-D1_Vinmax_2)*D1_Vinmax_2) -> 1
A127: Icoutrms_VINmin | B127: =Iripple_Vinmin*B123/SQRT(12) -> 1.236136703 | C127: A | F127: Output cap RMS current
A128: Icoutrms_VINnom | B128: =Iripple_Vinnom*B124/SQRT(12) -> 1.395130417 | C128: A
A129: Icoutrms_VINmax | B129: =Iripple_Vinmax*B125/SQRT(12) -> 1.518997887 | C129: A
A130: Max RMS current in Cout | B130: =MAX(B127:B129) -> 1.518997887 | C130: A
A132: Vripple1 | B132: ='Design the GaN Converter'!E47/1000 -> 0.06 | C132: V | F132: Output voltage ripple spec(pk-pk)
A134: Output Ripple Spec (pk-pk) | B134: =Vo1_ripple*1000 -> 60 | C134: mV | F134: Vout ripple spec at Vin(nom)
A136: Coutmin | B136: =Iripple_Vinnom*B124/(Fsw*Number_of_Phases*8*Vo1_ripple) -> 2.51712163e-05 | C136: F | F136: Minimum output capacitnace | H136: =Vo2_ripple -> 0 | I136: 1
A137: Reported Coutmin | B137: =IF(Cout_min*1000000<2, 2.2,Cout_min*1000000) -> 25.1712163 | C137: uF
A138: Load transient deviation | B138: ='Design the GaN Converter'!E49/1000 -> 0.2 | C138: V
A139: Current step for load transient | B139: =Iout/2 -> 10 | C139: A
A140: Inductor current slope for load-on transient | B140: =(VIN_nom-Vout)/Lo/1000000 -> 7.659574468 | C140: A/µs
A141: Inductor current slope for load-off transient | B141: =Vout/Lo/1000000 -> 2.553191489 | C141: A/µs | F141: Take the min of the IL on/off slew rates - this will be the load off for D < 50%, load on for D > 50%
A142: Cout for load transient | B142: =0.5*(B139/Number_of_Phases)^2/MIN(B140,B141)/B138*Number_of_Phases -> 97.91666667 | C142: uF
A143: Cout | B143: ='Design the GaN Converter'!E51/1000000 -> 0.00013 | C143: F | F143: Chosen output capacitance | I143: 1
A144: Resrmax | B144: =SQRT((Vo1_ripple/(Iripple_Vinnom*B124))^2-(1/(Fsw*Number_of_Phases*Cout*8))^2) -> 0.01218002903 | C144: W | F144: Max ESR before ripple exceeds Vripple1 | I144: 1
A146: Reported Cout ESR max | B146: =IF(OR(CoutEsrMax>0.3, CoutEsrMax<0, (ISERROR(CoutEsrMax))), "N/A", CoutEsrMax*1000) -> 12.18002903 | C146: mΩ
A147: CoutEsr | B147: ='Design the GaN Converter'!E52/1000 -> 0.005 | C147: W | F147: Chosen ESR | I147: 1 | K147: =ISERROR(CoutEsrMax) -> FALSE | L147: =ISERROR(B146) -> FALSE
A148: Vripple | B148: =Iripple_Vinnom*B124*SQRT(Cout_ESR^2+(1/(8*Fsw*Number_of_Phases*Cout))^2) -> 0.02681198629 | C148: Vp-p | L148: =OR(CoutEsrMax>0.3,CoutEsrMax<0) -> FALSE
K149: =OR(TRUE, FALSE, TRUE) -> TRUE
A150: Step 4: Input Capacitor
A152: Duty cycle at Vin-min | B152: =D1_Vinmin_2 -> 0.3384082783
A153: Duty cycle at Vin-nom | B153: =D1_Vinnom_2 -> 0.2537304221
A154: Duty cycle at Vin-max | B154: =D1_Vinmax_2 -> 0.1873262698
A155: Number of phases | B155: =Number_of_Phases -> 1
A156: Floor(N*D) at Vin-min | B156: =FLOOR(Number_of_Phases*D1_Vinmin, 1) -> 0
A157: Floor(N*D) at Vin-nom | B157: =FLOOR(Number_of_Phases*D1_Vinnom, 1) -> 0 | E157: =Number_of_Phases*D1_Vinnom -> 0.25 | F157: N*D | G157: =FLOOR(Number_of_Phases*D1_Vinnom,1) -> 0 | H157: floor(N*D)
A158: Floor(N*D) at Vin-max | B158: =FLOOR(Number_of_Phases*D1_Vinmax, 1) -> 0
A160: Icinrms_VINmin | B160: =Iout*SQRT((D1_Vinmin_2-m_Vin_min/Number_of_Phases)*(((m_Vin_min+1)/Number_of_Phases)-D1_Vinmin_2)) -> 9.463363366 | C160: ARMS | D160: Calculate input cap rms current | N160: A
A161: Icinrms_VINnom | B161: =Iout*SQRT((D1_Vinnom_2-m_Vin_nom/Number_of_Phases)*(((m_Vin_nom+1)/Number_of_Phases)-D1_Vinnom_2)) -> 8.702902849 | C161: ARMS
A162: Icinrms_VINmax | B162: =Iout*SQRT((D1_Vinmax_2-m_Vin_max/Number_of_Phases)*(((m_Vin_max+1)/Number_of_Phases)-D1_Vinmax_2)) -> 7.803464319 | C162: ARMS
A163: Max RMS current in Cin | B163: =MAX(B160:B162) -> 9.463363366 | C163: ARMS
A164: Dcrit values | B164: =1/(2*Number_of_Phases) -> 0.5 | C164: =3/(2*Number_of_Phases) -> 1.5
A165: Icinrms - max at Dcrit | B165: =Iout/(2*Number_of_Phases) -> 10 | C165: ARMS
A166: Final result | B166: =IF(D1_Vinmin<0.5, B163, B165) -> 9.463363366 | C166: ARMS
A169: Vinripple1 | B169: ='Design the GaN Converter'!E57/1000 -> 0.5 | C169: Vp-p | F169: Input voltage ripple spec (pk-pk)
A171: Cinmin_Vinmin | B171: =Iout*D1_Vinmin_2*(1-D1_Vinmin_2)/(Vinripple1*Fsw) -> 2.238881155e-05 | C171: F | D171: Single phase | F171: Calculate cap at Vinmin and 50% duty cycle (Vin = 2*Vout)
A172: Cinmin_Vinnom | B172: =Iout*D1_Vinnom_2*(1-D1_Vinnom_2)/(Vinripple1*Fsw) -> 1.89351295e-05 | C172: F
A173: Cinmin_Vinmax | B173: =Iout*D1_Vinmax_2*(1-D1_Vinmax_2)/(Vinripple1*Fsw) -> 1.522351384e-05 | C173: F | D173: =D1_Vinmin_2 -> 0.3384082783
A174: Cinmin_50%D | B174: =Iout*0.5*(1-0.5)/(Vinripple1*Fsw) -> 2.5e-05 | C174: F | F174: Buck 50% typically worst case
A175: Cinmin | B175: =IF(D1_Vinmin<0.5, B171, B174) -> 2.238881155e-05 | C175: F | D175: =D1_Vinmin_2 -> 0.3384082783
A176: Reported Cinmin single phase | B176: =IF(Cinmin*1000000<4.7, 4.7,Cinmin*1000000) -> 22.38881155 | C176: uF | F176: …report this
A178: Cin | B178: ='Design the GaN Converter'!E59/1000000 -> 2.5e-05 | C178: F | F178: Input capacitance
A179: CinEsrMax_Vinmin | B179: =-(Iout*D1_Vinmin_2*(1-D1_Vinmin_2)/(Cin*Fsw)-Vinripple1)/(Iout+Iripple_Vinmin/2) -> 0.002358685126 | C179: W
A180: CinEsrMax_Vinmax | B180: =-(Iout*D1_Vinmax*(1-D1_Vinmax)/(Cin*Fsw)-Vinripple1)/(Iout+Iripple_Vinmax/2) -> 0.00879037929 | C180: W
A181: CinEsrMax_50%D | B181: =-(Iout*0.5*(1-0.5)/(Cin*Fsw)-Vinripple1)/(Iout+Iripple_Vinmax/2) -> 0 | C181: W | F181: Calculate ESR at Vinmax and 50% duty cycle (Vin = 2*Vout)
A182: CinEsrMax | B182: =IF(D1_Vinmin<0.5, B179,B181) -> 0.002358685126 | C182: W
A183: Reported Cin ESR max - single phase | B183: =IF(OR(CinEsrMax>0.3, CinEsrMax<0), "N/A",CinEsrMax*1000) -> 2.358685126 | C183: mΩ | F183: …report this
A185: Vinripple2_Vinmin - single phase with ESR | B185: =Iout*D1_Vinmin_2*(1-D1_Vinmin_2)/(Cin*Fsw)+(Iout +Iripple_Vinmin/2)*RCinEsr -> 0.4920583341 | C185: Vp-p | F185: Calculate ripple at Vinmin and 50% duty cycle (Vin = 2*Vout)
A186: Vinripple2_Vinmax - single phase with ESR | B186: =Iout*D1_Vinnom_2*(1-D1_Vinnom_2)/(Cin*Fsw)+(Iout +Iripple_Vinnom/2)*RCinEsr -> 0.4235354635 | C186: Vp-p
A187: Vinripple2_Vinmax - single phase with ESR | B187: =Iout*D1_Vinmax_2*(1-D1_Vinmax_2)/(Cin*Fsw)+(Iout +Iripple_Vinmax/2)*RCinEsr -> 0.3497322399 | C187: Vp-p
A188: Vinripple2_50%D - single phase | B188: =Iout*0.5*(1-0.5)/(Cin*Fsw)+(Iout +Iripple_Vinmax/2)*RCinEsr -> 0.545261963 | C188: Vp-p
A189: Vinripple2 - single phase | B189: =IF(D1_Vinmin < 0.5, B185, B188) -> 0.4920583341 | C189: Vp-p | D189: =SINGLEPHASE -> TRUE | F189: …report highest of these
A191: Number of phases | B191: =Number_of_Phases -> 1 | D191: Multiphase
A192: DmaxRipple = 1/2N or D_Vinmin | B192: =1/2/Number_of_Phases -> 0.5 | D192: =D1_Vinmin -> 0.3333333333 | E192: D_Vinmin
A194: Cinmin_DmaxRipple_multiphase | B194: =Iout*(FLOOR(Number_of_Phases*D_Cinmaxripple, 1)/Number_of_Phases-D_Cinmaxripple)*(D_Cinmaxripple-((FLOOR(Number_of_Phases*D_Cinmaxripple, 1)+1)/Number_of_Phases))/(Vinripple1*Fsw) -> 2.5e-05 | C194: F
B195: =B194*1000000 -> 25 | C195: uF
A196: Reported Cin-min | B196: =IF(SINGLEPHASE, B176, B195) -> 22.38881155 | C196: uF
A198: CinEsrMax_DmaxRipple | B198: =(Vinripple1-(Iout*(FLOOR(Number_of_Phases*D_Cinmaxripple, 1)/Number_of_Phases-D_Cinmaxripple)*(D_Cinmaxripple-((FLOOR(Number_of_Phases*D_Cinmaxripple, 1)+1)/Number_of_Phases))/(Cin*Fsw)))/(Iout/Number_of_Phases) -> 0 | C198: W
A200: Reported ESR | B200: =IF(SINGLEPHASE, IF(OR(B182>0.3, B182<0), "N/A",B182*1000), IF(OR(B198>0.3, B198<0), "N/A",B198*1000)) -> 2.358685126 | C200: mΩ | D200: …report this
A201: RCinEsr | B201: ='Design the GaN Converter'!E61/1000 -> 0.002 | C201: W
A203: Vinripple2_Vinmin | B203: =Iout*(FLOOR(Number_of_Phases*D1_Vinmin_2, 1)/Number_of_Phases-D1_Vinmin_2)*(D1_Vinmin_2-((FLOOR(Number_of_Phases*D1_Vinmin_2, 1)+1)/Number_of_Phases))/(Cin*Fsw)+Iout/Number_of_Phases*RCinEsr -> 0.487776231 | C203: Vp-p | F203: Using new expression for multiphase pkpk voltage ripple
A204: Vinripple2_Vinnom | B204: =Iout*(FLOOR(Number_of_Phases*D1_Vinnom_2, 1)/Number_of_Phases-D1_Vinnom_2)*(D1_Vinnom_2-((FLOOR(Number_of_Phases*D1_Vinnom_2, 1)+1)/Number_of_Phases))/(Cin*Fsw)+Iout/Number_of_Phases*RCinEsr -> 0.41870259 | C204: Vp-p | F204: Using new expression for multiphase pkpk voltage ripple
A205: Vinripple2_Vinmax | B205: =Iout*(FLOOR(Number_of_Phases*D1_Vinmax_2, 1)/Number_of_Phases-D1_Vinmax_2)*(D1_Vinmax_2-((FLOOR(Number_of_Phases*D1_Vinmax_2, 1)+1)/Number_of_Phases))/(Cin*Fsw)+Iout/Number_of_Phases*RCinEsr -> 0.3444702769 | C205: Vp-p | F205: Using new expression for multiphase pkpk voltage ripple
A207: Vinripple_D_Cinmaxripple | B207: =Iout*(FLOOR(Number_of_Phases*D_Cinmaxripple, 1)/Number_of_Phases-D_Cinmaxripple)*(D_Cinmaxripple-((FLOOR(Number_of_Phases*D_Cinmaxripple, 1)+1)/Number_of_Phases))/(Cin*Fsw)+Iout/Number_of_Phases*RCinEsr -> 0.54 | C207: Vp-p
A209: Reported ripple | B209: =IF(SINGLEPHASE, B189,B207) -> 0.4920583341 | C209: Vp-p
A212: Step ?: Other Components - CNFG, CC Loop
A214: RPG | B214: 100 | C214: kΩ
A215: RFB1 | B215: ='Design the GaN Converter'!E66 -> 100 | C215: kΩ | E215: Tie FB to VCC or AGND for 12V/5V fixed output, respectively.
A216: RFB2 | B216: =IF(Vout=Vref,"OPEN",Rfb2_u/1000) -> 9.09 | C216: kΩ
A217: Actual VOUT setpoint | B217: =1/B216*(B215+B216) -> 12.00110011 | C217: V
A219: gmIMON | B219: =4/1000 -> 0.004 | C219: S
A220: iOFFSET | B220: 2.5e-05 | C220: µA
A221: VREFI | B221: 1 | C221: V
A223: CC loop setpoint | B223: ='Design the GaN Converter'!E99 -> 30 | C223: A
A224: Calculated RIMON | B224: =1/(B219*B223*Rs+Number_of_Phases*B220)/1000 -> 6.896551724 | C224: kΩ
A225: Standard value RIMON | B225: ='Standard Value Calculator'!O13 -> 6.98 | C225: kΩ
A227: Load pole | B227: =Fp_dominant/1000 -> 2.486331215 | C227: kHz
A228: Calculated CIMON | B228: =1.35/(2*PI()*Fp_dominant*B225)*1000000 -> 12.38053736 | C228: nF
A229: Standard value CIMON | B229: ='Standard Value Calculator'!G4*1000000000 -> 12 | C229: nF
A231: RCNFG | B231: =CHOOSE(SCH_MODE, 23.7, 23.7, 12.1, 6.04, 46.4, 46.4, 46.4, 46.4) -> 23.7 | C231: kΩ
A236: Step 5: Feedback Network and Internal Compensation
A237: Pi | B237: 3.14159265 | D237: p
A238: CS Amp Gain (effective value) | B238: 20
A239: Ri | B239: =CSAmp_gain*Rs -> 0.02 | C239: W | F239: Current Sense effective resistance = shunt resistor Rs * CS amp gain
A241: Se_ext | B241: =B249/Ri*1000 -> 4500000 | C241: A/s | F241: Slope Comp Slope - referred to inductor current
A242: Sn | B242: =(Vin-Vout)/Lo -> 7659574.468 | C242: A/s | F242: On-time Slope
A243: Sf | B243: =Vout/Lo -> 2553191.489 | C243: A/s | F243: Off-time Slope
D244: =22.5*10*440 -> 99000
A245: Enter slope comp referenced to the shunt | B245: =CHOOSE(SLOPE_COMP_level, 11.25, 22.5) -> 11.25 | C245: mV
A246: Calculate Se_int at 440kHz | B246: =B245*CSAmp_gain*440/1000 -> 99 | C246: mV/μs | D246: =CSAmp_gain -> 20
A247: Calculate Se_int at Fsw | B247: =B246*Fsw/440000 -> 90 | C247: mV/μs | D247: =(Fsw/1000)/440*99 -> 90 | E247: mV/μs | F247: Slope Comp Slope - referred to IC | H247: This is set at 99mV/us at Fsw = 440kHz (assuming 11.25mV referred to the shunt)
A249: Se_int | B249: =B247 -> 90 | C249: mV/μs
A250: Sn_int | B250: =Sn*Ri/1000 -> 153.1914894 | C250: mV/μs | F250: Upslope
A251: Sf_int | B251: =Sf*Ri/1000 -> 51.06382979 | C251: mV/μs | F251: Downslope
A252: Ratio Se/Sf | B252: =B249/B251 -> 1.7625
A253: mc_buck | B253: =1+Se_ext/Sn -> 1.5875 | F253: mc = 1 + Se/Sn for peak current-mode buck
A254: k_buck | B254: =mc_buck*(1-D1_Vinnom_2) -> 1.184702955 | F254: mc*(1-D)
A256: mc | B256: =1+Se_ext/Sn -> 1.5875
A257: k | B257: =mc_buck*(1-D1_Vinnom_2) -> 1.184702955 | C257: =D1_Vinnom_2 -> 0.2537304221
A258: Q | B258: =1/Pi/(k-0.5) -> 0.4648875607 | F258: 1/(Pi*(k-0.5)) | H258: Q = 2/Pi = 0.636 gives ideal one-cycle damping
A260: Error Amp (EA)
A261: gm | B261: 0.001 | C261: S | F261: Error Amp Transconductance
A262: GBW | B262: 7.95 | C262: MHz | F262: EA gain-bandwidth product
... 148 more rows

Sheet GaN FET Parameters (hidden)
A3: GaN FET Parameters
E4: Internal GaN Power FETs
E5: High-side | F5: Low-side
D6: On-State Resistance, RDS(on) | E6: =4.83*1.2 -> 5.796 | F6: =3.04*1.2 -> 3.648 | G6: mΩ
D7: Total Gate Charge, QG | E7: 7.1 | F7: 13.1 | G7: nC
D8: Gate-Drain Charge, QGD | E8: 1.8 | F8: 2.7 | G8: nC
D9: Gate-Source Charge, QGS | E9: 1.8 | F9: 4.4 | G9: nC
D10: Output Charge, QOSS | F10: 24 | G10: nC
D11: Output Capacitance, COSS | E11: 304 | F11: 557 | G11: pF
D12: Gate Resistance, RGATE | E12: 0.4 | F12: 0.4 | G12: Ω
D13: Transconductance, gFS | E13: 80 | F13: 80 | G13: S
D14: Gate-Source Miller Plateau Voltage, VMP | E14: 2.2 | F14: 2.2 | G14: V
D15: Reverse Conduction Voltage, VDEADTIME | E15: 2 | F15: 2 | G15: V
D16: Reverse Recovery Charge, QRR | F16: 0 | G16: nC
D17: Thermal Resistance, θJA | E17: 71 | F17: 53 | G17: °C/W

Sheet Efficiency Calculations (hidden)
A1: BUCK CONTROLLER POWER DESIGN TOOL | AO1: =Ext_BIAS -> 1
H2: =AV19 -> 0.9474002681 | I2: 10% load
H3: =AV59 -> 0.9768402565 | I3: 50% load | AN3: =IF(MODE=1, (Qg_Q1+Qg_Q2)*Fsw*Vin, (Qg_Q1+Qg_Q2+Qg_Q3+Qg_Q4)*Fsw*Vin) -> 0.38784
H4: =AV109 -> 0.9711966475 | I4: 100% load | U4: 3 | AG4: 1 | AK4: 2 | AM4: I_VCC | AN4: =(Qg_Q1+Qg_Q2)*Fsw*1000 -> 8.08 | AO4: mA | AP4: =AN4*5/1000 -> 0.0404
AP5: =VCC -> 4
A6: Enter the values of your design and MOSFET datasheet specifications below. Note that thermal resistance (θJA) will change when components are placed on the PCB
G7: Operating Point Condtions | R7: Buck Inductor | V7: Cout | Y7: Cin | AB7: High-side BUCK "Control" FET Losses | AH7: Low-side BUCK "Sync" FET Losses | AL7: Shunt Loss | AM7: "Controller" Losses | AT7: RESULTS | AZ7: Consolidated Buck Efficiency & Losses
A8: Input Parameters | G8: Step | H8: Vin | I8: Mode | J8: Iout | K8: Iout/ phase | L8: Iin | M8: Duty Cycle BUCK Leg | N8: Ripple Current pk-pk | O8: Peak Inductor Current | P8: Valley Inductor Current | Q8: SW node voltage at Q1 turn-on | R8: Irms Lf | S8: DCR Loss | T8: Core Loss | U8: Total Inductor Loss | V8: Irms Cout | W8: Cout ESR Loss | X8: Total Cout Loss | Y8: Irms Cin | Z8: Cin ESR Loss | AA8: Total Cin Loss | AB8: Irms | AC8: RDS(on) Loss | AD8: Transition Loss (not including capacitive loss) | AE8: FET Output Capacitance Loss | AF8: Dead Time Loss | AG8: Total Control FET Loss | AH8: Irms | AI8: RDS(on) Loss | AJ8: Deadtime Loss | AK8: Total Sync FET Loss | AL8: Shunt Loss | AM8: IQ Loss | AN8: Switching Current Loss | AO8: Switching Current Diss from VCC | AP8: LDO Loss Saved from Gate Drive Current (ext VCC = Vout) | AQ8: Total "Control" Losses | AR8: Total Loss (not considering total loss) | AS8: Total Loss (considering total loss) | AT8: Total Loss | AU8: Pout | AV8: EFF, h | AW8: Buck ''CONTROL'' FET Temp Rise | AX8: Buck ''SYNC'' FET Temp Rise | AZ8: h | BA8: Inductor Cu & Core Loss | BB8: Total FET Loss | BC8: High-side FET Loss | BD8: Low-side FET Loss | BE8: Controller Loss | BF8: IC (MCM) Power Loss | BG8: Shunt Loss
A9: Design | B9: Input Value | C9: Units | D9: Description | G9: 0 | H9: =Vin -> 48 | I9: =MODE -> 1 | J9: 0 | K9: =Iout*G9/100/Number_of_Phases -> 0 | L9: =Vout*K9/(Vin*Efficiency) -> 0 | M9: =(Vout+(Rdson2+Rs+Rdcr)*K9)/(Vin+(Rs+Rdson2-Rdson1)*K9) -> 0.25 | N9: =(Vin-(Rdson1+Rdcr)*K9-Vout)*M9/(Fsw*Lo) -> 4.787234043 | O9: =K9+N9/2 -> 2.393617021 | P9: =K9-N9/2 -> -2.393617021 | Q9: =IF(MIN(Vin, -P9/(Coss_Q1+Coss_Q2)*0.00000002)<0, 0, MIN(Vin, -P9/(Coss_Q1+Coss_Q2)*0.00000002)) -> 48 | R9: =SQRT(K9^2+(N9^2)/12) -> 1.381955432 | S9: =R9^2*Rdcr -> 0.007180851064 | T9: =Core_Loss -> 0.7 | U9: =(T9+S9*(1+Ltc*(Ta-25)))/(1-S9*Ltc*ThetaCA_Core) -> 0.7076201816 | V9: =N9/SQRT(12) -> 1.381955432 | W9: =RCoutEsr*V9^2 -> 0.009549004074 | X9: =W9 -> 0.009549004074 | Y9: =SQRT(M9*(1-M9))*SQRT(K9^2+(N9^2)/12) -> 0.5984042553 | Z9: =RCinEsr*Y9^2 -> 0.0007161753056 | AA9: =Z9 -> 0.0007161753056 | AB9: =SQRT(M9)*SQRT(K9^2+(N9^2)/12) -> 0.6909777158 | AC9: =Rdson1*AB9^2 -> 0.002767301381 | AD9: =(Vin*K9/2)*Fsw*(Tr_buck+Tf_buck) -> 0 | AE9: =(0.5*Coss_Q1*(Vin-Q9)^2-0.5*Coss_Q2*(Vin-Q9)^2+(Qoss_Q2*(Vin-Q9)/Vin)*Vin)*Fsw -> 0 | AF9: =IF(K9>N9/2,0,ABS(K9-N9/2)*Vsd_Q1*Deadtime*Fsw) -> 0.04787234043 | AG9: =(AF9+AE9+AD9+AC9*(1+RdsonTC*(Ta-25))/(1-AC9*RdsonTC*ThetaJA_Q1)) -> 0.05064056107 | AH9: =SQRT((1-M9))*SQRT(K9^2+(N9^2)/12) -> 1.196808511 | AI9: =Rdson2*AH9^2 -> 0.005225215029 | AJ9: =IF(K9<N9/2,Deadtime*Fsw*Vsd_Q2*(K9+N9/2),2*Deadtime*Fsw*Vsd_Q2*K9) -> 0.04787234043 | AK9: =(AJ9+AI9*(1+RdsonTC*(Ta-25)))/(1-AI9*RdsonTC*ThetaJA_Q2) -> 0.05312309278 | AL9: =CHOOSE(SENSING_TYPE, R9^2*Rs, 0) -> 0.001909800815 | AM9: =IF(Ext_BIAS=1, 0.0008*Vin, 0.002*Vin) -> 0.0384 | AN9: =IF(Ext_BIAS=1, (Qg_Q1+Qg_Q2)*Fsw*Vout, (Qg_Q1+Qg_Q2)*Fsw*Vin) -> 0.09696 | AO9: =(Vin-VCC)*Fsw*(Qg_Q1+Qg_Q2) -> 0.35552 | AP9: =(Qg_Q1+Qg_Q2)*Fsw*(Vin-Vout) -> 0.29088 | AQ9: =SUM(AM9:AN9) -> 0.13536 | AR9: =SUM(S9,T9,AC9,AD9,AE9,AF9,AI9,AJ9,AQ9, AL9) -> 0.9481878491 | AS9: =U9 + AL9 + ((AF9+AE9+AD9+AC9*(1+RdsonTC*(Ta-25))) + (AJ9+AI9*(1+RdsonTC*(Ta-25))) + AQ9) / (1-AC9*RdsonTC*ThetaJA_Q1 -AI9*RdsonTC*ThetaJA_Q2) -> 0.948821675 | AT9: =AS9 -> 0.948821675 | AU9: =Vout*K9 -> 0 | AV9: =AU9/(AU9+AT9) -> 0 | AW9: =ThetaJA_Q1*BC9 -> 1.519216832 | AX9: =ThetaJA_Q2*BD9 -> 1.221831134 | AZ9: =AV9*100 -> 0 | BA9: =U9 -> 0.7076201816 | BB9: =AG9+AK9 -> 0.1037636538 | BC9: =AG9 -> 0.05064056107 | BD9: =AK9 -> 0.05312309278 | BE9: =AQ9 -> 0.13536 | BF9: =AS9-BA9-BG9 -> 0.2392916926 | BG9: =AL9 -> 0.001909800815
G10: 1 | H10: 48 | I10: 1 | J10: =Iout*G10/100 -> 0.2 | K10: 0.2 | L10: 0.05555555556 | M10: 0.2500362293 | N10: 4.78767361 | O10: =K10+N10/2 -> 2.593836805 | P10: =K10-N10/2 -> -2.193836805 | Q10: 48 | R10: =SQRT(K10^2+(N10^2)/12) -> 1.396478267 | S10: 0.007332569827 | T10: 0.7 | U10: 0.7077812848 | V10: =N10/SQRT(12) -> 1.382082324 | W10: 0.009550757749 | X10: =W10 -> 0.009550757749 | Y10: =SQRT(M10*(1-M10))*SQRT(K10^2+(N10^2)/12) -> 0.6047220348 | Z10: 0.0007313774787 | AA10: =Z10 -> 0.0007313774787 | AB10: =SQRT(M10)*SQRT(K10^2+(N10^2)/12) -> 0.6982897251 | AC10: 0.002826179099 | AD10: 0.004914391047 | AE10: 0 | AF10: 0.0438767361 | AG10: =(AF10+AE10+AD10+AC10*(1+RdsonTopTc*Ta-RdsonTopTc*25))/(1-AC10*RdsonTopTc*ThetaJA_Q1) -> 0.05163481776 | AH10: 1.209356444 | AI10: 0.005335356899 | AJ10: 0.0518767361 | AK10: =(AJ10+AI10*(1+RdsonBotTc*Ta-RdsonBotTc*25))/(1-AI10*RdsonBotTc*ThetaJA_Q2) -> 0.05724018951 | AL10: 0.00195015155 | AM10: 0.0384 | AN10: 0.09696 | AO10: 0.35552 | AP10: 0.29088 | AQ10: 0.13536 | AR10: =SUM(S10,T10,AC10,AD10,AE10,AF10,AI10,AJ10,AQ10, AL10) -> 0.9534721206 | AS10: 0.9541236797 | AT10: =AS10 -> 0.9541236797 | AU10: 2.4 | AV10: =AU10/(AU10+AT10) -> 0.7155371206 | AW10: 1.549044533 | AX10: 1.316524359 | AZ10: =AV10*100 -> 71.55371206 | BA10: 0.7077812848 | BB10: =AG10+AK10 -> 0.1088750073 | BC10: 0.05163481776 | BD10: 0.05724018951 | BE10: =AQ10 -> 0.13536 | BF10: =AS10-BA10-BG10 -> 0.2443922434 | BG10: =AL10 -> 0.00195015155
A11: Vin | B11: =Vin -> 48 | C11: V | D11: Vin | G11: 2 | H11: 48 | I11: 1 | J11: 0.4 | K11: 0.4 | L11: 0.1111111111 | M11: 0.250072459 | N11: 4.788113111 | O11: 2.794056555 | P11: -1.994056555 | Q11: 46.31954832 | R11: 1.438923995 | S11: 0.00778508851 | T11: 0.7 | U11: 0.7082618187 | V11: 1.382209197 | W11: 0.009552511317 | X11: 0.009552511317 | Y11: 0.6231325515 | Z11: 0.0007765883536 | AA11: 0.0007765883536 | AB11: 0.719566253 | AC11: 0.003001027334 | AD11: 0.009828782093 | AE11: 0.01598944585 | AF11: 0.03988113111 | AG11: 0.06872513591 | AH11: 1.246084536 | AI11: 0.005664346896 | AJ11: 0.05588113111 | AK11: 0.0615775673 | AL11: 0.002070502263 | AM11: 0.0384 | AN11: 0.09696 | AO11: 0.35552 | AP11: 0.29088 | AQ11: 0.13536 | AR11: 0.9754614552 | AS11: 0.9761724551 | AT11: 0.9761724551 | AU11: 4.8 | AV11: 0.8310001194 | AW11: 2.061754077 | AX11: 1.416284048 | AZ11: 83.10001194 | BA11: 0.7082618187 | BB11: 0.1303027032 | BC11: 0.06872513591 | BD11: 0.0615775673 | BE11: 0.13536 | BF11: 0.2658401342 | BG11: 0.002070502263
A12: Vout | B12: =Vout -> 12 | C12: V | D12: Vout | G12: 3 | H12: 48 | I12: 1 | J12: 0.6 | K12: 0.6 | L12: 0.1666666667 | M12: 0.2501086891 | N12: 4.788552544 | O12: 2.994276272 | P12: -1.794276272 | Q12: 41.67889134 | R12: 1.506934954 | S12: 0.008538407113 | T12: 0.7 | U12: 0.7090618583 | V12: 1.38233605 | W12: 0.009554264778 | X12: 0.009554264778 | Y12: 0.6526165113 | Z12: 0.0008518166216 | AA12: 0.0008518166216 | AB12: 0.7536312466 | AC12: 0.003291896483 | AD12: 0.01474317314 | AE12: 0.05866084858 | AF12: 0.03588552544 | AG12: 0.112625934 | AH12: 1.304949386 | AI12: 0.006212153299 | AJ12: 0.05988552544 | AK12: 0.06613547636 | AL12: 0.002270852956 | AM12: 0.0384 | AN12: 0.09696 | AO12: 0.35552 | AP12: 0.29088 | AQ12: 0.13536 | AR12: 1.024848382 | AS12: 1.02567566 | AT12: 1.02567566 | AU12: 7.2 | AV12: 0.8753080351 | AW12: 3.37877802 | AX12: 1.521115956 | AZ12: 87.53080351 | BA12: 0.7090618583 | BB12: 0.1787614104 | BC12: 0.112625934 | BD12: 0.06613547636 | BE12: 0.13536 | BF12: 0.3143429492 | BG12: 0.002270852956
A13: Fsw | B13: =Fsw/1000 -> 400 | C13: kHz | D13: Switching Frequency | G13: 4 | H13: 48 | I13: 1 | J13: 0.8 | K13: 0.8 | L13: 0.2222222222 | M13: 0.2501449194 | N13: 4.788991911 | O13: 3.194495955 | P13: -1.594495955 | Q13: 37.03823357 | R13: 1.597248768 | S13: 0.009592525636 | T13: 0.7 | U13: 0.7101815287 | V13: 1.382462884 | W13: 0.009556018133 | X13: 0.009556018133 | Y13: 0.6917625936 | Z13: 0.0009570709718 | AA13: 0.0009570709718 | AB13: 0.7988558228 | AC13: 0.003698836946 | AD13: 0.01965756419 | AE13: 0.09915284535 | AF13: 0.03188991911 | AG13: 0.1544677277 | AH13: 1.383124362 | AI13: 0.006978744388 | AJ13: 0.06388991911 | AK13: 0.07091419356 | AL13: 0.002551203627 | AM13: 0.0384 | AN13: 0.09696 | AO13: 0.35552 | AP13: 0.29088 | AQ13: 0.13536 | AR13: 1.072771558 | AS13: 1.073752595 | AT13: 1.073752595 | AU13: 9.6 | AV13: 0.8994025217 | AW13: 4.634031831 | AX13: 1.631026452 | AZ13: 89.94025217 | BA13: 0.7101815287 | BB13: 0.2253819213 | BC13: 0.1544677277 | BD13: 0.07091419356 | BE13: 0.13536 | BF13: 0.3610198623 | BG13: 0.002551203627
A14: Iout | B14: =Iout -> 20 | C14: A | D14: Max Output Current | G14: 5 | H14: 48 | I14: 1 | J14: 1 | K14: 1 | L14: 0.2777777778 | M14: 0.2501811502 | N14: 4.78943121 | O14: 3.394715605 | P14: -1.394715605 | Q14: 32.39757503 | R14: 1.706327717 | S14: 0.01094744408 | T14: 0.7 | U14: 0.7116210048 | V14: 1.382589699 | W14: 0.009557771382 | X14: 0.009557771382 | Y14: 0.7390399485 | Z14: 0.001092360091 | AA14: 0.001092360091 | AB14: 0.8534729039 | AC14: 0.004221899122 | AD14: 0.02457195523 | AE14: 0.1374654351 | AF14: 0.0278943121 | AG14: 0.194252015 | AH14: 1.477544679 | AI14: 0.007964088441 | AJ14: 0.0678943121 | AK14: 0.07591402245 | AL14: 0.002911554276 | AM14: 0.0384 | AN14: 0.09696 | AO14: 0.35552 | AP14: 0.29088 | AQ14: 0.13536 | AR14: 1.119231 | AS14: 1.120407572 | AT14: 1.120407572 | AU14: 12 | AV14: 0.9146057342 | AW14: 5.82756045 | AX14: 1.746022516 | AZ14: 91.46057342 | BA14: 0.7116210048 | BB14: 0.2701660375 | BC14: 0.194252015 | BD14: 0.07591402245 | BE14: 0.13536 | BF14: 0.4058750127 | BG14: 0.002911554276
A15: Ta | B15: =Ta -> 25 | C15: °C | D15: Ambient Temperature | G15: 6 | H15: 48 | I15: 1 | J15: 1.2 | K15: 1.2 | L15: 0.3333333333 | M15: 0.2502173812 | N15: 4.789870442 | O15: 3.594935221 | P15: -1.194935221 | Q15: 27.75691571 | R15: 1.830820828 | S15: 0.01260316244 | T15: 0.7 | U15: 0.7133805114 | V15: 1.382716495 | W15: 0.009559524523 | X15: 0.009559524523 | Y15: 0.7929983177 | Z15: 0.001257692664 | AA15: 0.001257692664 | AB15: 0.9158083137 | AC15: 0.004861133411 | AD15: 0.02948634628 | AE15: 0.1735986166 | AF15: 0.02389870442 | AG15: 0.2319801231 | AH15: 1.585307553 | AI15: 0.009168153736 | AJ15: 0.07189870442 | AK15: 0.08113529336 | AL15: 0.003351904905 | AM15: 0.0384 | AN15: 0.09696 | AO15: 0.35552 | AP15: 0.29088 | AQ15: 0.13536 | AR15: 1.164226726 | AS15: 1.165644586 | AT15: 1.165644586 | AU15: 14.4 | AV15: 0.9251142746 | AW15: 6.959403694 | AX15: 1.866111747 | AZ15: 92.51142746 | BA15: 0.7133805114 | BB15: 0.3131154165 | BC15: 0.2319801231 | BD15: 0.08113529336 | BE15: 0.13536 | BF15: 0.4489121696 | BG15: 0.003351904905
A16: Vcc | B16: =VCC -> 4 | C16: V | D16: Subregulated VCC Voltage | G16: 7 | H16: 48 | I16: 1 | J16: 1.4 | K16: 1.4 | L16: 0.3888888889 | M16: 0.2502536127 | N16: 4.790309608 | O16: 3.795154804 | P16: -0.9951548039 | Q16: 23.11625561 | R16: 1.967804744 | S16: 0.01455968072 | T16: 0.7 | U16: 0.7154603236 | V16: 1.382843271 | W16: 0.009561277558 | X16: 0.009561277558 | Y16: 0.8523723869 | Z16: 0.001453077372 | AA16: 0.001453077372 | AB16: 0.9844013058 | AC16: 0.005616590216 | AD16: 0.03440073733 | AE16: 0.207552389 | AF16: 0.01990309608 | AG16: 0.2676532084 | AH16: 1.703880741 | AI16: 0.01059090855 | AJ16: 0.07590309608 | AK16: 0.08657836343 | AL16: 0.003872255512 | AM16: 0.0384 | AN16: 0.09696 | AO16: 0.35552 | AP16: 0.29088 | AQ16: 0.13536 | AR16: 1.207758753 | AS16: 1.209467312 | AT16: 1.209467312 | AU16: 16.8 | AV16: 0.9328426937 | AW16: 8.029596252 | AX16: 1.991302359 | AZ16: 93.28426937 | BA16: 0.7154603236 | BB16: 0.3542315718 | BC16: 0.2676532084 | BD16: 0.08657836343 | BE16: 0.13536 | BF16: 0.490134733 | BG16: 0.003872255512
A17: Components | B17: Input Value | C17: Units | D17: Description | G17: 8 | H17: 48 | I17: 1 | J17: 1.6 | K17: 1.6 | L17: 0.4444444444 | M17: 0.2502898444 | N17: 4.790748706 | O17: 3.995374353 | P17: -0.7953743531 | Q17: 18.47559473 | R17: 2.114853682 | S17: 0.01681699893 | T17: 0.7 | U17: 0.7178607668 | V17: 1.382970028 | W17: 0.009563030486 | X17: 0.009563030486 | Y17: 0.9161121369 | Z17: 0.001678522895 | AA17: 0.001678522895 | AB17: 1.058039642 | AC17: 0.006488319937 | AD17: 0.03931512837 | AE17: 0.239326751 | AF17: 0.01590748706 | AG17: 0.3012722564 | AH17: 1.831163077 | AI17: 0.01223232116 | AJ17: 0.07990748706 | AK17: 0.09224361675 | AL17: 0.004472606097 | AM17: 0.0384 | AN17: 0.09696 | AO17: 0.35552 | AP17: 0.29088 | AQ17: 0.13536 | AR17: 1.2498271 | AS17: 1.251879108 | AT17: 1.251879108 | AU17: 19.2 | AV17: 0.9387890423 | AW17: 9.038167693 | AX17: 2.121603185 | AZ17: 93.87890423 | BA17: 0.7178607668 | BB17: 0.3935158732 | BC17: 0.3012722564 | BD17: 0.09224361675 | BE17: 0.13536 | BF17: 0.5295457348 | BG17: 0.004472606097
A18: L | B18: =Lo*1000000 -> 4.7 | C18: uH | D18: Filter Inductance | G18: 9 | H18: 48 | I18: 1 | J18: 1.8 | K18: 1.8 | L18: 0.5 | M18: 0.2503260765 | N18: 4.791187738 | O18: 4.195593869 | P18: -0.5955938688 | Q18: 13.83493307 | R18: 2.27001248 | S18: 0.01937511705 | T18: 0.7 | U18: 0.7205822166 | V18: 1.383096765 | W18: 0.009564783307 | X18: 0.009564783307 | Y18: 0.9833712195 | Z18: 0.00193403791 | AA18: 0.00193403791 | AB18: 1.135746197 | AC18: 0.007476372979 | AD18: 0.04422951942 | AE18: 0.2689217015 | AF18: 0.01191187738 | AG18: 0.3328380819 | AH18: 1.965461075 | AI18: 0.01409235984 | AJ18: 0.08391187738 | AK18: 0.09813146438 | AL18: 0.005152956661 | AM18: 0.0384 | AN18: 0.09696 | AO18: 0.35552 | AP18: 0.29088 | AQ18: 0.13536 | AR18: 1.290431782 | AS18: 1.292883012 | AT18: 1.292883012 | AU18: 21.6 | AV18: 0.9435246748 | AW18: 9.985142457 | AX18: 2.257023681 | AZ18: 94.35246748 | BA18: 0.7205822166 | BB18: 0.4309695463 | BC18: 0.3328380819 | BD18: 0.09813146438 | BE18: 0.13536 | BF18: 0.5671478391 | BG18: 0.005152956661
A19: Rdcr | B19: =Rdcr*1000 -> 3.76 | C19: mW | D19: Inductor DCR at 25°C | G19: 10 | H19: 48 | I19: 1 | J19: 2 | K19: 2 | L19: 0.5555555556 | M19: 0.250362309 | N19: 4.791626702 | O19: 4.395813351 | P19: -0.3958133509 | Q19: 9.194270637 | R19: 2.431729262 | S19: 0.02223403509 | T19: 0.7 | U19: 0.7236250992 | V19: 1.383223483 | W19: 0.009566536021 | X19: 0.009566536021 | Y19: 1.053477834 | Z19: 0.002219631094 | AA19: 0.002219631094 | AB19: 1.216745349 | AC19: 0.008580799747 | AD19: 0.04914391047 | AE19: 0.2963372395 | AF19: 0.007916267018 | AG19: 0.3623513285 | AH19: 2.105430587 | AI19: 0.01617099287 | AJ19: 0.08791626702 | AK19: 0.1042423445 | AL19: 0.005913307204 | AM19: 0.0384 | AN19: 0.09696 | AO19: 0.35552 | AP19: 0.29088 | AQ19: 0.13536 | AR19: 1.329572819 | AS19: 1.332481749 | AT19: 1.332481749 | AU19: 24 | AV19: 0.9474002681 | AW19: 10.87053985 | AX19: 2.397573923 | AZ19: 94.74002681 | BA19: 0.7236250992 | BB19: 0.466593673 | BC19: 0.3623513285 | BD19: 0.1042423445 | BE19: 0.13536 | BF19: 0.6029433427 | BG19: 0.005913307204
A20: LTc | B20: 3930 | C20: ppm | D20: Inductor Series Resistance Temp Co | G20: 11 | H20: 48 | I20: 1 | J20: 2.2 | K20: 2.2 | L20: 0.6111111111 | M20: 0.2503985418 | N20: 4.792065599 | O20: 4.5960328 | P20: -0.1960327995 | Q20: 4.553607423 | R20: 2.598780046 | S20: 0.02539375305 | T20: 0.7 | U20: 0.7269898913 | V20: 1.383350182 | W20: 0.009568288628 | X20: 0.009568288628 | Y20: 1.125902109 | Z20: 0.002535311117 | AA20: 0.002535311117 | AB20: 1.300425333 | AC20: 0.009801650644 | AD20: 0.05405830151 | AE20: 0.3215733639 | AF20: 0.003920655991 | AG20: 0.3898124688 | AH20: 2.250011484 | AI20: 0.01846818853 | AJ20: 0.09192065599 | AK20: 0.1105767225 | AL20: 0.006753657726 | AM20: 0.0384 | AN20: 0.09696 | AO20: 0.35552 | AP20: 0.29088 | AQ20: 0.13536 | AR20: 1.367250227 | AS20: 1.370677724 | AT20: 1.370677724 | AU20: 26.4 | AV20: 0.9506429862 | AW20: 11.69437406 | AX20: 2.543264617 | AZ20: 95.06429862 | BA20: 0.7269898913 | BB20: 0.5003891912 | BC20: 0.3898124688 | BD20: 0.1105767225 | BE20: 0.13536 | BF20: 0.6369341752 | BG20: 0.006753657726
A21: ThetaCa | B21: =ThetaCA_Core -> 22 | C21: °C/W | D21: Core to Ambient Thermal Resistance | G21: 12 | H21: 48 | I21: 1 | J21: 2.4 | K21: 2.4 | L21: 0.6666666667 | M21: 0.250434775 | N21: 4.792504429 | O21: 4.796252215 | P21: 0.003747785341 | Q21: 0 | R21: 2.770200033 | S21: 0.02885427093 | T21: 0.7 | U21: 0.7306771206 | V21: 1.383476861 | W21: 0.009570041127 | X21: 0.009570041127 | Y21: 1.200226364 | Z21: 0.00288108665 | AA21: 0.00288108665 | AB21: 1.386303907 | AC21: 0.01113897608 | AD21: 0.05897269256 | AE21: 0.3442176 | AF21: 0 | AG21: 0.4148838344 | AH21: 2.398368133 | AI21: 0.02098391507 | AJ21: 0.096 | AK21: 0.1172101917 | AL21: 0.007674008225 | AM21: 0.0384 | AN21: 0.09696 | AO21: 0.35552 | AP21: 0.29088 | AQ21: 0.13536 | AR21: 1.403201463 | AS21: 1.407209605 | AT21: 1.407209605 | AU21: 28.8 | AV21: 0.9534147767 | AW21: 12.44651503 | AX21: 2.695834409 | AZ21: 95.34147767 | BA21: 0.7306771206 | BB21: 0.5320940261 | BC21: 0.4148838344 | BD21: 0.1172101917 | BE21: 0.13536 | BF21: 0.6688584763 | BG21: 0.007674008225
A22: Cin | B22: =Cin*1000000 -> 25 | C22: μF | D22: Input Capacitance | G22: 13 | H22: 48 | I22: 1 | J22: 2.6 | K22: 2.6 | L22: 0.7222222222 | M22: 0.2504710085 | N22: 4.792943193 | O22: 4.996471596 | P22: 0.2035284037 | Q22: 0 | R22: 2.945226427 | S22: 0.03261558873 | T22: 0.7 | U22: 0.7346873658 | V22: 1.383603521 | W22: 0.009571793519 | X22: 0.009571793519 | Y22: 1.276120363 | Z22: 0.003256966361 | AA22: 0.003256966361 | AB22: 1.473999787 | AC22: 0.01259282646 | AD22: 0.06388708361 | AE22: 0.3442176 | AF22: 0 | AG22: 0.4213342047 | AH22: 2.549839864 | AI22: 0.02371814079 | AJ22: 0.104 | AK22: 0.12799744 | AL22: 0.008674358704 | AM22: 0.0384 | AN22: 0.09696 | AO22: 0.35552 | AP22: 0.29088 | AQ22: 0.13536 | AR22: 1.425065598 | AS22: 1.429672062 | AT22: 1.429672062 | AU22: 31.2 | AV22: 0.9561849086 | AW22: 12.64002614 | AX22: 2.943941121 | AZ22: 95.61849086 | BA22: 0.7346873658 | BB22: 0.5493316447 | BC22: 0.4213342047 | BD22: 0.12799744 | BE22: 0.13536 | BF22: 0.6863103378 | BG22: 0.008674358704
A23: RCinEsr | B23: =RCinEsr*1000 -> 2 | C23: mW | D23: Input Capacitor ESR | G23: 14 | H23: 48 | I23: 1 | J23: 2.8 | K23: 2.8 | L23: 0.7777777778 | M23: 0.2505072423 | N23: 4.793381889 | O23: 5.196690944 | P23: 0.4033090557 | Q23: 0 | R23: 3.123252977 | S23: 0.03667770644 | T23: 0.7 | U23: 0.739021257 | V23: 1.383730162 | W23: 0.009573545804 | X23: 0.009573545804 | Y23: 1.353321639 | Z23: 0.003662958917 | AA23: 0.003662958917 | AB23: 1.563209932 | AC23: 0.01416325219 | AD23: 0.06880147465 | AE23: 0.3442176 | AF23: 0 | AG23: 0.4279095978 | AH23: 2.703901601 | AI23: 0.02667083396 | AJ23: 0.112 | AK23: 0.1390119299 | AL23: 0.009754709161 | AM23: 0.0384 | AN23: 0.09696 | AO23: 0.35552 | AP23: 0.29088 | AQ23: 0.13536 | AR23: 1.447645576 | AS23: 1.452913627 | AT23: 1.452913627 | AU23: 33.6 | AV23: 0.9585508457 | AW23: 12.83728793 | AX23: 3.197274387 | AZ23: 95.85508457 | BA23: 0.739021257 | BB23: 0.5669215277 | BC23: 0.4279095978 | BD23: 0.1390119299 | BE23: 0.13536 | BF23: 0.7041376607 | BG23: 0.009754709161
A24: Cout | B24: =Cout*1000000 -> 130 | C24: μF | D24: Output Capcitance | G24: 15 | H24: 48 | I24: 1 | J24: 3 | K24: 3 | L24: 0.8333333333 | M24: 0.2505434765 | N24: 4.793820518 | O24: 5.396910259 | P24: 0.6030897411 | Q24: 0 | R24: 3.303794727 | S24: 0.04104062408 | T24: 0.7 | U24: 0.7436794758 | V24: 1.383856783 | W24: 0.009575297982 | X24: 0.009575297982 | Y24: 1.431620232 | Z24: 0.004099072979 | AA24: 0.004099072979 | AB24: 1.653691923 | AC24: 0.01585030368 | AD24: 0.0737158657 | AE24: 0.3442176 | AF24: 0 | AG24: 0.4346104142 | AH24: 2.860133322 | AI24: 0.02984196283 | AJ24: 0.12 | AK24: 0.1502544806 | AL24: 0.0109150596 | AM24: 0.0384 | AN24: 0.09696 | AO24: 0.35552 | AP24: 0.29088 | AQ24: 0.13536 | AR24: 1.470941416 | AS24: 1.476937354 | AT24: 1.476937354 | AU24: 36 | AV24: 0.9605907671 | AW24: 13.03831243 | AX24: 3.455853054 | AZ24: 96.05907671 | BA24: 0.7436794758 | BB24: 0.5848648948 | BC24: 0.4346104142 | BD24: 0.1502544806 | BE24: 0.13536 | BF24: 0.7223428183 | BG24: 0.0109150596
A25: RCoutEsr | B25: =Cout_ESR*1000 -> 5 | C25: mW | D25: Output Capacitor ESR | G25: 16 | H25: 48 | I25: 1 | J25: 3.2 | K25: 3.2 | L25: 0.8888888889 | M25: 0.250579711 | N25: 4.79425908 | O25: 5.59712954 | P25: 0.8028704601 | Q25: 0 | R25: 3.486460958 | S25: 0.04570434164 | T25: 0.7 | U25: 0.7486627554 | V25: 1.383983385 | W25: 0.009577050052 | X25: 0.009577050052 | Y25: 1.510846983 | Z25: 0.004565317209 | AA25: 0.004565317209 | AB25: 1.745250448 | AC25: 0.01765403135 | AD25: 0.07863025675 | AE25: 0.3442176 | AF25: 0 | AG25: 0.4414370653 | AH25: 3.018196628 | AI25: 0.0332314957 | AJ25: 0.128 | AK25: 0.16172594 | AL25: 0.01215541001 | AM25: 0.0384 | AN25: 0.09696 | AO25: 0.35552 | AP25: 0.29088 | AQ25: 0.13536 | AR25: 1.494953135 | AS25: 1.501746432 | AT25: 1.501746432 | AU25: 38.4 | AV25: 0.9623638922 | AW25: 13.24311196 | AX25: 3.719696621 | AZ25: 96.23638922 | BA25: 0.7486627554 | BB25: 0.6031630054 | BC25: 0.4414370653 | BD25: 0.16172594 | BE25: 0.13536 | BF25: 0.7409282665 | BG25: 0.01215541001
A26: Top Driver | B26: Input Value | C26: Units | D26: Description | G26: 17 | H26: 48 | I26: 1 | J26: 3.4 | K26: 3.4 | L26: 0.9444444444 | M26: 0.2506159459 | N26: 4.794697575 | O26: 5.797348787 | P26: 1.002651213 | Q26: 0 | R26: 3.670934541 | S26: 0.05066885911 | T26: 0.7 | U26: 0.7539718814 | V26: 1.384109968 | W26: 0.009578802014 | X26: 0.009578802014 | Y26: 1.590864587 | Z26: 0.005061700266 | AA26: 0.005061700266 | AB26: 1.837726977 | AC26: 0.01957448559 | AD26: 0.08354464779 | AE26: 0.3442176 | AF26: 0 | AG26: 0.4483899738 | AH26: 3.177816855 | AI26: 0.03683940082 | AJ26: 0.136 | AK26: 0.1734271846 | AL26: 0.0134757604 | AM26: 0.0384 | AN26: 0.09696 | AO26: 0.35552 | AP26: 0.29088 | AQ26: 0.13536 | AR26: 1.519680754 | AS26: 1.527344186 | AT26: 1.527344186 | AU26: 40.8 | AV26: 0.9639158984 | AW26: 13.45169921 | AX26: 3.988825245 | AZ26: 96.39158984 | BA26: 0.7539718814 | BB26: 0.6218171583 | BC26: 0.4483899738 | BD26: 0.1734271846 | BE26: 0.13536 | BF26: 0.7598965446 | BG26: 0.0134757604
A27: RdsonDRT | B27: 0.5 | C27: W | D27: Drain to Source Resistance of pullup Top FET Driver | G27: 18 | H27: 48 | I27: 1 | J27: 3.6 | K27: 3.6 | L27: 1 | M27: 0.2506521812 | N27: 4.795136003 | O27: 5.997568001 | P27: 1.202431999 | Q27: 0 | R27: 3.856956154 | S27: 0.05593417651 | T27: 0.7 | U27: 0.7596076916 | V27: 1.384236531 | W27: 0.009580553869 | X27: 0.009580553869 | Y27: 1.671560768 | Z27: 0.005588230804 | AA27: 0.005588230804 | AB27: 1.930991873 | AC27: 0.02161171683 | AD27: 0.08845903884 | AE27: 0.3442176 | AF27: 0 | AG27: 0.4554695732 | AH27: 3.338769408 | AI27: 0.04066564648 | AJ27: 0.144 | AK27: 0.1853591193 | AL27: 0.01487611077 | AM27: 0.0384 | AN27: 0.09696 | AO27: 0.35552 | AP27: 0.29088 | AQ27: 0.13536 | AR27: 1.545124289 | AS27: 1.553734079 | AT27: 1.553734079 | AU27: 43.2 | AV27: 0.9652825823 | AW27: 13.6640872 | AX27: 4.263259745 | AZ27: 96.52825823 | BA27: 0.7596076916 | BB27: 0.6408286925 | BC27: 0.4554695732 | BD27: 0.1853591193 | BE27: 0.13536 | BF27: 0.7792502764 | BG27: 0.01487611077
A28: RdsonDRT2 | B28: 0.5 | C28: W | D28: Drain to Source Resistance of pulldown Top FET Driver | G28: 19 | H28: 48 | I28: 1 | J28: 3.8 | K28: 3.8 | L28: 1.055555556 | M28: 0.2506884167 | N28: 4.795574364 | O28: 6.197787182 | P28: 1.402212818 | Q28: 0 | R28: 4.044312194 | S28: 0.06150029382 | T28: 0.7 | U28: 0.7655710767 | V28: 1.384363075 | W28: 0.009582305616 | X28: 0.009582305616 | Y28: 1.752843045 | Z28: 0.00614491748 | AA28: 0.00614491748 | AB28: 2.024938355 | AC28: 0.02376577548 | AD28: 0.09337342989 | AE28: 0.3442176 | AF28: 0 | AG28: 0.4626763087 | AH28: 3.500869289 | AI28: 0.04471020093 | AJ28: 0.152 | AK28: 0.1975226786 | AL28: 0.01635646112 | AM28: 0.0384 | AN28: 0.09696 | AO28: 0.35552 | AP28: 0.29088 | AQ28: 0.13536 | AR28: 1.571283761 | AS28: 1.58091971 | AT28: 1.58091971 | AU28: 45.6 | AV28: 0.9664923931 | AW28: 13.88028926 | AX28: 4.543021607 | AZ28: 96.64923931 | BA28: 0.7655710767 | BB28: 0.6601989873 | BC28: 0.4626763087 | BD28: 0.1975226786 | BE28: 0.13536 | BF28: 0.7989921718 | BG28: 0.01635646112
A29: Bottom Driver | B29: Input Value | C29: Units | D29: Description | G29: 20 | H29: 48 | I29: 1 | J29: 4 | K29: 4 | L29: 1.111111111 | M29: 0.2507246527 | N29: 4.796012658 | O29: 6.398006329 | P29: 1.601993671 | Q29: 0 | R29: 4.232825469 | S29: 0.06736721106 | T29: 0.7 | U29: 0.7718629803 | V29: 1.384489599 | W29: 0.009584057256 | X29: 0.009584057256 | Y29: 1.834634697 | Z29: 0.006731768942 | AA29: 0.006731768942 | AB29: 2.119477843 | AC29: 0.02603671196 | AD29: 0.09828782093 | AE29: 0.3442176 | AF29: 0 | AG29: 0.4700106367 | AH29: 3.663963035 | AI29: 0.04897303245 | AJ29: 0.16 | AK29: 0.2099188257 | AL29: 0.01791681145 | AM29: 0.0384 | AN29: 0.09696 | AO29: 0.35552 | AP29: 0.29088 | AQ29: 0.13536 | AR29: 1.598159188 | AS29: 1.608904819 | AT29: 1.608904819 | AU29: 48 | AV29: 0.9675682254 | AW29: 14.1003191 | AX29: 4.828132991 | AZ29: 96.75682254 | BA29: 0.7718629803 | BB29: 0.6799294624 | BC29: 0.4700106367 | BD29: 0.2099188257 | BE29: 0.13536 | BF29: 0.8191250274 | BG29: 0.01791681145
A30: RdsonDRB | B30: 0.5 | C30: W | D30: Drain to Source Resistance of pullup Bottom FET Driver | G30: 21 | H30: 48 | I30: 1 | J30: 4.2 | K30: 4.2 | L30: 1.166666667 | M30: 0.2507608889 | N30: 4.796450885 | O30: 6.598225442 | P30: 1.801774558 | Q30: 0 | R30: 4.422347991 | S30: 0.07353492821 | T30: 0.7 | U30: 0.7784843996 | V30: 1.384616105 | W30: 0.009585808787 | X30: 0.009585808787 | Y30: 1.91687165 | Z30: 0.007348793842 | AA30: 0.007348793842 | AB30: 2.214536355 | AC30: 0.02842457667 | AD30: 0.103202212 | AE30: 0.3442176 | AF30: 0 | AG30: 0.4774730249 | AH30: 3.827922477 | AI30: 0.05345410931 | AJ30: 0.168 | AK30: 0.2225485537 | AL30: 0.01955716176 | AM30: 0.0384 | AN30: 0.09696 | AO30: 0.35552 | AP30: 0.29088 | AQ30: 0.13536 | AR30: 1.625750588 | AS30: 1.63769329 | AT30: 1.63769329 | AU30: 50.4 | AV30: 0.9685287109 | AW30: 14.32419075 | AX30: 5.118616735 | AZ30: 96.85287109 | BA30: 0.7784843996 | BB30: 0.7000215786 | BC30: 0.4774730249 | BD30: 0.2225485537 | BE30: 0.13536 | BF30: 0.8396517282 | BG30: 0.01955716176
A31: RdsonDRB2 | B31: 0.5 | C31: W | D31: Drain to Source Resistance of pulldown Bottom FET Driver | G31: 22 | H31: 48 | I31: 1 | J31: 4.4 | K31: 4.4 | L31: 1.222222222 | M31: 0.2507971256 | N31: 4.796889044 | O31: 6.798444522 | P31: 2.001555478 | Q31: 0 | R31: 4.612755363 | S31: 0.08000344528 | T31: 0.7 | U31: 0.7854363856 | V31: 1.384742591 | W31: 0.00958756021 | X31: 0.00958756021 | Y31: 1.999500041 | Z31: 0.007996000824 | AA31: 0.007996000824 | AB31: 2.310051701 | AC31: 0.03092942003 | AD31: 0.108116603 | AE31: 0.3442176 | AF31: 0 | AG31: 0.4850639527 | AH31: 3.992639876 | AI31: 0.05815339977 | AJ31: 0.176 | AK31: 0.2354128853 | AL31: 0.02127751204 | AM31: 0.0384 | AN31: 0.09696 | AO31: 0.35552 | AP31: 0.29088 | AQ31: 0.13536 | AR31: 1.65405798 | AS31: 1.667289146 | AT31: 1.667289146 | AU31: 52.8 | AV31: 0.969389166 | AW31: 14.55191858 | AX31: 5.414496361 | AZ31: 96.9389166 | BA31: 0.7854363856 | BB31: 0.7204768379 | BC31: 0.4850639527 | BD31: 0.2354128853 | BE31: 0.13536 | BF31: 0.8605752487 | BG31: 0.02127751204
A32: Deadtime | B32: Input Value | C32: Units | D32: Description | G32: 23 | H32: 48 | I32: 1 | J32: 4.6 | K32: 4.6 | L32: 1.277777778 | M32: 0.2508333625 | N32: 4.797327137 | O32: 6.998663569 | P32: 2.201336431 | Q32: 0 | R32: 4.803942371 | S32: 0.08677276227 | T32: 0.7 | U32: 0.7927200437 | V32: 1.384869057 | W32: 0.009589311526 | X32: 0.009589311526 | Y32: 2.082474314 | Z32: 0.008673398535 | AA32: 0.008673398535 | AB32: 2.40597128 | AC32: 0.03355129246 | AD32: 0.1130309941 | AE32: 0.3442176 | AF32: 0 | AG32: 0.492783911 | AH32: 4.15802411 | AI32: 0.06307087211 | AJ32: 0.184 | AK32: 0.2485128731 | AL32: 0.02307786231 | AM32: 0.0384 | AN32: 0.09696 | AO32: 0.35552 | AP32: 0.29088 | AQ32: 0.13536 | AR32: 1.683081383 | AS32: 1.69769656 | AT32: 1.69769656 | AU32: 55.2 | AV32: 0.9701622972 | AW32: 14.78351733 | AX32: 5.715796081 | AZ32: 97.01622972 | BA32: 0.7927200437 | BB32: 0.7412967841 | BC32: 0.492783911 | BD32: 0.2485128731 | BE32: 0.13536 | BF32: 0.8818986542 | BG32: 0.02307786231
A33: Deadtime | B33: 15 | C33: ns | D33: Total Deadtime | G33: 24 | H33: 48 | I33: 1 | J33: 4.8 | K33: 4.8 | L33: 1.333333333 | M33: 0.2508695998 | N33: 4.797765163 | O33: 7.198882581 | P33: 2.401117419 | Q33: 0 | R33: 4.995819507 | S33: 0.09384287918 | T33: 0.7 | U33: 0.800336534 | V33: 1.384995504 | W33: 0.009591062733 | X33: 0.009591062733 | Y33: 2.165755713 | Z33: 0.009380995615 | AA33: 0.009380995615 | AB33: 2.502250346 | AC33: 0.03629024438 | AD33: 0.1179453851 | AE33: 0.3442176 | AF33: 0 | AG33: 0.5006334025 | AH33: 4.323997659 | AI33: 0.06820649459 | AJ33: 0.192 | AK33: 0.2618496002 | AL33: 0.02495821255 | AM33: 0.0384 | AN33: 0.09696 | AO33: 0.35552 | AP33: 0.29088 | AQ33: 0.13536 | AR33: 1.712820816 | AS33: 1.728919849 | AT33: 1.728919849 | AU33: 57.6 | AV33: 0.9708587338 | AW33: 15.01900208 | AX33: 6.022540804 | AZ33: 97.08587338 | BA33: 0.800336534 | BB33: 0.7624830027 | BC33: 0.5006334025 | BD33: 0.2618496002 | BE33: 0.13536 | BF33: 0.9036251024 | BG33: 0.02495821255
A34: IQ | B34: Input Value | C34: Units | D34: Description | G34: 25 | H34: 48 | I34: 1 | J34: 5 | K34: 5 | L34: 1.388888889 | M34: 0.2509058375 | N34: 4.798203122 | O34: 7.399101561 | P34: 2.600898439 | Q34: 0 | R34: 5.188310203 | S34: 0.101213796 | T34: 0.7 | U34: 0.8082870715 | V34: 1.385121932 | W34: 0.009592813832 | X34: 0.009592813832 | Y34: 2.249311084 | Z34: 0.01011880071 | AA34: 0.01011880071 | AB34: 2.598850618 | AC34: 0.0391463262 | AD34: 0.1228597762 | AE34: 0.3442176 | AF34: 0 | AG34: 0.5086129417 | AH34: 4.490494208 | AI34: 0.07356023547 | AJ34: 0.2 | AK34: 0.2754241801 | AL34: 0.02691856277 | AM34: 0.0384 | AN34: 0.09696 | AO34: 0.35552 | AP34: 0.29088 | AQ34: 0.13536 | AR34: 1.743276297 | AS34: 1.760963479 | AT34: 1.760963479 | AU34: 60 | AV34: 0.9714874351 | AW34: 15.25838825 | AX34: 6.334756142 | AZ34: 97.14874351 | BA34: 0.8082870715 | BB34: 0.7840371218 | BC34: 0.5086129417 | BD34: 0.2754241801 | BE34: 0.13536 | BF34: 0.9257578449 | BG34: 0.02691856277
A35: IQ | B35: =Iq*1000 -> 2 | C35: mA | D35: Quiescent Current Of Controller (Not Switching!) | G35: 26 | H35: 48 | I35: 1 | J35: 5.2 | K35: 5.2 | L35: 1.444444444 | M35: 0.2509420755 | N35: 4.798641013 | O35: 7.599320507 | P35: 2.800679493 | Q35: 0 | R35: 5.381348619 | S35: 0.1088855127 | T35: 0.7 | U35: 0.8165729274 | V35: 1.38524834 | W35: 0.009594564823 | X35: 0.009594564823 | Y35: 2.333111918 | Z35: 0.01088682244 | AA35: 0.01088682244 | AB35: 2.695739179 | AC35: 0.04211958836 | AD35: 0.1277741672 | AE35: 0.3442176 | AF35: 0 | AG35: 0.5167230551 | AH35: 4.657456735 | AI35: 0.07913206302 | AJ35: 0.208 | AK35: 0.2892377572 | AL35: 0.02895891296 | AM35: 0.0384 | AN35: 0.09696 | AO35: 0.35552 | AP35: 0.29088 | AQ35: 0.13536 | AR35: 1.774447844 | AS35: 1.793832069 | AT35: 1.793832069 | AU35: 62.4 | AV35: 0.9720560058 | AW35: 15.50169165 | AX35: 6.652468416 | AZ35: 97.20560058 | BA35: 0.8165729274 | BB35: 0.8059608123 | BC35: 0.5167230551 | BD35: 0.2892377572 | BE35: 0.13536 | BF35: 0.9483002281 | BG35: 0.02895891296
A36: High-side FET | B36: Input Value | C36: Units | D36: Description | G36: 27 | H36: 48 | I36: 1 | J36: 5.4 | K36: 5.4 | L36: 1.5 | M36: 0.2509783138 | N36: 4.799078838 | O36: 7.799539419 | P36: 3.000460581 | Q36: 0 | R36: 5.574877859 | S36: 0.1168580294 | T36: 0.7 | U36: 0.8251954287 | V36: 1.385374729 | W36: 0.009596315705 | X36: 0.009596315705 | Y36: 2.417133577 | Z36: 0.01168506946 | AA36: 0.01168506946 | AB36: 2.792887584 | AC36: 0.04521008126 | AD36: 0.1326885583 | AE36: 0.3442176 | AF36: 0 | AG36: 0.5249642809 | AH36: 4.824835964 | AI36: 0.08492194552 | AJ36: 0.216 | AK36: 0.3032915072 | AL36: 0.03107926314 | AM36: 0.0384 | AN36: 0.09696 | AO36: 0.35552 | AP36: 0.29088 | AQ36: 0.13536 | AR36: 1.806335478 | AS36: 1.827530388 | AT36: 1.827530388 | AU36: 64.8 | AV36: 0.9725709421 | AW36: 15.74892843 | AX36: 6.975704665 | AZ36: 97.25709421 | BA36: 0.8251954287 | BB36: 0.828255788 | BC36: 0.5249642809 | BD36: 0.3032915072 | BE36: 0.13536 | BF36: 0.9712556958 | BG36: 0.03107926314
A37: RdsonTop | B37: =Rdson1*1000 -> 5.796 | C37: mW | D37: Drain-Source Resistance of Top FET | G37: 28 | H37: 48 | I37: 1 | J37: 5.6 | K37: 5.6 | L37: 1.555555556 | M37: 0.2510145525 | N37: 4.799516595 | O37: 7.999758298 | P37: 3.200241702 | Q37: 0 | R37: 5.768848524 | S37: 0.125131346 | T37: 0.7 | U37: 0.8341559593 | V37: 1.385501099 | W37: 0.009598066479 | X37: 0.009598066479 | Y37: 2.501354672 | Z37: 0.01251355039 | AA37: 0.01251355039 | AB37: 2.890271136 | AC37: 0.04841785533 | AD37: 0.1376029493 | AE37: 0.3442176 | AF37: 0 | AG37: 0.5333371697 | AH37: 4.992589113 | AI37: 0.09092985121 | AJ37: 0.224 | AK37: 0.3175866369 | AL37: 0.0332796133 | AM37: 0.0384 | AN37: 0.09696 | AO37: 0.35552 | AP37: 0.29088 | AQ37: 0.13536 | AR37: 1.838939215 | AS37: 1.862063363 | AT37: 1.862063363 | AU37: 67.2 | AV37: 0.9730378261 | AW37: 16.00011509 | AX37: 7.304492649 | AZ37: 97.30378261 | BA37: 0.8341559593 | BB37: 0.8509238066 | BC37: 0.5333371697 | BD37: 0.3175866369 | BE37: 0.13536 | BF37: 0.99462779 | BG37: 0.0332796133
A38: RdsonTopTc | B38: =RdsonTopTc*1000000 -> 4000 | C38: ppm | D38: Drain to Source Resistance Temp Co | G38: 29 | H38: 48 | I38: 1 | J38: 5.8 | K38: 5.8 | L38: 1.611111111 | M38: 0.2510507916 | N38: 4.799954286 | O38: 8.199977143 | P38: 3.400022857 | Q38: 0 | R38: 5.96321754 | S38: 0.1337054625 | T38: 0.7 | U38: 0.8434559604 | V38: 1.38562745 | W38: 0.009599817145 | X38: 0.009599817145 | Y38: 2.58575655 | Z38: 0.01337227387 | AA38: 0.01337227387 | AB38: 2.987868298 | AC38: 0.05174296099 | AD38: 0.1425173404 | AE38: 0.3442176 | AF38: 0 | AG38: 0.5418422842 | AH38: 5.160678876 | AI38: 0.09715574837 | AJ38: 0.232 | AK38: 0.3321243853 | AL38: 0.03555996343 | AM38: 0.0384 | AN38: 0.09696 | AO38: 0.35552 | AP38: 0.29088 | AQ38: 0.13536 | AR38: 1.872259076 | AS38: 1.897436077 | AT38: 1.897436077 | AU38: 69.6 | AV38: 0.9734614808 | AW38: 16.25526853 | AX38: 7.638860863 | AZ38: 97.34614808 | BA38: 0.8434559604 | BB38: 0.8739666696 | BC38: 0.5418422842 | BD38: 0.3321243853 | BE38: 0.13536 | BF38: 1.018420153 | BG38: 0.03555996343
A39: QgTop | B39: =Qg_Q1*1000000000 -> 7.1 | C39: nC | D39: Gate Charge Of Top FET | G39: 30 | H39: 48 | I39: 1 | J39: 6 | K39: 6 | L39: 1.666666667 | M39: 0.251087031 | N39: 4.800391909 | O39: 8.400195955 | P39: 3.599804045 | Q39: 0 | R39: 6.157947186 | S39: 0.1425803789 | T39: 0.7 | U39: 0.853096931 | V39: 1.385753781 | W39: 0.009601567701 | X39: 0.009601567701 | Y39: 2.670322875 | Z39: 0.01426124852 | AA39: 0.01426124852 | AB39: 3.085660212 | AC39: 0.05518544866 | AD39: 0.1474317314 | AE39: 0.3442176 | AF39: 0 | AG39: 0.5504801997 | AH39: 5.329072583 | AI39: 0.1035996053 | AJ39: 0.24 | AK39: 0.3469060233 | AL39: 0.03792031354 | AM39: 0.0384 | AN39: 0.09696 | AO39: 0.35552 | AP39: 0.29088 | AQ39: 0.13536 | AR39: 1.906295078 | AS39: 1.933653773 | AT39: 1.933653773 | AU39: 72 | AV39: 0.9738460948 | AW39: 16.51440599 | AX39: 7.978838537 | AZ39: 97.38460948 | BA39: 0.853096931 | BB39: 0.897386223 | BC39: 0.5504801997 | BD39: 0.3469060233 | BE39: 0.13536 | BF39: 1.042636528 | BG39: 0.03792031354
A40: QgdTop | B40: =Qgd_Q1*1000000000 -> 1.8 | C40: nC | D40: Gate to Drain Charge | G40: 31 | H40: 48 | I40: 1 | J40: 6.2 | K40: 6.2 | L40: 1.722222222 | M40: 0.2511232707 | N40: 4.800829466 | O40: 8.600414733 | P40: 3.799585267 | Q40: 0 | R40: 6.3530043 | S40: 0.1517560952 | T40: 0.7 | U40: 0.8630804285 | V40: 1.385880092 | W40: 0.00960331815 | X40: 0.00960331815 | Y40: 2.755039289 | Z40: 0.01518048296 | AA40: 0.01518048296 | AB40: 3.183630296 | AC40: 0.05874536878 | AD40: 0.1523461224 | AE40: 0.3442176 | AF40: 0 | AG40: 0.5592515035 | AH40: 5.497741515 | AI40: 0.1102613901 | AJ40: 0.248 | AK40: 0.3619328543 | AL40: 0.04036066363 | AM40: 0.0384 | AN40: 0.09696 | AO40: 0.35552 | AP40: 0.29088 | AQ40: 0.13536 | AR40: 1.94104724 | AS40: 1.970721857 | AT40: 1.970721857 | AU40: 74.4 | AV40: 0.9741953224 | AW40: 16.77754511 | AX40: 8.32445565 | AZ40: 97.41953224 | BA40: 0.8630804285 | BB40: 0.9211843579 | BC40: 0.5592515035 | BD40: 0.3619328543 | BE40: 0.13536 | BF40: 1.067280765 | BG40: 0.04036066363
A41: QgsTop | B41: =Qgs_Q1*1000000000 -> 1.8 | C41: nC | G41: 32 | H41: =Vin -> 48 | I41: =MODE -> 1 | J41: 6.4 | K41: =Iout*G41/100/Number_of_Phases -> 6.4 | L41: =Vout*K41/(Vin*Efficiency) -> 1.777777778 | M41: =(Vout+(Rdson2+Rs+Rdcr)*K41)/(Vin+(Rs+Rdson2-Rdson1)*K41) -> 0.2511595108 | N41: =(Vin-(Rdson1+Rdcr)*K41-Vout)*M41/(Fsw*Lo) -> 4.801266955 | O41: 8.800633478 | P41: 3.999366522 | Q41: =IF(MIN(Vin, -P41/(Coss_Q1+Coss_Q2)*0.00000002)<0, 0, MIN(Vin, -P41/(Coss_Q1+Coss_Q2)*0.00000002)) -> 0 | R41: 6.548359619 | S41: =R41^2*Rdcr -> 0.1612326115 | T41: =Core_Loss -> 0.7 | U41: =(T41+S41*(1+Ltc*(Ta-25)))/(1-S41*Ltc*ThetaCA_Core) -> 0.8734080699 | V41: 1.386006384 | W41: 0.009605068489 | X41: 0.009605068489 | Y41: 2.839893117 | Z41: 0.01612998583 | AA41: 0.01612998583 | AB41: 3.28176392 | AC41: =Rdson1*AB41^2 -> 0.06242277176 | AD41: =(Vin*K41/2)*Fsw*(Tr_buck+Tf_buck) -> 0.1572605135 | AE41: =(0.5*Coss_Q1*(Vin-Q41)^2-0.5*Coss_Q2*(Vin-Q41)^2+(Qoss_Q2*(Vin-Q41)/Vin)*Vin)*Fsw -> 0.3442176 | AF41: =IF(K41>N41/2,0,ABS(K41-N41/2)*Vsd_Q1*Deadtime*Fsw) -> 0 | AG41: =(AF41+AE41+AD41+AC41*(1+RdsonTopTc*Ta-RdsonTopTc*25))/(1-AC41*RdsonTopTc*ThetaJA_Q1) -> 0.5681567959 | AH41: =SQRT((1-M41))*SQRT(K41^2+(N41^2)/12) -> 5.666660328 | AI41: =Rdson2*AH41^2 -> 0.1171410713 | AJ41: =IF(K41<N41/2,Deadtime*Fsw*Vsd_Q2*(K41+N41/2),2*Deadtime*Fsw*Vsd_Q2*K41) -> 0.256 | AK41: =(AJ41+AI41*(1+RdsonBotTc*Ta-RdsonBotTc*25))/(1-AI41*RdsonBotTc*ThetaJA_Q2) -> 0.3772062146 | AL41: =CHOOSE(SENSING_TYPE, R41^2*Rs, 0) -> 0.0428810137 | AM41: =IF(Ext_BIAS=1, 0.0008*Vin, 0.002*Vin) -> 0.0384 | AN41: =IF(Ext_BIAS=1, (Qg_Q1+Qg_Q2)*Fsw*Vout, (Qg_Q1+Qg_Q2)*Fsw*Vin) -> 0.09696 | AO41: =(Vin-VCC)*Fsw*(Qg_Q1+Qg_Q2) -> 0.35552 | AP41: =(Qg_Q1+Qg_Q2)*Fsw*(Vin-Vout) -> 0.29088 | AQ41: =SUM(AM41:AN41) -> 0.13536 | AR41: 1.976515582 | AS41: =U41 + AL41 + ((AF41+AE41+AD41+AC41*(1+RdsonTC*(Ta-25))) + (AJ41+AI41*(1+RdsonTC*(Ta-25))) + AQ41) / (1-AC41*RdsonTC*ThetaJA_Q1 -AI41*RdsonTC*ThetaJA_Q2) -> 2.008645899 | AT41: 2.008645899 | AU41: =Vout*K41 -> 76.8 | AV41: 0.9745123663 | AW41: =ThetaJA_Q1*BC41 -> 17.04470388 | AX41: =ThetaJA_Q2*BD41 -> 8.675742935 | AZ41: 97.45123663 | BA41: =U41 -> 0.8734080699 | BB41: 0.9453630105 | BC41: 0.5681567959 | BD41: 0.3772062146 | BE41: 0.13536 | BF41: 1.092356815 | BG41: 0.0428810137
A42: RGateTop | B42: =Rgate1 -> 0.4 | C42: W | D42: Gate Resistance | G42: 33 | H42: 48 | I42: 1 | J42: =Iout*G42/100 -> 6.6 | K42: 6.6 | L42: 1.833333333 | M42: 0.2511957512 | N42: 4.801704377 | O42: 9.000852189 | P42: 4.199147811 | Q42: 0 | R42: 6.743987229 | S42: 0.1710099277 | T42: 0.7 | U42: 0.8840815314 | V42: 1.386132657 | W42: 0.00960681872 | X42: 0.00960681872 | Y42: 2.924873138 | Z42: 0.01710976574 | AA42: 0.01710976574 | AB42: 3.380048126 | AC42: 0.06621770803 | AD42: 0.1621749045 | AE42: 0.3442176 | AF42: 0 | AG42: 0.5771966896 | AH42: 5.835806578 | AI42: 0.1242386169 | AJ42: 0.264 | AK42: 0.3927274734 | AL42: 0.04548136374 | AM42: 0.0384 | AN42: 0.09696 | AO42: 0.35552 | AP42: 0.29088 | AQ42: 0.13536 | AR42: 2.012700121 | AS42: 2.047431636 | AT42: 2.047431636 | AU42: 79.2 | AV42: 0.9748000448 | AW42: 17.31590069 | AX42: 9.032731888 | AZ42: 97.48000448 | BA42: 0.8840815314 | BB42: 0.969924163 | BC42: 0.5771966896 | BD42: 0.3927274734 | BE42: 0.13536 | BF42: 1.117868741 | BG42: 0.04548136374
A43: GfsTop | B43: =Gfs_Q1 -> 80 | C43: S | D43: Transconductance of Top FET | G43: 34 | H43: 48 | I43: 1 | J43: 6.8 | K43: 6.8 | L43: 1.888888889 | M43: 0.251231992 | N43: 4.802141733 | O43: 9.201070866 | P43: 4.398929134 | Q43: 0 | R43: 6.939864103 | S43: 0.1810880438 | T43: 0.7 | U43: 0.8951025501 | V43: 1.386258911 | W43: 0.009608568842 | X43: 0.009608568842 | Y43: 3.009969378 | Z43: 0.01811983131 | AA43: 0.01811983131 | AB43: 3.478471401 | AC43: 0.07013022803 | AD43: 0.1670892956 | AE43: 0.3442176 | AF43: 0 | AG43: 0.5863718103 | AH43: 6.005160321 | AI43: 0.1315539953 | AJ43: 0.272 | AK43: 0.4084980338 | AL43: 0.04816171377 | AM43: 0.0384 | AN43: 0.09696 | AO43: 0.35552 | AP43: 0.29088 | AQ43: 0.13536 | AR43: 2.049600876 | AS43: 2.087084977 | AT43: 2.087084977 | AU43: 81.6 | AV43: 0.9750608475 | AW43: 17.59115431 | AX43: 9.395454777 | AZ43: 97.50608475 | BA43: 0.8951025501 | BB43: 0.9948698441 | BC43: 0.5863718103 | BD43: 0.4084980338 | BE43: 0.13536 | BF43: 1.143820713 | BG43: 0.04816171377
A44: VthTop | B44: =Vth_Q1 -> 2.2 | C44: V | D44: Threshold Voltage of Top FET | G44: 35 | H44: 48 | I44: 1 | J44: 7 | K44: 7 | L44: 1.944444444 | M44: 0.2512682332 | N44: 4.802579021 | O44: 9.40128951 | P44: 4.59871049 | Q44: 0 | R44: 7.135969715 | S44: 0.1914669598 | T44: 0.7 | U44: 0.9064729241 | V44: 1.386385145 | W44: 0.009610318854 | X44: 0.009610318854 | Y44: 3.095172948 | Z44: 0.01916019116 | AA44: 0.01916019116 | AB44: 3.577023482 | AC44: 0.07416038217 | AD44: 0.1720036866 | AE44: 0.3442176 | AF44: 0 | AG44: 0.5956827965 | AH44: 6.174703781 | AI44: 0.1390871748 | AJ44: 0.28 | AK44: 0.4245193327 | AL44: 0.05092206377 | AM44: 0.0384 | AN44: 0.09696 | AO44: 0.35552 | AP44: 0.29088 | AQ44: 0.13536 | AR44: 2.087217867 | AS44: 2.127612001 | AT44: 2.127612001 | AU44: 84 | AV44: 0.9752969814 | AW44: 17.87048389 | AX44: 9.763944652 | AZ44: 97.52969814 | BA44: 0.9064729241 | BB44: 1.020202129 | BC44: 0.5956827965 | BD44: 0.4245193327 | BE44: 0.13536 | BF44: 1.170217013 | BG44: 0.05092206377
A45: VspTop | B45: =Vsp_Q1 -> 2.45 | C45: V | G45: 36 | H45: 48 | I45: 1 | J45: 7.2 | K45: 7.2 | L45: 2 | M45: 0.2513044746 | N45: 4.803016242 | O45: 9.601508121 | P45: 4.798491879 | Q45: 0 | R45: 7.332285711 | S45: 0.2021466757 | T45: 0.7 | U45: 0.9181945136 | V45: 1.38651136 | W45: 0.009612068758 | X45: 0.009612068758 | Y45: 3.180475899 | Z45: 0.02023085389 | AA45: 0.02023085389 | AB45: 3.675695192 | AC45: 0.07830822089 | AD45: 0.1769180777 | AE45: 0.3442176 | AF45: 0 | AG45: 0.6051302998 | AH45: 6.344421062 | AI45: 0.1468381236 | AJ45: 0.288 | AK45: 0.4407928414 | AL45: 0.05376241375 | AM45: 0.0384 | AN45: 0.09696 | AO45: 0.35552 | AP45: 0.29088 | AQ45: 0.13536 | AR45: 2.125551112 | AS45: 2.169018965 | AT45: 2.169018965 | AU45: 86.4 | AV45: 0.97551041 | AW45: 18.15390899 | AX45: 10.13823535 | AZ45: 97.551041 | BA45: 0.9181945136 | BB45: 1.045923141 | BC45: 0.6051302998 | BD45: 0.4407928414 | BE45: 0.13536 | BF45: 1.197062038 | BG45: 0.05376241375
A46: VsdTop | B46: =Vsd_Q1 -> 2 | C46: V | G46: 37 | H46: 48 | I46: 1 | J46: 7.4 | K46: 7.4 | L46: 2.055555556 | M46: 0.2513407165 | N46: 4.803453396 | O46: 9.801726698 | P46: 4.998273302 | Q46: 0 | R46: 7.528795635 | S46: 0.2131271916 | T46: 0.7 | U46: 0.9302692415 | V46: 1.386637556 | W46: 0.009613818553 | X46: 0.009613818553 | Y46: 3.265871103 | Z46: 0.02133182813 | AA46: 0.02133182813 | AB46: 3.774478301 | AC46: 0.08257379461 | AD46: 0.1818324687 | AE46: 0.3442176 | AF46: 0 | AG46: 0.6147149852 | AH46: 6.514297911 | AI46: 0.1548068099 | AJ46: 0.296 | AK46: 0.4573200658 | AL46: 0.05668276371 | AM46: 0.0384 | AN46: 0.09696 | AO46: 0.35552 | AP46: 0.29088 | AQ46: 0.13536 | AR46: 2.164600628 | AS46: 2.211312304 | AT46: 2.211312304 | AU46: 88.8 | AV46: 0.9757028852 | AW46: 18.44144956 | AX46: 10.51836151 | AZ46: 97.57028852 | BA46: 0.9302692415 | BB46: 1.072035051 | BC46: 0.6147149852 | BD46: 0.4573200658 | BE46: 0.13536 | BF46: 1.224360299 | BG46: 0.05668276371
A47: θJATop | B47: =ThetaJA_Q1 -> 30 | C47: °C/W | D47: Junction to Ambient Resistance | G47: 38 | H47: 48 | I47: 1 | J47: 7.6 | K47: 7.6 | L47: 2.111111111 | M47: 0.2513769586 | N47: 4.803890483 | O47: 10.00194524 | P47: 5.198054759 | Q47: 0 | R47: 7.725484687 | S47: 0.2244085073 | T47: 0.7 | U47: 0.9426990941 | V47: 1.386763732 | W47: 0.009615568238 | X47: 0.009615568238 | Y47: 3.351352151 | Z47: 0.02246312248 | AA47: 0.02246312248 | AB47: 3.873365409 | AC47: 0.08695715378 | AD47: 0.1867468598 | AE47: 0.3442176 | AF47: 0 | AG47: 0.6244375308 | AH47: 6.684321511 | AI47: 0.162993202 | AJ47: 0.304 | AK47: 0.4741025473 | AL47: 0.05968311365 | AM47: 0.0384 | AN47: 0.09696 | AO47: 0.35552 | AP47: 0.29088 | AQ47: 0.13536 | AR47: 2.204366437 | AS47: 2.254498636 | AT47: 2.254498636 | AU47: 91.2 | AV47: 0.9758759753 | AW47: 18.73312592 | AX47: 10.90435859 | AZ47: 97.58759753 | BA47: 0.9426990941 | BB47: 1.098540078 | BC47: 0.6244375308 | BD47: 0.4741025473 | BE47: 0.13536 | BF47: 1.252116428 | BG47: 0.05968311365
A48: Low-side FET | B48: Input Value | C48: Units | D48: Description | G48: 39 | H48: 48 | I48: 1 | J48: 7.8 | K48: 7.8 | L48: 2.166666667 | M48: 0.2514132011 | N48: 4.804327503 | O48: 10.20216375 | P48: 5.397836249 | Q48: 0 | R48: 7.922339526 | S48: 0.235990623 | T48: 0.7 | U48: 0.9554861223 | V48: 1.386889889 | W48: 0.009617317814 | X48: 0.009617317814 | Y48: 3.436913262 | Z48: 0.02362474554 | AA48: 0.02362474554 | AB48: 3.972349845 | AC48: 0.09145834882 | AD48: 0.1916612508 | AE48: 0.3442176 | AF48: 0 | AG48: 0.6342986283 | AH48: 6.854480307 | AI48: 0.1713972682 | AJ48: 0.312 | AK48: 0.4911418626 | AL48: 0.06276346356 | AM48: 0.0384 | AN48: 0.09696 | AO48: 0.35552 | AP48: 0.29088 | AQ48: 0.13536 | AR48: 2.244848554 | AS48: 2.298584762 | AT48: 2.298584762 | AU48: 93.6 | AV48: 0.9760310878 | AW48: 19.02895885 | AX48: 11.29626284 | AZ48: 97.60310878 | BA48: 0.9554861223 | BB48: 1.125440491 | BC48: 0.6342986283 | BD48: 0.4911418626 | BE48: 0.13536 | BF48: 1.280335176 | BG48: 0.06276346356
A49: RdsonBot | B49: =Rdson2*1000 -> 3.648 | C49: mW | D49: Drain-Source Resistance of Low-side FET | G49: 40 | H49: 48 | I49: 1 | J49: 8 | K49: 8 | L49: 2.222222222 | M49: 0.251449444 | N49: 4.804764456 | O49: 10.40238223 | P49: 5.597617772 | Q49: 0 | R49: 8.119348093 | S49: 0.2478735386 | T49: 0.7 | U49: 0.968632442 | V49: 1.387016026 | W49: 0.009619067281 | X49: 0.009619067281 | Y49: 3.522549214 | Z49: 0.02481670592 | AA49: 0.02481670592 | AB49: 4.071425578 | AC49: 0.09607743016 | AD49: 0.1965756419 | AE49: 0.3442176 | AF49: 0 | AG49: 0.6442989829 | AH49: 7.024763855 | AI49: 0.1800189767 | AJ49: 0.32 | AK49: 0.5084396246 | AL49: 0.06592381346 | AM49: 0.0384 | AN49: 0.09696 | AO49: 0.35552 | AP49: 0.29088 | AQ49: 0.13536 | AR49: 2.286047001 | AS49: 2.343577674 | AT49: 2.343577674 | AU49: 96 | AV49: 0.9761694894 | AW49: 19.32896949 | AX49: 11.69411137 | AZ49: 97.61694894 | BA49: 0.968632442 | BB49: 1.152738607 | BC49: 0.6442989829 | BD49: 0.5084396246 | BE49: 0.13536 | BF49: 1.309021418 | BG49: 0.06592381346
A50: RdsonBotTc | B50: =RdsonBotTc*1000000 -> 4000 | C50: ppm | D50: Drain To Source Resitance Temp Co | G50: 41 | H50: 48 | I50: 1 | J50: 8.2 | K50: 8.2 | L50: 2.277777778 | M50: 0.2514856872 | N50: 4.805201341 | O50: 10.60260067 | P50: 5.797399329 | Q50: 0 | R50: 8.316499464 | S50: 0.2600572541 | T50: 0.7 | U50: 0.9821402355 | V50: 1.387142144 | W50: 0.009620816638 | X50: 0.009620816638 | Y50: 3.608255273 | Z50: 0.02603901223 | AA50: 0.02603901223 | AB50: 4.170587146 | AC50: 0.1008144482 | AD50: 0.2014900329 | AE50: 0.3442176 | AF50: 0 | AG50: 0.6544393138 | AH50: 7.195162693 | AI50: 0.1888582958 | AJ50: 0.328 | AK50: 0.5259974828 | AL50: 0.06916416333 | AM50: 0.0384 | AN50: 0.09696 | AO50: 0.35552 | AP50: 0.29088 | AQ50: 0.13536 | AR50: 2.327961794 | AS50: 2.389484554 | AT50: 2.389484554 | AU50: 98.4 | AV50: 0.9762923229 | AW50: 19.63317941 | AX50: 12.0979421 | AZ50: 97.62923229 | BA50: 0.9821402355 | BB50: 1.180436797 | BC50: 0.6544393138 | BD50: 0.5259974828 | BE50: 0.13536 | BF50: 1.338180155 | BG50: 0.06916416333
A51: QgBot | B51: =Qg_Q2*1000000000 -> 13.1 | C51: nC | D51: Gate Charge Of Top FET | G51: 42 | H51: 48 | I51: 1 | J51: 8.4 | K51: 8.4 | L51: 2.333333333 | M51: 0.2515219308 | N51: 4.80563816 | O51: 10.80281908 | P51: 5.99718092 | Q51: 0 | R51: 8.513783717 | S51: 0.2725417695 | T51: 0.7 | U51: 0.996011752 | V51: 1.387268243 | W51: 0.009622565886 | X51: 0.009622565886 | Y51: 3.694027143 | Z51: 0.02729167306 | AA51: 0.02729167306 | AB51: 4.269829587 | AC51: 0.1056694535 | AD51: 0.206404424 | AE51: 0.3442176 | AF51: 0 | AG51: 0.6647203539 | AH51: 7.36566823 | AI51: 0.1979151938 | AJ51: 0.336 | AK51: 0.5438171236 | AL51: 0.07248451318 | AM51: 0.0384 | AN51: 0.09696 | AO51: 0.35552 | AP51: 0.29088 | AQ51: 0.13536 | AR51: 2.370592954 | AS51: 2.436312781 | AT51: 2.436312781 | AU51: 100.8 | AV51: 0.9764006219 | AW51: 19.94161062 | AX51: 12.50779384 | AZ51: 97.64006219 | BA51: 0.996011752 | BB51: 1.208537477 | BC51: 0.6647203539 | BD51: 0.5438171236 | BE51: 0.13536 | BF51: 1.367816516 | BG51: 0.07248451318
A52: RGateBot | B52: =Rgate2 -> 0.4 | C52: W | D52: Gate Resistance | G52: 43 | H52: 48 | I52: 1 | J52: 8.6 | K52: 8.6 | L52: 2.388888889 | M52: 0.2515581747 | N52: 4.806074912 | O52: 11.00303746 | P52: 6.196962544 | Q52: 0 | R52: 8.711191825 | S52: 0.2853270849 | T52: 0.7 | U52: 1.010249309 | V52: 1.387394322 | W52: 0.009624315025 | X52: 0.009624315025 | Y52: 3.779860911 | Z52: 0.02857469701 | AA52: 0.02857469701 | AB52: 4.369148386 | AC52: 0.1106424964 | AD52: 0.211318815 | AE52: 0.3442176 | AF52: 0 | AG52: 0.6751428502 | AH52: 7.536272645 | AI52: 0.2071896388 | AJ52: 0.344 | AK52: 0.5619002709 | AL52: 0.075884863 | AM52: 0.0384 | AN52: 0.09696 | AO52: 0.35552 | AP52: 0.29088 | AQ52: 0.13536 | AR52: 2.413940498 | AS52: 2.484069932 | AT52: 2.484069932 | AU52: 103.2 | AV52: 0.976495323 | AW52: 20.25428551 | AX52: 12.92370623 | AZ52: 97.6495323 | BA52: 1.010249309 | BB52: 1.237043121 | BC52: 0.6751428502 | BD52: 0.5619002709 | BE52: 0.13536 | BF52: 1.397935761 | BG52: 0.075884863
A53: VsdBot | B53: =Vsd_Q2 -> 2 | C53: V | D53: Diode Forward Voltage of Bottom FET Body Diode | G53: 44 | H53: 48 | I53: 1 | J53: 8.8 | K53: 8.8 | L53: 2.444444444 | M53: 0.2515944189 | N53: 4.806511597 | O53: 11.2032558 | P53: 6.396744202 | Q53: 0 | R53: 8.908715553 | S53: 0.2984132002 | T53: 0.7 | U53: 1.024855292 | V53: 1.387520382 | W53: 0.009626064053 | X53: 0.009626064053 | Y53: 3.865753011 | Z53: 0.02988809268 | AA53: 0.02988809268 | AB53: 4.468539426 | AC53: 0.1157336273 | AD53: 0.2162332061 | AE53: 0.3442176 | AF53: 0 | AG53: 0.6857075642 | AH53: 7.706968808 | AI53: 0.2166815992 | AJ53: 0.352 | AK53: 0.5802486869 | AL53: 0.07936521281 | AM53: 0.0384 | AN53: 0.09696 | AO53: 0.35552 | AP53: 0.29088 | AQ53: 0.13536 | AR53: 2.458004446 | AS53: 2.532763789 | AT53: 2.532763789 | AU53: 105.6 | AV53: 0.9765772769 | AW53: 20.57122693 | AX53: 13.3457198 | AZ53: 97.65772769 | BA53: 1.024855292 | BB53: 1.265956251 | BC53: 0.6857075642 | BD53: 0.5802486869 | BE53: 0.13536 | BF53: 1.428543284 | BG53: 0.07936521281
A54: QrrBot | B54: =Qrr_Q2*1000000000 -> 0 | C54: nC | D54: Reverse Recovery Charge of Body Diode | G54: 45 | H54: 48 | I54: 1 | J54: 9 | K54: 9 | L54: 2.5 | M54: 0.2516306635 | N54: 4.806948214 | O54: 11.40347411 | P54: 6.596525893 | Q54: 0 | R54: 9.106347379 | S54: 0.3118001154 | T54: 0.7 | U54: 1.039832158 | V54: 1.387646423 | W54: 0.009627812972 | X54: 0.009627812972 | Y54: 3.951700182 | Z54: 0.03123186865 | AA54: 0.03123186865 | AB54: 4.567998942 | AC54: 0.1209428967 | AD54: 0.2211475971 | AE54: 0.3442176 | AF54: 0 | AG54: 0.6964152714 | AH54: 7.877750203 | AI54: 0.2263910432 | AJ54: 0.36 | AK54: 0.5988641718 | AL54: 0.08292556259 | AM54: 0.0384 | AN54: 0.09696 | AO54: 0.35552 | AP54: 0.29088 | AQ54: 0.13536 | AR54: 2.502784815 | AS54: 2.582402339 | AT54: 2.582402339 | AU54: 108 | AV54: 0.9766472578 | AW54: 20.89245814 | AX54: 13.77387595 | AZ54: 97.66472578 | BA54: 1.039832158 | BB54: 1.295279443 | BC54: 0.6964152714 | BD54: 0.5988641718 | BE54: 0.13536 | BF54: 1.459644618 | BG54: 0.08292556259
A55: TrrBot | B55: =Trr_Q2*1000000000 -> 40 | C55: ns | D55: Reverse Recovery Time of Body Diode | G55: 46 | H55: 48 | I55: 1 | J55: 9.2 | K55: 9.2 | L55: 2.555555556 | M55: 0.2516669084 | N55: 4.807384765 | O55: 11.60369238 | P55: 6.796307618 | Q55: 0 | R55: 9.304080414 | S55: 0.3254878305 | T55: 0.7 | U55: 1.055182435 | V55: 1.387772444 | W55: 0.009629561781 | X55: 0.009629561781 | Y55: 4.037699439 | Z55: 0.03260603352 | AA55: 0.03260603352 | AB55: 4.667523491 | AC55: 0.126270355 | AD55: 0.2260619882 | AE55: 0.3442176 | AF55: 0 | AG55: 0.7072667622 | AH55: 8.048610863 | AI55: 0.2363179391 | AJ55: 0.368 | AK55: 0.6177485654 | AL55: 0.08656591236 | AM55: 0.0384 | AN55: 0.09696 | AO55: 0.35552 | AP55: 0.29088 | AQ55: 0.13536 | AR55: 2.548281625 | AS55: 2.63299378 | AT55: 2.63299378 | AU55: 110.4 | AV55: 0.9767059715 | AW55: 21.21800287 | AX55: 14.208217 | AZ55: 97.67059715 | BA55: 1.055182435 | BB55: 1.325015328 | BC55: 0.7072667622 | BD55: 0.6177485654 | BE55: 0.13536 | BF55: 1.491245433 | BG55: 0.08656591236
A56: θJABot | B56: =ThetaJA_Q2 -> 23 | C56: °C/W | D56: Junction to Ambient Resistance | G56: 47 | H56: 48 | I56: 1 | J56: 9.4 | K56: 9.4 | L56: 2.611111111 | M56: 0.2517031537 | N56: 4.807821248 | O56: 11.80391062 | P56: 6.996089376 | Q56: 0 | R56: 9.50190834 | S56: 0.3394763455 | T56: 0.7 | U56: 1.070908721 | V56: 1.387898446 | W56: 0.00963131048 | X56: 0.00963131048 | Y56: 4.123748045 | Z56: 0.03401059588 | AA56: 0.03401059588 | AB56: 4.767109911 | AC56: 0.1317160527 | AD56: 0.2309763792 | AE56: 0.3442176 | AF56: 0 | AG56: 0.7182628415 | AH56: 8.219545315 | AI56: 0.2464622551 | AJ56: 0.376 | AK56: 0.6369037466 | AL56: 0.0902862621 | AM56: 0.0384 | AN56: 0.09696 | AO56: 0.35552 | AP56: 0.29088 | AQ56: 0.13536 | AR56: 2.594494895 | AS56: 2.684546529 | AT56: 2.684546529 | AU56: 112.8 | AV56: 0.9767540627 | AW56: 21.54788524 | AX56: 14.64878617 | AZ56: 97.67540627 | BA56: 1.070908721 | BB56: 1.355166588 | BC56: 0.7182628415 | BD56: 0.6369037466 | BE56: 0.13536 | BF56: 1.523351546 | BG56: 0.0902862621
G57: 48 | H57: 48 | I57: 1 | J57: 9.6 | K57: 9.6 | L57: 2.666666667 | M57: 0.2517393994 | N57: 4.808257664 | O57: 12.00412883 | P57: 7.195871168 | Q57: 0 | R57: 9.69982535 | S57: 0.3537656604 | T57: 0.7 | U57: 1.087013691 | V57: 1.388024428 | W57: 0.009633059069 | X57: 0.009633059069 | Y57: 4.209843483 | Z57: 0.0354455643 | AA57: 0.0354455643 | AB57: 4.8667553 | AC57: 0.1372800402 | AD57: 0.2358907702 | AE57: 0.3442176 | AF57: 0 | AG57: 0.7294043291 | AH57: 8.390548532 | AI57: 0.2568239594 | AJ57: 0.384 | AK57: 0.6563316348 | AL57: 0.09408661181 | AM57: 0.0384 | AN57: 0.09696 | AO57: 0.35552 | AP57: 0.29088 | AQ57: 0.13536 | AR57: 2.641424642 | AS57: 2.737069218 | AT57: 2.737069218 | AU57: 115.2 | AV57: 0.9767921211 | AW57: 21.88212987 | AX57: 15.0956276 | AZ57: 97.67921211 | BA57: 1.087013691 | BB57: 1.385735964 | BC57: 0.7294043291 | BD57: 0.6563316348 | BE57: 0.13536 | BF57: 1.555968916 | BG57: 0.09408661181
G58: 49 | H58: 48 | I58: 1 | J58: 9.8 | K58: 9.8 | L58: 2.722222222 | M58: 0.2517756453 | N58: 4.808694014 | O58: 12.20434701 | P58: 7.395652993 | Q58: 0 | R58: 9.8978261 | S58: 0.3683557753 | T58: 0.7 | U58: 1.103500091 | V58: 1.388150392 | W58: 0.009634807548 | X58: 0.009634807548 | Y58: 4.295983437 | Z58: 0.03691094738 | AA58: 0.03691094738 | AB58: 4.966456982 | AC58: 0.142962368 | AD58: 0.2408051613 | AE58: 0.3442176 | AF58: 0 | AG58: 0.7406920602 | AH58: 8.561615884 | AI58: 0.2674030204 | AJ58: 0.392 | AK58: 0.6760341901 | AL58: 0.09796696151 | AM58: 0.0384 | AN58: 0.09696 | AO58: 0.35552 | AP58: 0.29088 | AQ58: 0.13536 | AR58: 2.689070886 | AS58: 2.790570707 | AT58: 2.790570707 | AU58: 117.6 | AV58: 0.9768206871 | AW58: 22.2207618 | AX58: 15.54878637 | AZ58: 97.68206871 | BA58: 1.103500091 | BB58: 1.41672625 | BC58: 0.7406920602 | BD58: 0.6760341901 | BE58: 0.13536 | BF58: 1.589103655 | BG58: 0.09796696151
G59: 50 | H59: 48 | I59: 1 | J59: 10 | K59: 10 | L59: 2.777777778 | M59: 0.2518118917 | N59: 4.809130296 | O59: 12.40456515 | P59: 7.595434852 | Q59: 0 | R59: 10.09590566 | S59: 0.38324669 | T59: 0.7 | U59: 1.120370745 | V59: 1.388276335 | W59: 0.009636555917 | X59: 0.009636555917 | Y59: 4.382165771 | Z59: 0.0384067537 | AA59: 0.0384067537 | AB59: 5.066212495 | AC59: 0.1487630864 | AD59: 0.2457195523 | AE59: 0.3442176 | AF59: 0 | AG59: 0.7521268848 | AH59: 8.732743105 | AI59: 0.2781994062 | AJ59: 0.4 | AK59: 0.6960134139 | AL59: 0.1019273112 | AM59: 0.0384 | AN59: 0.09696 | AO59: 0.35552 | AP59: 0.29088 | AQ59: 0.13536 | AR59: 2.737433646 | AS59: 2.845060083 | AT59: 2.845060083 | AU59: 120 | AV59: 0.9768402565 | AW59: 22.56380654 | AX59: 16.00830852 | AZ59: 97.68402565 | BA59: 1.120370745 | BB59: 1.448140299 | BC59: 0.7521268848 | BD59: 0.6960134139 | BE59: 0.13536 | BF59: 1.622762027 | BG59: 0.1019273112
G60: 51 | H60: 48 | I60: 1 | J60: 10.2 | K60: 10.2 | L60: 2.833333333 | M60: 0.2518481384 | N60: 4.809566511 | O60: 12.60478326 | P60: 7.795216745 | Q60: 0 | R60: 10.29405949 | S60: 0.3984384047 | T60: 0.7 | U60: 1.137628553 | V60: 1.38840226 | W60: 0.009638304176 | X60: 0.009638304176 | Y60: 4.468388514 | Z60: 0.03993299182 | AA60: 0.03993299182 | AB60: 5.166019561 | AC60: 0.154682246 | AD60: 0.2506339434 | AE60: 0.3442176 | AF60: 0 | AG60: 0.7637096686 | AH60: 8.903926254 | AI60: 0.2892130852 | AJ60: 0.408 | AK60: 0.7162713495 | AL60: 0.1059676608 | AM60: 0.0384 | AN60: 0.09696 | AO60: 0.35552 | AP60: 0.29088 | AQ60: 0.13536 | AR60: 2.78651294 | AS60: 2.900546668 | AT60: 2.900546668 | AU60: 122.4 | AV60: 0.9768512848 | AW60: 22.91129006 | AX60: 16.47424104 | AZ60: 97.68512848 | BA60: 1.137628553 | BB60: 1.479981018 | BC60: 0.7637096686 | BD60: 0.7162713495 | BE60: 0.13536 | BF60: 1.656950454 | BG60: 0.1059676608
A61: Controller | B61: Input Value | C61: Units | D61: Std Units | G61: 52 | H61: 48 | I61: 1 | J61: 10.4 | K61: 10.4 | L61: 2.888888889 | M61: 0.2518843854 | N61: 4.810002659 | O61: 12.80500133 | P61: 7.994998671 | Q61: 0 | R61: 10.49228338 | S61: 0.4139309193 | T61: 0.7 | U61: 1.155276494 | V61: 1.388528165 | W61: 0.009640052325 | X61: 0.009640052325 | Y61: 4.55464984 | Z61: 0.04148967034 | AA61: 0.04148967034 | AB61: 5.265876077 | AC61: 0.1607198971 | AD61: 0.2555483344 | AE61: 0.3442176 | AF61: 0 | AG61: 0.775441293 | AH61: 9.075161685 | AI61: 0.3004440255 | AJ61: 0.416 | AK61: 0.7368100827 | AL61: 0.1100880105 | AM61: 0.0384 | AN61: 0.09696 | AO61: 0.35552 | AP61: 0.29088 | AQ61: 0.13536 | AR61: 2.836308787 | AS61: 2.957040021 | AT61: 2.957040021 | AU61: 124.8 | AV61: 0.9768541912 | AW61: 23.26323879 | AX61: 16.9466319 | AZ61: 97.68541912 | BA61: 1.155276494 | BB61: 1.512251376 | BC61: 0.775441293 | BD61: 0.7368100827 | BE61: 0.13536 | BF61: 1.691675517 | BG61: 0.1100880105
A62: θJA | B62: 23 | C62: °C/W | D62: Junction to Ambient Resistance | G62: 53 | H62: 48 | I62: 1 | J62: 10.6 | K62: 10.6 | L62: 2.944444444 | M62: 0.2519206327 | N62: 4.81043874 | O62: 13.00521937 | P62: 8.19478063 | Q62: 0 | R62: 10.69057342 | S62: 0.4297242339 | T62: 0.7 | U62: 1.173317627 | V62: 1.388654051 | W62: 0.009641800363 | X62: 0.009641800363 | Y62: 4.640948061 | Z62: 0.04307679781 | AA62: 0.04307679781 | AB62: 5.365780091 | AC62: 0.1668760903 | AD62: 0.2604627255 | AE62: 0.3442176 | AF62: 0 | AG62: 0.787322655 | AH62: 9.246446025 | AI62: 0.3118921954 | AJ62: 0.424 | AK62: 0.7576317427 | AL62: 0.1142883601 | AM62: 0.0384 | AN62: 0.09696 | AO62: 0.35552 | AP62: 0.29088 | AQ62: 0.13536 | AR62: 2.886821205 | AS62: 3.014549948 | AT62: 3.014549948 | AU62: 127.2 | AV62: 0.9768493617 | AW62: 23.61967965 | AX62: 17.42553008 | AZ62: 97.68493617 | BA62: 1.173317627 | BB62: 1.544954398 | BC62: 0.787322655 | BD62: 0.7576317427 | BE62: 0.13536 | BF62: 1.726943962 | BG62: 0.1142883601
A63: Theta JC | B63: 2 | C63: °C/W | D63: Junction to Ambient Resistance | G63: 54 | H63: 48 | I63: 1 | J63: 10.8 | K63: 10.8 | L63: 3 | M63: 0.2519568805 | N63: 4.810874754 | O63: 13.20543738 | P63: 8.394562623 | Q63: 0 | R63: 10.88892601 | S63: 0.4458183483 | T63: 0.7 | U63: 1.19175509 | V63: 1.388779917 | W63: 0.00964354829 | X63: 0.00964354829 | Y63: 4.727281609 | Z63: 0.04469438282 | AA63: 0.04469438282 | AB63: 5.465729796 | AC63: 0.173150876 | AD63: 0.2653771165 | AE63: 0.3442176 | AF63: 0 | AG63: 0.7993546678 | AH63: 9.417776142 | AI63: 0.3235575632 | AJ63: 0.432 | AK63: 0.7787385026 | AL63: 0.1185687097 | AM63: 0.0384 | AN63: 0.09696 | AO63: 0.35552 | AP63: 0.29088 | AQ63: 0.13536 | AR63: 2.938050214 | AS63: 3.073086503 | AT63: 3.073086503 | AU63: 129.6 | AV63: 0.9768371523 | AW63: 23.98064003 | AX63: 17.91098556 | AZ63: 97.68371523 | BA63: 1.19175509 | BB63: 1.57809317 | BC63: 0.7993546678 | BD63: 0.7787385026 | BE63: 0.13536 | BF63: 1.762762703 | BG63: 0.1185687097
G64: 55 | H64: 48 | I64: 1 | J64: 11 | K64: 11 | L64: 3.055555556 | M64: 0.2519931285 | N64: 4.811310701 | O64: 13.40565535 | P64: 8.59434465 | Q64: 0 | R64: 11.08733779 | S64: 0.4622132627 | T64: 0.7 | U64: 1.210592105 | V64: 1.388905764 | W64: 0.009645296108 | X64: 0.009645296108 | Y64: 4.813649028 | Z64: 0.04634243394 | AA64: 0.04634243394 | AB64: 5.565723513 | AC64: 0.1795443046 | AD64: 0.2702915076 | AE64: 0.3442176 | AF64: 0 | AG64: 0.8115382609 | AH64: 9.589149128 | AI64: 0.3354400971 | AJ64: 0.44 | AK64: 0.8001325797 | AL64: 0.1229290592 | AM64: 0.0384 | AN64: 0.09696 | AO64: 0.35552 | AP64: 0.29088 | AQ64: 0.13536 | AR64: 2.989995831 | AS64: 3.132659993 | AT64: 3.132659993 | AU64: 132 | AV64: 0.9768178914 | AW64: 24.34614783 | AX64: 18.40304933 | AZ64: 97.68178914 | BA64: 1.210592105 | BB64: 1.611670841 | BC64: 0.8115382609 | BD64: 0.8001325797 | BE64: 0.13536 | BF64: 1.799138829 | BG64: 0.1229290592
G65: 56 | H65: 48 | I65: 1 | J65: 11.2 | K65: 11.2 | L65: 3.111111111 | M65: 0.2520293769 | N65: 4.81174658 | O65: 13.60587329 | P65: 8.79412671 | Q65: 0 | R65: 11.28580563 | S65: 0.4789089769 | T65: 0.7 | U65: 1.229831978 | V65: 1.389031592 | W65: 0.009647043814 | X65: 0.009647043814 | Y65: 4.900048965 | Z65: 0.04802095972 | AA65: 0.04802095972 | AB65: 5.665759678 | AC65: 0.1860564265 | AD65: 0.2752058986 | AE65: 0.3442176 | AF65: 0 | AG65: 0.8238743799 | AH65: 9.760562281 | AI65: 0.3475397654 | AJ65: 0.448 | AK65: 0.821816237 | AL65: 0.1273694088 | AM65: 0.0384 | AN65: 0.09696 | AO65: 0.35552 | AP65: 0.29088 | AQ65: 0.13536 | AR65: 3.042658076 | AS65: 3.193280988 | AT65: 3.193280988 | AU65: 134.4 | AV65: 0.9767918828 | AW65: 24.7162314 | AX65: 18.90177345 | AZ65: 97.67918828 | BA65: 1.229831978 | BB65: 1.645690617 | BC65: 0.8238743799 | BD65: 0.821816237 | BE65: 0.13536 | BF65: 1.836079602 | BG65: 0.1273694088
A66: Outputs | G66: 57 | H66: 48 | I66: 1 | J66: 11.4 | K66: 11.4 | L66: 3.166666667 | M66: 0.2520656257 | N66: 4.812182393 | O66: 13.8060912 | P66: 8.993908803 | Q66: 0 | R66: 11.48432664 | S66: 0.4959054911 | T66: 0.7 | U66: 1.2494781 | V66: 1.3891574 | W66: 0.00964879141 | X66: 0.00964879141 | Y66: 4.986480158 | Z66: 0.04972996873 | AA66: 0.04972996873 | AB66: 5.765836838 | AC66: 0.1926872923 | AD66: 0.2801202897 | AE66: 0.3442176 | AF66: 0 | AG66: 0.8363639874 | AH66: 9.932013081 | AI66: 0.3598565362 | AJ66: 0.456 | AK66: 0.8437917832 | AL66: 0.1318897583 | AM66: 0.0384 | AN66: 0.09696 | AO66: 0.35552 | AP66: 0.29088 | AQ66: 0.13536 | AR66: 3.096036968 | AS66: 3.254960325 | AT66: 3.254960325 | AU66: 136.8 | AV66: 0.976759407 | AW66: 25.09091962 | AX66: 19.40721101 | AZ66: 97.6759407 | BA66: 1.2494781 | BB66: 1.680155771 | BC66: 0.8363639874 | BD66: 0.8437917832 | BE66: 0.13536 | BF66: 1.873592467 | BG66: 0.1318897583
A67: Design | B67: Value | C67: Units | G67: 58 | H67: 48 | I67: 1 | J67: 11.6 | K67: 11.6 | L67: 3.222222222 | M67: 0.2521018748 | N67: 4.812618139 | O67: 14.00630907 | P67: 9.193690931 | Q67: 0 | R67: 11.68289809 | S67: 0.5132028052 | T67: 0.7 | U67: 1.269533949 | V67: 1.389283189 | W67: 0.009650538895 | X67: 0.009650538895 | Y67: 5.072941432 | Z67: 0.05146946954 | AA67: 0.05146946954 | AB67: 5.865953636 | AC67: 0.1994369523 | AD67: 0.2850346807 | AE67: 0.3442176 | AF67: 0 | AG67: 0.8490080627 | AH67: 10.10349918 | AI67: 0.372390378 | AJ67: 0.464 | AK67: 0.8660615737 | AL67: 0.1364901078 | AM67: 0.0384 | AN67: 0.09696 | AO67: 0.35552 | AP67: 0.29088 | AQ67: 0.13536 | AR67: 3.150132524 | AS67: 3.317709112 | AT67: 3.317709112 | AU67: 139.2 | AV67: 0.9767207238 | AW67: 25.47024188 | AX67: 19.91941619 | AZ67: 97.67207238 | BA67: 1.269533949 | BB67: 1.715069636 | BC67: 0.8490080627 | BD67: 0.8660615737 | BE67: 0.13536 | BF67: 1.911685055 | BG67: 0.1364901078
A68: Dmax | B68: =D1_Vinmin -> 0.3333333333 | C68: index | G68: 59 | H68: 48 | I68: 1 | J68: 11.8 | K68: 11.8 | L68: 3.277777778 | M68: 0.2521381242 | N68: 4.813053817 | O68: 14.20652691 | P68: 9.393473091 | Q68: 0 | R68: 11.88151746 | S68: 0.5308009193 | T68: 0.7 | U68: 1.290003092 | V68: 1.389408958 | W68: 0.00965228627 | X68: 0.00965228627 | Y68: 5.159431689 | Z68: 0.05323947071 | AA68: 0.05323947071 | AB68: 5.966108807 | AC68: 0.2063054571 | AD68: 0.2899490718 | AE68: 0.3442176 | AF68: 0 | AG68: 0.8618076022 | AH68: 10.27501839 | AI68: 0.3851412588 | AJ68: 0.472 | AK68: 0.8886280114 | AL68: 0.1411704573 | AM68: 0.0384 | AN68: 0.09696 | AO68: 0.35552 | AP68: 0.29088 | AQ68: 0.13536 | AR68: 3.204944764 | AS68: 3.381538737 | AT68: 3.381538737 | AU68: 141.6 | AV68: 0.9766760736 | AW68: 25.85422807 | AX68: 20.43844426 | AZ68: 97.66760736 | BA68: 1.290003092 | BB68: 1.750435614 | BC68: 0.8618076022 | BD68: 0.8886280114 | BE68: 0.13536 | BF68: 1.950365187 | BG68: 0.1411704573
A69: Dprime | B69: =1-B68 -> 0.6666666667 | C69: index | G69: 60 | H69: 48 | I69: 1 | J69: 12 | K69: 12 | L69: 3.333333333 | M69: 0.252174374 | N69: 4.813489429 | O69: 14.40674471 | P69: 9.593255286 | Q69: 0 | R69: 12.0801824 | S69: 0.5486998332 | T69: 0.7 | U69: 1.310889186 | V69: 1.389534709 | W69: 0.009654033533 | X69: 0.009654033533 | Y69: 5.245949904 | Z69: 0.05503998078 | AA69: 0.05503998078 | AB69: 6.066301166 | AC69: 0.213292857 | AD69: 0.2948634628 | AE69: 0.3442176 | AF69: 0 | AG69: 0.8747636196 | AH69: 10.44656866 | AI69: 0.398109147 | AJ69: 0.48 | AK69: 0.9114935475 | AL69: 0.1459308067 | AM69: 0.0384 | AN69: 0.09696 | AO69: 0.35552 | AP69: 0.29088 | AQ69: 0.13536 | AR69: 3.260473707 | AS69: 3.446460872 | AT69: 3.446460872 | AU69: 144 | AV69: 0.9766256792 | AW69: 26.24290859 | AX69: 20.96435159 | AZ69: 97.66256792 | BA69: 1.310889186 | BB69: 1.786257167 | BC69: 0.8747636196 | BD69: 0.9114935475 | BE69: 0.13536 | BF69: 1.989640879 | BG69: 0.1459308067
A70: Ipp | B70: =Iripple_Vinnom -> 4.83287353 | C70: A | G70: 61 | H70: 48 | I70: 1 | J70: 12.2 | K70: 12.2 | L70: 3.388888889 | M70: 0.2522106242 | N70: 4.813924973 | O70: 14.60696249 | P70: 9.793037514 | Q70: 0 | R70: 12.27889067 | S70: 0.5668995471 | T70: 0.7 | U70: 1.33219598 | V70: 1.38966044 | W70: 0.009655780686 | X70: 0.009655780686 | Y70: 5.332495116 | Z70: 0.05687100832 | AA70: 0.05687100832 | AB70: 6.166529607 | AC70: 0.2203992026 | AD70: 0.2997778539 | AE70: 0.3442176 | AF70: 0 | AG70: 0.8878771462 | AH70: 10.61814808 | AI70: 0.4112940108 | AJ70: 0.488 | AK70: 0.9346606821 | AL70: 0.1507711561 | AM70: 0.0384 | AN70: 0.09696 | AO70: 0.35552 | AP70: 0.29088 | AQ70: 0.13536 | AR70: 3.31671937 | AS70: 3.512487484 | AT70: 3.512487484 | AU70: 146.4 | AV70: 0.9765697472 | AW70: 26.63631439 | AX70: 21.49719569 | AZ70: 97.65697472 | BA70: 1.33219598 | BB70: 1.822537828 | BC70: 0.8878771462 | BD70: 0.9346606821 | BE70: 0.13536 | BF70: 2.029520347 | BG70: 0.1507711561
A71: Top FET | B71: Value | C71: Units | G71: 62 | H71: 48 | I71: 1 | J71: 12.4 | K71: 12.4 | L71: 3.444444444 | M71: 0.2522468747 | N71: 4.81436045 | O71: 14.80718023 | P71: 9.992819775 | Q71: 0 | R71: 12.47764022 | S71: 0.5854000609 | T71: 0.7 | U71: 1.353927317 | V71: 1.389786151 | W71: 0.009657527727 | X71: 0.009657527727 | Y71: 5.419066427 | Z71: 0.05873256188 | AA71: 0.05873256188 | AB71: 6.266793094 | AC71: 0.2276245442 | AD71: 0.3046922449 | AE71: 0.3442176 | AF71: 0 | AG71: 0.9011492311 | AH71: 10.78975486 | AI71: 0.4246958184 | AJ71: 0.496 | AK71: 0.9581319652 | AL71: 0.1556915055 | AM71: 0.0384 | AN71: 0.09696 | AO71: 0.35552 | AP71: 0.29088 | AQ71: 0.13536 | AR71: 3.373681774 | AS71: 3.579630836 | AT71: 3.579630836 | AU71: 148.8 | AV71: 0.9765084689 | AW71: 27.03447693 | AX71: 22.0370352 | AZ71: 97.65084689 | BA71: 1.353927317 | BB71: 1.859281196 | BC71: 0.9011492311 | BD71: 0.9581319652 | BE71: 0.13536 | BF71: 2.070012013 | BG71: 0.1556915055
A72: Tr | B72: =(Qgd_Q1+Qgs_Q1/2)*(RdsonDRT+Rgate1)/(VCC-Vsp_Q1)*1000000000 -> 1.567741935 | C72: ns | D72: Turn on of MOSFET -> Rise time of current | G72: 63 | H72: 48 | I72: 1 | J72: 12.6 | K72: 12.6 | L72: 3.5 | M72: 0.2522831255 | N72: 4.81479586 | O72: 15.00739793 | P72: 10.19260207 | Q72: 0 | R72: 12.67642911 | S72: 0.6042013745 | T72: 0.7 | U72: 1.376087136 | V72: 1.389911843 | W72: 0.009659274657 | X72: 0.009659274657 | Y72: 5.505662994 | Z72: 0.06062465001 | AA72: 0.06062465001 | AB72: 6.367090655 | AC72: 0.2349689324 | AD72: 0.3096066359 | AE72: 0.3442176 | AF72: 0 | AG72: 0.9145809412 | AH72: 10.9613873 | AI72: 0.438314538 | AJ72: 0.504 | AK72: 0.9819099973 | AL72: 0.1606918549 | AM72: 0.0384 | AN72: 0.09696 | AO72: 0.35552 | AP72: 0.29088 | AQ72: 0.13536 | AR72: 3.431360936 | AS72: 3.647903502 | AT72: 3.647903502 | AU72: 151.2 | AV72: 0.976442022 | AW72: 27.43742824 | AX72: 22.58392994 | AZ72: 97.6442022 | BA72: 1.376087136 | BB72: 1.896490939 | BC72: 0.9145809412 | BD72: 0.9819099973 | BE72: 0.13536 | BF72: 2.111124511 | BG72: 0.1606918549
A73: Tf | B73: =(Qgd_Q1+Qgs_Q1/2)*(RdsonDRT2+Rgate1)/(Vsp_Q1)*1000000000 -> 0.9918367347 | C73: ns | D73: Turn off of MOSFET -> Fall time of current | G73: 64 | H73: =Vin -> 48 | I73: =MODE -> 1 | J73: 12.8 | K73: =Iout*G73/100/Number_of_Phases -> 12.8 | L73: =Vout*K73/(Vin*Efficiency) -> 3.555555556 | M73: =(Vout+(Rdson2+Rs+Rdcr)*K73)/(Vin+(Rs+Rdson2-Rdson1)*K73) -> 0.2523193767 | N73: =(Vin-(Rdson1+Rdcr)*K73-Vout)*M73/(Fsw*Lo) -> 4.815231204 | O73: 15.2076156 | P73: 10.3923844 | Q73: =IF(MIN(Vin, -P73/(Coss_Q1+Coss_Q2)*0.00000002)<0, 0, MIN(Vin, -P73/(Coss_Q1+Coss_Q2)*0.00000002)) -> 0 | R73: 12.8752555 | S73: =R73^2*Rdcr -> 0.6233034882 | T73: =Core_Loss -> 0.7 | U73: =(T73+S73*(1+Ltc*(Ta-25)))/(1-S73*Ltc*ThetaCA_Core) -> 1.398679471 | V73: 1.390037516 | W73: 0.009661021476 | X73: 0.009661021476 | Y73: 5.592284026 | Z73: 0.06254728125 | AA73: 0.06254728125 | AB73: 6.467421377 | AC73: =Rdson1*AB73^2 -> 0.2424324176 | AD73: =(Vin*K73/2)*Fsw*(Tr_buck+Tf_buck) -> 0.314521027 | AE73: =(0.5*Coss_Q1*(Vin-Q73)^2-0.5*Coss_Q2*(Vin-Q73)^2+(Qoss_Q2*(Vin-Q73)/Vin)*Vin)*Fsw -> 0.3442176 | AF73: =IF(K73>N73/2,0,ABS(K73-N73/2)*Vsd_Q1*Deadtime*Fsw) -> 0 | AG73: =(AF73+AE73+AD73+AC73*(1+RdsonTopTc*Ta-RdsonTopTc*25))/(1-AC73*RdsonTopTc*ThetaJA_Q1) -> 0.928173362 | AH73: =SQRT((1-M73))*SQRT(K73^2+(N73^2)/12) -> 11.13304384 | AI73: =Rdson2*AH73^2 -> 0.452150138 | AJ73: =IF(K73<N73/2,Deadtime*Fsw*Vsd_Q2*(K73+N73/2),2*Deadtime*Fsw*Vsd_Q2*K73) -> 0.512 | AK73: =(AJ73+AI73*(1+RdsonBotTc*Ta-RdsonBotTc*25))/(1-AI73*RdsonBotTc*ThetaJA_Q2) -> 1.005997431 | AL73: =CHOOSE(SENSING_TYPE, R73^2*Rs, 0) -> 0.1657722043 | AM73: =IF(Ext_BIAS=1, 0.0008*Vin, 0.002*Vin) -> 0.0384 | AN73: =IF(Ext_BIAS=1, (Qg_Q1+Qg_Q2)*Fsw*Vout, (Qg_Q1+Qg_Q2)*Fsw*Vin) -> 0.09696 | AO73: =(Vin-VCC)*Fsw*(Qg_Q1+Qg_Q2) -> 0.35552 | AP73: =(Qg_Q1+Qg_Q2)*Fsw*(Vin-Vout) -> 0.29088 | AQ73: 0.13536 | AR73: 3.489756875 | AS73: =U73 + AL73 + ((AF73+AE73+AD73+AC73*(1+RdsonTC*(Ta-25))) + (AJ73+AI73*(1+RdsonTC*(Ta-25))) + AQ73) / (1-AC73*RdsonTC*ThetaJA_Q1 -AI73*RdsonTC*ThetaJA_Q2) -> 3.717318365 | AT73: 3.717318365 | AU73: =Vout*K73 -> 153.6 | AV73: 0.9763705713 | AW73: =ThetaJA_Q1*BC73 -> 27.84520086 | AX73: =ThetaJA_Q2*BD73 -> 23.13794091 | AZ73: 97.63705713 | BA73: =U73 -> 1.398679471 | BB73: 1.934170793 | BC73: =AG73 -> 0.928173362 | BD73: =AK73 -> 1.005997431 | BE73: 0.13536 | BF73: 2.152866689 | BG73: 0.1657722043
A74: Part Power | B74: Value | C74: Units | G74: 65 | H74: 48 | I74: 1 | J74: =Iout*G74/100 -> 13 | K74: 13 | L74: 3.611111111 | M74: 0.2523556282 | N74: 4.81566648 | O74: =K74+N74/2 -> 15.40783324 | P74: =K74-N74/2 -> 10.59216676 | Q74: 0 | R74: =SQRT(K74^2+(N74^2)/12) -> 13.0741177 | S74: 0.6427064017 | T74: 0.7 | U74: 1.42170846 | V74: =N74/SQRT(12) -> 1.390163169 | W74: =RCoutEsr*V74^2 -> 0.009662768184 | X74: =W74 -> 0.009662768184 | Y74: =SQRT(M74*(1-M74))*SQRT(K74^2+(N74^2)/12) -> 5.678928779 | Z74: =RCinEsr*Y74^2 -> 0.06450046416 | AA74: =Z74 -> 0.06450046416 | AB74: =SQRT(M74)*SQRT(K74^2+(N74^2)/12) -> 6.567784403 | AC74: 0.2500150502 | AD74: 0.319435418 | AE74: 0.3442176 | AF74: 0 | AG74: 0.9419275973 | AH74: 11.30472298 | AI74: 0.4662025866 | AJ74: 0.52 | AK74: 1.03039697 | AL74: 0.1709325536 | AM74: 0.0384 | AN74: 0.09696 | AO74: 0.35552 | AP74: 0.29088 | AQ74: 0.13536 | AR74: =SUM(S74,T74,AC74,AD74,AE74,AF74,AI74,AJ74,AQ74, AL74) -> 3.54886961 | AS74: 3.787888632 | AT74: =AS74 -> 3.787888632 | AU74: 156 | AV74: =AU74/(AU74+AT74) -> 0.9762942695 | AW74: 28.25782792 | AX74: 23.69913031 | AZ74: =AV74*100 -> 97.62942695 | BA74: 1.42170846 | BB74: =AG74+AK74 -> 1.972324567 | BC74: 0.9419275973 | BD74: 1.03039697 | BE74: =AQ74 -> 0.13536 | BF74: =AS74-BA74-BG74 -> 2.195247619 | BG74: =AL74 -> 0.1709325536
A75: Power Dis | B75: =AQ9 -> 0.13536 | C75: W | G75: 66 | H75: 48 | I75: 1 | J75: 13.2 | K75: 13.2 | L75: 3.666666667 | M75: 0.2523918801 | N75: 4.816101688 | O75: 15.60805084 | P75: 10.79194916 | Q75: 0 | R75: 13.27301409 | S75: 0.6624101151 | T75: 0.7 | U75: 1.445178338 | V75: 1.390288803 | W75: 0.009664514781 | X75: 0.009664514781 | Y75: 5.765596555 | Z75: 0.06648420727 | AA75: 0.06648420727 | AB75: 6.668178927 | AC75: 0.2577168807 | AD75: 0.3243498091 | AE75: 0.3442176 | AF75: 0 | AG75: 0.9558447697 | AH75: 11.47642334 | AI75: 0.480471852 | AJ75: 0.528 | AK75: 1.055111373 | AL75: 0.176172903 | AM75: 0.0384 | AN75: 0.09696 | AO75: 0.35552 | AP75: 0.29088 | AQ75: =SUM(AM75:AN75) -> 0.13536 | AR75: 3.60869916 | AS75: 3.859627841 | AT75: 3.859627841 | AU75: 158.4 | AV75: 0.9762132584 | AW75: 28.67534309 | AX75: 24.26756158 | AZ75: 97.62132584 | BA75: 1.445178338 | BB75: 2.010956143 | BC75: 0.9558447697 | BD75: 1.055111373 | BE75: 0.13536 | BF75: 2.238276601 | BG75: 0.176172903
A76: Temp rise | B76: =B75*B62 -> 3.11328 | C76: °C | G76: 67 | H76: 48 | I76: 1 | J76: 13.4 | K76: 13.4 | L76: 3.722222222 | M76: 0.2524281323 | N76: 4.81653683 | O76: 15.80826842 | P76: 10.99173158 | Q76: 0 | R76: 13.47194315 | S76: 0.6824146285 | T76: 0.7 | U76: 1.469093446 | V76: 1.390414418 | W76: 0.009666261266 | X76: 0.009666261266 | Y76: 5.852286695 | Z76: 0.06849851913 | AA76: 0.06849851913 | AB76: 6.768604191 | AC76: 0.2655379596 | AD76: 0.3292642001 | AE76: 0.3442176 | AF76: 0 | AG76: 0.969926021 | AH76: 11.64814361 | AI76: 0.4949579024 | AJ76: 0.536 | AK76: 1.080143452 | AL76: 0.1814932523 | AM76: 0.0384 | AN76: 0.09696 | AO76: 0.35552 | AP76: 0.29088 | AQ76: 0.13536 | AR76: 3.669245543 | AS76: 3.932549867 | AT76: 3.932549867 | AU76: 160.8 | AV76: 0.9761276695 | AW76: 29.09778063 | AX76: 24.84329939 | AZ76: 97.61276695 | BA76: 1.469093446 | BB76: 2.050069473 | BC76: 0.969926021 | BD76: 1.080143452 | BE76: 0.13536 | BF76: 2.281963168 | BG76: 0.1814932523
A77: Current (switching) | B77: =(Qg_Q1+Qg_Q2)*Fsw+Iq -> 0.01008 | C77: A | G77: 68 | H77: 48 | I77: 1 | J77: 13.6 | K77: 13.6 | L77: 3.777777778 | M77: 0.2524643849 | N77: 4.816971905 | O77: 16.00848595 | P77: 11.19151405 | Q77: 0 | R77: 13.67090346 | S77: 0.7027199417 | T77: 0.7 | U77: 1.493458232 | V77: 1.390540013 | W77: 0.009668007639 | X77: 0.009668007639 | Y77: 5.93899858 | Z77: 0.07054340826 | AA77: 0.07054340826 | AB77: 6.869059481 | AC77: 0.2734783374 | AD77: 0.3341785912 | AE77: 0.3442176 | AF77: 0 | AG77: 0.984172512 | AH77: 11.81988254 | AI77: 0.5096607061 | AJ77: 0.544 | AK77: 1.105496074 | AL77: 0.1868936015 | AM77: 0.0384 | AN77: 0.09696 | AO77: 0.35552 | AP77: 0.29088 | AQ77: 0.13536 | AR77: 3.730508778 | AS77: 4.00666893 | AT77: 4.00666893 | AU77: 163.2 | AV77: 0.9760376248 | AW77: 29.52517536 | AX77: 25.4264097 | AZ77: 97.60376248 | BA77: 1.493458232 | BB77: 2.089668586 | BC77: 0.984172512 | BD77: 1.105496074 | BE77: 0.13536 | BF77: 2.326317097 | BG77: 0.1868936015
A78: Qrr Current | B78: =Qrr_Q2*Fsw -> 0 | C78: A | G78: 69 | H78: 48 | I78: 1 | J78: 13.8 | K78: 13.8 | L78: 3.833333333 | M78: 0.2525006378 | N78: 4.817406913 | O78: 16.20870346 | P78: 11.39129654 | Q78: 0 | R78: 13.86989368 | S78: 0.7233260549 | T78: 0.7 | U78: 1.518277248 | V78: 1.390665589 | W78: 0.009669753901 | X78: 0.009669753901 | Y78: 6.025731624 | Z78: 0.07261888322 | AA78: 0.07261888322 | AB78: 6.969544122 | AC78: 0.2815380644 | AD78: 0.3390929822 | AE78: 0.3442176 | AF78: 0 | AG78: 0.9985854235 | AH78: 11.99163898 | AI78: 0.5245802313 | AJ78: 0.552 | AK78: 1.131172162 | AL78: 0.1923739508 | AM78: 0.0384 | AN78: 0.09696 | AO78: 0.35552 | AP78: 0.29088 | AQ78: 0.13536 | AR78: 3.792488884 | AS78: 4.081999607 | AT78: 4.081999607 | AU78: 165.6 | AV78: 0.9759432373 | AW78: 29.95756271 | AX78: 26.01695973 | AZ78: 97.59432373 | BA78: 1.518277248 | BB78: 2.129757586 | BC78: 0.9985854235 | BD78: 1.131172162 | BE78: 0.13536 | BF78: 2.371348409 | BG78: 0.1923739508
A79: Diode Current | B79: =Deadtime*Fsw*(Iripple_Vinnom/2)*(Vsd_Q2)/Vin -> 0.001006848652 | G79: 70 | H79: 48 | I79: 1 | J79: 14 | K79: 14 | L79: 3.888888889 | M79: 0.2525368911 | N79: 4.817841853 | O79: 16.40892093 | P79: 11.59107907 | Q79: 0 | R79: 14.06891254 | S79: 0.744232968 | T79: 0.7 | U79: 1.543555159 | V79: 1.390791145 | W79: 0.009671500052 | X79: 0.009671500052 | Y79: 6.112485277 | Z79: 0.07472495253 | AA79: 0.07472495253 | AB79: 7.07005748 | AC79: 0.2897171912 | AD79: 0.3440073733 | AE79: 0.3442176 | AF79: 0 | AG79: 1.013165956 | AH79: 12.16341183 | AI79: 0.5397164463 | AJ79: 0.56 | AK79: 1.157174698 | AL79: 0.1979343 | AM79: 0.0384 | AN79: 0.09696 | AO79: 0.35552 | AP79: 0.29088 | AQ79: 0.13536 | AR79: 3.855185879 | AS79: 4.15855684 | AT79: 4.15855684 | AU79: 168 | AV79: 0.9758446114 | AW79: 30.39497868 | AX79: 26.61501806 | AZ79: 97.58446114 | BA79: 1.543555159 | BB79: 2.170340654 | BC79: 1.013165956 | BD79: 1.157174698 | BE79: 0.13536 | BF79: 2.417067381 | BG79: 0.1979343
A80: Total | B80: =SUM(B77:B79) -> 0.01108684865 | C80: A | G80: 71 | H80: 48 | I80: 1 | J80: 14.2 | K80: 14.2 | L80: 3.944444444 | M80: 0.2525731447 | N80: 4.818276727 | O80: 16.60913836 | P80: 11.79086164 | Q80: 0 | R80: 14.26795883 | S80: 0.7654406811 | T80: 0.7 | U80: 1.569296741 | V80: 1.390916683 | W80: 0.00967324609 | X80: 0.00967324609 | Y80: 6.199259017 | Z80: 0.07686162472 | AA80: 0.07686162472 | AB80: 7.170598952 | AC80: 0.2980157682 | AD80: 0.3489217643 | AE80: 0.3442176 | AF80: 0 | AG80: 1.02791533 | AH80: 12.33520003 | AI80: 0.5550693192 | AJ80: 0.568 | AK80: 1.18350672 | AL80: 0.2035746492 | AM80: 0.0384 | AN80: 0.09696 | AO80: 0.35552 | AP80: 0.29088 | AQ80: 0.13536 | AR80: 3.918599782 | AS80: 4.236355943 | AT80: 4.236355943 | AU80: 170.4 | AV80: 0.9757418441 | AW80: 30.83745989 | AX80: 27.22065456 | AZ80: 97.57418441 | BA80: 1.569296741 | BB80: 2.21142205 | BC80: 1.02791533 | BD80: 1.18350672 | BE80: 0.13536 | BF80: 2.463484553 | BG80: 0.2035746492
G81: 72 | H81: 48 | I81: 1 | J81: 14.4 | K81: 14.4 | L81: 4 | M81: 0.2526093987 | N81: 4.818711533 | O81: 16.80935577 | P81: 11.99064423 | Q81: 0 | R81: 14.46703143 | S81: 0.786949194 | T81: 0.7 | U81: 1.595506888 | V81: 1.3910422 | W81: 0.009674992017 | X81: 0.009674992017 | Y81: 6.286052351 | Z81: 0.07902890833 | AA81: 0.07902890833 | AB81: 7.271167973 | AC81: 0.3064338459 | AD81: 0.3538361554 | AE81: 0.3442176 | AF81: 0 | AG81: 1.042834786 | AH81: 12.50700263 | AI81: 0.5706388185 | AJ81: 0.576 | AK81: 1.210171326 | AL81: 0.2092949984 | AM81: 0.0384 | AN81: 0.09696 | AO81: 0.35552 | AP81: 0.29088 | AQ81: 0.13536 | AR81: 3.982730612 | AS81: 4.315412617 | AT81: 4.315412617 | AU81: 172.8 | AV81: 0.9756350249 | AW81: 31.28504358 | AX81: 27.8339405 | AZ81: 97.56350249 | BA81: 1.595506888 | BB81: 2.253006112 | BC81: =AG81 -> 1.042834786 | BD81: =AK81 -> 1.210171326 | BE81: 0.13536 | BF81: 2.51061073 | BG81: 0.2092949984
G82: 73 | H82: 48 | I82: 1 | J82: 14.6 | K82: 14.6 | L82: 4.055555556 | M82: 0.252645653 | N82: 4.819146272 | O82: 17.00957314 | P82: 12.19042686 | Q82: 0 | R82: 14.66612926 | S82: 0.8087585068 | T82: 0.7 | U82: 1.622190608 | V82: 1.391167699 | W82: 0.009676737832 | X82: 0.009676737832 | Y82: 6.372864814 | Z82: 0.08122681187 | AA82: 0.08122681187 | AB82: 7.371764005 | AC82: 0.3149714747 | AD82: 0.3587505464 | AE82: 0.3442176 | AF82: 0 | AG82: 1.057925587 | AH82: 12.67881868 | AI82: 0.5864249122 | AJ82: 0.584 | AK82: 1.237171675 | AL82: 0.2150953476 | AM82: 0.0384 | AN82: 0.09696 | AO82: 0.35552 | AP82: 0.29088 | AQ82: 0.13536 | AR82: 4.047578388 | AS82: 4.395742954 | AT82: 4.395742954 | AU82: 175.2 | AV82: 0.9755242364 | AW82: 31.73776761 | AX82: 28.45494852 | AZ82: 97.55242364 | BA82: 1.622190608 | BB82: 2.295097262 | BC82: =AG82 -> 1.057925587 | BD82: =AK82 -> 1.237171675 | BE82: 0.13536 | BF82: 2.558456999 | BG82: 0.2150953476
G83: 74 | H83: 48 | I83: 1 | J83: 14.8 | K83: 14.8 | L83: 4.111111111 | M83: 0.2526819076 | N83: 4.819580945 | O83: 17.20979047 | P83: 12.39020953 | Q83: 0 | R83: 14.86525132 | S83: 0.8308686196 | T83: 0.7 | U83: 1.64935303 | V83: 1.391293178 | W83: 0.009678483534 | X83: 0.009678483534 | Y83: 6.459695964 | Z83: 0.08345534388 | AA83: 0.08345534388 | AB83: 7.472386539 | AC83: 0.3236287052 | AD83: 0.3636649375 | AE83: 0.3442176 | AF83: 0 | AG83: 1.073189015 | AH83: 12.8506473 | AI83: 0.6024275686 | AJ83: 0.592 | AK83: 1.264510986 | AL83: 0.2209756967 | AM83: 0.0384 | AN83: 0.09696 | AO83: 0.35552 | AP83: 0.29088 | AQ83: 0.13536 | AR83: 4.113143128 | AS83: 4.477363453 | AT83: 4.477363453 | AU83: 177.6 | AV83: 0.9754095547 | AW83: 32.19567046 | AX83: 29.08375268 | AZ83: 97.54095547 | BA83: 1.64935303 | BB83: 2.337700001 | BC83: 1.073189015 | BD83: 1.264510986 | BE83: 0.13536 | BF83: 2.607034726 | BG83: 0.2209756967
G84: 75 | H84: 48 | I84: 1 | J84: 15 | K84: 15 | L84: 4.166666667 | M84: 0.2527181626 | N84: 4.82001555 | O84: 17.41000777 | P84: 12.58999223 | Q84: 0 | R84: 15.06439663 | S84: 0.8532795323 | T84: 0.7 | U84: 1.676999406 | V84: 1.391418638 | W84: 0.009680229125 | X84: 0.009680229125 | Y84: 6.546545382 | Z84: 0.08571451287 | AA84: 0.08571451287 | AB84: 7.573035094 | AC84: 0.3324055877 | AD84: 0.3685793285 | AE84: 0.3442176 | AF84: 0 | AG84: 1.088626375 | AH84: 13.02248768 | AI84: 0.6186467559 | AJ84: 0.6 | AK84: 1.292192543 | AL84: 0.2269360458 | AM84: 0.0384 | AN84: 0.09696 | AO84: 0.35552 | AP84: 0.29088 | AQ84: 0.13536 | AR84: 4.17942485 | AS84: 4.560291026 | AT84: 4.560291026 | AU84: 180 | AV84: 0.9752910499 | AW84: 32.65879125 | AX84: 29.72042848 | AZ84: 97.52910499 | BA84: 1.676999406 | BB84: 2.380818918 | BC84: 1.088626375 | BD84: 1.292192543 | BE84: 0.13536 | BF84: 2.656355574 | BG84: 0.2269360458
G85: 76 | H85: 48 | I85: 1 | J85: 15.2 | K85: 15.2 | L85: 4.222222222 | M85: 0.252754418 | N85: 4.820450088 | O85: 17.61022504 | P85: 12.78977496 | Q85: 0 | R85: 15.26356429 | S85: 0.8759912449 | T85: 0.7 | U85: 1.705135114 | V85: 1.391544078 | W85: 0.009681974604 | X85: 0.009681974604 | Y85: 6.633412673 | Z85: 0.08800432737 | AA85: 0.08800432737 | AB85: 7.673709214 | AC85: 0.3413021727 | AD85: 0.3734937196 | AE85: 0.3442176 | AF85: 0 | AG85: 1.104238992 | AH85: 13.19433901 | AI85: 0.6350824425 | AJ85: 0.608 | AK85: 1.32021969 | AL85: 0.2329763949 | AM85: 0.0384 | AN85: 0.09696 | AO85: 0.35552 | AP85: 0.29088 | AQ85: 0.13536 | AR85: 4.246423575 | AS85: 4.644543014 | AT85: 4.644543014 | AU85: 182.4 | AV85: 0.9751687863 | AW85: 33.12716977 | AX85: 30.36505288 | AZ85: 97.51687863 | BA85: 1.705135114 | BB85: 2.424458683 | BC85: 1.104238992 | BD85: 1.32021969 | BE85: 0.13536 | BF85: 2.706431505 | BG85: 0.2329763949
G86: 77 | H86: 48 | I86: 1 | J86: 15.4 | K86: 15.4 | L86: 4.277777778 | M86: 0.2527906737 | N86: 4.820884559 | O86: 17.81044228 | P86: 12.98955772 | Q86: 0 | R86: 15.46275344 | S86: 0.8990037574 | T86: 0.7 | U86: 1.73376566 | V86: 1.391669499 | W86: 0.00968371997 | X86: 0.00968371997 | Y86: 6.720297459 | Z86: 0.09032479589 | AA86: 0.09032479589 | AB86: 7.774408466 | AC86: 0.3503185108 | AD86: 0.3784081106 | AE86: 0.3442176 | AF86: 0 | AG86: 1.120028215 | AH86: 13.36620054 | AI86: 0.6517345964 | AJ86: 0.616 | AK86: 1.34859584 | AL86: 0.239096744 | AM86: 0.0384 | AN86: 0.09696 | AO86: 0.35552 | AP86: 0.29088 | AQ86: 0.13536 | AR86: 4.314139319 | AS86: 4.730137197 | AT86: 4.730137197 | AU86: 184.8 | AV86: 0.9750428229 | AW86: 33.60084646 | AX86: 31.01770433 | AZ86: 97.50428229 | BA86: 1.73376566 | BB86: 2.468624056 | BC86: 1.120028215 | BD86: 1.34859584 | BE86: 0.13536 | BF86: 2.757274792 | BG86: 0.239096744
G87: 78 | H87: 48 | I87: 1 | J87: 15.6 | K87: 15.6 | L87: 4.333333333 | M87: 0.2528269297 | N87: 4.821318963 | O87: 18.01065948 | P87: 13.18934052 | Q87: 0 | R87: 15.66196326 | S87: 0.9223170698 | T87: 0.7 | U87: 1.762896681 | V87: 1.3917949 | W87: 0.009685465224 | X87: 0.009685465224 | Y87: 6.807199385 | Z87: 0.09267592694 | AA87: 0.09267592694 | AB87: 7.875132437 | AC87: 0.3594546524 | AD87: 0.3833225016 | AE87: 0.3442176 | AF87: 0 | AG87: 1.135995414 | AH87: 13.53807158 | AI87: 0.668603186 | AJ87: 0.624 | AK87: 1.377324471 | AL87: 0.245297093 | AM87: 0.0384 | AN87: 0.09696 | AO87: 0.35552 | AP87: 0.29088 | AQ87: 0.13536 | AR87: 4.382572103 | AS87: 4.817091802 | AT87: 4.817091802 | AU87: 187.2 | AV87: 0.9749132134 | AW87: 34.07986243 | AX87: 31.67846283 | AZ87: 97.49132134 | BA87: 1.762896681 | BB87: 2.513319885 | BC87: 1.135995414 | BD87: 1.377324471 | BE87: 0.13536 | BF87: 2.808898027 | BG87: 0.245297093
G88: 79 | H88: 48 | I88: 1 | J88: 15.8 | K88: 15.8 | L88: 4.388888889 | M88: 0.2528631861 | N88: 4.821753299 | O88: 18.21087665 | P88: 13.38912335 | Q88: 0 | R88: 15.86119296 | S88: 0.9459311822 | T88: 0.7 | U88: 1.792533948 | V88: 1.391920283 | W88: 0.009687210366 | X88: 0.009687210366 | Y88: 6.89411811 | Z88: 0.09505772904 | AA88: 0.09505772904 | AB88: 7.975880739 | AC88: 0.3687106479 | AD88: 0.3882368927 | AE88: 0.3442176 | AF88: 0 | AG88: 1.152141983 | AH88: 13.70995144 | AI88: 0.6856881795 | AJ88: 0.632 | AK88: 1.406409126 | AL88: 0.2515774421 | AM88: 0.0384 | AN88: 0.09696 | AO88: 0.35552 | AP88: 0.29088 | AQ88: 0.13536 | AR88: 4.451721944 | AS88: 4.905425522 | AT88: 4.905425522 | AU88: 189.6 | AV88: 0.9747800067 | AW88: 34.56425948 | AX88: 32.3474099 | AZ88: 97.47800067 | BA88: 1.792533948 | BB88: 2.558551109 | BC88: 1.152141983 | BD88: 1.406409126 | BE88: 0.13536 | BF88: 2.861314132 | BG88: 0.2515774421
G89: 80 | H89: 48 | I89: 1 | J89: 16 | K89: 16 | L89: 4.444444444 | M89: 0.2528994429 | N89: 4.822187569 | O89: 18.41109378 | P89: 13.58890622 | Q89: 0 | R89: 16.06044181 | S89: 0.9698460945 | T89: 0.7 | U89: 1.822683369 | V89: 1.392045645 | W89: 0.009688955396 | X89: 0.009688955396 | Y89: 6.981053312 | Z89: 0.09747021069 | AA89: 0.09747021069 | AB89: 8.076652998 | AC89: 0.3780865479 | AD89: 0.3931512837 | AE89: 0.3442176 | AF89: 0 | AG89: 1.168469336 | AH89: 13.88183948 | AI89: 0.7029895452 | AJ89: 0.64 | AK89: 1.43585342 | AL89: 0.2579377911 | AM89: 0.0384 | AN89: 0.09696 | AO89: 0.35552 | AP89: 0.29088 | AQ89: 0.13536 | AR89: 4.521588862 | AS89: 4.995157526 | AT89: 4.995157526 | AU89: 192 | AV89: 0.9746432471 | AW89: 35.05408008 | AX89: 33.02462866 | AZ89: 97.46432471 | BA89: 1.822683369 | BB89: 2.604322756 | BC89: 1.168469336 | BD89: 1.43585342 | BE89: 0.13536 | BF89: 2.914536367 | BG89: 0.2579377911
G90: 81 | H90: 48 | I90: 1 | J90: 16.2 | K90: 16.2 | L90: 4.5 | M90: 0.2529356999 | N90: 4.822621771 | O90: 18.61131089 | P90: 13.78868911 | Q90: 0 | R90: 16.2597091 | S90: 0.9940618066 | T90: 0.7 | U90: 1.853350993 | V90: 1.392170989 | W90: 0.009690700313 | X90: 0.009690700313 | Y90: 7.068004684 | Z90: 0.09991338041 | AA90: 0.09991338041 | AB90: 8.177448863 | AC90: 0.3875824028 | AD90: 0.3980656748 | AE90: 0.3442176 | AF90: 0 | AG90: 1.184978915 | AH90: 14.0537351 | AI90: 0.7205072511 | AJ90: 0.648 | AK90: 1.465661036 | AL90: 0.2643781401 | AM90: 0.0384 | AN90: 0.09696 | AO90: 0.35552 | AP90: 0.29088 | AQ90: 0.13536 | AR90: 4.592172875 | AS90: 5.086307473 | AT90: 5.086307473 | AU90: 194.4 | AV90: 0.9745029745 | AW90: 35.54936744 | AX90: 33.71020384 | AZ90: 97.45029745 | BA90: 1.853350993 | BB90: 2.650639951 | BC90: 1.184978915 | BD90: 1.465661036 | BE90: 0.13536 | BF90: 2.96857834 | BG90: 0.2643781401
G91: 82 | H91: 48 | I91: 1 | J91: 16.4 | K91: 16.4 | L91: 4.555555556 | M91: 0.2529719574 | N91: 4.823055907 | O91: 18.81152795 | P91: 13.98847205 | Q91: 0 | R91: 16.45899417 | S91: 1.018578319 | T91: 0.7 | U91: 1.884543014 | V91: 1.392296313 | W91: 0.009692445117 | X91: 0.009692445117 | Y91: 7.154971932 | Z91: 0.1023872467 | AA91: 0.1023872467 | AB91: 8.278267996 | AC91: 0.397198263 | AD91: 0.4029800658 | AE91: 0.3442176 | AF91: 0 | AG91: 1.201672181 | AH91: 14.2256377 | AI91: 0.7382412657 | AJ91: 0.656 | AK91: 1.495835731 | AL91: 0.270898489 | AM91: 0.0384 | AN91: 0.09696 | AO91: 0.35552 | AP91: 0.29088 | AQ91: 0.13536 | AR91: 4.663474002 | AS91: 5.178895524 | AT91: 5.178895524 | AU91: 196.8 | AV91: 0.9743592245 | AW91: 36.05016544 | AX91: 34.40422181 | AZ91: 97.43592245 | BA91: 1.884543014 | BB91: 2.697507912 | BC91: 1.201672181 | BD91: 1.495835731 | BE91: 0.13536 | BF91: 3.023454021 | BG91: 0.270898489
G92: 83 | H92: 48 | I92: 1 | J92: 16.6 | K92: 16.6 | L92: 4.611111111 | M92: 0.2530082151 | N92: 4.823489975 | O92: 19.01174499 | P92: 14.18825501 | Q92: 0 | R92: 16.65829637 | S92: 1.043395631 | T92: 0.7 | U92: 1.916265772 | V92: 1.392421618 | W92: 0.009694189808 | X92: 0.009694189808 | Y92: 7.24195478 | Z92: 0.1048918181 | AA92: 0.1048918181 | AB92: 8.379110078 | AC92: 0.4069341791 | AD92: 0.4078944569 | AE92: 0.3442176 | AF92: 0 | AG92: 1.218550624 | AH92: 14.39754674 | AI92: 0.7561915571 | AJ92: 0.664 | AK92: 1.526381331 | AL92: 0.277498838 | AM92: 0.0384 | AN92: 0.09696 | AO92: 0.35552 | AP92: 0.29088 | AQ92: 0.13536 | AR92: 4.735492262 | AS92: 5.27294236 | AT92: 5.27294236 | AU92: 199.2 | AV92: 0.9742120287 | AW92: 36.55651871 | AX92: 35.10677062 | AZ92: 97.42120287 | BA92: 1.916265772 | BB92: 2.744931955 | BC92: 1.218550624 | BD92: 1.526381331 | BE92: 0.13536 | BF92: 3.079177749 | BG92: 0.277498838
G93: 84 | H93: 48 | I93: 1 | J93: 16.8 | K93: 16.8 | L93: 4.666666667 | M93: 0.2530444733 | N93: 4.823923976 | O93: 19.21196199 | P93: 14.38803801 | Q93: 0 | R93: 16.8576151 | S93: 1.068513743 | T93: 0.7 | U93: 1.948525758 | V93: 1.392546903 | W93: 0.009695934387 | X93: 0.009695934387 | Y93: 7.328952961 | Z93: 0.107427103 | AA93: 0.107427103 | AB93: 8.479974803 | AC93: 0.4167902015 | AD93: 0.4128088479 | AE93: 0.3442176 | AF93: 0 | AG93: 1.235615754 | AH93: 14.5694617 | AI93: 0.7743580935 | AJ93: 0.672 | AK93: 1.55730174 | AL93: 0.2841791869 | AM93: 0.0384 | AN93: 0.09696 | AO93: 0.35552 | AP93: 0.29088 | AQ93: 0.13536 | AR93: 4.808227672 | AS93: 5.368469193 | AT93: 5.368469193 | AU93: 201.6 | AV93: 0.9740614152 | AW93: 37.06847262 | AX93: 35.81794003 | AZ93: 97.40614152 | BA93: 1.948525758 | BB93: 2.792917495 | BC93: 1.235615754 | BD93: 1.55730174 | BE93: 0.13536 | BF93: 3.135764247 | BG93: 0.2841791869
G94: 85 | H94: 48 | I94: 1 | J94: 17 | K94: 17 | L94: 4.722222222 | M94: 0.2530807317 | N94: 4.82435791 | O94: 19.41217896 | P94: 14.58782104 | Q94: 0 | R94: 17.05694978 | S94: 1.093932654 | T94: 0.7 | U94: 1.981329618 | V94: 1.392672169 | W94: 0.009697678853 | X94: 0.009697678853 | Y94: 7.415966222 | Z94: 0.10999311 | AA94: 0.10999311 | AB94: 8.58086188 | AC94: 0.4267663807 | AD94: 0.417723239 | AE94: 0.3442176 | AF94: 0 | AG94: 1.25286911 | AH94: 14.74138206 | AI94: 0.7927408432 | AJ94: 0.68 | AK94: 1.588600937 | AL94: 0.2909395358 | AM94: 0.0384 | AN94: 0.09696 | AO94: 0.35552 | AP94: 0.29088 | AQ94: 0.13536 | AR94: 4.881680253 | AS94: 5.465497785 | AT94: 5.465497785 | AU94: 204 | AV94: 0.9739074079 | AW94: 37.58607329 | AX94: 36.53782155 | AZ94: 97.39074079 | BA94: 1.981329618 | BB94: 2.841470047 | BC94: 1.25286911 | BD94: 1.588600937 | BE94: 0.13536 | BF94: 3.193228632 | BG94: 0.2909395358
G95: 86 | H95: 48 | I95: 1 | J95: 17.2 | K95: 17.2 | L95: 4.777777778 | M95: 0.2531169906 | N95: 4.824791777 | O95: 19.61239589 | P95: 14.78760411 | Q95: 0 | R95: 17.25629985 | S95: 1.119652366 | T95: 0.7 | U95: 2.014684155 | V95: 1.392797416 | W95: 0.009699423207 | X95: 0.009699423207 | Y95: 7.502994322 | Z95: 0.1125898476 | AA95: 0.1125898476 | AB95: 8.681771032 | AC95: 0.4368627673 | AD95: 0.42263763 | AE95: 0.3442176 | AF95: 0 | AG95: 1.270312252 | AH95: 14.91330736 | AI95: 0.8113397744 | AJ95: 0.688 | AK95: 1.620282977 | AL95: 0.2977798846 | AM95: 0.0384 | AN95: 0.09696 | AO95: 0.35552 | AP95: 0.29088 | AQ95: 0.13536 | AR95: 4.955850023 | AS95: 5.564050465 | AT95: 5.564050465 | AU95: 206.4 | AV95: 0.9737500276 | AW95: 38.10936757 | AX95: 37.26650846 | AZ95: 97.37500276 | BA95: 2.014684155 | BB95: 2.890595229 | BC95: 1.270312252 | BD95: 1.620282977 | BE95: 0.13536 | BF95: 3.251586425 | BG95: 0.2977798846
G96: 87 | H96: 48 | I96: 1 | J96: 17.4 | K96: 17.4 | L96: 4.833333333 | M96: 0.2531532497 | N96: 4.825225577 | O96: 19.81261279 | P96: 14.98738721 | Q96: 0 | R96: 17.4556648 | S96: 1.145672878 | T96: 0.7 | U96: 2.048596336 | V96: 1.392922643 | W96: 0.009701167447 | X96: 0.009701167447 | Y96: 7.59003703 | Z96: 0.1152173242 | AA96: 0.1152173242 | AB96: 8.782701993 | AC96: 0.4470794115 | AD96: 0.4275520211 | AE96: 0.3442176 | AF96: 0 | AG96: 1.287946771 | AH96: 15.08523713 | AI96: 0.8301548553 | AJ96: 0.696 | AK96: 1.652351994 | AL96: 0.3047002335 | AM96: 0.0384 | AN96: 0.09696 | AO96: 0.35552 | AP96: 0.29088 | AQ96: 0.13536 | AR96: 5.030736999 | AS96: 5.664150141 | AT96: 5.664150141 | AU96: 208.8 | AV96: 0.9735892916 | AW96: 38.63840312 | AX96: 38.00409586 | AZ96: 97.35892916 | BA96: 2.048596336 | BB96: 2.940298765 | BC96: 1.287946771 | BD96: 1.652351994 | BE96: 0.13536 | BF96: 3.310853571 | BG96: 0.3047002335
G97: 88 | H97: 48 | I97: 1 | J97: 17.6 | K97: 17.6 | L97: 4.888888889 | M97: 0.2531895092 | N97: 4.82565931 | O97: 20.01282966 | P97: 15.18717034 | Q97: 0 | R97: 17.6550441 | S97: 1.17199419 | T97: 0.7 | U97: 2.083073293 | V97: 1.393047851 | W97: 0.009702911574 | X97: 0.009702911574 | Y97: 7.677094125 | Z97: 0.1178755484 | AA97: 0.1178755484 | AB97: 8.883654511 | AC97: 0.457416364 | AD97: 0.4324664121 | AE97: 0.3442176 | AF97: 0 | AG97: 1.305774279 | AH97: 15.25717093 | AI97: 0.8491860542 | AJ97: 0.704 | AK97: 1.684812205 | AL97: 0.3117005823 | AM97: 0.0384 | AN97: 0.09696 | AO97: 0.35552 | AP97: 0.29088 | AQ97: 0.13536 | AR97: 5.106341202 | AS97: 5.76582032 | AT97: 5.76582032 | AU97: 211.2 | AV97: 0.9734252136 | AW97: 39.17322837 | AX97: 38.75068071 | AZ97: 97.34252136 | BA97: 2.083073293 | BB97: 2.990586484 | BC97: 1.305774279 | BD97: 1.684812205 | BE97: 0.13536 | BF97: 3.371046445 | BG97: 0.3117005823
G98: 89 | H98: 48 | I98: 1 | J98: 17.8 | K98: 17.8 | L98: 4.944444444 | M98: 0.2532257691 | N98: 4.826092976 | O98: 20.21304649 | P98: 15.38695351 | Q98: 0 | R98: 17.85443729 | S98: 1.198616301 | T98: 0.7 | U98: 2.118122328 | V98: 1.393173039 | W98: 0.009704655588 | X98: 0.009704655588 | Y98: 7.764165398 | Z98: 0.1205645286 | AA98: 0.1205645286 | AB98: 8.984628343 | AC98: 0.4678736753 | AD98: 0.4373808032 | AE98: 0.3442176 | AF98: 0 | AG98: 1.323796418 | AH98: 15.42910836 | AI98: 0.8684333392 | AJ98: 0.712 | AK98: 1.717667906 | AL98: 0.3187809311 | AM98: 0.0384 | AN98: 0.09696 | AO98: 0.35552 | AP98: 0.29088 | AQ98: 0.13536 | AR98: 5.18266265 | AS98: 5.869085129 | AT98: 5.869085129 | AU98: 213.6 | AV98: 0.9732578047 | AW98: 39.71389254 | AX98: 39.50636184 | AZ98: 97.32578047 | BA98: 2.118122328 | BB98: 3.041464324 | BC98: 1.323796418 | BD98: 1.717667906 | BE98: 0.13536 | BF98: 3.43218187 | BG98: 0.3187809311
G99: 90 | H99: 48 | I99: 1 | J99: 18 | K99: 18 | L99: 5 | M99: 0.2532620293 | N99: 4.826526574 | O99: 20.41326329 | P99: 15.58673671 | Q99: 0 | R99: 18.05384391 | S99: 1.225539212 | T99: 0.7 | U99: 2.153750919 | V99: 1.393298208 | W99: 0.009706399489 | X99: 0.009706399489 | Y99: 7.851250645 | Z99: 0.1232842734 | AA99: 0.1232842734 | AB99: 9.085623258 | AC99: 0.4784513957 | AD99: 0.4422951942 | AE99: 0.3442176 | AF99: 0 | AG99: 1.342014856 | AH99: 15.601049 | AI99: 0.8878966787 | AJ99: 0.72 | AK99: 1.75092348 | AL99: 0.3259412799 | AM99: 0.0384 | AN99: 0.09696 | AO99: 0.35552 | AP99: 0.29088 | AQ99: 0.13536 | AR99: 5.259701361 | AS99: 5.973969329 | AT99: 5.973969329 | AU99: 216 | AV99: 0.9730870726 | AW99: 40.26044567 | AX99: 40.27124004 | AZ99: 97.30870726 | BA99: 2.153750919 | BB99: 3.092938335 | BC99: 1.342014856 | BD99: 1.75092348 | BE99: 0.13536 | BF99: 3.49427713 | BG99: 0.3259412799
G100: 91 | H100: 48 | I100: 1 | J100: 18.2 | K100: 18.2 | L100: 5.055555556 | M100: 0.2532982899 | N100: 4.826960106 | O100: 20.61348005 | P100: 15.78651995 | Q100: 0 | R100: 18.25326351 | S100: 1.252762924 | T100: 0.7 | U100: 2.189966722 | V100: 1.393423358 | W100: 0.009708143276 | X100: 0.009708143276 | Y100: 7.938349676 | Z100: 0.1260347912 | AA100: 0.1260347912 | AB100: 9.186639035 | AC100: 0.4891495758 | AD100: 0.4472095853 | AE100: 0.3442176 | AF100: 0 | AG100: 1.360431288 | AH100: 15.77299248 | AI100: 0.9075760409 | AJ100: 0.728 | AK100: 1.784583393 | AL100: 0.3331816287 | AM100: 0.0384 | AN100: 0.09696 | AO100: 0.35552 | AP100: 0.29088 | AQ100: 0.13536 | AR100: 5.337457354 | AS100: 6.080498338 | AT100: 6.080498338 | AU100: 218.4 | AV100: 0.9729130219 | AW100: 40.81293863 | AX100: 41.04541804 | AZ100: 97.29130219 | BA100: 2.189966722 | BB100: 3.14501468 | BC100: 1.360431288 | BD100: 1.784583393 | BE100: 0.13536 | BF100: 3.557349987 | BG100: 0.3331816287
G101: 92 | H101: 48 | I101: 1 | J101: 18.4 | K101: 18.4 | L101: 5.111111111 | M101: 0.2533345508 | N101: 4.82739357 | O101: 20.81369679 | P101: 15.98630321 | Q101: 0 | R101: 18.45269567 | S101: 1.280287435 | T101: 0.7 | U101: 2.226777576 | V101: 1.393548489 | W101: 0.00970988695 | X101: 0.00970988695 | Y101: 8.025462305 | Z101: 0.1288160904 | AA101: 0.1288160904 | AB101: 9.287675461 | AC101: 0.4999682661 | AD101: 0.4521239763 | AE101: 0.3442176 | AF101: 0 | AG101: 1.379047437 | AH101: 15.94493844 | AI101: 0.9274713939 | AJ101: 0.736 | AK101: 1.8186522 | AL101: 0.3405019774 | AM101: 0.0384 | AN101: 0.09696 | AO101: 0.35552 | AP101: 0.29088 | AQ101: 0.13536 | AR101: 5.415930649 | AS101: 6.188698247 | AT101: 6.188698247 | AU101: 220.8 | AV101: 0.9727356547 | AW101: 41.37142311 | AX101: 41.8290006 | AZ101: 97.27356547 | BA101: 2.226777576 | BB101: 3.197699637 | BC101: 1.379047437 | BD101: 1.8186522 | BE101: 0.13536 | BF101: 3.621418694 | BG101: 0.3405019774
G102: 93 | H102: 48 | I102: 1 | J102: 18.6 | K102: 18.6 | L102: 5.166666667 | M102: 0.253370812 | N102: 4.827826967 | O102: 21.01391348 | P102: 16.18608652 | Q102: 0 | R102: 18.65213999 | S102: 1.308112746 | T102: 0.7 | U102: 2.264191511 | V102: 1.3936736 | W102: 0.009711630511 | X102: 0.009711630511 | Y102: 8.112588355 | Z102: 0.1316281796 | AA102: 0.1316281796 | AB102: 9.388732335 | AC102: 0.510907517 | AD102: 0.4570383673 | AE102: 0.3442176 | AF102: 0 | AG102: 1.397865056 | AH102: 16.11688652 | AI102: 0.947582706 | AJ102: 0.744 | AK102: 1.853134545 | AL102: 0.3479023261 | AM102: 0.0384 | AN102: 0.09696 | AO102: 0.35552 | AP102: 0.29088 | AQ102: 0.13536 | AR102: 5.495121263 | AS102: 6.298595849 | AT102: 6.298595849 | AU102: 223.2 | AV102: 0.97255497 | AW102: 41.93595169 | AX102: 42.62209453 | AZ102: 97.255497 | BA102: 2.264191511 | BB102: 3.250999601 | BC102: 1.397865056 | BD102: 1.853134545 | BE102: 0.13536 | BF102: 3.686502012 | BG102: 0.3479023261
G103: 94 | H103: 48 | I103: 1 | J103: 18.8 | K103: 18.8 | L103: 5.222222222 | M103: 0.2534070736 | N103: 4.828260298 | O103: 21.21413015 | P103: 16.38586985 | Q103: 0 | R103: 18.85159608 | S103: 1.336238857 | T103: 0.7 | U103: 2.302216747 | V103: 1.393798691 | W103: 0.009713373959 | X103: 0.009713373959 | Y103: 8.199727657 | Z103: 0.1344710673 | AA103: 0.1344710673 | AB103: 9.489809462 | AC103: 0.5219673791 | AD103: 0.4619527584 | AE103: 0.3442176 | AF103: 0 | AG103: 1.416885925 | AH103: 16.2888364 | AI103: 0.9679099454 | AJ103: 0.752 | AK103: 1.888035162 | AL103: 0.3553826748 | AM103: 0.0384 | AN103: 0.09696 | AO103: 0.35552 | AP103: 0.29088 | AQ103: 0.13536 | AR103: 5.575029215 | AS103: 6.410218651 | AT103: 6.410218651 | AU103: 225.6 | AV103: 0.9723709641 | AW103: 42.50657776 | AX103: 43.42480873 | AZ103: 97.23709641 | BA103: 2.302216747 | BB103: 3.304921088 | BC103: 1.416885925 | BD103: 1.888035162 | BE103: 0.13536 | BF103: 3.752619229 | BG103: 0.3553826748
G104: 95 | H104: 48 | I104: 1 | J104: 19 | K104: 19 | L104: 5.277777778 | M104: 0.2534433355 | N104: 4.828693561 | O104: 21.41434678 | P104: 16.58565322 | Q104: 0 | R104: 19.05106358 | S104: 1.364665768 | T104: 0.7 | U104: 2.340861705 | V104: 1.393923763 | W104: 0.009715117292 | X104: 0.009715117292 | Y104: 8.286880049 | Z104: 0.1373447619 | AA104: 0.1373447619 | AB104: 9.590906656 | AC104: 0.5331479028 | AD104: 0.4668671494 | AE104: 0.3442176 | AF104: 0 | AG104: 1.436111855 | AH104: 16.46078774 | AI104: 0.9884530803 | AJ104: 0.76 | AK104: 1.923358881 | AL104: 0.3629430235 | AM104: 0.0384 | AN104: 0.09696 | AO104: 0.35552 | AP104: 0.29088 | AQ104: 0.13536 | AR104: 5.655654524 | AS104: 6.523594906 | AT104: 6.523594906 | AU104: 228 | AV104: 0.9721836308 | AW104: 43.08335565 | AX104: 44.23725427 | AZ104: 97.21836308 | BA104: 2.340861705 | BB104: 3.359470736 | BC104: 1.436111855 | BD104: 1.923358881 | BE104: 0.13536 | BF104: 3.819790177 | BG104: 0.3629430235
G105: 96 | H105: 48 | I105: 1 | J105: 19.2 | K105: 19.2 | L105: =Vout*K105/(Vin*Efficiency) -> 5.333333333 | M105: 0.2534795978 | N105: =(Vin-(Rdson1+Rdcr)*K105-Vout)*M105/(Fsw*Lo) -> 4.829126756 | O105: 21.61456338 | P105: 16.78543662 | Q105: =IF(MIN(Vin, -P105/(Coss_Q1+Coss_Q2)*0.00000002)<0, 0, MIN(Vin, -P105/(Coss_Q1+Coss_Q2)*0.00000002)) -> 0 | R105: 19.25054212 | S105: =R105^2*Rdcr -> 1.393393479 | T105: 0.7 | U105: =(T105+S105*(1+Ltc*(Ta-25)))/(1-S105*Ltc*ThetaCA_Core) -> 2.380135008 | V105: 1.394048816 | W105: 0.009716860512 | X105: 0.009716860512 | Y105: 8.374045375 | Z105: 0.1402492719 | AA105: 0.1402492719 | AB105: 9.692023737 | AC105: =Rdson1*AB105^2 -> 0.5444491386 | AD105: 0.4717815405 | AE105: 0.3442176 | AF105: 0 | AG105: =(AF105+AE105+AD105+AC105*(1+RdsonTopTc*Ta-RdsonTopTc*25))/(1-AC105*RdsonTopTc*ThetaJA_Q1) -> 1.455544685 | AH105: 16.63274024 | AI105: =Rdson2*AH105^2 -> 1.009212079 | AJ105: 0.768 | AK105: =(AJ105+AI105*(1+RdsonBotTc*Ta-RdsonBotTc*25))/(1-AI105*RdsonBotTc*ThetaJA_Q2) -> 1.959110625 | AL105: 0.3705833721 | AM105: 0.0384 | AN105: 0.09696 | AO105: 0.35552 | AP105: 0.29088 | AQ105: 0.13536 | AR105: 5.736997209 | AS105: 6.638753628 | AT105: 6.638753628 | AU105: 230.4 | AV105: 0.971992961 | AW105: 43.66634055 | AX105: 45.05954437 | AZ105: 97.1992961 | BA105: 2.380135008 | BB105: 3.41465531 | BC105: 1.455544685 | BD105: 1.959110625 | BE105: 0.13536 | BF105: 3.888035248 | BG105: 0.3705833721
G106: 97 | H106: 48 | I106: 1 | J106: 19.4 | K106: 19.4 | L106: 5.388888889 | M106: 0.2535158605 | N106: 4.829559885 | O106: 21.81477994 | P106: 16.98522006 | Q106: 0 | R106: 19.45003138 | S106: 1.42242199 | T106: 0.7 | U106: 2.420045489 | V106: 1.39417385 | W106: 0.009718603618 | X106: 0.009718603618 | Y106: 8.461223485 | Z106: 0.1431846057 | AA106: 0.1431846057 | AB106: 9.793160536 | AC106: 0.555871137 | AD106: 0.4766959315 | AE106: 0.3442176 | AF106: 0 | AG106: 1.475186286 | AH106: 16.80469361 | AI106: 1.03018691 | AJ106: 0.776 | AK106: 1.995295414 | AL106: 0.3783037207 | AM106: 0.0384 | AN106: 0.09696 | AO106: 0.35552 | AP106: 0.29088 | AQ106: 0.13536 | AR106: 5.819057289 | AS106: 6.755724625 | AT106: 6.755724625 | AU106: 232.8 | AV106: 0.9717989431 | AW106: 44.25558858 | AX106: 45.89179451 | AZ106: 97.17989431 | BA106: 2.420045489 | BB106: 3.4704817 | BC106: 1.475186286 | BD106: 1.995295414 | BE106: 0.13536 | BF106: 3.957375415 | BG106: 0.3783037207
G107: 98 | H107: 48 | I107: 1 | J107: 19.6 | K107: 19.6 | L107: 5.444444444 | M107: 0.2535521235 | N107: 4.829992947 | O107: 22.01499647 | P107: 17.18500353 | Q107: 0 | R107: 19.64953102 | S107: 1.451751301 | T107: 0.7 | U107: 2.460602194 | V107: 1.394298864 | W107: 0.009720346611 | X107: 0.009720346611 | Y107: 8.548414236 | Z107: 0.1461507719 | AA107: 0.1461507719 | AB107: 9.894316886 | AC107: 0.5674139485 | AD107: 0.4816103226 | AE107: 0.3442176 | AF107: 0 | AG107: 1.495038559 | AH107: 16.97664757 | AI107: 1.051377541 | AJ107: 0.784 | AK107: 2.031918368 | AL107: 0.3861040693 | AM107: 0.0384 | AN107: 0.09696 | AO107: 0.35552 | AP107: 0.29088 | AQ107: 0.13536 | AR107: 5.901834782 | AS107: 6.874538517 | AT107: 6.874538517 | AU107: 235.2 | AV107: 0.9716015631 | AW107: 44.85115677 | AX107: 46.73412245 | AZ107: 97.16015631 | BA107: 2.460602194 | BB107: 3.526956927 | BC107: 1.495038559 | BD107: 2.031918368 | BE107: 0.13536 | BF107: 4.027832254 | BG107: 0.3861040693
G108: 99 | H108: 48 | I108: 1 | J108: 19.8 | K108: 19.8 | L108: 5.5 | M108: 0.2535883868 | N108: 4.830425941 | O108: 22.21521297 | P108: 17.38478703 | Q108: 0 | R108: 19.84904073 | S108: 1.481381411 | T108: 0.7 | U108: 2.501814391 | V108: 1.394423859 | W108: 0.00972208949 | X108: 0.00972208949 | Y108: 8.635617491 | Z108: 0.1491477789 | AA108: 0.1491477789 | AB108: 9.995492632 | AC108: 0.5790776236 | AD108: 0.4865247136 | AE108: 0.3442176 | AF108: 0 | AG108: 1.515103437 | AH108: 17.14860184 | AI108: 1.07278394 | AJ108: 0.792 | AK108: 2.068984708 | AL108: 0.3939844179 | AM108: 0.0384 | AN108: 0.09696 | AO108: 0.35552 | AP108: 0.29088 | AQ108: 0.13536 | AR108: 5.985329706 | AS108: 6.995226771 | AT108: 6.995226771 | AU108: 237.6 | AV108: 0.9714008042 | AW108: 45.45310311 | AX108: 47.58664829 | AZ108: 97.14008042 | BA108: 2.501814391 | BB108: 3.584088145 | BC108: 1.515103437 | BD108: 2.068984708 | BE108: 0.13536 | BF108: 4.099427962 | BG108: 0.3939844179
G109: 100 | H109: 48 | I109: 1 | J109: 20 | K109: 20 | L109: 5.555555556 | M109: 0.2536246505 | N109: 4.830858869 | O109: 22.41542943 | P109: 17.58457057 | Q109: 0 | R109: 20.04856021 | S109: 1.511312322 | T109: 0.7 | U109: 2.543691574 | V109: 1.394548834 | W109: 0.009723832254 | X109: 0.009723832254 | Y109: 8.722833116 | Z109: 0.1521756351 | AA109: 0.1521756351 | AB109: 10.09668762 | AC109: 0.5908622128 | AD109: 0.4914391047 | AE109: 0.3442176 | AF109: 0 | AG109: 1.535382885 | AH109: 17.32055616 | AI109: 1.094406076 | AJ109: 0.8 | AK109: =(AJ109+AI109*(1+RdsonBotTc*(Ta-25)))/(1-AI109*RdsonBotTc*ThetaJA_Q2) -> 2.106499761 | AL109: 0.4019447665 | AM109: 0.0384 | AN109: 0.09696 | AO109: 0.35552 | AP109: 0.29088 | AQ109: 0.13536 | AR109: 6.069542082 | AS109: 7.117821718 | AT109: 7.117821718 | AU109: 240 | AV109: 0.9711966475 | AW109: 46.06148655 | AX109: 48.44949449 | AZ109: 97.11966475 | BA109: 2.543691574 | BB109: 3.641882645 | BC109: 1.535382885 | BD109: 2.106499761 | BE109: 0.13536 | BF109: 4.172185378 | BG109: 0.4019447665
BD111: IC loss | BE111: =SUM(BC109:BE109) -> 3.777242645
BC113: =BF109*BC109/(BC109+BD109+BE109) -> 1.695920179 | BD113: =BF109*BD109/(BC109+BD109+BE109) -> 2.326752164 | BE113: =BC113+BD113 -> 4.022672343 | BF113: =BE113+BE109 -> 4.158032343
BC115: =(AF109+AE109+AD109+AC109*(1+RdsonTopTc*(Ta-25))) + AC109*RdsonTopTc*(ThetaJA_Q1*BF109) -> 1.72234132 | BE115: =MAX(BC113:BD113) -> 2.326752164 | BF115: W

Sheet Schematic Management (hidden)
A1: =VARIANT -> 6
A2: =CHOOSE(VARIANT, "LMG708B5_sch", "LMG708B5_5V_sch", "LMG708B5_12V_sch", "LMG708B5_sch_cc", "LMG708B5_5V_sch_cc", "LMG708B5_12V_sch_cc") -> LMG708B5_12V_sch_cc

Sheet Stability Calculations (hidden)
A2: Divider Network & EA Poles/Zeros | E2: Modulator | J2: Power Stage Poles/Zeros | M2: Complex Pole Pair | P2: Total System
B3: Afb1 | C3: =Afb -> 0.08333333333 | D3: V/V | E3: Acs | F3: =Acs -> 50 | G3: A/V | H3: gm | I3: =gm -> 0.001 | J3: z_ESR | K3: =Fesr -> 244853.7589 | L3: Hz | M3: p3 | N3: =Fsw/2 -> 200000 | O3: Hz | P3: Adc | Q3: =Am*Afb*AEA -> 51535.50733 | R3: V/V
B4: EA zero, z1 | C4: =Fz1_u -> 4941.472407 | D4: Hz | E4: Am | F4: =Am -> 24.61998601 | G4: V/V | J4: p_dom | K4: =Fp_dominant -> 2486.331215 | L4: Hz | M4: pterm1 | N4: =Q*pole3 -> 92977.51214 | P4: Crossover | Q4: =AI7 -> 46.2415 | R4: kHz
B5: EA pole, p1 | C5: =Fp1_u -> 1.919276204 | D5: Hz | E5: Q | F5: =Q -> 0.4648875607 | M5: pterm2 | N5: =pole3^2.00001 -> 4.000488273e+10 | P5: Phase Margin | Q5: =AI9 -> 57.79411521 | R5: °
B6: Aea | C6: =AEA -> 25118.86432 | D6: V/V | E6: mc | F6: =mc -> 1.5875 | H6: FF zero, z5 | I6: =Fz_ff -> 1000000000 | P6: radconv | Q6: =180/Pi -> 57.29577958 | AH6: XOVER SEARCH
B7: EA pole, p2 | C7: =Fp2_u -> 214508.924 | D7: Hz | E7: k | F7: =k -> 1.184702955 | H7: FF pole, p5 | I7: =Fp_ff -> 1000000000 | AH7: xover | AI7: =SUM(AH12:AH613)/1000 -> 46.2415
AH9: phase margin | AI9: =SUM(AI13:AI613) -> 57.79411521
A10: Freq (Hz) | C10: Power Stage | I10: Error Amplifier | P10: FF Network | S10: Sampling Double Pole | U10: System Response | AB10: ERROR AMP Response | AE10: PLANT Response
C11: p_dom | E11: z_ESR | G11: z_RHP | I11: p1 | K11: z1 | M11: p2 | O11: z3 | Q11: p3 | S11: p3
C12: Gain(V/V) | D12: Phase(rad) | E12: Gain(V/V) | F12: Phase(rad) | G12: Gain(V/V) | H12: Phase(rad) | I12: Gain(V/V) | J12: Phase(rad) | K12: Gain(V/V) | L12: Phase(rad) | M12: Gain(V/V) | N12: Phase(rad) | O12: Gain(V/V) | P12: Phase(rad) | Q12: Gain(V/V) | R12: Phase(rad) | S12: Gain(V/V) | T12: Phase(rad) | U12: Gain (dB) | V12: Phase (°) | W12: Phase Margin (°) | Z12: Fsquare | AB12: Gain(dB) | AC12: Phase(Deg) | AE12: Gain(dB) | AF12: Phase(Deg)
A13: 1 | B13: =A13/1000 -> 0.001 | C13: =SQRT(1+(A13/pole1)^2) -> 1.000000081 | D13: =ATAN(A13/pole1) -> 0.0004021990072 | E13: =SQRT(1+(A13/Zero1)^2) -> 1 | F13: =ATAN(A13/Zero1) -> 4.084070445e-06 | G13: =IF(VIN_nom>Vout, 1, SQRT(1+(A13/z_RHP)^2)) -> 1 | H13: =IF(VIN_nom>Vout, 0, -ATAN(A13/z_RHP)) -> 0 | I13: =SQRT(1+(A13/Pole2)^2) -> 1.127595672 | J13: =ATAN(A13/Pole2) -> 0.4803295215 | K13: =SQRT(1+(A13/Zero2)^2) -> 1.00000002 | L13: =ATAN(A13/Zero2) -> 0.0002023688294 | M13: =SQRT(1+(A13/pole4)^2) -> 1 | N13: =ATAN(A13/pole4) -> 4.661810714e-06 | O13: =SQRT(1+(A13/Zero3)^2) -> 1 | P13: =ATAN(A13/Zero3) -> 1e-09 | Q13: =SQRT(1+(A13/pole5)^2) -> 1 | R13: =ATAN(A13/pole5) -> 1e-09 | S13: =SQRT((1-(Z13/pterm2))^2+(A13/pterm1)^2) -> 1 | T13: =IF((ATAN((A13/pterm1)/(1-A13^2/pterm2))>0),ATAN((A13/pterm1)/(1-A13^2/pterm2)),PI()+ATAN((A13/pterm1)/(1-A13^2/pterm2))) -> 1.075528885e-05 | U13: =20*LOG10(((E13*K13*G13*O13)/(C13*I13*S13*M13*Q13))*Adc) -> 93.19906258 | V13: =((F13+L13+H13+R13)-(D13+J13+T13+N13))*radconv -> -27.53295309 | W13: =IF(V13>0,V13,V13+180) -> 152.4670469 | Y13: =IF(U13<0,A13,1000000000) -> 1000000000 | Z13: =A13^2 -> 1 | AB13: =20*LOG10((K13/(I13*M13))*AEA*Afb) -> 65.37330725 | AC13: =(L13-(J13+N13))*radconv -> -27.50952661 | AE13: =20*LOG10((E13*G13/(C13*S13))*Am) -> 27.82575533 | AF13: =(F13+H13-(D13+T13))*radconv -> -0.02342653832 | AH13: =SUM((U14<0)*(U13>0))*A13 -> 0 | AI13: =IF(AH13>0,W11,0) -> 0
A14: 1.0965 | B14: =A14/1000 -> 0.0010965 | C14: 1.000000097 | D14: 0.0004410112066 | E14: 1 | F14: 4.478183243e-06 | G14: 1 | H14: 0 | I14: 1.151691847 | J14: 0.5190560619 | K14: 1.000000025 | L14: 0.0002218974208 | M14: 1 | N14: 5.111675447e-06 | O14: 1 | P14: 1.0965e-09 | Q14: 1 | R14: 1.0965e-09 | S14: 1 | T14: 1.179317423e-05 | U14: 93.01540463 | V14: -29.75298794 | W14: 150.2470121 | Y14: 1000000000 | Z14: 1.20231225 | AB14: 65.18964944 | AC14: =(L14-(J14+N14))*radconv -> -29.72730081 | AE14: 27.82575519 | AF14: -0.02568719899 | AH14: 0 | AI14: 0
A15: 1.2023 | B15: 0.0012023 | C15: 1.000000117 | D15: 0.0004835638547 | E15: 1 | F15: 4.910277896e-06 | G15: 1 | H15: 0 | I15: 1.180008323 | J15: 0.5596298906 | K15: 1.00000003 | L15: 0.0002433080421 | M15: 1 | N15: 5.604895021e-06 | O15: 1 | P15: 1.2023e-09 | Q15: 1 | R15: 1.2023e-09 | S15: 1 | T15: 1.293108379e-05 | U15: 92.80442895 | V15: -32.07897713 | W15: 147.9210229 | Y15: 1000000000 | Z15: 1.44552529 | AB15: 64.97867393 | AC15: -32.05081147 | AE15: 27.82575502 | AF15: -0.02816572636 | AH15: 0 | AI15: 0
A16: 1.3183 | B16: 0.0013183 | C16: 1.000000141 | D16: 0.0005302189301 | E16: 1 | F16: 5.384030068e-06 | G16: 1 | H16: 0 | I16: 1.21317568 | J16: 0.6018618128 | K16: 1.000000036 | L16: 0.0002667828251 | M16: 1 | N16: 6.145665064e-06 | O16: 1 | P16: 1.3183e-09 | Q16: 1 | R16: 1.3183e-09 | S16: 1 | T16: 1.41786973e-05 | U16: 92.56365629 | V16: -34.50009148 | W16: 145.4999085 | Y16: 1000000000 | Z16: 1.73791489 | AB16: 64.73790147 | AC16: -34.46920835 | AE16: 27.82575481 | AF16: -0.03088320426 | AH16: 0 | AI16: 0
A17: 1.4454 | B17: 0.0014454 | C17: 1.000000169 | D17: 0.0005813384108 | E17: 1 | F17: 5.903115421e-06 | G17: 1 | H17: 0 | I17: 1.251860291 | J17: 0.6454798613 | K17: 1.000000043 | L17: 0.0002925039016 | M17: 1 | N17: 6.738181205e-06 | O17: 1 | P17: 1.4454e-09 | Q17: 1 | R17: 1.4454e-09 | S17: 1 | T17: 1.554569451e-05 | U17: 92.29101274 | V17: -37.00075932 | W17: 142.9992407 | Y17: 1000000000 | Z17: 2.08918116 | AB17: 64.46525817 | AC17: -36.96689868 | AE17: 27.82575457 | AF17: -0.03386071653 | AH17: 0 | AI17: 0
A18: 1.5849 | B18: 0.0015849 | C18: 1.000000203 | D18: 0.0006374451545 | E18: 1 | F18: 6.472843248e-06 | G18: 1 | H18: 0 | I18: 1.296885766 | J18: 0.6902640099 | K18: 1.000000051 | L18: 0.0003207343511 | M18: 1 | N18: 7.3885038e-06 | O18: 1 | P18: 1.5849e-09 | Q18: 1 | R18: 1.5849e-09 | S18: 1 | T18: 1.70460573e-05 | U18: 91.98409532 | V18: -39.5683898 | W18: 140.4316102 | Y18: 1000000000 | Z18: 2.51190801 | AB18: 64.15834105 | AC18: -39.53126117 | AE18: 27.82575427 | AF18: -0.03712871761 | AH18: 0 | AI18: 0
A19: 1.7378 | B19: 0.0017378 | C19: 1.000000244 | D19: 0.0006989413585 | E19: 1 | F19: 7.097297619e-06 | G19: 1 | H19: 0 | I19: 1.349011324 | J19: 0.7358155314 | K19: 1.000000062 | L19: 0.000351676542 | M19: 1 | N19: 8.101294658e-06 | O19: 1 | P19: 1.7378e-09 | Q19: 1 | R19: 1.7378e-09 | S19: 1 | T19: 1.869054097e-05 | U19: 91.64181763 | V19: -42.18014962 | W19: 137.8198504 | Y19: 1000000000 | Z19: 3.01994884 | AB19: 63.81606371 | AC19: -42.13943908 | AE19: 27.82575391 | AF19: -0.04071063393 | AH19: 0 | AI19: 0
A20: 1.9055 | B20: 0.0019055 | C20: 1.000000294 | D20: 0.0007663900994 | E20: 1 | F20: 7.782196233e-06 | G20: 1 | H20: 0 | I20: 1.409147223 | J20: 0.7817963463 | K20: 1.000000074 | L20: 0.0003856137905 | M20: 1 | N20: 8.883080314e-06 | O20: 1 | P20: 1.9055e-09 | Q20: 1 | R20: 1.9055e-09 | S20: 1 | T20: 2.049420291e-05 | U20: 91.26300183 | V20: -44.8166852 | W20: 135.1833148 | Y20: 1000000000 | Z20: 3.63093025 | AB20: 63.43724834 | AC20: -44.77204605 | AE20: 27.82575348 | AF20: -0.04463926254 | AH20: 0 | AI20: 0
A21: 2.0893 | B21: 0.0020893 | C21: 1.000000353 | D21: 0.0008403142332 | E21: 1 | F21: 8.532848381e-06 | G21: 1 | H21: 0 | I21: 1.478182211 | J21: 0.8277877645 | K21: 1.000000089 | L21: 0.0004228091758 | M21: 1 | N21: 9.739921123e-06 | O21: 1 | P21: 2.0893e-09 | Q21: 1 | R21: 2.0893e-09 | S21: 1 | T21: 2.2471025e-05 | U21: 90.84756939 | V21: -47.45402311 | W21: 132.5459769 | Y21: 1000000000 | Z21: 4.36517449 | AB21: 63.02181642 | AC21: -47.40507817 | AE21: 27.82575297 | AF21: -0.04894505778 | AH21: 0 | AI21: 0
A22: 2.2909 | B22: 0.0022909 | C22: 1.000000424 | D22: 0.0009213974945 | E22: 1 | F22: 9.356196982e-06 | G22: 1 | H22: 0 | I22: 1.557159447 | J22: 0.8734379813 | K22: 1.000000107 | L22: 0.0004636067243 | M22: 1 | N22: 1.067974216e-05 | O22: 1 | P22: 2.2909e-09 | Q22: 1 | R22: 2.2909e-09 | S22: 1 | T22: 2.463929123e-05 | U22: 90.39546666 | V22: -50.07202696 | W22: 129.927973 | Y22: 1000000000 | Z22: 5.24822281 | AB22: 62.56971432 | AC22: -50.01835925 | AE22: 27.82575235 | AF22: -0.05366784455 | AH22: 0 | AI22: 0
A23: 2.5119 | B23: 0.0025119 | C23: 1.00000051 | D23: 0.001010283397 | E23: 1 | F23: 1.025877655e-05 | G23: 1 | H23: 0 | I23: 1.647085616 | J23: 0.9183488587 | K23: 1.000000129 | L23: 0.0005083302257 | M23: 1 | N23: 1.171000233e-05 | O23: 1 | P23: 2.5119e-09 | Q23: 1 | R23: 2.5119e-09 | S23: 1 | T23: 2.701621007e-05 | U23: 89.90780431 | V23: -52.6479045 | W23: 127.3520955 | Y23: 1000000000 | Z23: 6.30964161 | AB23: 62.08205271 | AC23: -52.58905954 | AE23: 27.8257516 | AF23: -0.05884510504 | AH23: 0 | AI23: 0
A24: 2.7542 | B24: 0.0027542 | C24: 1.000000614 | D24: 0.001107736112 | E24: 1 | F24: 1.124834682e-05 | G24: 1 | H24: 0 | I24: 1.749080556 | J24: 0.9621846697 | K24: 1.000000155 | L24: 0.0005573641798 | M24: 1 | N24: 1.283955907e-05 | O24: 1 | P24: 2.7542e-09 | Q24: 1 | R24: 2.7542e-09 | S24: 1 | T24: 2.962221656e-05 | U24: 89.38593089 | V24: -55.16244298 | W24: 124.837557 | Y24: 1000000000 | Z24: 7.58561764 | AB24: 61.56018019 | AC24: -55.09792179 | AE24: 27.82575071 | AF24: -0.06452134931 | AH24: 0 | AI24: 0
A25: 3.02 | B25: 0.00302 | C25: 1.000000738 | D25: 0.00121464047 | E25: 1 | F25: 1.233389274e-05 | G25: 1 | H25: 0 | I25: 1.864385483 | J25: 1.00466644 | K25: 1.000000187 | L25: 0.000611153797 | M25: 1 | N25: 1.407866835e-05 | O25: 1 | P25: 3.02e-09 | Q25: 1 | R25: 3.02e-09 | S25: 1 | T25: 3.248097233e-05 | U25: 88.83141207 | V25: -57.59968497 | W25: 122.400315 | Y25: 1000000000 | Z25: 9.1204 | AB25: 61.00566245 | AC25: -57.52893703 | AE25: 27.82574963 | AF25: -0.07074811526 | AH25: 0 | AI25: 0
A26: 3.3113 | B26: 0.0033113 | C26: 1.000000887 | D26: 0.001331800857 | E26: 1 | F26: 1.352358246e-05 | G26: 1 | H26: 0 | I26: 1.994144209 | J26: 1.045501335 | K26: 1.000000225 | L26: 0.0006701038136 | M26: 1 | N26: 1.543665381e-05 | O26: 1 | P26: 3.3113e-09 | Q26: 1 | R26: 3.3113e-09 | S26: 1 | T26: 3.561398798e-05 | U26: 88.24699413 | V26: -59.94287642 | W26: 120.0571236 | Y26: 1000000000 | Z26: 10.96470769 | AB26: 60.4212458 | AC26: -59.86530435 | AE26: 27.82574833 | AF26: -0.07757225534 | AH26: 0 | AI26: 0
A27: 3.6308 | B27: 0.0036308 | C27: 1.000001066 | D27: 0.001460303196 | E27: 1 | F27: 1.482844297e-05 | G27: 1 | H27: 0 | I27: 2.139798187 | J27: 1.084523758 | K27: 1.00000027 | L27: 0.0007347606235 | M27: 1 | N27: 1.692610234e-05 | O27: 1 | P27: 3.6308e-09 | Q27: 1 | R27: 3.6308e-09 | S27: 1 | T27: 3.905030276e-05 | U27: 87.63466789 | V27: -62.18256209 | W27: 117.8174379 | Y27: 1000000000 | Z27: 13.18270864 | AB27: 59.80892112 | AC27: -62.09750528 | AE27: 27.82574677 | AF27: -0.08505702037 | AH27: 0 | AI27: 0
A28: 3.9811 | B28: 0.0039811 | C28: 1.000001282 | D28: 0.001601193185 | E28: 1 | F28: 1.625909285e-05 | G28: 1 | H28: 0 | I28: 2.302738024 | J28: 1.121573456 | K28: 1.000000325 | L28: 0.0008056503833 | M28: 1 | N28: 1.855913463e-05 | O28: 1 | P28: 3.9811e-09 | Q28: 1 | R28: 3.9811e-09 | S28: 1.000000001 | T28: 4.281788045e-05 | U28: 86.99723215 | V28: -64.30959159 | W28: 115.6904084 | Y28: 1000000000 | Z28: 15.84915721 | AB28: 59.17148725 | AC28: -64.2163285 | AE28: 27.8257449 | AF28: -0.09326331825 | AH28: 0 | AI28: 0
A29: 4.3652 | B29: 0.0043652 | C29: 1.000001541 | D29: 0.001755677397 | E29: 1 | F29: 1.78277843e-05 | G29: 1 | H29: 0 | I29: 2.484530358 | J29: 1.156560447 | K29: 1.00000039 | L29: 0.0008833801963 | M29: 1 | N29: 2.034973612e-05 | O29: 1 | P29: 4.3652e-09 | Q29: 1 | R29: 4.3652e-09 | S29: 1.000000001 | T29: 4.694898689e-05 | U29: 86.33723496 | V29: -66.31884561 | W29: 113.6811544 | Y29: 1000000000 | Z29: 19.05497104 | AB29: 58.51149231 | AC29: -66.21658443 | AE29: 27.82574265 | AF29: -0.1022614271 | AH29: 0 | AI29: 0
A30: 4.7863 | B30: 0.0047863 | C30: 1.000001853 | D30: 0.001925042834 | E30: 1 | F30: 1.954758637e-05 | G30: 1 | H30: 0 | I30: 2.686831188 | J30: 1.189433595 | K30: 1.000000469 | L30: 0.0009685976384 | M30: 1 | N30: 2.231282461e-05 | O30: 1 | P30: 4.7863e-09 | Q30: 1 | R30: 4.7863e-09 | S30: 1.000000001 | T30: 5.147803903e-05 | U30: 85.65731147 | V30: -68.20743299 | W30: 111.792567 | Y30: 1000000000 | Z30: 22.90866769 | AB30: 57.83157153 | AC30: -68.09530696 | AE30: 27.82573994 | AF30: -0.1121263101 | AH30: 0 | AI30: 0
A31: 5.2481 | B31: 0.0052481 | C31: 1.000002228 | D31: 0.002110777589 | E31: 1 | F31: 2.14336101e-05 | G31: 1 | H31: 0 | I31: 2.911534323 | J31: 1.220196168 | K31: 1.000000564 | L31: 0.001062051469 | M31: 1 | N31: 2.44656488e-05 | O31: 1 | P31: 5.2481e-09 | Q31: 1 | R31: 5.2481e-09 | S31: 1.000000001 | T31: 5.644483141e-05 | U31: 84.95967837 | V31: -69.97558573 | W31: 110.0244143 | Y31: 1000000000 | Z31: 27.54255361 | AB31: 57.13394169 | AC31: -69.85264139 | AE31: 27.82573668 | AF31: -0.1229446427 | AH31: 0 | AI31: 0
A32: 5.7544 | B32: 0.0057544 | C32: 1.000002678 | D32: 0.002314409959 | E32: 1 | F32: 2.350137496e-05 | G32: 1 | H32: 0 | I32: 3.160582974 | J32: 1.248867036 | K32: 1.000000678 | L32: 0.001164510681 | M32: 1 | N32: 2.682592356e-05 | O32: 1 | P32: 5.7544e-09 | Q32: 1 | R32: 5.7544e-09 | S32: 1.000000001 | T32: 6.189023415e-05 | U32: 84.24676981 | V32: -71.62443098 | W32: 108.375569 | Y32: 1000000000 | Z32: 33.11311936 | AB32: 56.42103704 | AC32: -71.48962587 | AE32: 27.82573277 | AF32: -0.1348054425 | AH32: 0 | AI32: 0
A33: 6.3096 | B33: 0.0063096 | C33: 1.00000322 | D33: 0.002537709545 | E33: 1 | F33: 2.576885087e-05 | G33: 1 | H33: 0 | I33: 3.436216808 | J33: 1.275505893 | K33: 1.000000815 | L33: 0.001276865689 | M33: 1 | N33: 2.941416087e-05 | O33: 1 | P33: 6.3096e-09 | Q33: 1 | R33: 6.3096e-09 | S33: 1.000000001 | T33: 6.786157052e-05 | U33: 83.52049906 | V33: -73.15744221 | W33: 106.8425578 | Y33: 1000000000 | Z33: 39.81105216 | AB33: 55.694771 | AC33: -73.00963079 | AE33: 27.82572806 | AF33: -0.1478117819 | AH33: 0 | AI33: 0
A34: 6.9183 | B34: 0.0069183 | C34: 1.000003871 | D34: 0.00278252636 | E34: 1 | F34: 2.825482455e-05 | G34: 1 | H34: 0 | I34: 3.74077938 | J34: 1.300181466 | K34: 1.00000098 | L34: 0.001400047377 | M34: 1.000000001 | N34: 3.225180505e-05 | O34: 1 | P34: 6.9183e-09 | Q34: 1 | R34: 6.9183e-09 | S34: 1.000000002 | T34: 7.440831483e-05 | U34: 82.78286408 | V34: -74.57861278 | W34: 105.4213872 | Y34: 1000000000 | Z34: 47.86287489 | AB34: 54.95714168 | AC34: -74.41654176 | AE34: 27.8257224 | AF34: -0.1620714172 | AH34: 0 | AI34: 0
A35: 7.5858 | B35: 0.0075858 | C35: 1.000004654 | D35: 0.003050991926 | E35: 1 | F35: 3.098094157e-05 | G35: 1 | H35: 0 | I35: 4.076969823 | J35: 1.322987609 | K35: 1.000001178 | L35: 0.001535128281 | M35: 1.000000001 | N35: 3.53635637e-05 | O35: 1 | P35: 7.5858e-09 | Q35: 1 | R35: 7.5858e-09 | S35: 1.000000002 | T35: 8.158747012e-05 | U35: 82.03535097 | V35: -75.89338431 | W35: 104.1066157 | Y35: 1000000000 | Z35: 57.54436164 | AB35: 54.20963537 | AC35: -75.71567624 | AE35: 27.8257156 | AF35: -0.1777085014 | AH35: 0 | AI35: 0
A36: 8.3176 | B36: 0.0083176 | C36: 1.000005596 | D36: 0.003345318163 | E36: 1.000000001 | F36: 3.396966432e-05 | G36: 1 | H36: 0 | I36: 4.447595241 | J36: 1.344016878 | K36: 1.000001417 | L36: 0.001683221409 | M36: 1.000000001 | N36: 3.877507677e-05 | O36: 1 | P36: 8.3176e-09 | Q36: 1 | R36: 8.3176e-09 | S36: 1.000000002 | T36: 8.945819049e-05 | U36: 81.27958966 | V36: -77.10712637 | W36: 102.8928736 | Y36: 1000000000 | Z36: 69.18246976 | AB36: 53.45388224 | AC36: -76.91227497 | AE36: 27.82570742 | AF36: -0.1948518705 | AH36: 0 | AI36: 0
A37: 9.1201 | B37: 0.0091201 | C37: 1.000006727 | D37: 0.003668078912 | E37: 1.000000001 | F37: 3.724713085e-05 | G37: 1 | H37: 0 | I37: 4.855925852 | J37: 1.363378307 | K37: 1.000001703 | L37: 0.00184562189 | M37: 1.000000001 | N37: 4.251617986e-05 | O37: 1 | P37: 9.1201e-09 | Q37: 1 | R37: 9.1201e-09 | S37: 1.000000003 | T37: 9.808930977e-05 | U37: 80.51664652 | V37: -78.22616351 | W37: 101.7738365 | Y37: 1000000000 | Z37: 83.17622401 | AB37: 52.69094893 | AC37: -78.01251259 | AE37: 27.82569758 | AF37: -0.2136514409 | AH37: 0 | AI37: 0
A38: 10 | B38: 0.01 | C38: 1.000008088 | D38: 0.004021968602 | E38: 1.000000001 | F38: 4.084070443e-05 | G38: 1 | H38: 0 | I38: 5.305393482 | J38: 1.381174582 | K38: 1.000002048 | L38: 0.002023685559 | M38: 1.000000001 | N38: 4.66181071e-05 | O38: 1 | P38: 1e-08 | Q38: 1 | R38: 1e-08 | S38: 1.000000003 | T38: 0.0001075528884 | U38: 79.74772663 | V38: -79.25646037 | W38: 100.7435396 | Y38: 1000000000 | Z38: 100 | AB38: 51.92204087 | AC38: -79.02219679 | AE38: 27.82568576 | AF38: -0.2342641531 | AH38: 0 | AI38: 0
A39: 10.965 | B39: 0.010965 | C39: 1.000009724 | D39: 0.004410083761 | E39: 1.000000001 | F39: 4.47818324e-05 | G39: 1 | H39: 0 | I39: 5.799949233 | J39: 1.397515158 | K39: 1.000002462 | L39: 0.002218970602 | M39: 1.000000001 | N39: 5.111675443e-05 | O39: 1 | P39: 1.0965e-08 | Q39: 1 | R39: 1.0965e-08 | S39: 1.000000004 | T39: 0.0001179317421 | U39: 78.97358415 | V39: -80.20438133 | W39: 99.79561867 | Y39: 1000000000 | Z39: 120.231225 | AB39: 51.14791261 | AC39: -79.94751159 | AE39: 27.82567154 | AF39: -0.2568703682 | AH39: 0 | AI39: 0
A40: 12.023 | B40: 0.012023 | C40: 1.000011692 | D40: 0.004835601233 | E40: 1.000000001 | F40: 4.910277892e-05 | G40: 1 | H40: 0 | I40: 6.343655425 | J40: 1.412498223 | K40: 1.00000296 | L40: 0.002433075668 | M40: 1.000000002 | N40: 5.604895015e-05 | O40: 1 | P40: 1.2023e-08 | Q40: 1 | R40: 1.2023e-08 | S40: 1.000000005 | T40: 0.0001293108376 | U40: 78.19526353 | V40: -81.07564769 | W40: 98.92435231 | Y40: 1000000000 | Z40: 144.552529 | AB40: 50.36960908 | AC40: -80.79399325 | AE40: 27.82565445 | AF40: -0.2816551256 | AH40: 0 | AI40: 0
A41: 13.183 | B41: 0.013183 | C41: 1.000014057 | D41: 0.005302140111 | E41: 1.000000001 | F41: 5.384030062e-05 | G41: 1 | H41: 0 | I41: 6.941147102 | J41: 1.426224834 | K41: 1.000003559 | L41: 0.002667821985 | M41: 1.000000002 | N41: 6.145665056e-05 | O41: 1 | P41: 1.3183e-08 | Q41: 1 | R41: 1.3183e-08 | S41: 1.000000006 | T41: 0.0001417869726 | U41: 77.41341491 | V41: -81.87615845 | W41: 98.12384155 | Y41: 1000000000 | Z41: 173.791489 | AB41: 49.587781 | AC41: -81.56732998 | AE41: 27.82563391 | AF41: -0.3088292242 | AH41: 0 | AI41: 0
A42: 14.454 | B42: 0.014454 | C42: 1.000016898 | D42: 0.005813319276 | E42: 1.000000002 | F42: 5.903115414e-05 | G42: 1 | H42: 0 | I42: 7.597066459 | J42: 1.438783465 | K42: 1.000004278 | L42: 0.002925030758 | M42: 1.000000002 | N42: 6.738181195e-05 | O42: 1 | P42: 1.4454e-08 | Q42: 1 | R42: 1.4454e-08 | S42: 1.000000007 | T42: 0.0001554569447 | U42: 76.62910293 | V42: -82.61109169 | W42: 97.38890831 | Y42: 1000000000 | Z42: 208.918116 | AB42: 48.8034937 | AC42: -82.27248906 | AE42: 27.82560922 | AF42: -0.3386034507 | AH42: 0 | AI42: 0
A43: 15.849 | B43: 0.015849 | C43: 1.000020317 | D43: 0.006374366071 | E43: 1.000000002 | F43: 6.472843239e-05 | G43: 1 | H43: 0 | I43: 8.318128943 | J43: 1.450285501 | K43: 1.000005144 | L43: 0.003207332623 | M43: 1.000000003 | N43: 7.388503786e-05 | O43: 1 | P43: 1.5849e-08 | Q43: 1 | R43: 1.5849e-08 | S43: 1.000000008 | T43: 0.0001704605725 | U43: 75.84148628 | V43: -83.28698647 | W43: 96.71301353 | Y43: 1000000000 | Z43: 251.190801 | AB43: 48.01590677 | AC43: -82.9157051 | AE43: 27.82557952 | AF43: -0.3712822788 | AH43: 0 | AI43: 0
A44: 17.378 | B44: 0.017378 | C44: 1.000024426 | D44: 0.006989300911 | E44: 1.000000003 | F44: 7.097297607e-05 | G44: 1 | H44: 0 | I44: 9.10950905 | J44: 1.460799245 | K44: 1.000006184 | L44: 0.003516751067 | M44: 1.000000003 | N44: 8.10129464e-05 | O44: 1 | P44: 1.7378e-08 | Q44: 1 | R44: 1.7378e-08 | S44: 1.00000001 | T44: 0.0001869054089 | U44: 75.05207314 | V44: -83.90787716 | W44: 96.09212284 | Y44: 1000000000 | Z44: 301.994884 | AB44: 47.22652933 | AC44: -83.50077827 | AE44: 27.82554382 | AF44: -0.4070998836 | AH44: 0 | AI44: 0
A45: 19.055 | B45: 0.019055 | C45: 1.000029367 | D45: 0.007663752453 | E45: 1.000000003 | F45: 7.782196217e-05 | G45: 1 | H45: 0 | I45: 9.978456277 | J45: 1.470411913 | K45: 1.000007435 | L45: 0.003856118983 | M45: 1.000000004 | N45: 8.883080291e-05 | O45: 1 | P45: 1.9055e-08 | Q45: 1 | R45: 1.9055e-08 | S45: 1.000000012 | T45: 0.0002049420281 | U45: 74.26067333 | V45: -84.47893018 | W45: 95.52106982 | Y45: 1000000000 | Z45: 363.093025 | AB45: 46.43517245 | AC45: -84.03254716 | AE45: 27.82550088 | AF45: -0.4463841146 | AH45: 0 | AI45: =IF(AH45>0,W43,0) -> 0
A46: 20.893 | B46: 0.020893 | C46: 1.000035306 | D46: 0.008402946528 | E46: 1.000000004 | F46: 8.53284836e-05 | G46: 1 | H46: 0 | I46: 10.93170915 | J46: 1.47919126 | K46: 1.000008938 | L46: 0.004228066815 | M46: 1.000000005 | N46: 9.739921093e-05 | O46: 1 | P46: 2.0893e-08 | Q46: 1 | R46: 2.0893e-08 | S46: 1.000000014 | T46: 0.0002247102487 | U46: 73.4681406 | V46: -85.0041847 | W46: 94.9958153 | Y46: 1000000000 | Z46: 436.517449 | AB46: 45.64269131 | AC46: -84.51474654 | AE46: 27.82544929 | AF46: -0.489439359 | AH46: 0 | AI46: 0
A47: 22.909 | B47: 0.022909 | C47: 1.000042448 | D47: 0.009213716818 | E47: 1.000000004 | F47: 9.356196955e-05 | G47: 1 | H47: 0 | I47: 11.97808642 | J47: 1.487213251 | K47: 1.000010747 | L47: 0.004636034361 | M47: 1.000000006 | N47: 0.0001067974212 | O47: 1 | P47: 2.2909e-08 | Q47: 1 | R47: 2.2909e-08 | S47: 1.000000017 | T47: 0.0002463929106 | U47: 72.67410677 | V47: -85.4881988 | W47: 94.5118012 | Y47: 1000000000 | Z47: 524.822281 | AB47: 44.84871953 | AC47: -84.95153646 | AE47: 27.82538724 | AF47: -0.5366636558 | AH47: 0 | AI47: 0
A48: 25.119 | B48: 0.025119 | C48: 1.000051032 | D48: 0.0101024937 | E48: 1.000000005 | F48: 0.0001025877651 | G48: 1 | H48: 0 | I48: 13.12589436 | J48: 1.49453715 | K48: 1.00001292 | L48: 0.005083258911 | M48: 1.000000007 | N48: 0.0001171000228 | O48: 1 | P48: 2.5119e-08 | Q48: 1 | R48: 2.5119e-08 | S48: 1.000000021 | T48: 0.0002701620984 | U48: 71.8792218 | V48: -85.93456127 | W48: 94.06543873 | Y48: 1000000000 | Z48: 630.964161 | AB48: 44.05390915 | AC48: -85.34613116 | AE48: 27.82531265 | AF48: -0.5884315545 | AH48: 0 | AI48: 0
A49: 27.542 | B49: 0.027542 | C49: 1.000061352 | D49: 0.01107691259 | E49: 1.000000006 | F49: 0.0001124834677 | G49: 1 | H49: 0 | I49: 14.38500188 | J49: 1.501223365 | K49: 1.000015533 | L49: 0.00557358466 | M49: 1.000000008 | N49: 0.00012839559 | O49: 1 | P49: 2.7542e-08 | Q49: 1 | R49: 2.7542e-08 | S49: 1.000000025 | T49: 0.0002962221626 | U49: 71.08353445 | V49: -86.34696287 | W49: 93.65303713 | Y49: 1000000000 | Z49: 758.561764 | AB49: 43.25831146 | AC49: -85.70177666 | AE49: 27.82522299 | AF49: -0.6451877941 | AH49: 0 | AI49: 0
A50: 30.2 | B50: 0.0302 | C50: 1.000073765 | D50: 0.01214581338 | E50: 1.000000008 | F50: 0.0001233389268 | G50: 1 | H50: 0 | I50: 15.76684251 | J50: 1.507329488 | K50: 1.000018675 | L50: 0.006111462642 | M50: 1.00000001 | N50: 0.0001407866826 | O50: 1 | P50: 3.02e-08 | Q50: 1 | R50: 3.02e-08 | S50: 1.00000003 | T50: 0.0003248097194 | U50: 70.28675776 | V50: -86.72896909 | W50: 93.27103091 | Y50: 1000000000 | Z50: 912.04 | AB50: 42.46164261 | AC50: -86.02152355 | AE50: 27.82511515 | AF50: -0.7074472725 | AH50: 0 | AI50: 0
A51: 33.113 | B51: 0.033113 | C51: 1.000088681 | D51: 0.01331722912 | E51: 1.000000009 | F51: 0.0001352358238 | G51: 1 | H51: 0 | I51: 17.2818145 | J51: 1.512899693 | K51: 1.000022452 | L51: 0.00670093884 | M51: 1.000000012 | N51: 0.0001543665369 | O51: 1 | P51: 3.3113e-08 | Q51: 1 | R51: 3.3113e-08 | S51: 1.000000036 | T51: 0.0003561398745 | U51: 69.48976877 | V51: -87.08335236 | W51: 92.91664764 | Y51: 1000000000 | Z51: 1096.470769 | AB51: 41.6647832 | AC51: -86.30767636 | AE51: 27.82498556 | AF51: -0.7756778942 | AH51: 0 | AI51: 0
A52: 36.308 | B52: 0.036308 | C52: 1.000106619 | D52: 0.01460200445 | E52: 1.000000011 | F52: 0.0001482844286 | G52: 1 | H52: 0 | I52: 18.9439602 | J52: 1.517984508 | K52: 1.000026993 | L52: 0.007347475336 | M52: 1.000000014 | N52: 0.0001692610218 | O52: 1 | P52: 3.6308e-08 | Q52: 1 | R52: 3.6308e-08 | S52: 1.000000043 | T52: 0.0003905030207 | U52: 68.69202369 | V52: -87.41333362 | W52: 92.58666638 | Y52: 1000000000 | Z52: 1318.270864 | AB52: 40.86719396 | AC52: -86.56282437 | AE52: 27.82482973 | AF52: -0.8505113312 | AH52: 0 | AI52: 0
A53: 39.811 | B53: 0.039811 | C53: 1.000128183 | D53: 0.01601057735 | E53: 1.000000013 | F53: 0.0001625909271 | G53: 1 | H53: 0 | I53: 20.76680622 | J53: 1.522623928 | K53: 1.000032453 | L53: 0.008056331275 | M53: 1.000000017 | N53: 0.0001855913442 | O53: 1 | P53: 3.9811e-08 | Q53: 1 | R53: 3.9811e-08 | S53: 1.000000052 | T53: 0.0004281787954 | U53: 67.89390499 | V53: -87.72151808 | W53: 92.27848192 | Y53: 1000000000 | Z53: 1584.915721 | AB53: 40.0692626 | AC53: -86.78896479 | AE53: 27.82464239 | AF53: -0.932555575 | AH53: 0 | AI53: 0
A54: 43.652 | B54: 0.043652 | C54: 1.000154109 | D54: 0.01755498843 | E54: 1.000000016 | F54: 0.0001782778412 | G54: 1 | H54: 0 | I54: 22.76596384 | J54: 1.526856968 | K54: 1.000039017 | L54: 0.008833574486 | M54: 1.000000021 | N54: 0.0002034973585 | O54: 1 | P54: 4.3652e-08 | Q54: 1 | R54: 4.3652e-08 | S54: 1.000000063 | T54: 0.0004694898569 | U54: 67.09541012 | V54: -88.01050276 | W54: 91.98949724 | Y54: 1000000000 | Z54: 1905.497104 | AB54: 39.27099296 | AC54: -86.9879933 | AE54: 27.82441716 | AF54: -1.022511967 | AH54: 0 | AI54: 0
A55: 47.863 | B55: 0.047863 | C55: 1.000185273 | D55: 0.0192480747 | E55: 1.000000019 | F55: 0.0001954758612 | G55: 1 | H55: 0 | I55: 24.95808854 | J55: 1.530718428 | K55: 1.000046908 | L55: 0.009685676523 | M55: 1.000000025 | N55: 0.0002231282425 | O55: 1 | P55: 4.7863e-08 | Q55: 1 | R55: 4.7863e-08 | S55: 1.000000075 | T55: 0.0005147803744 | U55: 66.29670231 | V55: -88.28266705 | W55: 91.71733295 | Y55: 1000000000 | Z55: 2290.866769 | AB55: 38.47255587 | AC55: -87.16154154 | AE55: 27.82414644 | AF55: -1.121128247 | AH55: 0 | AI55: 0
A56: 52.481 | B56: 0.052481 | C56: 1.000222745 | D56: 0.02110467328 | E56: 1.000000023 | F56: 0.0002143360977 | G56: 1 | H56: 0 | I56: 27.36244162 | J56: 1.53424174 | K56: 1.000056396 | L56: 0.01062011939 | M56: 1.00000003 | N56: 0.0002446564832 | O56: 1 | P56: 5.2481e-08 | Q56: 1 | R56: 5.2481e-08 | S56: 1.00000009 | T56: 0.0005644482933 | U56: 65.49758862 | V56: -88.54037198 | W56: 91.45962802 | Y56: 1000000000 | Z56: 2754.255361 | AB56: 37.6737677 | AC56: -87.31110633 | AE56: 27.82382093 | AF56: -1.22926866 | AH56: 0 | AI56: 0
A57: 57.544 | B57: 0.057544 | C57: 1.00026779 | D57: 0.02314000985 | E57: 1.000000028 | F57: 0.0002350137454 | G57: 1 | H57: 0 | I57: 29.99880787 | J57: 1.537455492 | K57: 1.000067802 | L57: 0.01164458573 | M57: 1.000000036 | N57: 0.0002682592293 | O57: 1 | P57: 5.7544e-08 | Q57: 1 | R57: 5.7544e-08 | S57: 1.000000109 | T57: 0.000618902314 | U57: 64.69831339 | V57: -88.7857123 | W57: 91.2142877 | Y57: 1000000000 | Z57: 3311.311936 | AB57: 36.87488374 | AC57: -87.4378955 | AE57: 27.82342965 | AF57: -1.347820099 | AH57: 0 | AI57: 0
A58: 63.096 | B58: 0.063096 | C58: 1.000321948 | D58: 0.0253717044 | E58: 1.000000033 | F58: 0.0002576885031 | G58: 1 | H58: 0 | I58: 32.89009874 | J58: 1.540387353 | K58: 1.000081516 | L58: 0.01276796997 | M58: 1.000000043 | N58: 0.0002941416003 | O58: 1 | P58: 6.3096e-08 | Q58: 1 | R58: 6.3096e-08 | S58: 1.000000131 | T58: 0.0006786156689 | U58: 63.8987384 | V58: -89.02080187 | W58: 90.97919813 | Y58: 1000000000 | Z58: 3981.105216 | AB58: 36.07577917 | AC58: -87.54299655 | AE58: 27.82295923 | AF58: -1.477808933 | AH58: 0 | AI58: 0
A59: 69.183 | B59: 0.069183 | C59: 1.00038705 | D59: 0.0278181575 | E59: 1.00000004 | F59: 0.0002825482381 | G59: 1 | H59: 0 | I59: 36.06026951 | J59: 1.54306142 | K59: 1.000098002 | L59: 0.01399956826 | M59: 1.000000052 | N59: 0.0003225180394 | O59: 1 | P59: 6.9183e-08 | Q59: 1 | R59: 6.9183e-08 | S59: 1.000000157 | T59: 0.0007440831005 | U59: 63.09904025 | V59: -89.24757279 | W59: 90.75242721 | Y59: 1000000000 | Z59: 4786.287489 | AB59: 35.27664645 | AC59: -87.62726974 | AE59: 27.8223938 | AF59: -1.62030702 | AH59: 0 | AI59: 0
A60: 75.858 | B60: 0.075858 | C60: 1.000465322 | D60: 0.03050055236 | E60: 1.000000048 | F60: 0.0003098094059 | G60: 1 | H60: 0 | I60: 39.53692317 | J60: 1.545500816 | K60: 1.000117824 | L60: 0.01535008913 | M60: 1.000000063 | N60: 0.0003536356224 | O60: 1 | P60: 7.5858e-08 | Q60: 1 | R60: 7.5858e-08 | S60: 1.000000189 | T60: 0.0008158746382 | U60: 62.29905452 | V60: -89.4679846 | W60: 90.5320154 | Y60: 1000000000 | Z60: 5754.436164 | AB60: 34.47734051 | AC60: -87.69144062 | AE60: 27.82171401 | AF60: -1.776548327 | AH60: 0 | AI60: 0
A61: 83.176 | B61: 0.083176 | C61: 1.000559405 | D61: 0.03344083533 | E61: 1.000000058 | F61: 0.0003396966303 | G61: 1 | H61: 0 | I61: 43.34870636 | J61: 1.547725541 | K61: 1.000141652 | L61: 0.01683064059 | M61: 1.000000075 | N61: 0.0003877507485 | O61: 1 | P61: 8.3176e-08 | Q61: 1 | R61: 8.3176e-08 | S61: 1.000000227 | T61: 0.0008945818218 | U61: 61.49897887 | V61: -89.6838398 | W61: 90.3161602 | Y61: 1000000000 | Z61: 6918.246976 | AB61: 33.67808188 | AC61: -87.73603326 | AE61: 27.82089699 | AF61: -1.94781131 | AH61: 0 | AI61: 0
A62: 91.201 | B62: 0.091201 | C62: 1.00067252 | D62: 0.03666451559 | E62: 1.000000069 | F62: 0.0003724712914 | G62: 1 | H62: 0 | I62: 47.52895526 | J62: 1.549754968 | K62: 1.000170302 | L62: 0.01845414469 | M62: 1.00000009 | N62: 0.0004251617733 | O62: 1 | P62: 9.1201e-08 | Q62: 1 | R62: 9.1201e-08 | S62: 1.000000273 | T62: 0.0009808929881 | U62: 60.69860282 | V62: -89.8970112 | W62: 90.1029888 | Y62: 1000000000 | Z62: 8317.622401 | AB62: 32.87868803 | AC62: -87.76143442 | AE62: 27.81991479 | AF62: -2.135581999 | AH62: 0 | AI62: 0
A63: 100 | B63: 0.1 | C63: 1.000808493 | D63: 0.0401982368 | E63: 1.000000083 | F63: 0.0004084070218 | G63: 1 | H63: 0 | I63: 52.11257046 | J63: 1.551605921 | K63: 1.000204745 | L63: 0.02023412135 | M63: 1.000000109 | N63: 0.0004661810376 | O63: 1 | P63: 1e-07 | Q63: 1 | R63: 1e-07 | S63: 1.000000328 | T63: 0.00107552874 | U63: 59.8980367 | V63: -90.10925813 | W63: 89.89074187 | Y63: 1000000000 | Z63: 10000 | AB63: 32.07930244 | AC63: -87.76785128 | AE63: 27.81873426 | AF63: -2.341412574 | AH63: 0 | AI63: 0
A64: 109.65 | B64: 0.10965 | C64: 1.000971982 | D64: 0.04407256594 | E64: 1.0000001 | F64: 0.0004478182944 | G64: 1 | H64: 0 | I64: 57.1396632 | J64: 1.553294455 | K64: 1.000246162 | L64: 0.02218610156 | M64: 1.000000131 | N64: 0.0005111675002 | O64: 1 | P64: 1.0965e-07 | Q64: 1 | R64: 1.0965e-07 | S64: 1.000000395 | T64: 0.001179317231 | U64: 59.09707334 | V64: -90.32241202 | W64: 89.67758798 | Y64: 1000000000 | Z64: 12023.1225 | AB64: 31.27975829 | AC64: -87.75533448 | AE64: 27.81731505 | AF64: -2.567083825 | AH64: 0 | AI64: 0
A65: 120.23 | B65: 0.12023 | C65: 1.001168488 | D65: 0.0483187508 | E65: 1.000000121 | F65: 0.0004910277501 | G65: 1 | H65: 0 | I65: 62.65138797 | J65: 1.554834311 | K65: 1.00029595 | L65: 0.02432600521 | M65: 1.000000157 | N65: 0.0005604894434 | O65: 1 | P65: 1.2023e-07 | Q65: 1 | R65: 1.2023e-07 | S65: 1.000000475 | T65: 0.001293108125 | U65: 58.29593952 | V65: -90.53818962 | W65: 89.46181038 | Y65: 1000000000 | Z65: 14455.2529 | AB65: 30.48032999 | AC65: -87.72378019 | AE65: 27.81560953 | AF65: -2.814416316 | AH65: 0 | AI65: 0
A66: 131.83 | B66: 0.13183 | C66: 1.001404674 | D66: 0.05297229442 | E66: 1.000000145 | F66: 0.0005384029547 | G66: 1 | H66: 0 | I66: 68.69463086 | J66: 1.556238634 | K66: 1.000355802 | L66: 0.02667195659 | M66: 1.000000189 | N66: 0.000614566429 | O66: 1 | P66: 1.3183e-07 | Q66: 1 | R66: 1.3183e-07 | S66: 1.000000571 | T66: 0.001417869395 | U66: 57.49456752 | V66: -90.75839834 | W66: 89.24160166 | Y66: 1000000000 | Z66: 17379.1489 | AB66: 29.68100746 | AC66: -87.67292727 | AE66: 27.81356005 | AF66: -3.08547862 | AH66: 0 | AI66: 0
A67: 144.54 | B67: 0.14454 | C67: 1.001688347 | D67: 0.05806849147 | E67: 1.000000174 | F67: 0.0005903114736 | G67: 1 | H67: 0 | I67: 75.31627897 | J67: 1.557518595 | K67: 1.000427701 | L67: 0.02924205321 | M67: 1.000000227 | N67: 0.0006738180186 | O67: 1 | P67: 1.4454e-07 | Q67: 1 | R67: 1.4454e-07 | S67: 1.000000686 | T67: 0.00155456901 | U67: 56.69340933 | V67: -90.98472187 | W67: 89.01527813 | Y67: 1000000000 | Z67: 20891.8116 | AB67: 28.88231017 | AC67: -87.60240278 | AE67: 27.81109916 | AF67: -3.382327375 | AH67: 0 | AI67: 0
A68: 158.49 | B68: 0.15849 | C68: 1.002029622 | D68: 0.0636583949 | E68: 1.000000209 | F68: 0.0006472842344 | G68: 1 | H68: 0 | I68: 82.58405967 | J68: 1.558687157 | K68: 1.00051422 | L68: 0.03206244495 | M68: 1.000000273 | N68: 0.0007388502455 | O68: 1 | P68: 1.5849e-07 | Q68: 1 | R68: 1.5849e-07 | S68: 1.000000825 | T68: 0.00170460515 | U68: 55.89105294 | V68: -91.21941428 | W68: 88.78058572 | Y68: 1000000000 | Z68: 25119.0801 | AB68: 28.08291346 | AC68: -87.51148598 | AE68: 27.80813948 | AF68: -3.707937388 | AH68: 0 | AI68: 0
A69: 173.78 | B69: 0.17378 | C69: 1.00243962 | D69: 0.06978066424 | E69: 1.000000252 | F69: 0.0007097296428 | G69: 1 | H69: 0 | I69: 90.55007186 | J69: 1.559752489 | K69: 1.000618191 | L69: 0.03515316837 | M69: 1.000000328 | N69: 0.0008101292886 | O69: 1 | P69: 1.7378e-07 | Q69: 1 | R69: 1.7378e-07 | S69: 1.000000992 | T69: 0.001869053332 | U69: 55.08854927 | V69: -91.46407555 | W69: 88.53592445 | Y69: 1000000000 | Z69: 30199.4884 | AB69: 27.28396412 | AC69: -87.3995236 | AE69: 27.80458514 | AF69: -4.064561912 | AH69: 0 | AI69: 0
A70: 190.55 | B70: 0.19055 | C70: 1.00293247 | D70: 0.07648950406 | E70: 1.000000303 | F70: 0.0007782194662 | G70: 1 | H70: 0 | I70: 99.28725481 | J70: 1.56072437 | K70: 1.000743214 | L70: 0.03854228466 | M70: 1.000000395 | N70: 0.0008883077978 | O70: 1 | P70: 1.9055e-07 | Q70: 1 | R70: 1.9055e-07 | S70: 1.000001192 | T70: 0.002049419282 | U70: 54.28526914 | V70: -91.72085478 | W70: 88.27914522 | Y70: 1000000000 | Z70: 36309.3025 | AB70: 26.48495467 | AC70: -87.26550555 | AE70: 27.80031447 | AF70: -4.455360149 | AH70: 0 | AI70: 0
A71: 208.93 | B71: 0.20893 | C71: 1.003524431 | D71: 0.08383448694 | E71: 1.000000364 | F71: 0.000853284631 | G71: 1 | H71: 0 | I71: 108.8633386 | J71: 1.561610369 | K71: 1.000893439 | L71: 0.04225575222 | M71: 1.000000474 | N71: 0.0009739918044 | O71: 1 | P71: 2.0893e-07 | Q71: 1 | R71: 2.0893e-07 | S71: 1.000001434 | T71: 0.00224710117 | U71: 53.48168257 | V71: -91.99162295 | W71: 88.00837705 | Y71: 1000000000 | Z71: 43651.7449 | AB71: 25.68649483 | AC71: -87.10841283 | AE71: 27.79518775 | AF71: -4.88322209 | AH71: 0 | AI71: 0
A72: 229.09 | B72: 0.22909 | C72: 1.004235898 | D72: 0.0918803482 | E72: 1.000000438 | F72: 0.0009356194252 | G72: 1 | H72: 0 | I72: 119.3668942 | J72: 1.562418697 | K72: 1.001074079 | L72: 0.046327504 | M72: 1.00000057 | N72: 0.00106797381 | O72: 1 | P72: 2.2909e-07 | Q72: 1 | R72: 2.2909e-07 | S72: 1.000001724 | T72: 0.00246392737 | U72: 52.6770466 | V72: -92.27872583 | W72: 87.72127417 | Y72: 1000000000 | Z72: 52482.2281 | AB72: 24.88801657 | AC72: -86.92681718 | AE72: 27.78903003 | AF72: -5.351921773 | AH72: 0 | AI72: 0
A73: 251.19 | B73: 0.25119 | C73: 1.00509041 | D73: 0.1006867406 | E73: 1.000000526 | F73: 0.001025877295 | G73: 1 | H73: 0 | I73: 130.8812831 | J73: 1.563155741 | K73: 1.001291165 | L73: 0.05078931058 | M73: 1.000000686 | N73: 0.001170999698 | O73: 1 | P73: 2.5119e-07 | Q73: 1 | R73: 2.5119e-07 | S73: 1.000002072 | T73: 0.002701618695 | U73: 51.87166595 | V73: -92.58423077 | W73: 87.41576923 | Y73: 1000000000 | Z73: 63096.4161 | AB73: 24.09002592 | AC73: -86.71930695 | AE73: 27.78164002 | AF73: -5.864938207 | AH73: 0 | AI73: 0
A74: 275.42 | B74: 0.27542 | C74: 1.006116695 | D74: 0.1103238696 | E74: 1.000000633 | F74: 0.001124834208 | G74: 1 | H74: 0 | I74: 143.5054979 | J74: 1.563827896 | K74: 1.00155207 | L74: 0.05567881511 | M74: 1.000000824 | N74: 0.001283955201 | O74: 1 | P74: 2.7542e-07 | Q74: 1 | R74: 2.7542e-07 | S74: 1.000002491 | T74: 0.002962218609 | U74: 51.06524057 | V74: -92.91049324 | W74: 87.08950676 | Y74: 1000000000 | Z74: 75856.1764 | AB74: 23.29246778 | AC74: -86.48414254 | AE74: 27.77277279 | AF74: -6.426366484 | AH74: 0 | AI74: 0
A75: 302 | B75: 0.302 | C75: 1.007349755 | D75: 0.1208719979 | E75: 1.000000761 | F75: 0.001233388649 | G75: 1 | H75: 0 | I75: 157.354162 | J75: 1.564441193 | K75: 1.001865805 | L75: 0.06103946687 | M75: 1.000000991 | N75: 0.001407865905 | O75: 1 | P75: 3.02e-07 | Q75: 1 | R75: 3.02e-07 | S75: 1.000002995 | T75: 0.003248093216 | U75: 50.25712378 | V75: -93.26011082 | W75: 86.73988918 | Y75: 1000000000 | Z75: 91204 | AB75: 22.49499286 | AC75: -86.2192387 | AE75: 27.76213092 | AF75: -7.04088942 | AH75: 0 | AI75: 0
A76: 331.13 | B76: 0.33113 | C76: 1.008829498 | D76: 0.1324010358 | E76: 1.000000914 | F76: 0.001352357422 | G76: 1 | H76: 0 | I76: 172.531479 | J76: 1.565000251 | K76: 1.002242681 | L76: 0.06691035977 | M76: 1.000001191 | N76: 0.001543664155 | O76: 1 | P76: 3.3113e-07 | Q76: 1 | R76: 3.3113e-07 | S76: 1.000003601 | T76: 0.003561393502 | U76: 49.44783295 | V76: -93.63524365 | W76: 86.36475635 | Y76: 1000000000 | Z76: 109647.0769 | AB76: 21.6984557 | AC76: -85.92267361 | AE76: 27.74937725 | AF76: -7.712589008 | AH76: 0 | AI76: 0
A77: 363.08 | B77: 0.36308 | C77: =SQRT(1+(A77/pole1)^2) -> 1.010606197 | D77: =ATAN(A77/pole1) -> 0.1450054786 | E77: =SQRT(1+(A77/Zero1)^2) -> 1.000001099 | F77: =ATAN(A77/Zero1) -> 0.00148284321 | G77: =IF(VIN_nom>Vout, 1, SQRT(1+(A77/z_RHP)^2)) -> 1 | H77: =IF(VIN_nom>Vout, 0, -ATAN(A77/z_RHP)) -> 0 | I77: =SQRT(1+(A77/Pole2)^2) -> 189.1781245 | J77: =ATAN(A77/Pole2) -> 1.565510279 | K77: =SQRT(1+(A77/Zero2)^2) -> 1.002695733 | L77: =ATAN(A77/Zero2) -> 0.07334427632 | M77: =SQRT(1+(A77/pole4)^2) -> 1.000001432 | N77: =ATAN(A77/pole4) -> 0.001692608617 | O77: =SQRT(1+(A77/Zero3)^2) -> 1 | P77: =ATAN(A77/Zero3) -> 3.6308e-07 | Q77: =SQRT(1+(A77/pole5)^2) -> 1 | R77: =ATAN(A77/pole5) -> 3.6308e-07 | S77: =SQRT((1-(Z77/pterm2))^2+(A77/pterm1)^2) -> 1.000004329 | T77: =IF((ATAN((A77/pterm1)/(1-A77^2/pterm2))>0),ATAN((A77/pterm1)/(1-A77^2/pterm2)),PI()+ATAN((A77/pterm1)/(1-A77^2/pterm2))) -> 0.003905023296 | U77: =20*LOG10(((E77*K77*G77*O77)/(C77*I77*S77*M77*Q77))*Adc) -> 48.63641651 | V77: =((F77+L77+H77+R77)-(D77+J77+T77+N77))*radconv -> -94.03875553 | W77: =IF(V77>0,V77,V77+180) -> 85.96124447 | Y77: =IF(U77<0,A77,1000000000) -> 1000000000 | Z77: =A77^2 -> 131827.0864 | AB77: =20*LOG10((K77/(I77*M77))*AEA*Afb) -> 20.90232766 | AC77: -85.5917937 | AE77: =20*LOG10((E77*G77/(C77*S77))*Am) -> 27.73408884 | AF77: =(F77+H77-(D77+T77))*radconv -> -8.446982634 | AH77: =SUM((U78<0)*(U77>0))*A77 -> 0 | AI77: =IF(AH77>0,W75,0) -> 0
A78: 398.11 | B78: =A78/1000 -> 0.39811 | C78: 1.012737992 | D78: 0.1587717337 | E78: 1.000001322 | F78: 0.001625907852 | G78: 1 | H78: 0 | I78: 207.4295641 | J78: 1.565975395 | K78: 1.003240115 | L78: 0.08039142284 | M78: 1.000001722 | N78: 0.001855911332 | O78: 1 | P78: 3.9811e-07 | Q78: 1 | R78: 3.9811e-07 | S78: 1.000005205 | T78: 0.004281778842 | U78: 47.82282507 | V78: -94.47312532 | W78: 85.52687468 | Y78: 1000000000 | Z78: 158491.5721 | AB78: 20.10704481 | AC78: =(L78-(J78+N78))*radconv -> -85.22402768 | AE78: 27.71578026 | AF78: -9.249120455 | AH78: 0 | AI78: 0
A79: 436.52 | B79: 0.43652 | C79: 1.015295078 | D79: 0.1737966576 | E79: 1.000001589 | F79: 0.001782776542 | G79: 1 | H79: 0 | I79: 227.4421047 | J79: 1.566399589 | K79: 1.003894222 | L79: 0.08810932733 | M79: 1.000002071 | N79: 0.002034970804 | O79: 1 | P79: 4.3652e-07 | Q79: 1 | R79: 4.3652e-07 | S79: 1.000006258 | T79: 0.004694886558 | U79: 47.00656875 | V79: -94.94102983 | W79: 85.05897017 | Y79: 1000000000 | Z79: 190549.7104 | AB79: 19.31269888 | AC79: -84.81638824 | AE79: 27.69386987 | AF79: -10.1246666 | AH79: 0 | AI79: 0
A80: 478.63 | B80: 0.47863 | C80: 1.018360442 | D80: 0.1901780903 | E80: 1.000001911 | F80: 0.001954756147 | G80: 1 | H80: 0 | I80: 249.382474 | J80: 1.566786411 | K80: 1.004679959 | L80: 0.09655858083 | M80: 1.000002489 | N80: 0.002231278759 | O80: 1 | P80: 4.7863e-07 | Q80: 1 | R80: 4.7863e-07 | S80: 1.000007523 | T80: 0.005147787911 | U80: 46.18726652 | V80: -95.44501432 | W80: 84.55498568 | Y80: 1000000000 | Z80: 229086.6769 | AB80: 18.51958966 | AC80: -84.36569255 | AE80: 27.66767686 | AF80: -11.07934919 | AH80: 0 | AI80: 0
A81: 524.81 | B81: 0.52481 | C81: 1.022034223 | D81: 0.2080245074 | E81: 1.000002297 | F81: 0.002143357728 | G81: 1 | H81: 0 | I81: 273.4434514 | J81: 1.567139255 | K81: 1.005623956 | L81: 0.1058085524 | M81: 1.000002993 | N81: 0.002446559999 | O81: 1 | P81: 5.2481e-07 | Q81: 1 | R81: 5.2481e-07 | S81: 1.000009045 | T81: 0.00564446206 | U81: 45.36409941 | V81: -95.98775417 | W81: 84.01224583 | Y81: 1000000000 | Z81: 275425.5361 | AB81: 17.72771076 | AC81: -83.86825941 | AE81: 27.63638865 | AF81: -12.11952483 | AH81: 0 | AI81: 0
A82: 575.44 | B82: 0.57544 | C82: 1.026433206 | D82: 0.2274369458 | E82: 1.000002762 | F82: 0.00235013317 | G82: 1 | H82: 0 | I82: 299.8230268 | J82: 1.56746102 | K82: 1.006757599 | L82: 0.1159289701 | M82: 1.000003598 | N82: 0.002682585922 | O82: 1 | P82: 5.7544e-07 | Q82: 1 | R82: 5.7544e-07 | S82: 1.000010875 | T82: 0.006188995625 | U82: 44.53661417 | V82: -96.57145598 | W82: 83.42854402 | Y82: 1000000000 | Z82: 331131.1936 | AB82: 16.93754247 | AC82: -83.32036122 | AE82: 27.5990717 | AF82: -13.25112773 | AH82: 0 | AI82: 0
A83: 630.96 | B83: 0.63096 | C83: 1.031697617 | D83: 0.2485251474 | E83: 1.00000332 | F83: 0.002576879384 | G83: 1 | H83: 0 | I83: 328.7504517 | J83: 1.567754501 | K83: 1.00811898 | L83: 0.1269994194 | M83: 1.000004326 | N83: 0.002941407605 | O83: 1 | P83: 6.3096e-07 | Q83: 1 | R83: 6.3096e-07 | S83: 1.000013074 | T83: 0.006786120417 | U83: 43.70386893 | V83: -97.1982935 | W83: 82.8017065 | Y83: 1000000000 | Z83: 398110.5216 | AB83: 16.14924617 | AC83: -82.71771583 | AE83: 27.55462276 | AF83: -14.48061381 | AH83: 0 | AI83: 0
A84: 691.83 | B84: 0.69183 | C84: 1.037990814 | D84: 0.2713883055 | E84: 1.000003992 | F84: 0.002825474937 | G84: 1 | H84: 0 | I84: 360.4653988 | J84: 1.568022132 | K84: 1.009753114 | L84: 0.1391006778 | M84: 1.000005201 | N84: 0.003225169323 | O84: 1 | P84: 6.9183e-07 | Q84: 1 | R84: 6.9183e-07 | S84: 1.000015719 | T84: 0.00744078319 | U84: 42.86514625 | V84: -97.86975983 | W84: 82.13024017 | Y84: 1000000000 | Z84: 478628.7489 | AB84: 15.36336227 | AC84: -82.05595726 | AE84: 27.50178398 | AF84: -15.81384221 | AH84: 0 | AI84: 0
A85: 758.58 | B85: 0.75858 | C85: 1.045507578 | D85: 0.2961292286 | E85: 1.000004799 | F85: 0.003098084246 | G85: 1 | H85: 0 | I85: 395.2440125 | J85: 1.568266241 | K85: 1.011714498 | L85: 0.1523238111 | M85: 1.000006253 | N85: 0.00353634163 | O85: 1 | P85: 7.5858e-07 | Q85: 1 | R85: 7.5858e-07 | S85: 1.000018898 | T85: 0.008158683349 | U85: 42.01926412 | V85: -98.58700535 | W85: 81.41299465 | Y85: 1000000000 | Z85: 575443.6164 | AB85: 14.58017425 | AC85: -81.33014284 | AE85: 27.43908988 | AF85: -17.25690598 | AH85: 0 | AI85: 0
A86: 831.76 | B86: 0.83176 | C86: 1.054472556 | D86: 0.3228299233 | E86: 1.00000577 | F86: 0.003396953367 | G86: 1 | H86: 0 | I86: 433.3728583 | J86: 1.568488843 | K86: 1.014067254 | L86: 0.16675913 | M86: 1.000007518 | N86: 0.003877488246 | O86: 1 | P86: 8.3176e-07 | Q86: 1 | R86: 8.3176e-07 | S86: 1.00002272 | T86: 0.008945735126 | U86: 41.16531398 | V86: -99.35002662 | W86: 80.64997338 | Y86: 1000000000 | Z86: 691824.6976 | AB86: 13.8004108 | AC86: -80.53536037 | AE86: 27.36490319 | AF86: -18.8147139 | AH86: 0 | AI86: 0
A87: 912.01 | B87: 0.91201 | C87: 1.065152213 | D87: 0.3515707262 | E87: 1.000006937 | F87: 0.003724695862 | G87: 1 | H87: 0 | I87: 475.1853941 | J87: 1.568691883 | K87: 1.01688902 | L87: 0.182508613 | M87: 1.000009038 | N87: 0.004251592371 | O87: 1 | P87: 9.1201e-07 | Q87: 1 | R87: 9.1201e-07 | S87: 1.000027316 | T87: 0.009808820344 | U87: 40.30185162 | V87: -100.1581107 | W87: 79.84188935 | Y87: 1000000000 | Z87: 831762.2401 | AB87: 13.02450607 | AC87: -79.66604942 | AE87: 27.27734555 | AF87: -20.49211349 | AH87: 0 | AI87: 0
A88: 1000 | B88: 1 | C88: 1.077851594 | D88: 0.382400653 | E88: 1.00000834 | F88: 0.004084047738 | G88: 1 | H88: 0 | I88: 521.0307092 | J88: 1.568877053 | K88: 1.020271113 | L88: 0.199672242 | M88: 1.000010866 | N88: 0.004661776943 | O88: 1 | P88: 1e-06 | Q88: 1 | R88: 1e-06 | S88: 1.000032841 | T88: 0.010755143 | U88: 39.42768995 | V88: -101.008869 | W88: 78.99113098 | Y88: 1000000000 | Z88: 1000000 | AB88: 12.25332609 | AC88: -78.71675719 | AE88: 27.17436386 | AF88: -22.29216913 | AH88: 0 | AI88: 0
A89: 1096.5 | B89: 1.0965 | C89: 1.092927678 | D89: 0.4153537731 | E89: 1.000010027 | F89: 0.004478153308 | G89: 1 | H89: 0 | I89: 571.3099956 | J89: 1.569045963 | K89: 1.024323419 | L89: 0.2183594114 | M89: 1.000013065 | N89: 0.005111630927 | O89: 1 | P89: 1.0965e-06 | Q89: 1 | R89: 1.0965e-06 | S89: 1.000039485 | T89: 0.01179298194 | U89: 38.54123888 | V89: -101.898578 | W89: 78.10142198 | Y89: 1000000000 | Z89: 1202312.25 | AB89: 11.48756719 | AC89: -77.6815138 | AE89: 27.05367168 | AF89: -24.21712704 | AH89: 0 | AI89: 0
A90: 1202.3 | B90: 1.2023 | C90: 1.110780824 | D90: 0.4504124771 | E90: 1.000012055 | F90: 0.004910238433 | G90: 1 | H90: 0 | I90: 626.4348661 | J90: 1.569199991 | K90: 1.029173846 | L90: 0.2386705052 | M90: 1.000015707 | N90: 0.00560483633 | O90: 1 | P90: 1.2023e-06 | Q90: 1 | R90: 1.2023e-06 | S90: 1.000047472 | T90: 0.0129308303 | U90: 37.64137599 | V90: -102.8210688 | W90: 77.17893121 | Y90: 1000000000 | Z90: 1445525.29 | AB90: 10.72849504 | AC90: -76.55485761 | AE90: 26.91288095 | AF90: -26.26628007 | AH90: 0 | AI90: =IF(AH90>0,W90,0) -> 0
A91: 1318.3 | B91: 1.3183 | C91: 1.131871091 | D91: 0.4875295217 | E91: 1.000014494 | F91: 0.005383978045 | G91: 1 | H91: 0 | I91: 686.8742468 | J91: 1.569340456 | K91: 1.034974917 | L91: 0.2607108412 | M91: 1.000018884 | N91: 0.006145587693 | O91: 1 | P91: 1.3183e-06 | Q91: 1 | R91: 1.3183e-06 | S91: 1.000057074 | T91: 0.01417836313 | U91: 36.72670972 | V91: -103.7682598 | W91: 76.23174019 | Y91: 1000000000 | Z91: 1737914.89 | AB91: 9.977262876 | AC91: -75.33107018 | AE91: 26.74944684 | AF91: -28.43726517 | AH91: 0 | AI91: 0
A92: 1445.4 | B92: 1.4454 | C92: 1.156699799 | D92: 0.5265847654 | E92: 1.000017423 | F92: 0.005903046854 | G92: 1 | H92: 0 | I92: 753.097064 | J92: 1.569468476 | K92: 1.041901405 | L92: 0.2845655389 | M92: 1.000022701 | N92: 0.00673807923 | O92: 1 | P92: 1.4454e-06 | Q92: 1 | R92: 1.4454e-06 | S92: 1.00006861 | T92: 0.01554525408 | U92: 35.79658953 | V92: -104.7290386 | W92: 75.2709614 | Y92: 1000000000 | Z92: 2089181.16 | AB92: 9.235691283 | AC92: -74.00557899 | AE92: 26.56089825 | AF92: -30.72354243 | AH92: 0 | AI92: 0
A93: 1584.9 | B93: 1.5849 | C93: 1.185890566 | D93: 0.5674986883 | E93: 1.000020949 | F93: 0.006472752851 | G93: 1 | H93: 0 | I93: 825.7806556 | J93: 1.569585351 | K93: 1.050176429 | L93: 0.3103689509 | M93: 1.000027295 | N93: 0.007388369358 | O93: 1 | P93: 1.5849e-06 | Q93: 1 | R93: 1.5849e-06 | S93: 1.000082493 | T93: 0.01704547666 | U93: 34.84841844 | V93: -105.6920691 | W93: 74.30793091 | Y93: 1000000000 | Z93: 2511908.01 | AB93: 8.504089227 | AC93: -72.57110769 | AE93: 26.34432921 | AF93: -33.12105221 | AH93: 0 | AI93: 0
A94: 1737.8 | B94: 1.7378 | C94: 1.220048844 | D94: 0.6100151898 | E94: 1.000025185 | F94: 0.007097178455 | G94: 1 | H94: 0 | I94: 905.4460511 | J94: 1.569691899 | K94: 1.060036037 | L94: 0.3381676294 | M94: 1.000032815 | N94: 0.008101117433 | O94: 1 | P94: 1.7378e-06 | Q94: 1 | R94: 1.7378e-06 | S94: 1.000099177 | T94: 0.01868977555 | U94: 33.88282012 | V94: -106.6407061 | W94: 73.35929392 | Y94: 1000000000 | Z94: 3019948.84 | AB94: 7.785251076 | AC94: -71.02530291 | AE94: 26.09756904 | AF94: -35.61550274 | AH94: 0 | AI94: 0
A95: 1905.5 | B95: 1.9055 | C95: 1.259902383 | D95: 0.6539086106 | E95: 1.000030281 | F95: 0.007782039135 | G95: 1 | H95: 0 | I95: 992.8226915 | J95: 1.569789097 | K95: 1.071773302 | L95: 0.3680433048 | M95: 1.000039454 | N95: 0.008882846674 | O95: 1 | P95: 1.9055e-06 | Q95: 1 | R95: 1.9055e-06 | S95: 1.000119241 | T95: 0.02049319385 | U95: 32.89890264 | V95: -107.5583016 | W95: 72.44169837 | Y95: 1000000000 | Z95: 3630930.25 | AB95: 7.08065719 | AC95: -69.36391167 | AE95: 25.81824545 | AF95: -38.19449914 | AH95: 0 | AI95: 0
A96: 2089.3 | B96: 2.0893 | C96: 1.306188479 | D96: 0.6988441483 | E96: 1.000036404 | F96: 0.008532641299 | G96: 1 | H96: 0 | I96: 1088.587915 | J96: 1.569877705 | K96: 1.085710652 | L96: 0.4000135585 | M96: 1.000047432 | N96: 0.009739613145 | O96: 1 | P96: 2.0893e-06 | Q96: 1 | R96: 2.0893e-06 | S96: 1.000143353 | T96: 0.0224696949 | U96: 31.8976851 | V96: -108.4255519 | W96: 71.57444805 | Y96: 1000000000 | Z96: 4365174.49 | AB96: 6.392974903 | AC96: -67.58631702 | AE96: 25.50471019 | AF96: -40.83935463 | AH96: 0 | AI96: 0
A97: 2290.9 | B97: 2.2909 | C97: 1.359769768 | D97: 0.7445120738 | E97: 1.000043768 | F97: 0.009355923988 | G97: 1 | H97: 0 | I97: 1193.627472 | J97: 1.569958544 | K97: 1.102239187 | L97: 0.4341115162 | M97: 1.000057027 | N97: 0.01067933616 | O97: 1 | P97: 2.2909e-06 | Q97: 1 | R97: 2.2909e-06 | S97: 1.000172352 | T97: 0.0246375378 | U97: 30.87935226 | V97: -109.2239622 | W97: 70.77603776 | Y97: 1000000000 | Z97: 5248222.81 | AB97: 5.72402059 | AC97: -65.69112185 | AE97: 25.15533167 | AF97: -43.53297165 | AH97: 0 | AI97: 0
A98: 2511.9 | B98: 2.5119 | C98: 1.421503864 | D98: 0.7905136855 | E98: 1.00005262 | F98: 0.01025841669 | G98: 1 | H98: 0 | I98: 1308.77501 | J98: 1.570032253 | K98: 1.121784143 | L98: 0.4702895948 | M98: 1.00006856 | N98: 0.01170946713 | O98: 1 | P98: 2.5119e-06 | Q98: 1 | R98: 2.5119e-06 | S98: 1.000207207 | T98: 0.02701389873 | U98: 29.84611824 | V98: -109.9344884 | W98: 70.06551162 | Y98: 1000000000 | Z98: 6309641.61 | AB98: 5.076665652 | AC98: -63.68151601 | AE98: 24.76945259 | AF98: -46.25311628 | AH98: 0 | AI98: 0
A99: 2754.2 | B99: 2.7542 | C99: 1.492340544 | D99: 0.8364685321 | E99: 1.000063261 | F99: 0.01124787246 | G99: 1 | H99: 0 | I99: 1435.020485 | J99: 1.570099473 | K99: 1.14483837 | L99: 0.5084795491 | M99: 1.000082424 | N99: 0.01283885358 | O99: 1 | P99: 2.7542e-06 | Q99: 1 | R99: 2.7542e-06 | S99: 1.000249108 | T99: 0.02961916989 | U99: 28.80016399 | V99: -110.5405099 | W99: 69.4594901 | Y99: 1000000000 | Z99: 7585617.64 | AB99: 4.453380705 | AC99: -61.56195326 | AE99: 24.34678328 | AF99: -48.97871445 | AH99: 0 | AI99: 0
A100: 3020 | B100: 3.02 | C100: 1.573325434 | D100: 0.8820155201 | E100: 1.00007606 | F100: 0.01233326737 | G100: 1 | H100: 0 | I100: 1573.510162 | J100: 1.570160805 | K100: 1.171968027 | L100: 0.5485805364 | M100: 1.0000991 | N100: 0.01407773829 | O100: 1 | P100: 3.02e-06 | Q100: 1 | R100: 3.02e-06 | S100: 1.000299506 | T100: 0.03247695591 | U100: 27.74388289 | V100: -111.028575 | W100: 68.97142499 | Y100: 1000000000 | Z100: 9120400 | AB100: 3.85643859 | AC100: -59.33883288 | AE100: 23.8874443 | AF100: -51.68991516 | AH100: 0 | AI100: 0
A101: 3311.3 | B101: 3.3113 | C101: 1.665441569 | D101: 0.9267434043 | E101: 1.000091439 | F101: 0.01352275812 | G101: 1 | H101: 0 | I101: 1725.2861 | J101: 1.570216713 | K101: 1.203760464 | L101: 0.5903784626 | M101: 1.000119138 | N101: 0.01543542786 | O101: 1 | P101: 3.3113e-06 | Q101: 1 | R101: 3.3113e-06 | S101: 1.000360067 | T101: 0.03560869389 | U101: 26.68175465 | V101: -111.3887083 | W101: 68.61129172 | Y101: 1000000000 | Z101: 10964707.69 | AB101: 3.288919365 | AC101: -57.02498127 | AE101: 23.39283529 | AF101: -54.36391673 | AH101: 0 | AI101: 0
A102: 3630.8 | B102: 3.6308 | C102: 1.769883741 | D102: 0.9703523313 | E102: 1.000109935 | F102: 0.01482735628 | G102: 1 | H102: 0 | I102: 1891.755079 | J102: 1.570267717 | K102: 1.240916342 | L102: 0.6336764404 | M102: 1.000143236 | N102: 0.01692448621 | O102: 1 | P102: 3.6308e-06 | Q102: 1 | R102: 3.6308e-06 | S102: 1.000432896 | T102: 0.03904332409 | U102: 25.61673974 | V102: -111.616787 | W102: 68.38321301 | Y102: 1000000000 | Z102: 13182708.64 | AB102: 2.752682941 | AC102: -54.63242898 | AE102: 22.8640568 | AF102: -56.98456604 | AH102: 0 | AI102: 0
A103: 3981.1 | B103: 3.9811 | C103: 1.887809312 | D103: 1.01253238 | E103: 1.00013217 | F103: 0.01625766033 | G103: 1 | H103: 0 | I103: 2074.271777 | J103: 1.57031423 | K103: 1.284162303 | L103: 0.6781769198 | M103: 1.000172206 | N103: 0.01855700423 | O103: 1 | P103: 3.9811e-06 | Q103: 1 | R103: 3.9811e-06 | S103: 1.000520448 | T103: 0.04280868145 | U103: 24.55318674 | V103: -111.7138061 | W103: 68.28619388 | Y103: 1000000000 | Z103: 15849157.21 | AB103: 2.24996462 | AC103: -52.17894069 | AE103: 22.30322212 | AF103: -59.53509353 | AH103: 0 | AI103: 0
A104: 4365.2 | B104: 4.3652 | C104: 2.020497329 | D104: 1.053044757 | E104: 1.000158902 | F104: 0.01782589593 | G104: 1 | H104: 0 | I104: 2274.399283 | J104: 1.57035665 | K104: 1.334301681 | L104: 0.7235567694 | M104: 1.000207034 | N104: 0.0203469278 | O104: 1 | P104: 4.3652e-06 | Q104: 1 | R104: 4.3652e-06 | S104: 1.000625705 | T104: 0.04693686134 | U104: 23.49486087 | V104: -111.6865581 | W104: 68.31344195 | Y104: 1000000000 | Z104: 19054971.04 | AB104: 1.782323459 | AC104: -49.68385241 | AE104: 21.71253741 | AF104: -62.00295575 | AH104: 0 | AI104: 0
A105: 4786.3 | B105: 4.7863 | C105: 2.169285382 | D105: 1.091695641 | E105: 1.000191036 | F105: 0.01954509718 | G105: 1 | H105: 0 | I105: 2493.804891 | J105: 1.570395333 | K105: 1.392186041 | L105: 0.7694480321 | M105: 1.0002489 | N105: 0.02230912282 | O105: 1 | P105: 4.7863e-06 | Q105: 1 | R105: 4.7863e-06 | S105: 1.000752228 | T105: 0.05146205676 | U105: 22.44545956 | V105: -111.5471042 | W105: 68.45289577 | Y105: 1000000000 | Z105: 22908667.69 | AB105: 1.350909478 | AC105: -47.1691186 | AE105: 21.09455008 | AF105: -64.37825987 | AH105: 0 | AI105: 0
A106: 5248.1 | B106: 5.2481 | C106: 2.335678758 | D106: 1.12836155 | E106: 1.000229673 | F106: 0.02143032881 | G106: 1 | H106: 0 | I106: 2734.416412 | J106: 1.570430618 | K106: 1.458750894 | L106: 0.8154813775 | M106: 1.000299239 | N106: 0.02446076911 | O106: 1 | P106: 5.2481e-06 | Q106: 1 | R106: 5.2481e-06 | S106: 1.000904358 | T106: 0.05642376531 | U106: 21.40774287 | V106: -111.3119343 | W106: 68.68806571 | Y106: 1000000000 | Z106: 27542553.61 | AB106: 0.9561059728 | AC106: -44.65690411 | AE106: 20.4516369 | AF106: -66.65533087 | AH106: 0 | AI106: 0
A107: 5370.3 | B107: 5.3703 | C107: 2.380188061 | D107: 1.137202389 | E107: 1.000240492 | F107: 0.02192916767 | G107: 1 | H107: 0 | I107: 2798.086243 | J107: 1.57043894 | K107: 1.476852626 | L107: 0.8269604309 | M107: 1.000313335 | N107: 0.0250300936 | O107: 1 | P107: 5.3703e-06 | Q107: 1 | R107: 5.3703e-06 | S107: 1.000946955 | T107: 0.05773655641 | U107: 21.15057316 | V107: -111.2405015 | W107: 68.75949853 | Y107: 1000000000 | Z107: 28840122.09 | AB107: 0.8631751831 | AC107: -44.03229949 | AE107: 20.28739797 | AF107: -67.20850968 | AH107: 0 | AI107: 0
A108: 5432.85 | B108: 5.43285 | C108: 2.403040818 | D108: 1.141600815 | E108: 1.000246127 | F108: 0.02218450202 | G108: 1 | H108: 0 | I108: 2830.676652 | J108: 1.570443054 | K108: 1.486192193 | L108: 0.8327275804 | M108: 1.000320675 | N108: 0.02532150508 | O108: 1 | P108: 5.43285e-06 | Q108: 1 | R108: 5.43285e-06 | S108: 1.000969138 | T108: 0.05840850229 | U108: 21.02154134 | V108: -111.2028783 | W108: 68.79712169 | Y108: 1000000000 | Z108: 29515859.12 | AB108: 0.8172844379 | AC108: -43.71879856 | AE108: 20.2042569 | AF108: -67.48439102 | AH108: 0 | AI108: 0
A109: 5495.4 | B109: 5.4954 | C109: 2.425939187 | D109: 1.145916291 | E109: 1.000251826 | F109: 0.02243983347 | G109: 1 | H109: 0 | I109: 2863.267061 | J109: 1.570447075 | K109: 1.495580573 | L109: 0.8384225118 | M109: 1.0003281 | N109: 0.02561291225 | O109: 1 | P109: 5.4954e-06 | Q109: 1 | R109: 5.4954e-06 | S109: 1.000991578 | T109: 0.05908042962 | U109: 20.89422129 | V109: -111.1646337 | W109: 68.83536632 | Y109: 1000000000 | Z109: 30199421.16 | AB109: 0.7724848651 | AC109: -43.40942982 | AE109: 20.12173643 | AF109: -67.75551872 | AH109: 0 | AI109: 0
A110: 5559.4 | B110: 5.5594 | C110: 2.449414252 | D110: 1.150248208 | E110: 1.000257725 | F110: 0.02270108084 | G110: 1 | H110: 0 | I110: 2896.612962 | J110: 1.570451096 | K110: 1.505236159 | L110: 0.8441757391 | M110: 1.000335786 | N110: 0.02591107017 | O110: 1 | P110: 5.5594e-06 | Q110: 1 | R110: 5.5594e-06 | S110: 1.001014803 | T110: 0.05976791379 | U110: 20.76568193 | V110: -111.1249301 | W110: 68.87506991 | Y110: 1000000000 | Z110: 30906928.36 | AB110: 0.7277424239 | AC110: -43.09710772 | AE110: 20.03793951 | AF110: -68.0281409 | AH110: 0 | AI110: 0
A111: 5623.4 | B111: 5.6234 | C111: 2.472934408 | D111: 1.154497803 | E111: 1.000263692 | F111: 0.02296232512 | G111: 1 | H111: 0 | I111: 2929.958864 | J111: 1.570455025 | K111: 1.514940932 | L111: 0.8498554417 | M111: 1.00034356 | N111: 0.02620922347 | O111: 1 | P111: 5.6234e-06 | Q111: 1 | R111: 5.6234e-06 | S111: 1.001038297 | T111: 0.06045537809 | U111: 20.63885533 | V111: -111.0847159 | W111: 68.91528409 | Y111: 1000000000 | Z111: 31622627.56 | AB111: 0.6840750031 | AC111: -42.78899278 | AE111: 19.95478033 | AF111: -68.29604532 | AH111: 0 | AI111: 0
A112: 5688.9 | B112: 5.6889 | C112: 2.497051176 | D112: 1.158764026 | E112: 1.00026987 | F112: 0.02322968906 | G112: 1 | H112: 0 | I112: 2964.086311 | J112: 1.570458955 | K112: 1.52492311 | L112: 0.8555932187 | M112: 1.000351609 | N112: 0.02651435992 | O112: 1 | P112: 5.6889e-06 | Q112: 1 | R112: 5.6889e-06 | S112: 1.001062621 | T112: 0.06115893403 | U112: 20.5107896 | V112: -111.0430985 | W112: 68.95690151 | Y112: 1000000000 | Z112: 32363583.21 | AB112: 0.6404635898 | AC112: -42.47795056 | AE112: 19.87032601 | AF112: -68.56547387 | AH112: 0 | AI112: 0
A113: 5754.4 | B113: 5.7544 | C113: 2.521212523 | D113: 1.162948556 | E113: 1.000276119 | F113: 0.02349704968 | G113: 1 | H113: 0 | I113: 2998.213758 | J113: 1.570462795 | K113: 1.534954837 | L113: 0.8612561813 | M113: 1.00035975 | N113: 0.02681949143 | O113: 1 | P113: 5.7544e-06 | Q113: 1 | R113: 5.7544e-06 | S113: 1.001087225 | T113: 0.06186246868 | U113: 20.38443762 | V113: -111.0010805 | W113: 68.99891951 | Y113: 1000000000 | Z113: 33113119.36 | AB113: 0.5979110728 | AC113: -42.17118947 | AE113: 19.78652654 | AF113: -68.83022071 | AH113: 0 | AI113: 0
A114: 5821.4 | B114: 5.8214 | C114: 2.545971981 | D114: 1.167146668 | E114: 1.000282586 | F114: 0.02377052959 | G114: 1 | H114: 0 | I114: 3033.122749 | J114: 1.570466634 | K114: 1.545266558 | L114: 0.8669725705 | M114: 1.000368175 | N114: 0.02713160552 | O114: 1 | P114: 5.8214e-06 | Q114: 1 | R114: 5.8214e-06 | S114: 1.001112684 | T114: 0.06258209252 | U114: 20.25692465 | V114: -110.9577507 | W114: 69.0422493 | Y114: 1000000000 | Z114: 33888697.96 | AB114: 0.5554461308 | AC114: -41.86176726 | AE114: 19.70147852 | AF114: -69.09631698 | AH114: 0 | AI114: 0
A115: 5888.4 | B115: 5.8884 | C115: 2.570775445 | D115: 1.171263843 | E115: 1.000289127 | F115: 0.02404400594 | G115: 1 | H115: 0 | I115: 3068.03174 | J115: 1.570470385 | K115: 1.555628103 | L115: 0.8726129918 | M115: 1.000376697 | N115: 0.02744371432 | O115: 1 | P115: 5.8884e-06 | Q115: 1 | R115: 5.8884e-06 | S115: 1.001138438 | T115: 0.06330169358 | U115: 20.1311238 | V115: -110.9141298 | W115: 69.08587023 | Y115: 1000000000 | Z115: 34673254.56 | AB115: 0.5140223853 | AC115: -41.55669238 | AE115: 19.61710141 | AF115: -69.35777477 | AH115: 0 | AI115: 0
A116: 5957 | B116: 5.957 | C116: 2.596215508 | D116: 1.175397757 | E116: 1.000295902 | F116: 0.02432400934 | G116: 1 | H116: 0 | I116: 3103.774379 | J116: 1.570474138 | K116: 1.566287679 | L116: 0.8783106026 | M116: 1.000385523 | N116: 0.02776327092 | O116: 1 | P116: 5.957e-06 | Q116: 1 | R116: 5.957e-06 | S116: 1.001165111 | T116: 0.06403845525 | U116: 20.00405175 | V116: -110.8692273 | W116: 69.13077274 | Y116: 1000000000 | Z116: 35485849 | AB116: 0.4726548633 | AC116: -41.24876763 | AE116: 19.53139689 | AF116: -69.62080094 | AH116: 0 | AI116: 0
A117: 6025.6 | B117: 6.0256 | C117: 2.621699077 | D117: 1.179451374 | E117: 1.000302755 | F117: 0.02460400893 | G117: 1 | H117: 0 | I117: 3139.517018 | J117: 1.570477806 | K117: 1.576997412 | L117: 0.8839310063 | M117: 1.000394452 | N117: 0.02808282185 | O117: 1 | P117: 6.0256e-06 | Q117: 1 | R117: 6.0256e-06 | S117: 1.001192094 | T117: 0.06477519247 | U117: 19.87869265 | V117: -110.8241413 | W117: 69.1758587 | Y117: 1000000000 | Z117: 36307855.36 | AB117: 0.4323123673 | AC117: -40.9452613 | AE117: 19.44638028 | AF117: -69.87922524 | AH117: 0 | AI117: 0
A118: 6095.8 | B118: 6.0958 | C118: 2.647820744 | D118: 1.18351869 | E118: 1.000309849 | F118: 0.02489053513 | G118: 1 | H118: 0 | I118: 3176.093305 | J118: 1.570481475 | K118: 1.588007802 | L118: 0.8896038322 | M118: 1.000403695 | N118: 0.02840981992 | O118: 1 | P118: 6.0958e-06 | Q118: 1 | R118: 6.0958e-06 | S118: 1.001220025 | T118: 0.06552908747 | U118: 19.75214172 | V118: -110.7778724 | W118: 69.22212763 | Y118: 1000000000 | Z118: 37158777.64 | AB118: 0.3920569298 | AC118: -40.6391781 | AE118: 19.36008479 | AF118: -70.13904354 | AH118: 0 | AI118: 0
A119: 6166 | B119: 6.166 | C119: 2.673985358 | D119: 1.187506475 | E119: 1.000317026 | F119: 0.02517705723 | G119: 1 | H119: 0 | I119: 3212.669592 | J119: 1.570485059 | K119: 1.599068591 | L119: 0.895198358 | M119: 1.000413044 | N119: 0.02873681192 | O119: 1 | P119: 6.166e-06 | Q119: 1 | R119: 6.166e-06 | S119: 1.001248279 | T119: 0.06628295627 | U119: 19.62730187 | V119: -110.7315265 | W119: 69.26847351 | Y119: 1000000000 | Z119: 38019556 | AB119: 0.3528087706 | AC119: -40.33757603 | AE119: 19.2744931 | AF119: -70.39430375 | AH119: 0 | AI119: 0
A120: 6237.8 | B120: 6.2378 | C120: 2.700789441 | D120: 1.191505157 | E120: 1.000324451 | F120: 0.02547010548 | G120: 1 | H120: 0 | I120: 3250.079526 | J120: 1.570488642 | K120: 1.610432531 | L120: 0.9008407174 | M120: 1.000422718 | N120: 0.02907125036 | O120: 1 | P120: 6.2378e-06 | Q120: 1 | R120: 6.2378e-06 | S120: 1.001277512 | T120: 0.06705397987 | U120: 19.50134505 | V120: -110.6840998 | W120: 69.31590024 | Y120: 1000000000 | Z120: 38910148.84 | AB120: 0.313675116 | AC120: -40.03365984 | AE120: 19.18766994 | AF120: -70.65079732 | AH120: 0 | AI120: 0
A121: 6309.6 | B121: 6.3096 | C121: 2.72763586 | D121: 1.195425187 | E121: 1.000331962 | F121: 0.02576314936 | G121: 1 | H121: 0 | I121: 3287.48946 | J121: 1.570492143 | K121: 1.621847021 | L121: 0.9064038305 | M121: 1.000432503 | N121: 0.02940568231 | O121: 1 | P121: 6.3096e-06 | Q121: 1 | R121: 6.3096e-06 | S121: 1.001307082 | T121: 0.06782497543 | U121: 19.37709494 | V121: -110.6367007 | W121: 69.36329928 | Y121: 1000000000 | Z121: 39811052.16 | AB121: 0.2755295871 | AC121: -39.73427909 | AE121: 19.10156535 | AF121: -70.90278315 | AH121: 0 | AI121: 0
A122: 6383.05 | B122: 6.38305 | C122: 2.755141738 | D122: 1.199356192 | E122: 1.000339734 | F122: 0.02606292294 | G122: 1 | H122: 0 | I122: 3325.759093 | J122: 1.570495644 | K122: 1.633575024 | L122: 0.9120141647 | M122: 1.000442629 | N122: 0.02974779285 | O122: 1 | P122: 6.38305e-06 | Q122: 1 | R122: 6.38305e-06 | S122: 1.001337682 | T122: 0.06861365951 | U122: 19.25171357 | V122: -110.5882926 | W122: 69.41170742 | Y122: 1000000000 | Z122: 40743327.3 | AB122: 0.2374972563 | AC122: -39.43263265 | AE122: 19.01421631 | AF122: -71.15602565 | AH122: 0 | AI122: 0
A123: 6456.5 | B123: 6.4565 | C123: 2.782689348 | D123: 1.203209425 | E123: 1.000347596 | F123: 0.02636269185 | G123: 1 | H123: 0 | I123: 3364.028727 | J123: 1.570499064 | K123: 1.645353711 | L123: 0.9175443448 | M123: 1.000452872 | N123: 0.03008989643 | O123: 1 | P123: 6.4565e-06 | Q123: 1 | R123: 6.4565e-06 | S123: 1.001368636 | T123: 0.06940231358 | U123: 19.12803445 | V123: -110.5400145 | W123: 69.45998551 | Y123: 1000000000 | Z123: 41686392.25 | AB123: 0.2004339606 | AC123: -39.13557375 | AE123: 18.92760049 | AF123: -71.40481067 | AH123: 0 | AI123: 0
A124: 6531.7 | B124: 6.5317 | C124: 2.810935255 | D124: 1.20707616 | E124: 1.000355739 | F124: 0.02666959805 | G124: 1 | H124: 0 | I124: 3403.210162 | J124: 1.570502487 | K124: 1.657464415 | L124: 0.9231246793 | M124: 1.00046348 | N124: 0.03044014358 | O124: 1 | P124: 6.5317e-06 | Q124: 1 | R124: 6.5317e-06 | S124: 1.001400694 | T124: 0.07020972646 | U124: 19.00312993 | V124: -110.4907688 | W124: 69.50923116 | Y124: 1000000000 | Z124: 42663104.89 | AB124: 0.1634591488 | AC124: -38.83610791 | AE124: 18.83967079 | AF124: -71.65503517 | AH124: 0 | AI124: 0
A125: 6606.9 | B125: 6.6069 | C125: 2.839222354 | D125: 1.210865902 | E125: 1.000363976 | F125: 0.02697649923 | G125: 1 | H125: 0 | I125: 3442.391598 | J125: 1.570505831 | K125: 1.669625983 | L125: 0.9286238886 | M125: 1.000474211 | N125: 0.03079038326 | O125: 1 | P125: 6.6069e-06 | Q125: 1 | R125: 6.6069e-06 | S125: 1.001433123 | T125: 0.07101710715 | U125: 18.87992532 | V125: -110.4417535 | W125: 69.55824648 | Y125: 1000000000 | Z125: 43651127.61 | AB125: 0.1274355441 | AC125: -38.54128531 | AE125: 18.75248977 | AF125: -71.90084676 | AH125: 0 | AI125: 0
A126: 6683.85 | B126: 6.68385 | C126: 2.868209098 | D126: 1.214666399 | E126: 1.000372502 | F126: 0.02729053714 | G126: 1 | H126: 0 | I126: 3482.484835 | J126: 1.570509176 | K126: 1.682122069 | L126: 0.934168585 | M126: 1.000485319 | N126: 0.03114876564 | O126: 1 | P126: 6.68385e-06 | Q126: 1 | R126: 6.68385e-06 | S126: 1.001466689 | T126: 0.07184324292 | U126: 18.75557077 | V126: -110.3918803 | W126: 69.60811965 | Y126: 1000000000 | Z126: 44673850.82 | AB126: 0.09152617023 | AC126: -38.24432302 | AE126: 18.6640446 | AF126: -72.14794028 | AH126: 0 | AI126: 0
A127: 6760.8 | B127: 6.7608 | C127: 2.897236441 | D127: 1.218390796 | E127: 1.000381127 | F127: 0.02760456965 | G127: 1 | H127: 0 | I127: 3522.578073 | J127: 1.570512444 | K127: 1.694669106 | L127: 0.9396313433 | M127: 1.000496555 | N127: 0.03150714002 | O127: 1 | P127: 6.7608e-06 | Q127: 1 | R127: 6.7608e-06 | S127: 1.001500645 | T127: 0.07266934421 | U127: 18.63291121 | V127: -110.3423351 | W127: 69.65766489 | Y127: 1000000000 | Z127: 45708416.64 | AB127: 0.05654882246 | AC127: -37.95205062 | AE127: 18.57636239 | AF127: -72.39067186 | AH127: 0 | AI127: 0
A128: 6839.55 | B128: 6.83955 | C128: 2.926983561 | D128: 1.222125776 | E128: 1.000390056 | F128: 0.02792594232 | G128: 1 | H128: 0 | I128: 3563.609164 | J128: 1.570515712 | K128: 1.707561221 | L128: 0.9451385983 | M128: 1.000508188 | N128: 0.03187388904 | O128: 1 | P128: 6.83955e-06 | Q128: 1 | R128: 6.83955e-06 | S128: 1.001535796 | T128: 0.07351473339 | U128: 18.50909464 | V128: -110.2920111 | W128: 69.70798885 | Y128: 1000000000 | Z128: 46779444.2 | AB128: 0.02168646706 | AC128: -37.6577086 | AE128: 18.48740817 | AF128: -72.63469442 | AH128: 0 | AI128: 0
A129: 6918.3 | B129: 6.9183 | C129: 2.956770689 | D129: 1.225785553 | E129: 1.000399088 | F129: 0.02824730922 | G129: 1 | H129: 0 | I129: 3604.640255 | J129: 1.570518907 | K129: 1.72050435 | L129: 0.9505631551 | M129: 1.000519954 | N129: 0.03224062948 | O129: 1 | P129: 6.9183e-06 | Q129: 1 | R129: 6.9183e-06 | S129: 1.001571354 | T129: 0.07436008562 | U129: 18.38696791 | V129: -110.24211 | W129: 69.75788995 | Y129: 1000000000 | Z129: 47862874.89 | AB129: -0.01226308168 | AC129: -37.36810009 | AE129: 18.399231 | AF129: -72.87440635 | AH129: 0 | AI129: 0
A130: 6998.9 | B130: 6.9989 | C130: 2.987297761 | D130: 1.229455679 | E130: 1.000408439 | F130: 0.02857621965 | G130: 1 | H130: 0 | I130: 3646.635252 | J130: 1.570522101 | K130: 1.733803172 | L130: 0.9560311143 | M130: 1.000532137 | N130: 0.03261597643 | O130: 1 | P130: 6.9989e-06 | Q130: 1 | R130: 6.9989e-06 | S130: 1.001608168 | T130: 0.07522525823 | U130: 18.26367912 | V130: -110.1915115 | W130: 69.80848847 | Y130: 1000000000 | Z130: 48984601.21 | AB130: -0.04609643027 | AC130: -37.07649795 | AE130: 18.30977555 | AF130: -73.11541459 | AH130: 0 | AI130: 0
A131: 7079.5 | B131: 7.0795 | C131: 3.017864256 | D131: 1.233051505 | E131: 1.000417899 | F131: 0.02890512389 | G131: 1 | H131: 0 | I131: 3688.630248 | J131: 1.570525223 | K131: 1.747153042 | L131: 0.9614156718 | M131: 1.00054446 | N131: 0.03299131419 | O131: 1 | P131: 7.0795e-06 | Q131: 1 | R131: 7.0795e-06 | S131: 1.001645408 | T131: 0.07609039124 | U131: 18.14207473 | V131: -110.141428 | W131: 69.85857201 | Y131: 1000000000 | Z131: 50119320.25 | AB131: -0.0790362498 | AC131: -36.78966967 | AE131: 18.22111098 | AF131: -73.35216394 | AH131: 0 | AI131: 0
A132: 7161.95 | B132: 7.16195 | C132: 3.049171896 | D132: 1.236655225 | E132: 1.000427687 | F132: 0.02924157095 | G132: 1 | H132: 0 | I132: 3731.589149 | J132: 1.570528344 | K132: 1.760860938 | L132: 0.9668391814 | M132: 1.000557213 | N132: 0.0333752574 | O132: 1 | P132: 7.16195e-06 | Q132: 1 | R132: 7.16195e-06 | S132: 1.001683944 | T132: 0.07697534008 | U132: 18.01937897 | V132: -110.090761 | W132: 69.90923902 | Y132: 1000000000 | Z132: 51293527.8 | AB132: -0.1118387038 | AC132: -36.50110261 | AE132: 18.13121767 | AF132: -73.59006871 | AH132: 0 | AI132: 0
A133: 7244.4 | B133: 7.2444 | C133: 3.080518329 | D133: 1.240185649 | E133: 1.000437589 | F133: 0.02957801138 | G133: 1 | H133: 0 | I133: 3774.54805 | J133: 1.570531394 | K133: 1.774619828 | L133: 0.9721787474 | M133: 1.000570112 | N133: 0.03375919076 | O133: 1 | P133: 7.2444e-06 | Q133: 1 | R133: 7.2444e-06 | S133: 1.001722925 | T133: 0.07786024652 | U133: 17.89835984 | V133: -110.0406974 | W133: 69.95930265 | Y133: 1000000000 | Z133: 52481331.36 | AB133: -0.1437680187 | AC133: -36.21734053 | AE133: 18.04212785 | AF133: -73.8237719 | AH133: 0 | AI133: 0
A134: 7328.75 | B134: 7.32875 | C134: 3.11262604 | D134: 1.243723799 | E134: 1.000447836 | F134: 0.02992219791 | G134: 1 | H134: 0 | I134: 3818.496908 | J134: 1.570534444 | K134: 1.788747324 | L134: 0.9775561986 | M134: 1.000583462 | N134: 0.03415196128 | O134: 1 | P134: 7.32875e-06 | Q134: 1 | R134: 7.32875e-06 | S134: 1.001763265 | T134: 0.07876550063 | U134: 17.7762438 | V134: -109.9901339 | W134: 70.00986606 | Y134: 1000000000 | Z134: 53710576.56 | AB134: -0.1755602537 | AC134: -35.93191407 | AE134: 17.95180405 | AF134: -74.05863978 | AH134: 0 | AI134: 0
A135: 7413.1 | B135: 7.4131 | C135: 3.144771921 | D135: 1.247189658 | E135: 1.000458202 | F135: 0.03026637735 | G135: 1 | H135: 0 | I135: 3862.445766 | J135: 1.570537423 | K135: 1.802925734 | L135: 0.9828492231 | M135: 1.000596966 | N135: 0.03454472126 | O135: 1 | P135: 7.4131e-06 | Q135: 1 | R135: 7.4131e-06 | S135: 1.001804072 | T135: 0.07967070934 | U135: 17.65579641 | V135: -109.9402591 | W135: 70.05974094 | Y135: 1000000000 | Z135: 54954051.61 | AB135: -0.2064996885 | AC135: -35.65132032 | AE135: 17.8622961 | AF135: -74.28936347 | AH135: 0 | AI135: 0
A136: 7499.45 | B136: 7.49945 | C136: 3.177718333 | D136: 1.250665017 | E136: 1.000468936 | F136: 0.03061871011 | G136: 1 | H136: 0 | I136: 3907.436684 | J136: 1.570540405 | K136: 1.817491819 | L136: 0.9881820529 | M136: 1.00061095 | N136: 0.03494678283 | O136: 1 | P136: 7.49945e-06 | Q136: 1 | R136: 7.49945e-06 | S136: 1.001846329 | T136: 0.08059733366 | U136: 17.53417836 | V136: -109.8899406 | W136: 70.11005941 | Y136: 1000000000 | Z136: 56241750.3 | AB136: -0.2373196378 | AC136: -35.36897892 | AE136: 17.771498 | AF136: -74.52139136 | AH136: 0 | AI136: 0
A137: 7585.8 | B137: 7.5858 | C137: 3.210702338 | D137: 1.254069011 | E137: 1.000479794 | F137: 0.03097103526 | G137: 1 | H137: 0 | I137: 3952.427601 | J137: 1.570543318 | K137: 1.832108769 | L137: 0.9934299371 | M137: 1.000625095 | N137: 0.03534883309 | O137: 1 | P137: 7.5858e-06 | Q137: 1 | R137: 7.5858e-06 | S137: 1.001889074 | T137: 0.08152390931 | U137: 17.41422264 | V137: -109.8403933 | W137: 70.15960667 | Y137: 1000000000 | Z137: 57544361.64 | AB137: -0.2673061359 | AC137: -35.0915 | AE137: 17.68152878 | AF137: -74.74932797 | AH137: 0 | AI137: 0
A138: 7674.15 | B138: 7.67415 | C138: 3.244488016 | D138: 1.257480172 | E138: 1.000491033 | F138: 0.03133151284 | G138: 1 | H138: 0 | I138: 3998.460578 | J138: 1.570546231 | K138: 1.847115657 | L138: 0.9987132564 | M138: 1.000639736 | N138: 0.03576018362 | O138: 1 | P138: 7.67415e-06 | Q138: 1 | R138: 7.67415e-06 | S138: 1.001933316 | T138: 0.08247189495 | U138: 17.2931658 | V138: -109.7905188 | W138: 70.20948124 | Y138: 1000000000 | Z138: 58892578.22 | AB138: -0.2971544019 | AC138: -34.81252364 | AE138: 17.5903202 | AF138: -74.97843482 | AH138: 0 | AI138: 0
A139: 7762.5 | B139: 7.7625 | C139: 3.278310669 | D139: 1.260820984 | E139: 1.000502401 | F139: 0.03169198228 | G139: 1 | H139: 0 | I139: 4044.493555 | J139: 1.570549077 | K139: 1.862173272 | L139: 1.003911277 | M139: 1.000654546 | N139: 0.03617152205 | O139: 1 | P139: 7.7625e-06 | Q139: 1 | R139: 7.7625e-06 | S139: 1.001978069 | T139: 0.08341982848 | U139: 17.17376273 | V139: -109.7414938 | W139: 70.2585062 | Y139: 1000000000 | Z139: 60256406.25 | AB139: -0.3261895536 | AC139: -34.53843007 | AE139: 17.49995228 | AF139: -75.20350849 | AH139: 0 | AI139: 0
A140: 7852.9 | B140: 7.8529 | C140: 3.312955205 | D140: 1.264168669 | E140: 1.000514168 | F140: 0.03206080723 | G140: 1 | H140: 0 | I140: 4091.594643 | J140: 1.570551923 | K140: 1.877631506 | L140: 1.009143467 | M140: 1.000669875 | N140: 0.03659239216 | O140: 1 | P140: 7.8529e-06 | Q140: 1 | R140: 7.8529e-06 | S140: 1.00202439 | T140: 0.0843897025 | U140: 17.05325758 | V140: -109.6922291 | W140: 70.30777088 | Y140: 1000000000 | Z140: 61668038.41 | AB140: -0.3550861846 | AC140: -34.26292478 | AE140: 17.40834377 | AF140: -75.42975429 | AH140: 0 | AI140: 0
A141: 7943.3 | B141: 7.9433 | C141: =SQRT(1+(A141/pole1)^2) -> 3.347636101 | D141: =ATAN(A141/pole1) -> 1.267447028 | E141: =SQRT(1+(A141/Zero1)^2) -> 1.000526071 | F141: =ATAN(A141/Zero1) -> 0.03242962345 | G141: =IF(VIN_nom>Vout, 1, SQRT(1+(A141/z_RHP)^2)) -> 1 | H141: =IF(VIN_nom>Vout, 0, -ATAN(A141/z_RHP)) -> 0 | I141: =SQRT(1+(A141/Pole2)^2) -> 4138.695731 | J141: =ATAN(A141/Pole2) -> 1.570554705 | K141: =SQRT(1+(A141/Zero2)^2) -> 1.893140301 | L141: =ATAN(A141/Zero2) -> 1.014290072 | M141: =SQRT(1+(A141/pole4)^2) -> 1.000685382 | N141: =ATAN(A141/pole4) -> 0.0370132493 | O141: =SQRT(1+(A141/Zero3)^2) -> 1 | P141: =ATAN(A141/Zero3) -> 7.9433e-06 | Q141: =SQRT(1+(A141/pole5)^2) -> 1 | R141: =ATAN(A141/pole5) -> 7.9433e-06 | S141: =SQRT((1-(Z141/pterm2))^2+(A141/pterm1)^2) -> 1.002071246 | T141: =IF((ATAN((A141/pterm1)/(1-A141^2/pterm2))>0),ATAN((A141/pterm1)/(1-A141^2/pterm2)),PI()+ATAN((A141/pterm1)/(1-A141^2/pterm2))) -> 0.08535952071 | U141: =20*LOG10(((E141*K141*G141*O141)/(C141*I141*S141*M141*Q141))*Adc) -> 16.93439737 | V141: =((F141+L141+H141+R141)-(D141+J141+T141+N141))*radconv -> -109.6438889 | W141: =IF(V141>0,V141,V141+180) -> 70.35611111 | Y141: =IF(U141<0,A141,1000000000) -> 1000000000 | Z141: =A141^2 -> 63096014.89 | AB141: =20*LOG10((K141/(I141*M141))*AEA*Afb) -> -0.3831899969 | AC141: -33.99231875 | AE141: =20*LOG10((E141*G141/(C141*S141))*Am) -> 17.31758737 | AF141: =(F141+H141-(D141+T141))*radconv -> -75.65202526 | AH141: =SUM((U142<0)*(U141>0))*A141 -> 0 | AI141: 0
A142: 8035.8 | B142: =A142/1000 -> 8.0358 | C142: 3.383159107 | D142: 1.270731933 | E142: 1.000538391 | F142: 0.03280699816 | G142: 1 | H142: 0 | I142: 4186.890981 | J142: 1.570557486 | K142: 1.909060418 | L142: 1.019469536 | M142: 1.000701431 | N142: 0.0374438694 | O142: 1 | P142: 8.0358e-06 | Q142: 1 | R142: 8.0358e-06 | S142: 1.002119745 | T142: 0.08635180945 | U142: 16.81443541 | V142: -109.5953974 | W142: 70.40460257 | Y142: 1000000000 | Z142: 64574081.64 | AB142: -0.4111549355 | AC142: =(L142-(J142+N142))*radconv -> -33.72038939 | AE142: 17.22559035 | AF142: -75.87546845 | AH142: 0 | AI142: 0
A143: 8128.3 | B143: 8.1283 | C143: 3.41871786 | D143: 1.273948539 | E143: 1.000550854 | F143: 0.03318436353 | G143: 1 | H143: 0 | I143: 4235.086232 | J143: 1.570560204 | K143: 1.925030901 | L143: 1.024563195 | M143: 1.000717667 | N143: 0.03787447562 | O143: 1 | P143: 8.1283e-06 | Q143: 1 | R143: 8.1283e-06 | S143: 1.002168804 | T143: 0.08734403839 | U143: 16.69610926 | V143: -109.5479016 | W143: 70.45209837 | Y143: 1000000000 | Z143: 66069260.89 | AB143: -0.4383473055 | AC143: -33.45337189 | AE143: 17.13445657 | AF143: -76.09499547 | AH143: 0 | AI143: 0
A144: 8222.95 | B144: 8.22295 | C144: 3.455138966 | D144: 1.277171341 | E144: 1.000563754 | F144: 0.03357049031 | G144: 1 | H144: 0 | I144: 4284.401696 | J144: 1.570562922 | K144: 1.941423429 | L144: 1.029688364 | M144: 1.000734472 | N144: 0.03831507597 | O144: 1 | P144: 8.22295e-06 | Q144: 1 | R144: 8.22295e-06 | S144: 1.002219584 | T144: 0.08835926737 | U144: 16.57668283 | V144: -109.5003438 | W144: 70.49965622 | Y144: 1000000000 | Z144: 67616906.7 | AB144: -0.4654004426 | AC144: -33.18512161 | AE144: 17.04208328 | AF144: -76.31569331 | AH144: 0 | AI144: 0
A145: 8270.275 | B145: 8.270275 | C145: 3.473362765 | D145: 1.278757388 | E145: 1.00057026 | F145: 0.03376354995 | G145: 1 | H145: 0 | I145: 4309.059428 | J145: 1.570564258 | K145: 1.949638576 | L145: 1.032218596 | M145: 1.000742947 | N145: 0.03853537058 | O145: 1 | P145: 8.270275e-06 | Q145: 1 | R145: 8.270275e-06 | S145: 1.002245193 | T145: 0.08886685789 | U145: 16.51758214 | V145: -109.476963 | W145: 70.52303695 | Y145: 1000000000 | Z145: 68397448.58 | AB145: -0.4786431701 | AC145: -33.05284847 | AE145: 16.99622531 | AF145: -76.42458843 | AH145: 0 | AI145: 0
A146: 8317.6 | B146: 8.3176 | C146: 3.49159521 | D146: 1.280326875 | E146: 1.000576803 | F146: 0.03395660708 | G146: 1 | H146: 0 | I146: 4333.717161 | J146: 1.570565578 | K146: 1.957866099 | L146: 1.034727578 | M146: 1.000751471 | N146: 0.03875566144 | O146: 1 | P146: 8.3176e-06 | Q146: 1 | R146: 8.3176e-06 | S146: 1.00227095 | T146: 0.08937443231 | U146: 16.45888279 | V146: -109.4538491 | W146: 70.54615087 | Y146: 1000000000 | Z146: 69182469.76 | AB146: -0.4917012075 | AC146: -32.92179176 | AE146: 16.950584 | AF146: -76.53253393 | AH146: 0 | AI146: 0
A147: 8366.05 | B147: 8.36605 | C147: 3.510269889 | D147: 1.281916778 | E147: 1.00058354 | F147: 0.03415425089 | G147: 1 | H147: 0 | I147: 4358.961051 | J147: 1.570566914 | K147: 1.966301865 | L147: 1.037274436 | M147: 1.000760248 | N147: 0.03898118512 | O147: 1 | P147: 8.36605e-06 | Q147: 1 | R147: 8.36605e-06 | S147: 1.002297471 | T147: 0.08989405591 | U147: 16.39919847 | V147: -109.4304631 | W147: 70.56953692 | Y147: 1000000000 | Z147: 69990792.6 | AB147: -0.5048817874 | AC147: -32.78886568 | AE147: 16.90408026 | AF147: -76.64207674 | AH147: 0 | AI147: 0
A148: 8414.5 | B148: 8.4145 | C148: 3.528953347 | D148: 1.28348985 | E148: 1.000590316 | F148: 0.03435189203 | G148: 1 | H148: 0 | I148: 4384.204942 | J148: 1.570568235 | K148: =SQRT(1+(A148/Zero2)^2) -> 1.974750276 | L148: =ATAN(A148/Zero2) -> 1.039799518 | M148: 1.000769075 | N148: 0.03920670482 | O148: 1 | P148: 8.4145e-06 | Q148: 1 | R148: 8.4145e-06 | S148: 1.002324145 | T148: 0.09041366245 | U148: 16.33992402 | V148: -109.4073584 | W148: 70.59264159 | Y148: 1000000000 | Z148: 70803810.25 | AB148: -0.5178757392 | AC148: -32.65718615 | AE148: 16.85779976 | AF148: -76.75065437 | AH148: 0 | AI148: 0
A149: 8462.95 | B149: 8.46295 | C149: 3.547645446 | D149: 1.285046349 | E149: 1.000597132 | F149: 0.03454953049 | G149: 1 | H149: 0 | I149: 4409.448833 | J149: 1.570569541 | K149: 1.983211171 | L149: 1.042303071 | M149: 1.000777954 | N149: 0.03943222054 | O149: 1 | P149: 8.46295e-06 | Q149: 1 | R149: 8.46295e-06 | S149: 1.002350974 | T149: 0.09093325182 | U149: 16.28105412 | V149: -109.3845358 | W149: 70.6154642 | Y149: 1000000000 | Z149: 71621522.7 | AB149: -0.5306864638 | AC149: -32.52673907 | AE149: 16.81174059 | AF149: -76.85828163 | AH149: 0 | AI149: 0
A150: 8511.4 | B150: 8.5114 | C150: 3.56634605 | D150: 1.286586528 | E150: 1.000603987 | F150: 0.03474716625 | G150: 1 | H150: 0 | I150: 4434.692723 | J150: 1.570570832 | K150: 1.991684391 | L150: 1.044785337 | M150: 1.000786884 | N150: 0.03965773224 | O150: 1 | P150: 8.5114e-06 | Q150: 1 | R150: 8.5114e-06 | S150: 1.002377956 | T150: 0.09145282393 | U150: 16.22258356 | V150: -109.3619958 | W150: 70.63800416 | Y150: 1000000000 | Z150: 72443929.96 | AB150: -0.5433172881 | AC150: -32.39751052 | AE150: 16.76590084 | AF150: -76.96497299 | AH150: 0 | AI150: 0
A151: 8560.95 | B151: 8.56095 | C151: 3.585479887 | D151: 1.288145054 | E151: 1.000611037 | F151: 0.03494928629 | G151: 1 | H151: 0 | I151: 4460.509747 | J151: 1.570572137 | K151: 2.000362569 | L151: 1.047302194 | M151: 1.000796068 | N151: 0.03988835975 | O151: 1 | P151: 8.56095e-06 | Q151: 1 | R151: 8.56095e-06 | S151: 1.002405709 | T151: 0.09198417435 | U151: 16.16319318 | V151: -109.339237 | W151: 70.66076302 | Y151: 1000000000 | Z151: 73289864.9 | AB151: -0.5560521985 | AC151: -32.26659401 | AE151: 16.71924537 | AF151: -77.07313347 | AH151: 0 | AI151: 0
A152: 8610.5 | B152: 8.6105 | C152: 3.60462234 | D152: 1.289687031 | E152: 1.000618129 | F152: 0.03515140347 | G152: 1 | H152: 0 | I152: 4486.32677 | J152: 1.570573427 | K152: 2.009053309 | L152: 1.049797291 | M152: 1.000805306 | N152: 0.04011898301 | O152: 1 | P152: 8.6105e-06 | Q152: 1 | R152: 8.6105e-06 | S152: 1.002433624 | T152: 0.09251550652 | U152: 16.10420971 | V152: -109.3167746 | W152: 70.68322539 | Y152: 1000000000 | Z152: 74140710.25 | AB152: -0.5686057565 | AC152: -32.1369231 | AE152: 16.67281547 | AF152: -77.18034486 | AH152: 0 | AI152: 0
A153: 8660.05 | B153: 8.66005 | C153: 3.623773273 | D153: 1.291212713 | E153: 1.000625261 | F153: 0.03535351777 | G153: 1 | H153: 0 | I153: 4512.143794 | J153: 1.570574703 | K153: 2.017756449 | L153: 1.05227088 | M153: 1.000814598 | N153: 0.040349602 | O153: 1 | P153: 8.66005e-06 | Q153: 1 | R153: 8.66005e-06 | S153: 1.002461699 | T153: 0.09304682032 | U153: 16.04562787 | V153: -109.294609 | W153: 70.70539098 | Y153: 1000000000 | Z153: 74996466 | AB153: -0.5809812926 | AC153: -32.00848346 | AE153: 16.62660917 | AF153: -77.28662174 | AH153: 0 | AI153: 0
A154: 8709.6 | B154: 8.7096 | C154: 3.642932553 | D154: 1.292722351 | E154: 1.000632435 | F154: 0.03555562919 | G154: 1 | H154: 0 | I154: 4537.960817 | J154: 1.570575963 | K154: 2.026471829 | L154: 1.054723207 | M154: 1.000823942 | N154: 0.0405802167 | O154: 1 | P154: 8.7096e-06 | Q154: 1 | R154: 8.7096e-06 | S154: 1.002489935 | T154: 0.09357811565 | U154: 15.98744246 | V154: -109.2727404 | W154: 70.72725961 | Y154: 1000000000 | Z154: 75857132.16 | AB154: -0.5931820644 | AC154: -31.88126096 | AE154: 16.58062452 | AF154: -77.39197845 | AH154: 0 | AI154: =IF(AH154>0,W154,0) -> 0
A155: 8760.325 | B155: 8.760325 | C155: 3.662554674 | D155: 1.294251423 | E155: 1.00063982 | F155: 0.03576253035 | G155: 1 | H155: 0 | I155: 4564.390051 | J155: 1.570577239 | K155: 2.035406395 | L155: 1.057211918 | M155: 1.000833564 | N155: 0.04081629558 | O155: 1 | P155: 8.760325e-06 | Q155: 1 | R155: 8.760325e-06 | S155: 1.002519007 | T155: 0.09412199057 | U155: 15.92828258 | V155: -109.2506608 | W155: 70.74933915 | Y155: 1000000000 | Z155: 76743294.11 | AB155: -0.6054944547 | AC155: -31.75226777 | AE155: 16.53377703 | AF155: -77.49889501 | AH155: 0 | AI155: 0
A156: 8811.05 | B156: 8.81105 | C156: 3.682185267 | D156: 1.295764195 | E156: 1.000647249 | F156: 0.03596942845 | G156: 1 | H156: 0 | I156: 4590.819284 | J156: 1.570578501 | K156: 2.044353457 | L156: 1.059678861 | M156: 1.000843241 | N156: 0.04105236992 | O156: 1 | P156: 8.81105e-06 | Q156: 1 | R156: 8.81105e-06 | S156: 1.002548247 | T156: 0.09466584592 | U156: 15.86952741 | V156: -109.2288926 | W156: 70.77110743 | Y156: 1000000000 | Z156: 77634602.1 | AB156: -0.617630376 | AC156: -31.62452071 | AE156: 16.48715779 | AF156: -77.60487669 | AH156: 0 | AI156: 0
A157: 8861.775 | B157: 8.861775 | C157: 3.701824197 | D157: 1.297260919 | E157: 1.00065472 | F157: 0.03617632347 | G157: 1 | H157: 0 | I157: 4617.248517 | J157: 1.570579748 | K157: 2.053312852 | L157: 1.062124289 | M157: 1.000852973 | N157: 0.04128843967 | O157: 1 | P157: 8.861775e-06 | Q157: 1 | R157: 8.861775e-06 | S157: 1.002577656 | T157: 0.09520968158 | U157: 15.81117168 | V157: -109.2074354 | W157: 70.79256458 | Y157: 1000000000 | Z157: 78531056.15 | AB157: -0.6295930971 | AC157: -31.49800521 | AE157: 16.44076477 | AF157: -77.70993796 | AH157: 0 | AI157: 0
A158: 8912.5 | B158: 8.9125 | C158: 3.721471332 | D158: 1.298741843 | E158: 1.000662234 | F158: 0.03638321538 | G158: 1 | H158: 0 | I158: 4643.677751 | J158: 1.57058098 | K158: =SQRT(1+(A158/Zero2)^2) -> 2.06228442 | L158: =ATAN(A158/Zero2) -> 1.064548456 | M158: 1.000862762 | N158: 0.04152450483 | O158: 1 | P158: 8.9125e-06 | Q158: 1 | R158: 8.9125e-06 | S158: 1.002607234 | T158: 0.09575349744 | U158: 15.75321018 | V158: -109.1862892 | W158: 70.81371081 | Y158: 1000000000 | Z158: 79432656.25 | AB158: -0.6413858147 | AC158: -31.37270687 | AE158: 16.394596 | AF158: -77.81409297 | AH158: 0 | AI158: 0
A159: 8964.4 | B159: 8.9644 | C159: 3.741581934 | D159: 1.300240971 | E159: 1.000669967 | F159: 0.03659489655 | G159: 1 | H159: 0 | I159: 4670.719194 | J159: 1.570582227 | K159: 2.071476239 | L159: 1.067007027 | M159: 1.000872835 | N159: 0.04176603343 | O159: 1 | P159: 8.9644e-06 | Q159: 1 | R159: 8.9644e-06 | S159: 1.002637671 | T159: 0.09630988971 | U159: 15.69430879 | V159: -109.1649746 | W159: 70.8350254 | Y159: 1000000000 | Z159: 80360467.36 | AB159: -0.653279004 | AC159: -31.24575108 | AE159: 16.34758779 | AF159: -77.91973715 | AH159: 0 | AI159: 0
A160: 9016.3 | B160: 9.0163 | C160: 3.761700854 | D160: 1.301724066 | E160: 1.000677745 | F160: 0.03680657443 | G160: 1 | H160: 0 | I160: 4697.760638 | J160: 1.570583459 | K160: 2.080680469 | L160: 1.069443862 | M160: 1.000882967 | N160: 0.04200755715 | O160: 1 | P160: 9.0163e-06 | Q160: 1 | R160: 9.0163e-06 | S160: 1.002668284 | T160: 0.09686626102 | U160: 15.63580942 | V160: -109.1439848 | W160: 70.85601524 | Y160: 1000000000 | Z160: 81293665.69 | AB160: -0.6650007685 | AC160: -31.12003964 | AE160: 16.30081019 | AF160: -78.02446172 | AH160: 0 | AI160: 0
A161: 9068.2 | B161: 9.0682 | C161: 3.781827961 | D161: 1.303191378 | E161: 1.000685567 | F161: 0.03701824901 | G161: 1 | H161: 0 | I161: 4724.802081 | J161: 1.570584678 | K161: 2.089896946 | L161: 1.071859218 | M161: 1.000893156 | N161: 0.04224907597 | O161: 1 | P161: 9.0682e-06 | Q161: 1 | R161: 9.0682e-06 | S161: 1.002699074 | T161: 0.09742261125 | U161: 15.5777068 | V161: -109.1233191 | W161: 70.87668085 | Y161: 1000000000 | Z161: 82232251.24 | AB161: -0.6765543087 | AC161: -30.99555775 | AE161: 16.25426111 | AF161: -78.12828097 | AH161: 0 | AI161: 0
A162: 9120.1 | B162: 9.1201 | C162: 3.801963124 | D162: 1.304643152 | E162: 1.000693434 | F162: 0.03722992027 | G162: 1 | H162: 0 | I162: 4751.843524 | J162: 1.570585882 | K162: 2.099125508 | L162: 1.07425335 | M162: 1.000903405 | N162: 0.04249058986 | O162: 1 | P162: 9.1201e-06 | Q162: 1 | R162: 9.1201e-06 | S162: 1.002730039 | T162: 0.09797894027 | U162: 15.51999577 | V162: -109.1029772 | W162: 70.89702283 | Y162: 1000000000 | Z162: 83176224.01 | AB162: -0.6879427536 | AC162: -30.87229082 | AE162: 16.20793852 | AF162: -78.2312089 | AH162: 0 | AI162: 0
A163: 9173.2 | B163: 9.1732 | C163: 3.822572044 | D163: 1.30611266 | E163: 1.000701529 | F163: 0.03744648221 | G163: 1 | H163: 0 | I163: 4779.510204 | J163: 1.5705871 | K163: 2.108579789 | L163: 1.076681135 | M163: 1.00091395 | N163: 0.04273768275 | O163: 1 | P163: 9.1732e-06 | Q163: 1 | R163: 9.1732e-06 | S163: 1.002761904 | T163: 0.09854811033 | U163: 15.46135036 | V163: -109.0824991 | W163: 70.9175009 | Y163: 1000000000 | Z163: 84147598.24 | AB163: -0.6994268401 | AC163: -30.74741619 | AE163: 16.1607772 | AF163: -78.33560849 | AH163: 0 | AI163: 0
A164: 9226.3 | B164: 9.2263 | C164: 3.84318913 | D164: 1.307566405 | E164: 1.000709672 | F164: 0.03766304064 | G164: 1 | H164: 0 | I164: 4807.176883 | J164: 1.570588304 | K164: 2.118046387 | L164: 1.079087231 | M164: 1.000924557 | N164: 0.04298477042 | O164: 1 | P164: 9.2263e-06 | Q164: 1 | R164: 9.2263e-06 | S164: 1.002793953 | T164: 0.09911725794 | U164: 15.40310419 | V164: -109.0623583 | W164: 70.93764172 | Y164: 1000000000 | Z164: 85124611.69 | AB164: -0.7107445138 | AC164: -30.62378308 | AE164: 16.11384871 | AF164: -78.43910382 | AH164: 0 | AI164: 0
A165: 9279.4 | B165: 9.2794 | C165: 3.863814252 | D165: 1.309004633 | E165: 1.000717861 | F165: 0.03787959553 | G165: 1 | H165: 0 | I165: 4834.843562 | J165: 1.570589495 | K165: 2.127525139 | L165: 1.081471902 | M165: 1.000935225 | N165: 0.04323185284 | O165: 1 | P165: 9.2794e-06 | Q165: 1 | R165: 9.2794e-06 | S165: 1.002826186 | T165: 0.09968638298 | U165: 15.34525204 | V165: -109.0425538 | W165: 70.95744617 | Y165: 1000000000 | Z165: 86107264.36 | AB165: -0.7218989053 | AC165: -30.50137651 | AE165: 16.06715094 | AF165: -78.54170899 | AH165: 0 | AI165: 0
A166: 9332.5 | B166: 9.3325 | C166: 3.884447282 | D166: 1.310427585 | E166: 1.000726097 | F166: 0.03809614687 | G166: 1 | H166: 0 | I166: 4862.510241 | J166: 1.570590672 | K166: 2.137015881 | L166: 1.083835405 | M166: 1.000945954 | N166: 0.04347892998 | O166: 1 | P166: 9.3325e-06 | Q166: 1 | R166: 9.3325e-06 | S166: 1.002858604 | T166: 0.1002554853 | U166: 15.28778874 | V166: -109.0230848 | W166: 70.97691522 | Y166: 1000000000 | Z166: 87095556.25 | AB166: -0.7328930748 | AC166: -30.38018168 | AE166: 16.02068181 | AF166: -78.64343781 | AH166: 0 | AI166: 0
A167: 9386.85 | B167: 9.38685 | C167: 3.905574081 | D167: 1.311868461 | E167: 1.000734576 | F167: 0.03831779223 | G167: 1 | H167: 0 | I167: 4890.828207 | J167: 1.570591862 | K167: 2.146742292 | L167: 1.08623289 | M167: 1.000956999 | N167: 0.04373181793 | O167: 1 | P167: 9.38685e-06 | Q167: 1 | R167: 9.38685e-06 | S167: 1.002891976 | T167: 0.100837961 | U167: 15.22937016 | V167: -109.0035037 | W167: 70.99649631 | Y167: 1000000000 | Z167: 88112952.92 | AB167: -0.7439832502 | AC167: -30.25737354 | AE167: 15.97335341 | AF167: -78.74666798 | AH167: 0 | AI167: 0
A168: 9441.2 | B168: 9.4412 | C168: 3.926708901 | D168: 1.313293829 | E168: 1.000743104 | F168: 0.03853943382 | G168: 1 | H168: 0 | I168: 4919.146173 | J168: 1.570593039 | K168: 2.156480931 | L168: 1.088608734 | M168: 1.000968107 | N168: 0.04398470028 | O168: 1 | P168: 9.4412e-06 | Q168: 1 | R168: 9.4412e-06 | S168: 1.002925542 | T168: 0.1014204125 | U168: 15.17134834 | V168: -108.9842717 | W168: 71.01572829 | Y168: 1000000000 | Z168: 89136257.44 | AB168: -0.7549118402 | AC168: -30.1358042 | AE168: 15.92626018 | AF168: -78.84900846 | AH168: 0 | AI168: 0
A169: 9495.55 | B169: 9.49555 | C169: 3.947851613 | D169: 1.314703933 | E169: 1.000751681 | F169: 0.03876107163 | G169: 1 | H169: 0 | I169: 4947.46414 | J169: 1.570594203 | K169: 2.166231633 | L169: 1.090963204 | M169: 1.00097928 | N169: 0.04423757701 | O169: 1 | P169: 9.49555e-06 | Q169: 1 | R169: 9.49555e-06 | S169: 1.002959301 | T169: 0.1020028399 | U169: 15.11371808 | V169: -108.9653876 | W169: 71.03461239 | Y169: 1000000000 | Z169: 90165469.8 | AB169: -0.7656819086 | AC169: -30.01545847 | AE169: 15.87939999 | AF169: -78.9504732 | AH169: 0 | AI169: 0
A170: 9549.9 | B170: 9.5499 | C170: 3.969002092 | D170: 1.316099012 | E170: 1.000760307 | F170: 0.03898270563 | G170: 1 | H170: 0 | I170: 4975.782106 | J170: 1.570595353 | K170: 2.175994236 | L170: 1.093296559 | M170: 1.000990517 | N170: 0.04449044808 | O170: 1 | P170: 9.5499e-06 | Q170: 1 | R170: 9.5499e-06 | S170: 1.002993253 | T170: 0.102585243 | U170: 15.05647423 | V170: -108.9468501 | W170: 71.05314994 | Y170: 1000000000 | Z170: 91200590.01 | AB170: -0.7762964493 | AC170: -29.89632139 | AE170: 15.83277068 | AF170: -79.05107584 | AH170: 0 | AI170: 0
A171: 9605.525 | B171: 9.605525 | C171: 3.990656654 | D171: 1.317511502 | E171: 1.000769187 | F171: 0.03920953498 | G171: 1 | H171: 0 | I171: 5004.764385 | J171: 1.570596517 | K171: 2.185998017 | L171: 1.09566306 | M171: 1.001002084 | N171: 0.04474924536 | O171: 1 | P171: 9.605525e-06 | Q171: 1 | R171: 9.605525e-06 | S171: 1.003028202 | T171: 0.1031812834 | U171: 14.99828237 | V171: -108.928235 | W171: 71.07176496 | Y171: 1000000000 | Z171: 92266110.53 | AB171: -0.7870020073 | AC171: -29.77562559 | AE171: 15.78528438 | AF171: -79.15315981 | AH171: 0 | AI171: 0
A172: 9661.15 | B172: 9.66115 | C172: 4.012319092 | D172: 1.318908743 | E172: 1.000778117 | F172: 0.0394363603 | G172: 1 | H172: 0 | I172: 5033.746665 | J172: 1.570597668 | K172: 2.196013929 | L172: 1.098007986 | M172: 1.001013717 | N172: 0.04500803665 | O172: 1 | P172: 9.66115e-06 | Q172: 1 | R172: 9.66115e-06 | S172: 1.003063353 | T172: 0.103777298 | U172: 14.9404847 | V172: -108.90998 | W172: 71.09001995 | Y172: 1000000000 | Z172: 93337819.32 | AB172: -0.7975507856 | AC172: -29.65616478 | AE172: 15.73803549 | AF172: -79.25436881 | AH172: 0 | AI172: 0
A173: 9716.775 | B173: 9.716775 | C173: 4.033989279 | D173: 1.320290975 | E173: 1.0007871 | F173: 0.03966318155 | G173: 1 | H173: 0 | I173: 5062.728944 | J173: 1.570598805 | K173: 2.206041806 | L173: 1.100331607 | M173: 1.001025418 | N173: 0.04526682191 | O173: 1 | P173: 9.716775e-06 | Q173: 1 | R173: 9.716775e-06 | S173: 1.003098707 | T173: 0.1043732867 | U173: 14.88307603 | V173: -108.8920835 | W173: 71.10791653 | Y173: 1000000000 | Z173: 94415716.4 | AB173: -0.8079457793 | AC173: -29.53792359 | AE173: 15.69102181 | AF173: -79.35471661 | AH173: 0 | AI173: 0
A174: 9772.4 | B174: 9.7724 | C174: 4.055667091 | D174: 1.321658434 | E174: 1.000796134 | F174: 0.03988999873 | G174: 1 | H174: 0 | I174: 5091.711223 | J174: 1.570599929 | K174: 2.216081486 | L174: 1.102634186 | M174: 1.001037186 | N174: 0.0455256011 | O174: 1 | P174: 9.7724e-06 | Q174: 1 | R174: 9.7724e-06 | S174: 1.003134263 | T174: 0.1049692493 | U174: 14.82605124 | V174: -108.8745437 | W174: 71.12545634 | Y174: 1000000000 | Z174: 95499801.76 | AB174: -0.8181899148 | AC174: -29.42088689 | AE174: 15.64424115 | AF174: -79.45421669 | AH174: 0 | AI174: 0
A175: 9829.3 | B175: 9.8293 | C175: 4.077849549 | D175: 1.323042191 | E175: 1.000805428 | F175: 0.04012201061 | G175: 1 | H175: 0 | I175: 5121.357815 | J175: 1.570601066 | K175: 2.226363335 | L175: 1.104968044 | M175: 1.001049293 | N175: 0.04579030554 | O175: 1 | P175: 9.8293e-06 | Q175: 1 | R175: 9.8293e-06 | S175: 1.003170843 | T175: 0.1055788451 | U175: 14.76811133 | V175: -108.8569692 | W175: 71.14303083 | Y175: 1000000000 | Z175: 96615138.49 | AB175: -0.8285157561 | AC175: -29.30239824 | AE175: 15.59662708 | AF175: -79.5551341 | AH175: 0 | AI175: 0
A176: 9886.2 | B176: 9.8862 | C176: 4.100039731 | D176: 1.324410973 | E176: 1.000814776 | F176: 0.04035401817 | G176: 1 | H176: 0 | I176: 5151.004407 | J176: 1.57060219 | K176: 2.236657199 | L176: 1.107280433 | M176: 1.00106147 | N176: 0.04605500357 | O176: 1 | P176: 9.8862e-06 | Q176: 1 | R176: 9.8862e-06 | S176: 1.003207636 | T176: 0.1061884132 | U176: 14.7105626 | V176: -108.8397643 | W176: 71.16023569 | Y176: 1000000000 | Z176: 97736950.44 | AB176: -0.8386897267 | AC176: -29.1851386 | AE176: 15.54925232 | AF176: -79.65519214 | AH176: 0 | AI176: 0
A177: 9943.1 | B177: 9.9431 | C177: 4.122237513 | D177: 1.325765015 | E177: 1.000824178 | F177: 0.04058602138 | G177: 1 | H177: 0 | I177: 5180.651 | J177: 1.570603301 | K177: 2.246962913 | L177: 1.109571622 | M177: 1.001073717 | N177: 0.04631969513 | O177: 1 | P177: 9.9431e-06 | Q177: 1 | R177: 9.9431e-06 | S177: 1.00324464 | T177: 0.1067979537 | U177: 14.65339988 | V177: -108.8229272 | W177: 71.17707284 | Y177: 1000000000 | Z177: 98865237.61 | AB177: -0.8487147478 | AC177: -29.0690925 | AE177: 15.50211462 | AF177: -79.75440436 | AH177: 0 | AI177: 0
A178: 10000 | B178: 10 | C178: 4.144442771 | D178: 1.327104551 | E178: 1.000833634 | F178: 0.04081802022 | G178: 1 | H178: 0 | I178: 5210.297592 | J178: 1.570604399 | K178: 2.257280315 | L178: 1.111841878 | M178: 1.001086034 | N178: 0.0465843802 | O178: 1 | P178: 1e-05 | Q178: 1 | R178: 1e-05 | S178: 1.003281856 | T178: 0.1074074662 | U178: 14.59661809 | V178: -108.8064558 | W178: 71.19354425 | Y178: 1000000000 | Z178: 100000000 | AB178: -0.8585936733 | AC178: -28.95424467 | AE178: 15.45521177 | AF178: -79.85278404 | AH178: 0 | AI178: 0
A179: 10058.25 | B179: 10.05825 | C179: 4.167182488 | D179: 1.328461078 | E179: 1.00084337 | F179: 0.04105551887 | G179: 1 | H179: 0 | I179: 5240.647574 | J179: 1.570605511 | K179: 2.267854447 | L179: 1.114144588 | M179: 1.001098716 | N179: 0.04685533838 | O179: 1 | P179: 1.005825e-05 | Q179: 1 | R179: 1.005825e-05 | S179: 1.003320174 | T179: 0.1080314109 | U179: 14.53887852 | V179: -108.7899703 | W179: 71.21002972 | Y179: 1000000000 | Z179: 101168393.1 | AB179: -0.8685585589 | AC179: -28.83789754 | AE179: 15.40743708 | AF179: -79.95264903 | AH179: 0 | AI179: 0
A180: 10116.5 | B180: 10.1165 | C180: 4.18992979 | D180: 1.329802878 | E180: 1.000853163 | F180: 0.04129301289 | G180: 1 | H180: 0 | I180: 5270.997557 | J180: 1.570606609 | K180: 2.278440492 | L180: 1.116425913 | M180: 1.001111472 | N180: 0.04712628967 | O180: 1 | P180: 1.01165e-05 | Q180: 1 | R180: 1.01165e-05 | S180: 1.003358715 | T180: 0.108655326 | U180: 14.48152772 | V180: -108.7738638 | W180: 71.22613623 | Y180: 1000000000 | Z180: 102343572.2 | AB180: -0.8783761779 | AC180: -28.72277459 | AE180: 15.3599039 | AF180: -80.05166881 | AH180: 0 | AI180: 0
A181: 10174.75 | B181: 10.17475 | C181: 4.212684554 | D181: 1.331130185 | E181: 1.000863012 | F181: 0.04153050225 | G181: 1 | H181: 0 | I181: 5301.347539 | J181: 1.570607696 | K181: 2.289038285 | L181: 1.118686125 | M181: 1.001124301 | N181: 0.04739723404 | O181: 1 | P181: 1.017475e-05 | Q181: 1 | R181: 1.017475e-05 | S181: 1.003397477 | T181: 0.1092792114 | U181: 14.42456054 | V181: -108.758134 | W181: 71.24186602 | Y181: 1000000000 | Z181: 103525537.6 | AB181: -0.888049384 | AC181: -28.60886018 | AE181: 15.31260993 | AF181: -80.14985676 | AH181: 0 | AI181: 0
A182: 10233 | B182: 10.233 | C182: 4.235446659 | D182: 1.332443228 | E182: 1.000872917 | F182: 0.04176798692 | G182: 1 | H182: 0 | I182: 5331.697521 | J182: 1.570608769 | K182: 2.299647664 | L182: 1.120925493 | M182: 1.001137204 | N182: 0.04766817145 | O182: 1 | P182: 1.0233e-05 | Q182: 1 | R182: 1.0233e-05 | S182: 1.003436461 | T182: 0.1099030669 | U182: 14.36797194 | V182: -108.7427786 | W182: 71.2572214 | Y182: 1000000000 | Z182: 104714289 | AB182: -0.8975809646 | AC182: -28.49613891 | AE182: 15.2655529 | AF182: -80.247226 | AH182: 0 | AI182: 0
A183: 10292.5 | B183: 10.2925 | C183: 4.25870468 | D183: 1.333769954 | E183: 1.000883093 | F183: 0.04201056296 | G183: 1 | H183: 0 | I183: 5362.698791 | J183: 1.570609854 | K183: 2.310496508 | L183: 1.123191673 | M183: 1.001150459 | N183: 0.04794491573 | O183: 1 | P183: 1.02925e-05 | Q183: 1 | R183: 1.02925e-05 | S183: 1.003476511 | T183: 0.1105402788 | U183: 14.31055468 | V183: -108.7274779 | W183: 71.27252214 | Y183: 1000000000 | Z183: 105935556.2 | AB183: -0.9071736994 | AC183: -28.38221478 | AE183: 15.21772838 | AF183: -80.34585279 | AH183: 0 | AI183: 0
A184: 10352 | B184: 10.352 | C184: 4.281970115 | D184: 1.335082266 | E184: 1.000893328 | F184: 0.04225313405 | G184: 1 | H184: 0 | I184: 5393.70006 | J184: 1.570610925 | K184: 2.321357107 | L184: 1.125436659 | M184: 1.001163791 | N184: 0.04822165266 | O184: 1 | P184: 1.0352e-05 | Q184: 1 | R184: 1.0352e-05 | S184: 1.003516792 | T184: 0.1111774592 | U184: 14.25352206 | V184: -108.7125628 | W184: 71.28743717 | Y184: 1000000000 | Z184: 107163904 | AB184: -0.9166243397 | AC184: -28.26950381 | AE184: 15.1701464 | AF184: -80.44365215 | AH184: 0 | AI184: 0
A185: 10411.5 | B185: 10.4115 | C185: 4.305242845 | D185: 1.336380392 | E185: 1.000903622 | F185: 0.04249570017 | G185: 1 | H185: 0 | I185: 5424.70133 | J185: 1.570611985 | K185: 2.332229296 | L185: 1.127660725 | M185: 1.0011772 | N185: 0.0484983822 | O185: 1 | P185: 1.04115e-05 | Q185: 1 | R185: 1.04115e-05 | S185: 1.003557305 | T185: 0.1118146078 | U185: 14.196869 | V185: -108.698031 | W185: 71.301969 | Y185: 1000000000 | Z185: 108399332.2 | AB185: -0.9259356532 | AC185: -28.15799034 | AE185: 15.12280465 | AF185: -80.5406372 | AH185: 0 | AI185: 0
A186: 10471 | B186: 10.471 | C186: 4.328522752 | D186: 1.337664556 | E186: 1.000913975 | F186: 0.04273826129 | G186: 1 | H186: 0 | I186: 5455.7026 | J186: 1.570613032 | K186: 2.343112914 | L186: 1.129864141 | M186: 1.001190686 | N186: 0.04877510431 | O186: 1 | P186: 1.0471e-05 | Q186: 1 | R186: 1.0471e-05 | S186: 1.003598049 | T186: 0.1124517245 | U186: 14.14059049 | V186: -108.6838798 | W186: 71.31612023 | Y186: 1000000000 | Z186: 109641841 | AB186: -0.9351103424 | AC186: -28.04765893 | AE186: 15.07570083 | AF186: -80.63682079 | AH186: 0 | AI186: 0
A187: 10532 | B187: 10.532 | C187: 4.352396877 | D187: 1.338966831 | E187: 1.00092465 | F187: 0.04298693216 | G187: 1 | H187: 0 | I187: 5487.485414 | J187: 1.570614094 | K187: 2.354282608 | L187: 1.132101945 | M187: 1.001204591 | N187: 0.04905879484 | O187: 1 | P187: 1.0532e-05 | Q187: 1 | R187: 1.0532e-05 | S187: 1.003640061 | T187: 0.1131048696 | U187: 14.08327691 | V187: -108.6697642 | W187: 71.3302358 | Y187: 1000000000 | Z187: 110923024 | AB187: -0.9443772552 | AC187: -27.93575731 | AE187: 15.02765417 | AF187: -80.73461033 | AH187: 0 | AI187: 0
A188: 10593 | B188: 10.593 | C188: 4.376278303 | D188: 1.340254896 | E188: 1.000935387 | F188: 0.04323559772 | G188: 1 | H188: 0 | I188: 5519.268228 | J188: 1.570615143 | K188: 2.365463981 | L188: 1.134318604 | M188: 1.001218576 | N188: 0.04934247747 | O188: 1 | P188: 1.0593e-05 | Q188: 1 | R188: 1.0593e-05 | S188: 1.003682316 | T188: 0.1137579809 | U188: 14.02634669 | V188: -108.6560431 | W188: 71.34395687 | Y188: 1000000000 | Z188: 112211649 | AB188: -0.9535061201 | AC188: -27.82506605 | AE188: 14.97985281 | AF188: -80.83158401 | AH188: 0 | AI188: 0
A189: 10654 | B189: 10.654 | C189: 4.400166911 | D189: 1.341528976 | E189: 1.000946186 | F189: 0.04348425793 | G189: 1 | H189: 0 | I189: 5551.051042 | J189: 1.570616181 | K189: 2.376656867 | L189: 1.136514395 | M189: 1.001232642 | N189: 0.04962615215 | O189: 1 | P189: 1.0654e-05 | Q189: 1 | R189: 1.0654e-05 | S189: 1.003724814 | T189: 0.114411058 | U189: 13.96979473 | V189: -108.6427137 | W189: 71.3572863 | Y189: 1000000000 | Z189: 113507716 | AB189: -0.9624996487 | AC189: -27.7155693 | AE189: 14.93229438 | AF189: -80.92775483 | AH189: 0 | AI189: 0
A190: 10715 | B190: 10.715 | C190: 4.424062585 | D190: 1.342789296 | E190: 1.000957046 | F190: 0.04373291275 | G190: 1 | H190: 0 | I190: 5582.833856 | J190: 1.570617206 | K190: 2.387861105 | L190: 1.13868959 | M190: 1.001246789 | N190: 0.04990981884 | O190: 1 | P190: 1.0715e-05 | Q190: 1 | R190: 1.0715e-05 | S190: 1.003767556 | T190: 0.1150641008 | U190: 13.91361605 | V190: -108.6297731 | W190: 71.37022694 | Y190: 1000000000 | Z190: 114811225 | AB190: -0.9713604887 | AC190: -27.60725145 | AE190: 14.88497654 | AF190: -81.02313553 | AH190: 0 | AI190: 0
A191: 10777.5 | B191: 10.7775 | C191: 4.448553066 | D191: 1.344066561 | E191: 1.000968238 | F191: 0.04398767643 | G191: 1 | H191: 0 | I191: 5615.398215 | J191: 1.570618245 | K191: 2.399352464 | L191: 1.140897193 | M191: 1.001261367 | N191: 0.0502004526 | O191: 1 | P191: 1.07775e-05 | Q191: 1 | R191: 1.07775e-05 | S191: 1.003811601 | T191: 0.1157331663 | U191: 13.85643796 | V191: -108.6169144 | W191: 71.38308557 | Y191: 1000000000 | Z191: 116154506.2 | AB191: -0.9803042983 | AC191: -27.49747675 | AE191: 14.83674226 | AF191: -81.12005518 | AH191: 0 | AI191: 0
A192: 10840 | B192: 10.84 | C192: 4.473050725 | D192: 1.345329838 | E192: 1.000979495 | F192: 0.04424243439 | G192: 1 | H192: 0 | I192: 5647.962574 | J192: 1.570619272 | K192: 2.410855405 | L192: 1.14308374 | M192: 1.00127603 | N192: 0.05049107788 | O192: 1 | P192: 1.084e-05 | Q192: 1 | R192: 1.084e-05 | S192: 1.003855901 | T192: 0.1164021954 | U192: 13.79964143 | V192: -108.6044578 | W192: 71.39554221 | Y192: 1000000000 | Z192: 117505600 | AB192: -0.989114242 | AC192: -27.38890728 | AE192: 14.78875567 | AF192: -81.2161716 | AH192: 0 | AI192: 0
A193: 10902.5 | B193: 10.9025 | C193: 4.497555445 | D193: 1.346579351 | E193: 1.000990817 | F193: 0.04449718661 | G193: 1 | H193: 0 | I193: 5680.526933 | J193: 1.570620287 | K193: 2.422369763 | L193: 1.14524951 | M193: 1.001290777 | N193: 0.05078169462 | O193: 1 | P193: 1.09025e-05 | Q193: 1 | R193: 1.09025e-05 | S193: 1.003900457 | T193: 0.1170711878 | U193: 13.74322138 | V193: -108.5924 | W193: 71.40759997 | Y193: 1000000000 | Z193: 118864506.2 | AB193: -0.9977929697 | AC193: -27.28152705 | AE193: 14.74101435 | AF193: -81.31149765 | AH193: 0 | AI193: 0
A194: 10965 | B194: 10.965 | C194: 4.522067111 | D194: 1.34781532 | E194: 1.001002204 | F194: 0.04475193305 | G194: 1 | H194: 0 | I194: 5713.091292 | J194: 1.57062129 | K194: 2.433895375 | L194: 1.147394778 | M194: 1.001305609 | N194: 0.05107230277 | O194: 1 | P194: 1.0965e-05 | Q194: 1 | R194: 1.0965e-05 | S194: 1.003945268 | T194: 0.1177401434 | U194: 13.68717284 | V194: -108.580738 | W194: 71.41926201 | Y194: 1000000000 | Z194: 120231225 | AB194: -1.006343068 | AC194: -27.17532034 | AE194: 14.6935159 | AF194: -81.4060459 | AH194: 0 | AI194: 0
A195: 11028.75 | B195: 11.02875 | C195: 4.547076049 | D195: 1.349062279 | E195: 1.001013886 | F195: 0.04501176843 | G195: 1 | H195: 0 | I195: 5746.306938 | J195: 1.570622302 | K195: 2.44566293 | L195: 1.149562111 | M195: 1.001320825 | N195: 0.05136871419 | O195: 1 | P195: 1.102875e-05 | Q195: 1 | R195: 1.102875e-05 | S195: 1.003991238 | T195: 0.11842244 | U195: 13.63038099 | V195: -108.5692471 | W195: 71.43075289 | Y195: 1000000000 | Z195: 121633326.6 | AB195: -1.014934273 | AC195: -27.0681824 | AE195: 14.64531526 | AF195: -81.50169661 | AH195: 0 | AI195: 0
A196: 11092.5 | B196: 11.0925 | C196: 4.57209198 | D196: 1.350295594 | E196: 1.001025635 | F196: 0.04527159772 | G196: 1 | H196: 0 | I196: 5779.522584 | J196: 1.570623302 | K196: 2.457441862 | L196: 1.151708678 | M196: 1.001336128 | N196: 0.05166511658 | O196: 1 | P196: 1.10925e-05 | Q196: 1 | R196: 1.10925e-05 | S196: 1.004037474 | T196: 0.1191046978 | U196: 13.5739655 | V196: -108.5581613 | W196: 71.44183868 | Y196: 1000000000 | Z196: 123043556.2 | AB196: -1.023396896 | AC196: -26.96223312 | AE196: 14.5973624 | AF196: -81.59656375 | AH196: 0 | AI196: 0
A197: 11156.25 | B197: 11.15625 | C197: 4.597114789 | D197: 1.351515485 | E197: 1.001037451 | F197: 0.0455314209 | G197: 1 | H197: 0 | I197: 5812.73823 | J197: 1.570624291 | K197: 2.46923201 | L197: 1.153834755 | M197: 1.00135152 | N197: 0.05196150988 | O197: 1 | P197: 1.115625e-05 | Q197: 1 | R197: 1.115625e-05 | S197: 1.004083975 | T197: 0.1197869166 | U197: 13.51792138 | V197: -108.5474773 | W197: 71.45252275 | Y197: 1000000000 | Z197: 124461914.1 | AB197: -1.03173349 | AC197: -26.85745661 | AE197: 14.54965487 | AF197: -81.69065984 | AH197: 0 | AI197: 0
A198: 11220 | B198: 11.22 | C198: 4.622144366 | D198: 1.352722166 | E198: 1.001049336 | F198: 0.04579123793 | G198: 1 | H198: 0 | I198: 5845.953876 | J198: 1.570625268 | K198: 2.481033212 | L198: 1.155940615 | M198: 1.001366999 | N198: 0.05225789404 | O198: 1 | P198: 1.122e-05 | Q198: 1 | R198: 1.122e-05 | S198: 1.004130742 | T198: 0.1204690963 | U198: 13.46224373 | V198: -108.5371916 | W198: 71.46280845 | Y198: 1000000000 | Z198: 125888400 | AB198: -1.039946546 | AC198: -26.75383725 | AE198: 14.50219028 | AF198: -81.78399716 | AH198: 0 | AI198: 0
A199: 11285.5 | B199: 11.2855 | C199: 4.647867963 | D199: 1.353948433 | E199: 1.001061616 | F199: 0.04605818075 | G199: 1 | H199: 0 | I199: 5880.081324 | J199: 1.570626261 | K199: 2.49316972 | L199: 1.15808351 | M199: 1.001382995 | N199: 0.05256240467 | O199: 1 | P199: 1.12855e-05 | Q199: 1 | R199: 1.12855e-05 | S199: 1.004179069 | T199: 0.1211699614 | U199: 13.40541434 | V199: -108.5270349 | W199: 71.47296511 | Y199: 1000000000 | Z199: 127362510.2 | AB199: -1.048258946 | AC199: -26.64856248 | AE199: 14.45367329 | AF199: -81.87911902 | AH199: 0 | AI199: 0
A200: 11351 | B200: 11.351 | C200: 4.673598472 | D200: 1.3551612 | E200: 1.001073969 | F200: 0.046325117 | G200: 1 | H200: 0 | I200: 5914.208772 | J200: 1.570627242 | K200: 2.505317564 | L200: 1.160205633 | M200: 1.001399084 | N200: 0.05286690554 | O200: 1 | P200: 1.1351e-05 | Q200: 1 | R200: 1.1351e-05 | S200: 1.004227677 | T200: 0.1218707847 | U200: 13.34896164 | V200: -108.5172916 | W200: 71.48270843 | Y200: 1000000000 | Z200: 128845201 | AB200: -1.056446076 | AC200: -26.54447661 | AE200: 14.40540772 | AF200: -81.97346533 | AH200: 0 | AI200: 0
A201: 11416.5 | B201: 11.4165 | C201: 4.699335779 | D201: 1.356360684 | E201: 1.001086392 | F201: 0.04659204664 | G201: 1 | H201: 0 | I201: 5948.33622 | J201: 1.570628213 | K201: 2.517476583 | L201: 1.162307267 | M201: 1.001415266 | N201: 0.0531713966 | O201: 1 | P201: 1.14165e-05 | Q201: 1 | R201: 1.14165e-05 | S201: 1.004276565 | T201: 0.1225715659 | U201: 13.29288062 | V201: -108.507958 | W201: 71.49204204 | Y201: 1000000000 | Z201: 130336472.2 | AB201: -1.06451045 | AC201: -26.4415635 | AE201: 14.35739107 | AF201: -82.06704857 | AH201: 0 | AI201: 0
A202: 11482 | B202: 11.482 | C202: 4.725079774 | D202: 1.3575471 | E202: 1.001098887 | F202: 0.04685896963 | G202: 1 | H202: 0 | I202: 5982.463668 | J202: 1.570629172 | K202: 2.529646614 | L202: 1.164388688 | M202: 1.00143154 | N202: 0.05347587779 | O202: 1 | P202: 1.1482e-05 | Q202: 1 | R202: 1.1482e-05 | S202: 1.004325733 | T202: 0.1232723048 | U202: 13.23716637 | V202: -108.4990304 | W202: 71.50096958 | Y202: 1000000000 | Z202: 131836324 | AB202: -1.07245452 | AC202: -26.3398073 | AE202: 14.30962089 | AF202: -82.15988099 | AH202: 0 | AI202: 0
... 433 more rows

Sheet Bode Plot Management (hidden)
J1: Single or dual output (MODE) | N1: 3.3V or 5V fixed (FB1/2)
A2: =CHOOSE(BODE_PLOT_TYPE, "BODE_PLOT_Ch1", "BODE_PLOT_Ch2") -> BODE_PLOT_Ch1 | J2: With/without dither (DITH) | N2: With/without VOUT connected to VCCX
J3: FPWM or DEM (DEMB)
J4: Shunt or inductor DCR current sensing
F6: =INDIRECT(A2) -> 0

Sheet Efficiency Plot Management (hidden)
A2: ="EFF_Ch1" -> EFF_Ch1
A3: ="EFF_Ch2" -> EFF_Ch2

Sheet Standard Value Calculator (hidden)
A2: Capacitors | B2: Css | C2: Cc1ea | D2: Cc2ea | E2: Cout | F2: Cin | G2: Cimon | H2: Cdither | I2: Cc3ea | J2: Cc4ea
A3: Inputs | B3: =Css ->  | C3: =Cc1ea -> 3.247473842e-09 | D3: =Cc2ea -> 6.116735633e-11 | E3: =Cout -> 0.00013 | F3: =Cin -> 2.5e-05 | G3: ='Variable Management'!B228*0.000000001 -> 1.238053736e-08 | H3: =Cdither_init ->  | I3: =Cc3ea ->  | J3: =Cc4ea ->  | M3: Resistors | N3: inputs | O3: Standard Result
A4: Standard Result | B4: =SUM(B6:B158)/1000000000000 ->  | C4: =IF(C3="OPEN","OPEN",SUM(C6:C158)/1000000000000) -> 3.3e-09 | D4: =SUM(D6:D158)/1000000000000 -> 5.6e-11 | E4: =SUM(E6:E158)/1000000000000 -> 0.00012 | F4: =SUM(F6:F158)/1000000000000 -> 2.7e-05 | G4: =SUM(G6:G158)/1000000000000 -> 1.2e-08 | H4: =IF(H3="OPEN","OPEN",SUM(H6:H158)/1000000000000) ->  | M4: Rt | N4: =Rfadj -> 54.9 | O4: =IF(N4>(INT(0.5+100*POWER(10,IF(96*(LOG(N4)-INT(LOG(N4)))-ROUND(96*(LOG(N4)-INT(LOG(N4))),0)<0,ROUND(96*(LOG(N4)-INT(LOG(N4))),0)-1,ROUND(96*(LOG(N4)-INT(LOG(N4))),0))/96))*POWER(10,INT(LOG(N4))-2)+INT(0.5+100*POWER(10,(IF(96*(LOG(N4)-INT(LOG(N4)))-ROUND(96*(LOG(N4)-INT(LOG(N4))),0)<0,ROUND(96*(LOG(N4)-INT(LOG(N4))),0)-1,ROUND(96*(LOG(N4)-INT(LOG(N4))),0))+1)/96))*POWER(10,INT(LOG(N4))-2))/2,INT(0.5+100*POWER(10,(IF(96*(LOG(N4)-INT(LOG(N4)))-ROUND(96*(LOG(N4)-INT(LOG(N4))),0)<0,ROUND(96*(LOG(N4)-INT(LOG(N4))),0)-1,ROUND(96*(LOG(N4)-INT(LOG(N4))),0))+1)/96))*POWER(10,INT(LOG(N4))-2),INT(0.5+100*POWER(10,IF(96*(LOG(N4)-INT(LOG(N4)))-ROUND(96*(LOG(N4)-INT(LOG(N4))),0)<0,ROUND(96*(LOG(N4)-INT(LOG(N4))),0)-1,ROUND(96*(LOG(N4)-INT(LOG(N4))),0))/96))*POWER(10,INT(LOG(N4))-2)) -> 54.9 | P4: Ω
A5: (pF)
A6: 0.47 | B6: =IF(IF((B$3*10^12-$A7)*(B$3*10^12-$A6)*-1<0,0,1)*IF(ABS(B$3*10^12-$A7)>(B$3*10^12-$A6),$A6,$A7)=B7,0,IF((B$3*10^12-$A7)*(B$3*10^12-$A6)*-1<0,0,1)*IF(ABS(B$3*10^12-$A7)>(B$3*10^12-$A6),$A6,$A7)) ->  | C6: 0 | D6: 0 | E6: 0 | F6: 0 | G6: 0
A7: 0.56 | B7: =IF(IF((B$3*10^12-$A8)*(B$3*10^12-$A7)*-1<0,0,1)*IF(ABS(B$3*10^12-$A8)>(B$3*10^12-$A7),$A7,$A8)=B8,0,IF((B$3*10^12-$A8)*(B$3*10^12-$A7)*-1<0,0,1)*IF(ABS(B$3*10^12-$A8)>(B$3*10^12-$A7),$A7,$A8)) ->  | C7: =IF(IF((C$3*10^12-$A8)*(C$3*10^12-$A7)*-1<0,0,1)*IF(ABS(C$3*10^12-$A8)>(C$3*10^12-$A7),$A7,$A8)=C8,0,IF((C$3*10^12-$A8)*(C$3*10^12-$A7)*-1<0,0,1)*IF(ABS(C$3*10^12-$A8)>(C$3*10^12-$A7),$A7,$A8)) -> 0 | D7: =IF(IF((D$3*10^12-$A8)*(D$3*10^12-$A7)*-1<0,0,1)*IF(ABS(D$3*10^12-$A8)>(D$3*10^12-$A7),$A7,$A8)=D8,0,IF((D$3*10^12-$A8)*(D$3*10^12-$A7)*-1<0,0,1)*IF(ABS(D$3*10^12-$A8)>(D$3*10^12-$A7),$A7,$A8)) -> 0 | E7: =IF(IF((E$3*10^12-$A8)*(E$3*10^12-$A7)*-1<0,0,1)*IF(ABS(E$3*10^12-$A8)>(E$3*10^12-$A7),$A7,$A8)=E8,0,IF((E$3*10^12-$A8)*(E$3*10^12-$A7)*-1<0,0,1)*IF(ABS(E$3*10^12-$A8)>(E$3*10^12-$A7),$A7,$A8)) -> 0 | F7: =IF(IF((F$3*10^12-$A8)*(F$3*10^12-$A7)*-1<0,0,1)*IF(ABS(F$3*10^12-$A8)>(F$3*10^12-$A7),$A7,$A8)=F8,0,IF((F$3*10^12-$A8)*(F$3*10^12-$A7)*-1<0,0,1)*IF(ABS(F$3*10^12-$A8)>(F$3*10^12-$A7),$A7,$A8)) -> 0 | G7: =IF(IF((G$3*10^12-$A8)*(G$3*10^12-$A7)*-1<0,0,1)*IF(ABS(G$3*10^12-$A8)>(G$3*10^12-$A7),$A7,$A8)=G8,0,IF((G$3*10^12-$A8)*(G$3*10^12-$A7)*-1<0,0,1)*IF(ABS(G$3*10^12-$A8)>(G$3*10^12-$A7),$A7,$A8)) -> 0 | M7: Renb | N7: =Renb -> 5882.352941 | O7: 5900 | P7: Ω
A8: 0.68 | C8: 0 | D8: 0 | E8: 0 | F8: 0 | G8: 0 | M8: Rc1ea | N8: =Rcea1 -> 9801.769068 | O8: =IF(N8>(INT(0.5+100*POWER(10,IF(96*(LOG(N8)-INT(LOG(N8)))-ROUND(96*(LOG(N8)-INT(LOG(N8))),0)<0,ROUND(96*(LOG(N8)-INT(LOG(N8))),0)-1,ROUND(96*(LOG(N8)-INT(LOG(N8))),0))/96))*POWER(10,INT(LOG(N8))-2)+INT(0.5+100*POWER(10,(IF(96*(LOG(N8)-INT(LOG(N8)))-ROUND(96*(LOG(N8)-INT(LOG(N8))),0)<0,ROUND(96*(LOG(N8)-INT(LOG(N8))),0)-1,ROUND(96*(LOG(N8)-INT(LOG(N8))),0))+1)/96))*POWER(10,INT(LOG(N8))-2))/2,INT(0.5+100*POWER(10,(IF(96*(LOG(N8)-INT(LOG(N8)))-ROUND(96*(LOG(N8)-INT(LOG(N8))),0)<0,ROUND(96*(LOG(N8)-INT(LOG(N8))),0)-1,ROUND(96*(LOG(N8)-INT(LOG(N8))),0))+1)/96))*POWER(10,INT(LOG(N8))-2),INT(0.5+100*POWER(10,IF(96*(LOG(N8)-INT(LOG(N8)))-ROUND(96*(LOG(N8)-INT(LOG(N8))),0)<0,ROUND(96*(LOG(N8)-INT(LOG(N8))),0)-1,ROUND(96*(LOG(N8)-INT(LOG(N8))),0))/96))*POWER(10,INT(LOG(N8))-2)) -> 9760 | P8: Ω
A9: 0.82 | C9: 0 | D9: 0 | E9: 0 | F9: 0 | G9: 0
A10: 1 | C10: 0 | D10: 0 | E10: 0 | F10: 0 | G10: 0 | M10: Rfb1 | N10: =Rfb1_ -> 100000 | O10: =IF(N10>(INT(0.5+100*POWER(10,IF(96*(LOG(N10)-INT(LOG(N10)))-ROUND(96*(LOG(N10)-INT(LOG(N10))),0)<0,ROUND(96*(LOG(N10)-INT(LOG(N10))),0)-1,ROUND(96*(LOG(N10)-INT(LOG(N10))),0))/96))*POWER(10,INT(LOG(N10))-2)+INT(0.5+100*POWER(10,(IF(96*(LOG(N10)-INT(LOG(N10)))-ROUND(96*(LOG(N10)-INT(LOG(N10))),0)<0,ROUND(96*(LOG(N10)-INT(LOG(N10))),0)-1,ROUND(96*(LOG(N10)-INT(LOG(N10))),0))+1)/96))*POWER(10,INT(LOG(N10))-2))/2,INT(0.5+100*POWER(10,(IF(96*(LOG(N10)-INT(LOG(N10)))-ROUND(96*(LOG(N10)-INT(LOG(N10))),0)<0,ROUND(96*(LOG(N10)-INT(LOG(N10))),0)-1,ROUND(96*(LOG(N10)-INT(LOG(N10))),0))+1)/96))*POWER(10,INT(LOG(N10))-2),INT(0.5+100*POWER(10,IF(96*(LOG(N10)-INT(LOG(N10)))-ROUND(96*(LOG(N10)-INT(LOG(N10))),0)<0,ROUND(96*(LOG(N10)-INT(LOG(N10))),0)-1,ROUND(96*(LOG(N10)-INT(LOG(N10))),0))/96))*POWER(10,INT(LOG(N10))-2)) -> 100000 | P10: Ω
A11: 1.2 | C11: 0 | D11: 0 | E11: 0 | F11: 0 | G11: 0 | M11: Rfb2 | N11: =Rfb2_ -> 9090.909091 | O11: =IF(N11="OPEN","OPEN",IF(N11>(INT(0.5+100*POWER(10,IF(96*(LOG(N11)-INT(LOG(N11)))-ROUND(96*(LOG(N11)-INT(LOG(N11))),0)<0,ROUND(96*(LOG(N11)-INT(LOG(N11))),0)-1,ROUND(96*(LOG(N11)-INT(LOG(N11))),0))/96))*POWER(10,INT(LOG(N11))-2)+INT(0.5+100*POWER(10,(IF(96*(LOG(N11)-INT(LOG(N11)))-ROUND(96*(LOG(N11)-INT(LOG(N11))),0)<0,ROUND(96*(LOG(N11)-INT(LOG(N11))),0)-1,ROUND(96*(LOG(N11)-INT(LOG(N11))),0))+1)/96))*POWER(10,INT(LOG(N11))-2))/2,INT(0.5+100*POWER(10,(IF(96*(LOG(N11)-INT(LOG(N11)))-ROUND(96*(LOG(N11)-INT(LOG(N11))),0)<0,ROUND(96*(LOG(N11)-INT(LOG(N11))),0)-1,ROUND(96*(LOG(N11)-INT(LOG(N11))),0))+1)/96))*POWER(10,INT(LOG(N11))-2),INT(0.5+100*POWER(10,IF(96*(LOG(N11)-INT(LOG(N11)))-ROUND(96*(LOG(N11)-INT(LOG(N11))),0)<0,ROUND(96*(LOG(N11)-INT(LOG(N11))),0)-1,ROUND(96*(LOG(N11)-INT(LOG(N11))),0))/96))*POWER(10,INT(LOG(N11))-2))) -> 9090 | P11: Ω
A12: 1.5 | C12: 0 | D12: 0 | E12: 0 | F12: 0 | G12: 0 | M12: Rt1 | N12: ='Variable Management'!B25*1000 -> 54476.7 | O12: =IF(N12>(INT(0.5+100*POWER(10,IF(96*(LOG(N12)-INT(LOG(N12)))-ROUND(96*(LOG(N12)-INT(LOG(N12))),0)<0,ROUND(96*(LOG(N12)-INT(LOG(N12))),0)-1,ROUND(96*(LOG(N12)-INT(LOG(N12))),0))/96))*POWER(10,INT(LOG(N12))-2)+INT(0.5+100*POWER(10,(IF(96*(LOG(N12)-INT(LOG(N12)))-ROUND(96*(LOG(N12)-INT(LOG(N12))),0)<0,ROUND(96*(LOG(N12)-INT(LOG(N12))),0)-1,ROUND(96*(LOG(N12)-INT(LOG(N12))),0))+1)/96))*POWER(10,INT(LOG(N12))-2))/2,INT(0.5+100*POWER(10,(IF(96*(LOG(N12)-INT(LOG(N12)))-ROUND(96*(LOG(N12)-INT(LOG(N12))),0)<0,ROUND(96*(LOG(N12)-INT(LOG(N12))),0)-1,ROUND(96*(LOG(N12)-INT(LOG(N12))),0))+1)/96))*POWER(10,INT(LOG(N12))-2),INT(0.5+100*POWER(10,IF(96*(LOG(N12)-INT(LOG(N12)))-ROUND(96*(LOG(N12)-INT(LOG(N12))),0)<0,ROUND(96*(LOG(N12)-INT(LOG(N12))),0)-1,ROUND(96*(LOG(N12)-INT(LOG(N12))),0))/96))*POWER(10,INT(LOG(N12))-2)) -> 54900 | P12: Ω
A13: 1.8 | C13: 0 | D13: 0 | E13: 0 | F13: 0 | G13: 0 | M13: Rimon | N13: ='Variable Management'!B224 -> 6.896551724 | O13: =IF(N13="OPEN","OPEN",IF(N13>(INT(0.5+100*POWER(10,IF(96*(LOG(N13)-INT(LOG(N13)))-ROUND(96*(LOG(N13)-INT(LOG(N13))),0)<0,ROUND(96*(LOG(N13)-INT(LOG(N13))),0)-1,ROUND(96*(LOG(N13)-INT(LOG(N13))),0))/96))*POWER(10,INT(LOG(N13))-2)+INT(0.5+100*POWER(10,(IF(96*(LOG(N13)-INT(LOG(N13)))-ROUND(96*(LOG(N13)-INT(LOG(N13))),0)<0,ROUND(96*(LOG(N13)-INT(LOG(N13))),0)-1,ROUND(96*(LOG(N13)-INT(LOG(N13))),0))+1)/96))*POWER(10,INT(LOG(N13))-2))/2,INT(0.5+100*POWER(10,(IF(96*(LOG(N13)-INT(LOG(N13)))-ROUND(96*(LOG(N13)-INT(LOG(N13))),0)<0,ROUND(96*(LOG(N13)-INT(LOG(N13))),0)-1,ROUND(96*(LOG(N13)-INT(LOG(N13))),0))+1)/96))*POWER(10,INT(LOG(N13))-2),INT(0.5+100*POWER(10,IF(96*(LOG(N13)-INT(LOG(N13)))-ROUND(96*(LOG(N13)-INT(LOG(N13))),0)<0,ROUND(96*(LOG(N13)-INT(LOG(N13))),0)-1,ROUND(96*(LOG(N13)-INT(LOG(N13))),0))/96))*POWER(10,INT(LOG(N13))-2))) -> 6.98 | P13: Ω
A14: 2.2 | B14: =IF(IF((B$3*10^12-$A15)*(B$3*10^12-$A14)*-1<0,0,1)*IF(ABS(B$3*10^12-$A15)>(B$3*10^12-$A14),$A14,$A15)=B15,0,IF((B$3*10^12-$A15)*(B$3*10^12-$A14)*-1<0,0,1)*IF(ABS(B$3*10^12-$A15)>(B$3*10^12-$A14),$A14,$A15)) ->  | C14: 0 | D14: 0 | E14: 0 | F14: 0 | G14: 0
A15: 2.7 | C15: 0 | D15: 0 | E15: 0 | F15: 0 | G15: 0
A16: 3.3 | C16: 0 | D16: 0 | E16: 0 | F16: 0 | G16: 0 | M16: Rs | N16: =Rs_ideal*1000 -> 1.0942341 | O16: =IF(N16=0,0,IF(N16>(INT(0.5+100*POWER(10,IF(96*(LOG(N16)-INT(LOG(N16)))-ROUND(96*(LOG(N16)-INT(LOG(N16))),0)<0,ROUND(96*(LOG(N16)-INT(LOG(N16))),0)-1,ROUND(96*(LOG(N16)-INT(LOG(N16))),0))/96))*POWER(10,INT(LOG(N16))-2)+INT(0.5+100*POWER(10,(IF(96*(LOG(N16)-INT(LOG(N16)))-ROUND(96*(LOG(N16)-INT(LOG(N16))),0)<0,ROUND(96*(LOG(N16)-INT(LOG(N16))),0)-1,ROUND(96*(LOG(N16)-INT(LOG(N16))),0))+1)/96))*POWER(10,INT(LOG(N16))-2))/2,INT(0.5+100*POWER(10,(IF(96*(LOG(N16)-INT(LOG(N16)))-ROUND(96*(LOG(N16)-INT(LOG(N16))),0)<0,ROUND(96*(LOG(N16)-INT(LOG(N16))),0)-1,ROUND(96*(LOG(N16)-INT(LOG(N16))),0))+1)/96))*POWER(10,INT(LOG(N16))-2),INT(0.5+100*POWER(10,IF(96*(LOG(N16)-INT(LOG(N16)))-ROUND(96*(LOG(N16)-INT(LOG(N16))),0)<0,ROUND(96*(LOG(N16)-INT(LOG(N16))),0)-1,ROUND(96*(LOG(N16)-INT(LOG(N16))),0))/96))*POWER(10,INT(LOG(N16))-2))) -> 1.1 | P16: mΩ
A17: 3.9 | C17: 0 | D17: 0 | E17: 0 | F17: 0 | G17: 0 | M17: Cres | N17: =Cres ->  | O17: =G4*1000000000000 -> 12000 | P17: pF
A18: 4.7 | C18: 0 | D18: 0 | E18: 0 | F18: 0 | G18: 0
A19: 5.6 | C19: 0 | D19: 0 | E19: 0 | F19: 0 | G19: 0 | M19: Rimon | N19: ='Variable Management'!B224 -> 6.896551724
A20: 6.8 | C20: 0 | D20: 0 | E20: 0 | F20: 0 | G20: 0
A21: 8.2 | C21: 0 | D21: 0 | E21: 0 | F21: 0 | G21: 0
A22: 10 | C22: 0 | D22: 0 | E22: 0 | F22: 0 | G22: 0 | M22: Cdither | N22: =Cdither_init ->  | O22: =H4 -> 
A23: 12 | C23: 0 | D23: 0 | E23: 0 | F23: 0 | G23: 0
A24: 15 | C24: 0 | D24: 0 | E24: 0 | F24: 0 | G24: 0
A25: 18 | C25: 0 | D25: 0 | E25: 0 | F25: 0 | G25: 0
A26: 22 | C26: 0 | D26: 0 | E26: 0 | F26: 0 | G26: 0
A27: 27 | C27: 0 | D27: 0 | E27: 0 | F27: 0 | G27: 0
A28: 33 | C28: 0 | D28: 0 | E28: 0 | F28: 0 | G28: 0
A29: 39 | C29: 0 | D29: 0 | E29: 0 | F29: 0 | G29: 0
A30: 47 | C30: 0 | D30: 0 | E30: 0 | F30: 0 | G30: 0 | M30: Rcomp | N30: =O8/1000&"kΩ" -> 9.76kΩ | O30: =O8/1000 -> 9.76 | P30: kΩ
A31: 56 | C31: 0 | D31: 56 | E31: 0 | F31: 0 | G31: 0 | M31: Ccomp | N31: =C4*1000000000&"nF" -> 3.3nF | O31: =C4*1000000000 -> 3.3 | P31: nF
A32: 68 | C32: 0 | D32: 0 | E32: 0 | F32: 0 | G32: 0 | M32: Chf | N32: =D4*1000000000000&"pF" -> 56pF | O32: =D4*1000000000000 -> 56 | P32: pF
A33: 82 | C33: 0 | D33: 0 | E33: 0 | F33: 0 | G33: 0
A34: =A22*10 -> 100 | C34: 0 | D34: 0 | E34: 0 | F34: 0 | G34: 0 | M34: Rc2 | N34: =O8/1000&" kΩ" -> 9.76 kΩ | O34: =O8/1000 -> 9.76 | P34: kΩ
A35: =A23*10 -> 120 | C35: 0 | D35: 0 | E35: 0 | F35: 0 | G35: 0 | M35: Cc3 | N35: =I4*1000000000&" nF" ->  | O35: =I4*1000000000 ->  | P35: nF
A36: 150 | C36: 0 | D36: 0 | E36: 0 | F36: 0 | G36: 0 | M36: Cc4 | N36: =J4*1000000000000&" pF" ->  | O36: =J4*1000000000000 ->  | P36: pF
A37: 180 | C37: 0 | D37: 0 | E37: 0 | F37: 0 | G37: 0
A38: 220 | C38: 0 | D38: 0 | E38: 0 | F38: 0 | G38: 0
A39: 270 | C39: =IF(IF((C$3*10^12-$A40)*(C$3*10^12-$A39)*-1<0,0,1)*IF(ABS(C$3*10^12-$A40)>(C$3*10^12-$A39),$A39,$A40)=C40,0,IF((C$3*10^12-$A40)*(C$3*10^12-$A39)*-1<0,0,1)*IF(ABS(C$3*10^12-$A40)>(C$3*10^12-$A39),$A39,$A40)) -> 0 | D39: 0 | E39: 0 | F39: 0 | G39: 0
A40: 330 | C40: 0 | D40: 0 | E40: 0 | F40: 0 | G40: 0
A41: 390 | C41: 0 | D41: 0 | E41: 0 | F41: 0 | G41: 0
A42: 470 | C42: 0 | D42: 0 | E42: 0 | F42: 0 | G42: 0
A43: 560 | C43: 0 | D43: 0 | E43: 0 | F43: 0 | G43: 0
A44: 680 | C44: 0 | D44: 0 | E44: 0 | F44: 0 | G44: 0
A45: =A33*10 -> 820 | C45: 0 | D45: 0 | E45: 0 | F45: 0 | G45: 0
A46: 1000 | C46: 0 | D46: 0 | E46: 0 | F46: 0 | G46: 0
A47: 1200 | C47: 0 | D47: 0 | E47: 0 | F47: 0 | G47: 0
A48: 1500 | C48: 0 | D48: 0 | E48: 0 | F48: 0 | G48: 0
A49: 1800 | C49: 0 | D49: 0 | E49: 0 | F49: 0 | G49: 0
A50: 2200 | C50: 0 | D50: 0 | E50: 0 | F50: 0 | G50: 0
A51: 2700 | C51: 3300 | D51: 0 | E51: 0 | F51: 0 | G51: 0
A52: 3300 | C52: 0 | D52: 0 | E52: 0 | F52: 0 | G52: 0
A53: 3900 | C53: 0 | D53: 0 | E53: 0 | F53: 0 | G53: 0
A54: 4700 | C54: 0 | D54: 0 | E54: 0 | F54: 0 | G54: 0
A55: 5600 | C55: 0 | D55: 0 | E55: 0 | F55: 0 | G55: 0
A56: 6800 | C56: 0 | D56: 0 | E56: 0 | F56: 0 | G56: 0
A57: 8200 | C57: 0 | D57: 0 | E57: 0 | F57: 0 | G57: 0
A58: 10000 | C58: 0 | D58: 0 | E58: 0 | F58: 0 | G58: 0
A59: 12000 | C59: 0 | D59: 0 | E59: 0 | F59: 0 | G59: 12000
A60: 15000 | C60: 0 | D60: 0 | E60: 0 | F60: 0 | G60: 0
A61: 18000 | C61: 0 | D61: 0 | E61: 0 | F61: 0 | G61: 0
A62: 22000 | C62: 0 | D62: 0 | E62: 0 | F62: 0 | G62: 0
A63: 27000 | C63: 0 | D63: 0 | E63: 0 | F63: 0 | G63: 0
A64: 33000 | C64: 0 | D64: 0 | E64: 0 | F64: 0 | G64: 0
A65: 39000 | C65: 0 | D65: 0 | E65: 0 | F65: 0 | G65: 0
A66: 47000 | C66: 0 | D66: 0 | E66: 0 | F66: 0 | G66: 0
A67: 56000 | C67: 0 | D67: 0 | E67: 0 | F67: 0 | G67: 0
A68: 68000 | C68: 0 | D68: 0 | E68: 0 | F68: 0 | G68: 0
A69: 82000 | C69: 0 | D69: 0 | E69: 0 | F69: 0 | G69: 0 | J69: =IF(IF((J$3*10^12-$A70)*(J$3*10^12-$A69)*-1<0,0,1)*IF(ABS(J$3*10^12-$A70)>(J$3*10^12-$A69),$A69,$A70)=J70,0,IF((J$3*10^12-$A70)*(J$3*10^12-$A69)*-1<0,0,1)*IF(ABS(J$3*10^12-$A70)>(J$3*10^12-$A69),$A69,$A70)) -> 
A70: 100000 | C70: 0 | D70: =IF(IF((D$3*10^12-$A71)*(D$3*10^12-$A70)*-1<0,0,1)*IF(ABS(D$3*10^12-$A71)>(D$3*10^12-$A70),$A70,$A71)=D71,0,IF((D$3*10^12-$A71)*(D$3*10^12-$A70)*-1<0,0,1)*IF(ABS(D$3*10^12-$A71)>(D$3*10^12-$A70),$A70,$A71)) -> 0 | E70: 0 | F70: 0 | G70: 0
A71: 120000 | B71: =IF(IF((B$3*10^12-$A72)*(B$3*10^12-$A71)*-1<0,0,1)*IF(ABS(B$3*10^12-$A72)>(B$3*10^12-$A71),$A71,$A72)=B72,0,IF((B$3*10^12-$A72)*(B$3*10^12-$A71)*-1<0,0,1)*IF(ABS(B$3*10^12-$A72)>(B$3*10^12-$A71),$A71,$A72)) ->  | C71: =IF(IF((C$3*10^12-$A72)*(C$3*10^12-$A71)*-1<0,0,1)*IF(ABS(C$3*10^12-$A72)>(C$3*10^12-$A71),$A71,$A72)=C72,0,IF((C$3*10^12-$A72)*(C$3*10^12-$A71)*-1<0,0,1)*IF(ABS(C$3*10^12-$A72)>(C$3*10^12-$A71),$A71,$A72)) -> 0 | D71: 0 | E71: 0 | F71: =IF(IF((F$3*10^12-$A72)*(F$3*10^12-$A71)*-1<0,0,1)*IF(ABS(F$3*10^12-$A72)>(F$3*10^12-$A71),$A71,$A72)=F72,0,IF((F$3*10^12-$A72)*(F$3*10^12-$A71)*-1<0,0,1)*IF(ABS(F$3*10^12-$A72)>(F$3*10^12-$A71),$A71,$A72)) -> 0 | G71: =IF(IF((G$3*10^12-$A72)*(G$3*10^12-$A71)*-1<0,0,1)*IF(ABS(G$3*10^12-$A72)>(G$3*10^12-$A71),$A71,$A72)=G72,0,IF((G$3*10^12-$A72)*(G$3*10^12-$A71)*-1<0,0,1)*IF(ABS(G$3*10^12-$A72)>(G$3*10^12-$A71),$A71,$A72)) -> 0 | H71: =IF(IF((H$3*10^12-$A72)*(H$3*10^12-$A71)*-1<0,0,1)*IF(ABS(H$3*10^12-$A72)>(H$3*10^12-$A71),$A71,$A72)=H72,0,IF((H$3*10^12-$A72)*(H$3*10^12-$A71)*-1<0,0,1)*IF(ABS(H$3*10^12-$A72)>(H$3*10^12-$A71),$A71,$A72)) ->  | I71: =IF(IF((I$3*10^12-$A72)*(I$3*10^12-$A71)*-1<0,0,1)*IF(ABS(I$3*10^12-$A72)>(I$3*10^12-$A71),$A71,$A72)=I72,0,IF((I$3*10^12-$A72)*(I$3*10^12-$A71)*-1<0,0,1)*IF(ABS(I$3*10^12-$A72)>(I$3*10^12-$A71),$A71,$A72)) -> 
A72: 150000 | C72: 0 | D72: 0 | E72: 0 | F72: 0 | G72: 0
A73: 180000 | C73: 0 | D73: 0 | E73: 0 | F73: 0 | G73: 0
A74: 220000 | C74: 0 | D74: 0 | E74: 0 | F74: 0 | G74: 0
A75: 270000 | C75: 0 | D75: 0 | E75: 0 | F75: 0 | G75: 0
A76: 330000 | C76: 0 | D76: 0 | E76: 0 | F76: 0 | G76: 0
A77: 390000 | C77: 0 | D77: 0 | E77: 0 | F77: 0 | G77: 0
A78: 470000 | C78: 0 | D78: 0 | E78: 0 | F78: 0 | G78: 0
A79: 560000 | C79: 0 | D79: 0 | E79: 0 | F79: 0 | G79: 0
A80: 680000 | C80: 0 | D80: 0 | E80: 0 | F80: 0 | G80: 0
A81: 820000 | C81: 0 | D81: 0 | E81: 0 | F81: 0 | G81: 0
A82: 1000000 | C82: 0 | D82: 0 | E82: 0 | F82: 0 | G82: 0
A83: 1200000 | C83: 0 | D83: 0 | E83: 0 | F83: 0 | G83: 0
A84: 1500000 | C84: 0 | D84: 0 | E84: 0 | F84: 0 | G84: 0
A85: 1800000 | C85: 0 | D85: 0 | E85: 0 | F85: 0 | G85: 0
A86: 2200000 | C86: 0 | D86: 0 | E86: 0 | F86: 0 | G86: 0
A87: 2700000 | C87: 0 | D87: 0 | E87: 0 | F87: 0 | G87: 0
A88: 3300000 | C88: 0 | D88: 0 | E88: 0 | F88: 0 | G88: 0
A89: 3900000 | C89: 0 | D89: 0 | E89: 0 | F89: 0 | G89: 0
A90: 4700000 | C90: 0 | D90: 0 | E90: 0 | F90: 0 | G90: 0
A91: 5600000 | C91: 0 | D91: 0 | E91: 0 | F91: 0 | G91: 0
A92: 6800000 | C92: 0 | D92: 0 | E92: 0 | F92: 0 | G92: 0
A93: 8200000 | C93: 0 | D93: 0 | E93: 0 | F93: 0 | G93: 0
A94: 10000000 | C94: 0 | D94: 0 | E94: 0 | F94: 0 | G94: 0
A95: 12000000 | C95: 0 | D95: 0 | E95: 0 | F95: 0 | G95: 0
A96: 15000000 | C96: 0 | D96: 0 | E96: 0 | F96: 0 | G96: 0
A97: 18000000 | C97: 0 | D97: 0 | E97: 0 | F97: 0 | G97: 0
A98: 22000000 | C98: 0 | D98: 0 | E98: 0 | F98: 27000000 | G98: 0
A99: =A87*10 -> 27000000 | C99: 0 | D99: 0 | E99: 0 | F99: 0 | G99: 0
A100: 33000000 | C100: 0 | D100: 0 | E100: 0 | F100: 0 | G100: 0
A101: 39000000 | C101: 0 | D101: 0 | E101: 0 | F101: 0 | G101: 0
A102: 47000000 | C102: 0 | D102: 0 | E102: 0 | F102: 0 | G102: 0
A103: 56000000 | C103: 0 | D103: 0 | E103: 0 | F103: =IF(IF((F$3*10^12-$A104)*(F$3*10^12-$A103)*-1<0,0,1)*IF(ABS(F$3*10^12-$A104)>(F$3*10^12-$A103),$A103,$A104)=F104,0,IF((F$3*10^12-$A104)*(F$3*10^12-$A103)*-1<0,0,1)*IF(ABS(F$3*10^12-$A104)>(F$3*10^12-$A103),$A103,$A104)) -> 0 | G103: =IF(IF((G$3*10^12-$A104)*(G$3*10^12-$A103)*-1<0,0,1)*IF(ABS(G$3*10^12-$A104)>(G$3*10^12-$A103),$A103,$A104)=G104,0,IF((G$3*10^12-$A104)*(G$3*10^12-$A103)*-1<0,0,1)*IF(ABS(G$3*10^12-$A104)>(G$3*10^12-$A103),$A103,$A104)) -> 0 | H103: =IF(IF((H$3*10^12-$A104)*(H$3*10^12-$A103)*-1<0,0,1)*IF(ABS(H$3*10^12-$A104)>(H$3*10^12-$A103),$A103,$A104)=H104,0,IF((H$3*10^12-$A104)*(H$3*10^12-$A103)*-1<0,0,1)*IF(ABS(H$3*10^12-$A104)>(H$3*10^12-$A103),$A103,$A104)) ->  | I103: =IF(IF((I$3*10^12-$A104)*(I$3*10^12-$A103)*-1<0,0,1)*IF(ABS(I$3*10^12-$A104)>(I$3*10^12-$A103),$A103,$A104)=I104,0,IF((I$3*10^12-$A104)*(I$3*10^12-$A103)*-1<0,0,1)*IF(ABS(I$3*10^12-$A104)>(I$3*10^12-$A103),$A103,$A104)) -> 
A104: 68000000 | C104: 0 | D104: 0 | E104: 0 | F104: 0 | G104: 0
A105: 82000000 | C105: 0 | D105: 0 | E105: 0 | F105: 0 | G105: 0
A106: 100000000 | C106: 0 | D106: 0 | E106: 0 | F106: 0 | G106: 0
A107: 120000000 | C107: 0 | D107: 0 | E107: 120000000 | F107: 0 | G107: 0
A108: 150000000 | C108: 0 | D108: 0 | E108: 0 | F108: 0 | G108: 0
A109: 180000000 | C109: 0 | D109: 0 | E109: 0 | F109: 0 | G109: 0
A110: 220000000 | C110: 0 | D110: 0 | E110: 0 | F110: 0 | G110: 0
A111: 270000000 | C111: 0 | D111: 0 | E111: 0 | F111: 0 | G111: 0
A112: 330000000 | C112: 0 | D112: 0 | E112: 0 | F112: 0 | G112: 0
A113: 390000000 | C113: 0 | D113: 0 | E113: 0 | F113: 0 | G113: 0
A114: 470000000 | C114: 0 | D114: 0 | E114: 0 | F114: 0 | G114: 0
A115: 560000000 | C115: 0 | D115: 0 | E115: 0 | F115: 0 | G115: 0
A116: 680000000 | C116: 0 | D116: 0 | E116: 0 | F116: 0 | G116: 0
A117: 820000000 | C117: 0 | D117: 0 | E117: 0 | F117: 0 | G117: 0
A118: 1000000000 | C118: 0 | D118: 0 | E118: 0 | F118: 0 | G118: 0
A119: 1200000000 | C119: 0 | D119: 0 | E119: 0 | F119: 0 | G119: 0
A120: 1500000000 | C120: 0 | D120: 0 | E120: 0 | F120: 0 | G120: 0
A121: 1800000000 | C121: 0 | D121: 0 | E121: 0 | F121: 0 | G121: 0
A122: 2200000000 | C122: 0 | D122: 0 | E122: 0 | F122: 0 | G122: 0
A123: 2700000000 | C123: 0 | D123: 0 | E123: 0 | F123: 0 | G123: 0
A124: 3300000000 | C124: 0 | D124: 0 | E124: 0 | F124: 0 | G124: 0
A125: 3900000000 | C125: 0 | D125: 0 | E125: 0 | F125: 0 | G125: 0
A126: 4700000000 | C126: 0 | D126: 0 | E126: 0 | F126: 0 | G126: 0
A127: 5600000000 | C127: 0 | D127: 0 | E127: 0 | F127: 0 | G127: 0
A128: 6800000000 | C128: 0 | D128: 0 | E128: 0 | F128: 0 | G128: 0
A129: 8200000000 | C129: 0 | D129: 0 | E129: 0 | F129: 0 | G129: 0
A130: 10000000000 | C130: 0 | D130: 0 | E130: 0 | F130: 0 | G130: 0
A131: 12000000000 | C131: 0 | D131: 0 | E131: 0 | F131: 0 | G131: 0
A132: 15000000000 | C132: 0 | D132: 0 | E132: 0 | F132: 0 | G132: 0
A133: 18000000000 | C133: 0 | D133: 0 | E133: 0 | F133: 0 | G133: 0 | J133: =IF(IF((J$3*10^12-$A134)*(J$3*10^12-$A133)*-1<0,0,1)*IF(ABS(J$3*10^12-$A134)>(J$3*10^12-$A133),$A133,$A134)=J134,0,IF((J$3*10^12-$A134)*(J$3*10^12-$A133)*-1<0,0,1)*IF(ABS(J$3*10^12-$A134)>(J$3*10^12-$A133),$A133,$A134)) -> 
A134: 22000000000 | C134: 0 | D134: 0 | E134: =IF(IF((E$3*10^12-$A135)*(E$3*10^12-$A134)*-1<0,0,1)*IF(ABS(E$3*10^12-$A135)>(E$3*10^12-$A134),$A134,$A135)=E135,0,IF((E$3*10^12-$A135)*(E$3*10^12-$A134)*-1<0,0,1)*IF(ABS(E$3*10^12-$A135)>(E$3*10^12-$A134),$A134,$A135)) -> 0 | F134: 0 | G134: 0 | J134: =IF(IF((J$3*10^12-$A135)*(J$3*10^12-$A134)*-1<0,0,1)*IF(ABS(J$3*10^12-$A135)>(J$3*10^12-$A134),$A134,$A135)=J135,0,IF((J$3*10^12-$A135)*(J$3*10^12-$A134)*-1<0,0,1)*IF(ABS(J$3*10^12-$A135)>(J$3*10^12-$A134),$A134,$A135)) -> 
A135: 27000000000 | B135: =IF(IF((B$3*10^12-$A136)*(B$3*10^12-$A135)*-1<0,0,1)*IF(ABS(B$3*10^12-$A136)>(B$3*10^12-$A135),$A135,$A136)=B136,0,IF((B$3*10^12-$A136)*(B$3*10^12-$A135)*-1<0,0,1)*IF(ABS(B$3*10^12-$A136)>(B$3*10^12-$A135),$A135,$A136)) ->  | C135: =IF(IF((C$3*10^12-$A136)*(C$3*10^12-$A135)*-1<0,0,1)*IF(ABS(C$3*10^12-$A136)>(C$3*10^12-$A135),$A135,$A136)=C136,0,IF((C$3*10^12-$A136)*(C$3*10^12-$A135)*-1<0,0,1)*IF(ABS(C$3*10^12-$A136)>(C$3*10^12-$A135),$A135,$A136)) -> 0 | D135: 0 | E135: 0 | F135: 0 | G135: 0
A136: 33000000000 | C136: 0 | D136: 0 | E136: 0 | F136: 0 | G136: 0
A137: 39000000000 | C137: 0 | D137: 0 | E137: 0 | F137: 0 | G137: 0
A138: 47000000000 | C138: 0 | D138: 0 | E138: 0 | F138: 0 | G138: 0
A139: 56000000000 | C139: 0 | D139: 0 | E139: 0 | F139: 0 | G139: 0
A140: 68000000000 | C140: 0 | D140: 0 | E140: 0 | F140: 0 | G140: 0
A141: 82000000000 | C141: 0 | D141: 0 | E141: 0 | F141: 0 | G141: 0
A142: 100000000000 | C142: 0 | D142: 0 | E142: 0 | F142: 0 | G142: 0
A143: 120000000000 | C143: 0 | D143: 0 | E143: 0 | F143: 0 | G143: 0
A144: 150000000000 | C144: 0 | D144: 0 | E144: 0 | F144: 0 | G144: 0
A145: 180000000000 | C145: 0 | D145: 0 | E145: 0 | F145: 0 | G145: 0
A146: 220000000000 | C146: 0 | D146: 0 | E146: 0 | F146: 0 | G146: 0
A147: 270000000000 | C147: 0 | D147: 0 | E147: 0 | F147: 0 | G147: 0
A148: 330000000000 | C148: 0 | D148: 0 | E148: 0 | F148: 0 | G148: 0
A149: 390000000000 | C149: 0 | D149: 0 | E149: 0 | F149: 0 | G149: 0
A150: 470000000000 | C150: 0 | D150: 0 | E150: 0 | F150: 0 | G150: 0
A151: 560000000000 | C151: 0 | D151: 0 | E151: 0 | F151: 0 | G151: 0
A152: 680000000000 | C152: 0 | D152: 0 | E152: 0 | F152: 0 | G152: 0
A153: 820000000000 | C153: 0 | D153: 0 | E153: 0 | F153: 0 | G153: 0
A154: 1000000000000 | C154: 0 | D154: 0 | E154: 0 | F154: 0 | G154: 0
A155: 1200000000000 | C155: 0 | D155: 0 | E155: 0 | F155: 0 | G155: 0
A156: 1500000000000 | C156: 0 | D156: 0 | E156: 0 | F156: 0 | G156: 0
A157: 1800000000000 | C157: 0 | D157: 0 | E157: 0 | F157: 0 | G157: 0
A158: 2200000000000 | C158: 0 | D158: 0 | E158: 0 | F158: 0 | G158: 0
A159: 2700000000000 | C159: 2700000000000 | D159: 2700000000000 | E159: 2700000000000 | F159: 2700000000000 | G159: 2700000000000

Sheet Snubber (hidden)
C1: UNITS | D1: STD UNITS
A2: Frequency of Ringing | B2: 85 | C2: MHz | D2: =B2*1000000 -> 85000000 | E2: Hz
A3: SW capacitance | B3: 3000 | C3: pF | D3: =B3*0.000000000001 -> 3e-09 | E3: F
A4: Lpar | B4: =1000000000*1/((D2*2*3.14159)^2*D3) -> 1.168643077 | C4: nH | D4: =B4/1000000000 -> 1.168643077e-09 | E4: H
A5: Csnub | B5: =4*B3 -> 12000 | C5: pF | D5: =B5*0.000000000001 -> 1.2e-08 | E5: F
A6: Rsnub | B6: =SQRT(D4/D3) -> 0.6241375589 | C6: Ω | D6: =B6 -> 0.6241375589 | E6: Ω

Sheet Parallel Output Caps (hidden)
A4: Fsw | B4: =Fsw -> 400000
A6: C1 | B6: 20 | C6: uF | D6: =B6/1000000 -> 2e-05 | E6: F
A7: R1 | B7: 0.5 | C7: mOhms | D7: =B7/1000 -> 0.0005 | E7: Ohms
A9: C2 | B9: 68 | C9: uF | D9: =B9/1000000 -> 6.8e-05 | E9: F
A10: R2 | B10: 20 | C10: mOhms | D10: =B10/1000 -> 0.02 | E10: Ohms
A13: I1 | B13: =(D6/(D6+D9))*SQRT((D10*D9*B4)^2+1)/SQRT((((D7+D10)*D6*D9/(D9+D6))*B4)^2+1) -> 0.256672574 | C13: %
A14: I2 | B14: =1-B13 -> 0.743327426 | C14: %
A16: I1 | B16: =B13*(Iripple1/(2*SQRT(3))) ->  | C16: A
A17: I2 | B17: =B14*(Iripple1/(2*SQRT(3))) ->  | C17: A
